Workbook

Sheet Model Structure (hidden)
B9: Model Overview
B11: Legend
B20: Model Structure

Sheet Change Log (hidden)
C3: Change Log
C4: ='Cover Sheet'!D4 -> TasNetworks (Public Lighting Model)
C12: Change Log
G14: Net Equity ['000']
C15: Date | D15: Filename | E15: Nature of Change Made (Type below) | F15: Analyst | G15: =2018 -> 2018 | H15: =G15+1 -> 2019 | I15: 2020 | J15: 2021 | K15: 2022 | L15: 2023 | M15: 2024
C16: =NOW() -> 2016-09-28T13:19:54.560 | D16: =MID(CELL("filename"), SEARCH("[", CELL("filename")) + 1, SEARCH("]", CELL("filename")) - SEARCH("[", CELL("filename")) - 1) -> AER - Draft decision - TasNetworks public lighting charges model - September 2016.XLSM | F16: mahambreyd
C17: 2015-07-18T11:17:41.560 | D17: 20150717_V10_Aurora Public Lighting Model(test databook).xlsm | F17: mahambreyd

Sheet Data Book (hidden)
C2: Assumptions Book
C3: ='Cover Sheet'!D4 -> TasNetworks (Public Lighting Model)
C10: Global Assumptions/Economic assumptions | D10: Input | E10: Units | F10: Check | G10: Data Owner | H10: Supporting Document Reference | I10: Notes

Sheet Cover Sheet
C2: Model Details
C4: Model Name: | D4: TasNetworks (Public Lighting Model)

Sheet Check Summary
B2: RAB Revenue Equals prices | C2: ='Revenue Nominal RAB'!G23 -> 2017-18 | D2: ='Revenue Nominal RAB'!H23 -> 2018-19
C3: ='Revenue Nominal RAB'!G86 -> TRUE | D3: ='Revenue Nominal RAB'!H86 -> TRUE
C4: ='Revenue Nominal RAB'!G155 -> TRUE | D4: ='Revenue Nominal RAB'!H155 -> TRUE
C5: ='Revenue Nominal RAB'!G224 -> TRUE | D5: ='Revenue Nominal RAB'!H224 -> TRUE
B7: UnSmoothed CL Volumes | C7: ='Unsmoothed Prices'!J68 -> TRUE | D7: ='Unsmoothed Prices'!K68 -> TRUE
B8: UnSmoothed PL Volumes | C8: ='Unsmoothed Prices'!J129 -> TRUE | D8: ='Unsmoothed Prices'!K129 -> TRUE
B9: UnSmoothed Total Volumes | C9: ='Unsmoothed Prices'!J131 -> TRUE | D9: ='Unsmoothed Prices'!K131 -> TRUE
B11: Smoothed CL Volumes | C11: ='Smoothed Prices'!J68 -> TRUE | D11: ='Smoothed Prices'!K68 -> TRUE
B12: Smoothed PL Volumes | C12: ='Smoothed Prices'!J129 -> TRUE | D12: ='Smoothed Prices'!K129 -> TRUE
B13: Smoothed Total Volumes | C13: ='Smoothed Prices'!J131 -> TRUE | D13: ='Smoothed Prices'!K131 -> TRUE
B15: Input Checks | C15: =Inputs!F26 -> TRUE
C16: =Inputs!F27 -> TRUE
C17: =Inputs!F28 -> TRUE
C18: =Inputs!F29 -> TRUE
C19: =Inputs!L40 -> TRUE
C20: =Inputs!L43 -> TRUE
C21: =Inputs!L47 -> TRUE
C22: =Inputs!F53 -> TRUE
C23: =Inputs!F54 -> TRUE
C24: =Inputs!F56 -> TRUE
C25: =Inputs!F57 -> TRUE
B28: build up check | C28: ='Combined Annuity Prices CL'!E5 -> 5965.801032 | D28: ='Combined Annuity Prices CL'!F5 -> 5965.801032

Sheet Model Information
B2: Process information
B3: Public lighting includes many parts that have different life cycles which also vary depending on the light type. The main parts in a light are as follow:
B5: o Light Bracket - most lights have a bracket which allows the luminaire to be attached to a power pole, this is capital expenditure. There are some lights that are on private piles that do not require brackets, these poles and built in brackets are not the responsibility of TasNetworks. Brackets are assumed to have a life cycle of 40 years
B9: o Luminaire - The luminaire is the light fitting that the lamp is within and is a capital expenditure. Luminaires are assumed to have a life cycle of 20 years
B12: o Lamp - Within the luminaire is a lamp that requires replacement depending on the light type. Normal lights have a life cycle of 4.5 years on average therefore the replacement program is every 4 years as opex expenditure. LED lights are the exception as they last 20 years and are replaced when the luminaire requires replacing.
B16: o PE Cell - Public lights are switched on and off using PE Cells which in the last 30 years have replaced overhead switch wires as a new technology. They are replaced either with the lamp on after 1o year as opex.
B19: o Installation Cost - The TasNetworks POW has inbuilt unit prices for both Opex and capex installation costs of public lights. These prices have been used for luminaire /Bracket capex installation excluding the material proportion plus actual materials from the warehouse prices. The same method has been used for Opex maintenance (Lamp & PE Cell replacement), using the POW unit rate net of materials plus actual materials for the individual light type. The 2 unit rates are determined using the Major/minor allocation of the light.
B25: Public lighting prices have previously used the annuity method rather than a RAB method. The annuity method is more accurate and produces more cost reflective prices compared to the RAB method which has some unreliable data. The opening RAB data was estimated by the business therefore its accuracy is unknown, because of this the PTRM output is used as a indicator test for the Annuity method.
B32: Assumptions
B33: Brackets
B34: A sample base for brackets has been sourced from the thread leader which aligns the light type with bracket type and cost. This sample base of 10,000 out of a total of 40,000+ lights is assumed to represent the whole fleet of brackets.
B37: Of the 40,000+ public lights there are a number of private poles for the public light that do not require a bracket. The public lighting asset management plan has the total number of brackets in the fleet (not down to type assigned to light type for costing). Therefore the cost of the brackets is weighted so that only the total number of brackets are recovered.
B41: Lamps
B42: Lamps have a assumed life cycle of 4.5 years therefore they are replaced within the POW after 4 years. LEDs do not require a lamp replacement within the 20 year life cycle of the luminaire.
B47: PE Cells
B48: There are two types of PE Cells and it is assumed that major lights have the more expensive cell installed while the minor lights have the smaller and cheaper PE Cell.
B51: PE Cells have a assumed 10 year life therefore to align with the 4 year lamp replacement program they are replaced after 8 years however with LED's they are replaced after 10 years.
B54: Installation and maintenance cost
B55: The POW assumption about what lights are major and minor for work to be completed is based on lights less than or greater than 100 watts. This results in a higher cost associated with the major lights due to higher costs performing maintenance and installation.
B58: It is assumed that the cost of performing a Lamp replacement is the same doing the PE Cell at the same time or only PE cell.
B61: It is assumed that the cost of performing a luminaire installation/replacement is the same doing the Brackett at the same time
B64: Other assumptions
B65: It is assumed that contract prices for materials are to remain consistent with the agrees 3% annual increase to remain the same.
B68: Where a warehouse price is not available due to the light type is obsolete the previous determination prices have been indexed.
B71: Indirect capex that is not included in the unit price build up is included in the annuity calculation and assumed to have a 40 year life given it is work on the street lights that have the same life.
B74: Private contract lights are owned by client and TasNetworks just performs maintenance on the light. Capital replacements are the responsibility of the owner.

Sheet AER Model Changes
A3: Item | B3: Sheet \ Location | C3: Comment
A5: 1 | B5: AER Summary | C5: New sheet created
A7: =A5+1 -> 2 | B7: Smoothed Prices'!O132:T143 | C7: Formulae to calculate X Factor 2018-19
A9: =A7+1 -> 3 | B9: Master Data'!A26:J51 | C9: AER CPI and WACC data inputs
A11: =A9+1 -> 4 | B11: CAPEX Annuity calcs'!O10:U328 | C11: Hardcoded numbers replaced with formulae
B12: CAPEX Annuity calcs'!E10:E328
A14: =A11+1 -> 5 | B14: CAPEX Annuity calcs'!O88:U88 | C14: Bracket installation costs should be Nil as they are included in the Luminaire installation costs
A16: =A14+1 -> 6 | B16: Corp Capex Annuity calcs'!C8:E38 | C16: Hardcoded numbers replaced with formulae and converted to 2016-17 dollars
B17: Corp Capex Annuity calcs'!E101 | C17: Hardcoded numbers replaced with formulae
B18: Corp Capex Annuity calcs'!E103 | C18: Hardcoded numbers replaced with formulae
B19: Corp Capex Annuity calcs'!F104:G104 | C19: Hardcoded numbers replaced with formulae
B20: Corp Capex Annuity calcs'!F108:G108 | C20: Hardcoded numbers replaced with formulae
A22: =A16+1 -> 7 | B22: Capex Weighting'!D2:H12 | C22: Costs converted to 2016-17 Dollars
A24: =A22+1 -> 8 | B24: Opex Weighting'!D1:K11 | C24: Costs converted to 2016-17 Dollars
B25: Opex Weighting'!K13
B26: Opex Weighting'!Q13
A28: =A24+1 -> 9 | B28: Building Block'!C43:D43 | C28: Costs converted to 2016-17 Dollars
B29: Building Block'!C45:D45
A31: =A28+1 -> 10 | B31: Inputs!D33:D36 | C31: Costs converted to 2016-17 Dollars
B32: Inputs!Q69:Q72
B33: Inputs!Q76
B34: Inputs!Q83:Q98
B35: Inputs!Q111:Q124
B36: Inputs!D61:D62
B37: Inputs!X69:X72
B38: Inputs!X83:X98
B39: Inputs!X101:X102
B40: Inputs!X109:X114
B41: Inputs!X116:X117,
A43: =A31+1 -> 11 | B43: Warehouse Pricing'!I106 | C43: Costs converted to 2016-17 Dollars
A45: =A43+1 -> 12 | B45: Old Prices Indexed'!I4:J27 | C45: Costs converted to 2016-17 Dollars
A47: =A45+1 -> 13 | B47: Bracket Summary'!B71:J72 | C47: Costs converted to 2016-17 Dollars

Sheet AER Summary
F2: CPI | G2: ='Master Data'!I30 -> 0.0245 | I2: CPI | J2: ='Master Data'!J30 -> 0.0245 | N2: Price Check | O2: =IF(ABS(SUM('Smoothed Prices'!S140,O8))>0.001,"Error","Ok") -> Ok
I3: X Factor | J3: ='Smoothed Prices'!S142 -> -0.006320607515
C5: Price (cents) per Light per day | F5: Price (cents) per Light per day | I5: Price (cents) per Light per day | O5: Check
C6: (Real 2016/17) | F6: (Nominal) | I6: (Nominal)
C7: 2017-18 | F7: 2017-18 | I7: 2018-19
B8: Private Contract Lights | O8: =SUM(O9:O54,O58:O103) -> 1.88293825e-13
B9: ='Smoothed Prices'!B10 -> 32W Compact Fluorescent | D9: ='Smoothed Prices'!D10 -> 17.334 | G9: =D9*(1+$G$2) -> 17.758683 | J9: =G9*(1-$J$3)*(1+$G$2) -> 18.30876642 | O9: =ABS(SUMIF('Smoothed Prices'!$B$10:$B$65,B9,'Smoothed Prices'!$H$10:$H$65)-J9) -> 0
B10: ='Smoothed Prices'!B11 -> 42W Compact Fluorescent | D10: ='Smoothed Prices'!D11 -> 17.334 | G10: 17.758683 | J10: 18.30876642 | O10: =ABS(SUMIF('Smoothed Prices'!$B$10:$B$65,B10,'Smoothed Prices'!$H$10:$H$65)-J10) -> 0
B11: ='Smoothed Prices'!B12 -> 42W Compact Fluorescent - Bottom Pole Entry | D11: ='Smoothed Prices'!D12 -> 17.334 | G11: 17.758683 | J11: 18.30876642 | O11: =ABS(SUMIF('Smoothed Prices'!$B$10:$B$65,B11,'Smoothed Prices'!$H$10:$H$65)-J11) -> 0
B12: ='Smoothed Prices'!B13 -> 2x24W Compact Fluorescent | D12: ='Smoothed Prices'!D13 -> 17.642 | G12: 18.074229 | J12: 18.6340866 | O12: =ABS(SUMIF('Smoothed Prices'!$B$10:$B$65,B12,'Smoothed Prices'!$H$10:$H$65)-J12) -> 0
B13: ='Smoothed Prices'!B14 -> 1x20W Fluorescent | D13: ='Smoothed Prices'!D14 -> 17.303 | G13: 17.7269235 | J13: 18.27602315 | O13: =ABS(SUMIF('Smoothed Prices'!$B$10:$B$65,B13,'Smoothed Prices'!$H$10:$H$65)-J13) -> 7.105427358e-15
B14: ='Smoothed Prices'!B15 -> 1x40W Fluorescent | D14: ='Smoothed Prices'!D15 -> 17.321 | G14: 17.7453645 | J14: 18.29503537 | O14: =ABS(SUMIF('Smoothed Prices'!$B$10:$B$65,B14,'Smoothed Prices'!$H$10:$H$65)-J14) -> 3.552713679e-15
B15: ='Smoothed Prices'!B16 -> 2x20W Fluorescent | D15: ='Smoothed Prices'!D16 -> 17.58 | G15: 18.01071 | J15: 18.56860007 | O15: =ABS(SUMIF('Smoothed Prices'!$B$10:$B$65,B15,'Smoothed Prices'!$H$10:$H$65)-J15) -> 0
B16: ='Smoothed Prices'!B17 -> 2x24W Fluorescent | D16: ='Smoothed Prices'!D17 -> 17.429 | G16: 17.8560105 | J16: 18.40910868 | O16: =ABS(SUMIF('Smoothed Prices'!$B$10:$B$65,B16,'Smoothed Prices'!$H$10:$H$65)-J16) -> 3.552713679e-15
B17: ='Smoothed Prices'!B18 -> T5 Fluorescent 2 x 24W | D17: ='Smoothed Prices'!D18 -> 17.58 | G17: 18.01071 | J17: 18.56860007 | O17: =ABS(SUMIF('Smoothed Prices'!$B$10:$B$65,B17,'Smoothed Prices'!$H$10:$H$65)-J17) -> 0
B18: ='Smoothed Prices'!B19 -> 20 Fluorescent 1X20FL | D18: ='Smoothed Prices'!D19 -> 17.303 | G18: 17.7269235 | J18: 18.27602315 | O18: =ABS(SUMIF('Smoothed Prices'!$B$10:$B$65,B18,'Smoothed Prices'!$H$10:$H$65)-J18) -> 7.105427358e-15
B19: ='Smoothed Prices'!B20 -> 2x40W Fluorescent | D19: ='Smoothed Prices'!D20 -> 17.616 | G19: 18.047592 | J19: 18.60662451 | O19: =ABS(SUMIF('Smoothed Prices'!$B$10:$B$65,B19,'Smoothed Prices'!$H$10:$H$65)-J19) -> 3.552713679e-15
B20: ='Smoothed Prices'!B21 -> 3x40W Fluorescent | D20: ='Smoothed Prices'!D21 -> 21.336 | G20: 21.858732 | J20: 22.53581633 | O20: =ABS(SUMIF('Smoothed Prices'!$B$10:$B$65,B20,'Smoothed Prices'!$H$10:$H$65)-J20) -> 0
B21: ='Smoothed Prices'!B22 -> 4x20 Fluorescent | D21: ='Smoothed Prices'!D22 -> 18.135 | G21: 18.5793075 | J21: 19.15481014 | O21: =ABS(SUMIF('Smoothed Prices'!$B$10:$B$65,B21,'Smoothed Prices'!$H$10:$H$65)-J21) -> 3.552713679e-15
B22: ='Smoothed Prices'!B23 -> 4x40W Fluorescent | D22: ='Smoothed Prices'!D23 -> 21.631 | G22: 22.1609595 | J22: 22.84740547 | O22: =ABS(SUMIF('Smoothed Prices'!$B$10:$B$65,B22,'Smoothed Prices'!$H$10:$H$65)-J22) -> 3.552713679e-15
B23: ='Smoothed Prices'!B24 -> 100W Sodium Vapour | D23: ='Smoothed Prices'!D24 -> 21.475 | G23: 22.0011375 | J23: 22.68263291 | O23: =ABS(SUMIF('Smoothed Prices'!$B$10:$B$65,B23,'Smoothed Prices'!$H$10:$H$65)-J23) -> 0
B24: ='Smoothed Prices'!B26 -> 150W Sodium Vapour | D24: ='Smoothed Prices'!D26 -> 21.471 | G24: 21.9970395 | J24: 22.67840797 | O24: =ABS(SUMIF('Smoothed Prices'!$B$10:$B$65,B24,'Smoothed Prices'!$H$10:$H$65)-J24) -> 0
B25: ='Smoothed Prices'!B30 -> 250W Sodium Vapour | D25: ='Smoothed Prices'!D30 -> 21.599 | G25: 22.1281755 | J25: 22.81360597 | O25: =ABS(SUMIF('Smoothed Prices'!$B$10:$B$65,B25,'Smoothed Prices'!$H$10:$H$65)-J25) -> 7.105427358e-15
B26: ='Smoothed Prices'!B34 -> 250W Sodium Vapour - Flood Light | D26: ='Smoothed Prices'!D34 -> 21.599 | G26: 22.1281755 | J26: 22.81360597 | O26: =ABS(SUMIF('Smoothed Prices'!$B$10:$B$65,B26,'Smoothed Prices'!$H$10:$H$65)-J26) -> 7.105427358e-15
B27: ='Smoothed Prices'!B35 -> 400W Sodium Vapour | D27: ='Smoothed Prices'!D35 -> 21.642 | G27: 22.172229 | J27: 22.85902405 | O27: =ABS(SUMIF('Smoothed Prices'!$B$10:$B$65,B27,'Smoothed Prices'!$H$10:$H$65)-J27) -> 0
B28: ='Smoothed Prices'!B37 -> 400W Sodium Vapour - Flood Light | D28: ='Smoothed Prices'!D37 -> 21.642 | G28: 22.172229 | J28: 22.85902405 | O28: =ABS(SUMIF('Smoothed Prices'!$B$10:$B$65,B28,'Smoothed Prices'!$H$10:$H$65)-J28) -> 0
B29: ='Smoothed Prices'!B38 -> 70W Sodium Vapour | D29: ='Smoothed Prices'!D38 -> 17.536 | G29: 17.965632 | J29: 18.52212576 | O29: =ABS(SUMIF('Smoothed Prices'!$B$10:$B$65,B29,'Smoothed Prices'!$H$10:$H$65)-J29) -> 0
B30: ='Smoothed Prices'!B40 -> 100W Incandescent | D30: ='Smoothed Prices'!D40 -> 20.568 | G30: 21.071916 | J30: 21.72462834 | O30: =ABS(SUMIF('Smoothed Prices'!$B$10:$B$65,B30,'Smoothed Prices'!$H$10:$H$65)-J30) -> 3.552713679e-15
B31: ='Smoothed Prices'!B41 -> 60W Incandescent | D31: ='Smoothed Prices'!D41 -> 17.144 | G31: 17.564028 | J31: 18.10808189 | O31: =ABS(SUMIF('Smoothed Prices'!$B$10:$B$65,B31,'Smoothed Prices'!$H$10:$H$65)-J31) -> 0
B32: ='Smoothed Prices'!B42 -> 18W LED | D32: ='Smoothed Prices'!D42 -> 11.726 | G32: 12.013287 | J32: 12.38540412 | O32: =ABS(SUMIF('Smoothed Prices'!$B$10:$B$65,B32,'Smoothed Prices'!$H$10:$H$65)-J32) -> 1.776356839e-15
B33: ='Smoothed Prices'!B43 -> 25W LED | D33: ='Smoothed Prices'!D43 -> 11.726 | G33: 12.013287 | J33: 12.38540412 | O33: =ABS(SUMIF('Smoothed Prices'!$B$10:$B$65,B33,'Smoothed Prices'!$H$10:$H$65)-J33) -> 1.776356839e-15
B34: ='Smoothed Prices'!B44 -> 18W LED Decorative - Bottom Pole Entry | D34: ='Smoothed Prices'!D44 -> 11.726 | G34: 12.013287 | J34: 12.38540412 | O34: =ABS(SUMIF('Smoothed Prices'!$B$10:$B$65,B34,'Smoothed Prices'!$H$10:$H$65)-J34) -> 1.776356839e-15
B35: ='Smoothed Prices'!B45 -> 18W LED Decorative - Side Entry | D35: ='Smoothed Prices'!D45 -> 11.726 | G35: 12.013287 | J35: 12.38540412 | O35: =ABS(SUMIF('Smoothed Prices'!$B$10:$B$65,B35,'Smoothed Prices'!$H$10:$H$65)-J35) -> 1.776356839e-15
B36: ='Smoothed Prices'!B46 -> 18W LED Decorative - Top Entry | D36: ='Smoothed Prices'!D46 -> 11.726 | G36: 12.013287 | J36: 12.38540412 | O36: =ABS(SUMIF('Smoothed Prices'!$B$10:$B$65,B36,'Smoothed Prices'!$H$10:$H$65)-J36) -> 1.776356839e-15
B37: ='Smoothed Prices'!B47 -> 25W LED Decorative - Bottom Pole Entry | D37: ='Smoothed Prices'!D47 -> 11.726 | G37: 12.013287 | J37: 12.38540412 | O37: =ABS(SUMIF('Smoothed Prices'!$B$10:$B$65,B37,'Smoothed Prices'!$H$10:$H$65)-J37) -> 1.776356839e-15
B38: ='Smoothed Prices'!B48 -> 25W LED Decorative - Side Entry | D38: ='Smoothed Prices'!D48 -> 11.726 | G38: 12.013287 | J38: 12.38540412 | O38: =ABS(SUMIF('Smoothed Prices'!$B$10:$B$65,B38,'Smoothed Prices'!$H$10:$H$65)-J38) -> 1.776356839e-15
B39: ='Smoothed Prices'!B49 -> 25W LED Decorative - Top Entry | D39: ='Smoothed Prices'!D49 -> 11.726 | G39: 12.013287 | J39: 12.38540412 | O39: =ABS(SUMIF('Smoothed Prices'!$B$10:$B$65,B39,'Smoothed Prices'!$H$10:$H$65)-J39) -> 1.776356839e-15
B40: ='Smoothed Prices'!B50 -> 30W LED | D40: ='Smoothed Prices'!D50 -> 11.726 | G40: 12.013287 | J40: 12.38540412 | O40: =ABS(SUMIF('Smoothed Prices'!$B$10:$B$65,B40,'Smoothed Prices'!$H$10:$H$65)-J40) -> 1.776356839e-15
B41: ='Smoothed Prices'!B51 -> 88 LED Light | D41: ='Smoothed Prices'!D51 -> 11.726 | G41: 12.013287 | J41: 12.38540412 | O41: =ABS(SUMIF('Smoothed Prices'!$B$10:$B$65,B41,'Smoothed Prices'!$H$10:$H$65)-J41) -> 1.776356839e-15
B42: ='Smoothed Prices'!B52 -> 100W Metal Halide | D42: ='Smoothed Prices'!D52 -> 21.472 | G42: 21.998064 | J42: 22.6794642 | O42: =ABS(SUMIF('Smoothed Prices'!$B$10:$B$65,B42,'Smoothed Prices'!$H$10:$H$65)-J42) -> 0
B43: ='Smoothed Prices'!B53 -> 150W Metal Halide | D43: ='Smoothed Prices'!D53 -> 21.613 | G43: 22.1425185 | J43: 22.82839325 | O43: =ABS(SUMIF('Smoothed Prices'!$B$10:$B$65,B43,'Smoothed Prices'!$H$10:$H$65)-J43) -> 3.552713679e-15
B44: ='Smoothed Prices'!B54 -> 250W Metal Halide | D44: ='Smoothed Prices'!D54 -> 21.613 | G44: 22.1425185 | J44: 22.82839325 | O44: =ABS(SUMIF('Smoothed Prices'!$B$10:$B$65,B44,'Smoothed Prices'!$H$10:$H$65)-J44) -> 3.552713679e-15
B45: ='Smoothed Prices'!B55 -> 400W Metal Halide | D45: ='Smoothed Prices'!D55 -> 22.286 | G45: 22.832007 | J45: 23.53923897 | O45: =ABS(SUMIF('Smoothed Prices'!$B$10:$B$65,B45,'Smoothed Prices'!$H$10:$H$65)-J45) -> 0
B46: ='Smoothed Prices'!B56 -> 70W Metal Halide | D46: ='Smoothed Prices'!D56 -> 18.029 | G46: 18.4707105 | J46: 19.0428493 | O46: =ABS(SUMIF('Smoothed Prices'!$B$10:$B$65,B46,'Smoothed Prices'!$H$10:$H$65)-J46) -> 0
B47: ='Smoothed Prices'!B57 -> 250W Metal Halide - Flood Light | D47: ='Smoothed Prices'!D57 -> 21.613 | G47: 22.1425185 | J47: 22.82839325 | O47: =ABS(SUMIF('Smoothed Prices'!$B$10:$B$65,B47,'Smoothed Prices'!$H$10:$H$65)-J47) -> 3.552713679e-15
B48: ='Smoothed Prices'!B58 -> 400W Metal Halide - Flood Light | D48: ='Smoothed Prices'!D58 -> 22.286 | G48: 22.832007 | J48: 23.53923897 | O48: =ABS(SUMIF('Smoothed Prices'!$B$10:$B$65,B48,'Smoothed Prices'!$H$10:$H$65)-J48) -> 0
B49: ='Smoothed Prices'!B59 -> 125W Mercury Vapour | D49: ='Smoothed Prices'!D59 -> 20.603 | G49: 21.1077735 | J49: 21.76159654 | O49: =ABS(SUMIF('Smoothed Prices'!$B$10:$B$65,B49,'Smoothed Prices'!$H$10:$H$65)-J49) -> 0
B50: ='Smoothed Prices'!B60 -> 250W Mercury Vapour | D50: ='Smoothed Prices'!D60 -> 20.603 | G50: 21.1077735 | J50: 21.76159654 | O50: =ABS(SUMIF('Smoothed Prices'!$B$10:$B$65,B50,'Smoothed Prices'!$H$10:$H$65)-J50) -> 0
B51: ='Smoothed Prices'!B62 -> 400W Mercury Vapour | D51: ='Smoothed Prices'!D62 -> 20.75 | G51: 21.258375 | J51: 21.916863 | O51: =ABS(SUMIF('Smoothed Prices'!$B$10:$B$65,B51,'Smoothed Prices'!$H$10:$H$65)-J51) -> 0
B52: ='Smoothed Prices'!B63 -> 50W Mercury Vapour | D52: ='Smoothed Prices'!D63 -> 17.206 | G52: 17.627547 | J52: 18.17356842 | O52: =ABS(SUMIF('Smoothed Prices'!$B$10:$B$65,B52,'Smoothed Prices'!$H$10:$H$65)-J52) -> 3.552713679e-15
B53: ='Smoothed Prices'!B64 -> 80W Mercury Vapour Art decorative | D53: ='Smoothed Prices'!D64 -> 17.175 | G53: 17.5957875 | J53: 18.14082515 | O53: =ABS(SUMIF('Smoothed Prices'!$B$10:$B$65,B53,'Smoothed Prices'!$H$10:$H$65)-J53) -> 0
B54: ='Smoothed Prices'!B65 -> 80W Mercury Vapour | D54: ='Smoothed Prices'!D65 -> 17.175 | G54: 17.5957875 | J54: 18.14082515 | O54: =ABS(SUMIF('Smoothed Prices'!$B$10:$B$65,B54,'Smoothed Prices'!$H$10:$H$65)-J54) -> 0
B57: Public Road Lights
B58: ='Smoothed Prices'!B71 -> 32W Compact Fluorescent | D58: ='Unsmoothed Prices'!D71 -> 33.796 | G58: =D58*(1+$G$2) -> 34.624002 | J58: =G58*(1-$J$3)*(1+$G$2) -> 35.69649647 | O58: =ABS(SUMIF('Smoothed Prices'!$B$71:$B$126,B58,'Smoothed Prices'!$H$71:$H$126)-J58) -> 7.105427358e-15
B59: ='Smoothed Prices'!B72 -> 42W Compact Fluorescent | D59: ='Unsmoothed Prices'!D72 -> 33.818 | G59: 34.646541 | J59: 35.71973363 | O59: =ABS(SUMIF('Smoothed Prices'!$B$71:$B$126,B59,'Smoothed Prices'!$H$71:$H$126)-J59) -> 7.105427358e-15
B60: ='Smoothed Prices'!B73 -> 42W Compact Fluorescent - Bottom Pole Entry | D60: ='Unsmoothed Prices'!D73 -> 33.818 | G60: 34.646541 | J60: 35.71973363 | O60: =ABS(SUMIF('Smoothed Prices'!$B$71:$B$126,B60,'Smoothed Prices'!$H$71:$H$126)-J60) -> 7.105427358e-15
B61: ='Smoothed Prices'!B74 -> 2x24W Compact Fluorescent | D61: ='Unsmoothed Prices'!D74 -> 34.127 | G61: 34.9631115 | J61: 36.04611005 | O61: =ABS(SUMIF('Smoothed Prices'!$B$71:$B$126,B61,'Smoothed Prices'!$H$71:$H$126)-J61) -> 7.105427358e-15
B62: ='Smoothed Prices'!B75 -> 1x20W Fluorescent | D62: ='Unsmoothed Prices'!D75 -> 35.337 | G62: 36.2027565 | J62: 37.32415362 | O62: =ABS(SUMIF('Smoothed Prices'!$B$71:$B$126,B62,'Smoothed Prices'!$H$71:$H$126)-J62) -> 0
B63: ='Smoothed Prices'!B76 -> 1x40W Fluorescent | D63: ='Unsmoothed Prices'!D76 -> 34.285 | G63: 35.1249825 | J63: 36.21299507 | O63: =ABS(SUMIF('Smoothed Prices'!$B$71:$B$126,B63,'Smoothed Prices'!$H$71:$H$126)-J63) -> 0
B64: ='Smoothed Prices'!B77 -> 2x20W Fluorescent | D64: ='Unsmoothed Prices'!D77 -> 35.615 | G64: 36.4875675 | J64: 37.61778678 | O64: =ABS(SUMIF('Smoothed Prices'!$B$71:$B$126,B64,'Smoothed Prices'!$H$71:$H$126)-J64) -> 7.105427358e-15
B65: ='Smoothed Prices'!B78 -> 2x24W Fluorescent | D65: ='Unsmoothed Prices'!D78 -> 35.562 | G65: 36.433269 | J65: 37.56180635 | O65: =ABS(SUMIF('Smoothed Prices'!$B$71:$B$126,B65,'Smoothed Prices'!$H$71:$H$126)-J65) -> 0
B66: ='Smoothed Prices'!B79 -> T5 Fluorescent 2 x 24W | D66: ='Unsmoothed Prices'!D79 -> 35.615 | G66: 36.4875675 | J66: 37.61778678 | O66: =ABS(SUMIF('Smoothed Prices'!$B$71:$B$126,B66,'Smoothed Prices'!$H$71:$H$126)-J66) -> 7.105427358e-15
B67: ='Smoothed Prices'!B80 -> 20 Fluorescent 1X20FL | D67: ='Unsmoothed Prices'!D80 -> 35.337 | G67: 36.2027565 | J67: 37.32415362 | O67: =ABS(SUMIF('Smoothed Prices'!$B$71:$B$126,B67,'Smoothed Prices'!$H$71:$H$126)-J67) -> 0
B68: ='Smoothed Prices'!B81 -> 2x40W Fluorescent | D68: ='Unsmoothed Prices'!D81 -> 34.581 | G68: 35.4282345 | J68: 36.52564045 | O68: =ABS(SUMIF('Smoothed Prices'!$B$71:$B$126,B68,'Smoothed Prices'!$H$71:$H$126)-J68) -> 0
B69: ='Smoothed Prices'!B82 -> 3x40W Fluorescent | D69: ='Unsmoothed Prices'!D82 -> 43.376 | G69: 44.438712 | J69: 45.81522165 | O69: =ABS(SUMIF('Smoothed Prices'!$B$71:$B$126,B69,'Smoothed Prices'!$H$71:$H$126)-J69) -> 7.105427358e-15
B70: ='Smoothed Prices'!B83 -> 4x20 Fluorescent | D70: ='Unsmoothed Prices'!D83 -> 36.17 | G70: 37.056165 | J70: 38.20399685 | O70: =ABS(SUMIF('Smoothed Prices'!$B$71:$B$126,B70,'Smoothed Prices'!$H$71:$H$126)-J70) -> 0
B71: ='Smoothed Prices'!B84 -> 4x40W Fluorescent | D71: ='Unsmoothed Prices'!D84 -> 44.741 | G71: 45.8371545 | J71: 47.25698156 | O71: =ABS(SUMIF('Smoothed Prices'!$B$71:$B$126,B71,'Smoothed Prices'!$H$71:$H$126)-J71) -> 0
B72: ='Smoothed Prices'!B85 -> 100W Sodium Vapour | D72: ='Unsmoothed Prices'!D85 -> 42.603 | G72: 43.6467735 | J72: 44.99875249 | O72: =ABS(SUMIF('Smoothed Prices'!$B$71:$B$126,B72,'Smoothed Prices'!$H$71:$H$126)-J72) -> 1.421085472e-14
B73: ='Smoothed Prices'!B87 -> 150W Sodium Vapour | D73: ='Unsmoothed Prices'!D87 -> 44.705 | G73: 45.8002725 | J73: 47.21895712 | O73: =ABS(SUMIF('Smoothed Prices'!$B$71:$B$126,B73,'Smoothed Prices'!$H$71:$H$126)-J73) -> 7.105427358e-15
B74: ='Smoothed Prices'!B91 -> 250W Sodium Vapour | D74: ='Unsmoothed Prices'!D91 -> 45.724 | G74: 46.844238 | J74: 48.29525993 | O74: =ABS(SUMIF('Smoothed Prices'!$B$71:$B$126,B74,'Smoothed Prices'!$H$71:$H$126)-J74) -> 7.105427358e-15
B75: ='Smoothed Prices'!B95 -> 250W Sodium Vapour - Flood Light | D75: ='Unsmoothed Prices'!D95 -> 49.445 | G75: 50.6564025 | J75: 52.22550799 | O75: =ABS(SUMIF('Smoothed Prices'!$B$71:$B$126,B75,'Smoothed Prices'!$H$71:$H$126)-J75) -> 0
B76: ='Smoothed Prices'!B96 -> 400W Sodium Vapour | D76: ='Unsmoothed Prices'!D96 -> 46.538 | G76: 47.678181 | J76: 49.1550347 | O76: =ABS(SUMIF('Smoothed Prices'!$B$71:$B$126,B76,'Smoothed Prices'!$H$71:$H$126)-J76) -> 0
B77: ='Smoothed Prices'!B98 -> 400W Sodium Vapour - Flood Light | D77: ='Unsmoothed Prices'!D98 -> 48.993 | G77: 50.1933285 | J77: 51.74809006 | O77: =ABS(SUMIF('Smoothed Prices'!$B$71:$B$126,B77,'Smoothed Prices'!$H$71:$H$126)-J77) -> 0
B78: ='Smoothed Prices'!B99 -> 70W Sodium Vapour | D78: ='Unsmoothed Prices'!D99 -> 33.672 | G78: 34.496964 | J78: 35.56552341 | O78: =ABS(SUMIF('Smoothed Prices'!$B$71:$B$126,B78,'Smoothed Prices'!$H$71:$H$126)-J78) -> 0
B79: ='Smoothed Prices'!B101 -> 100W Incandescent | D79: ='Unsmoothed Prices'!D101 -> 39.359 | G79: 40.3232955 | J79: 41.57232822 | O79: =ABS(SUMIF('Smoothed Prices'!$B$71:$B$126,B79,'Smoothed Prices'!$H$71:$H$126)-J79) -> 0
B80: ='Smoothed Prices'!B102 -> 60W Incandescent | D80: ='Unsmoothed Prices'!D102 -> 30.86 | G80: 31.61607 | J80: 32.59539239 | O80: =ABS(SUMIF('Smoothed Prices'!$B$71:$B$126,B80,'Smoothed Prices'!$H$71:$H$126)-J80) -> 0
B81: ='Smoothed Prices'!B103 -> 18W LED | D81: ='Unsmoothed Prices'!D103 -> 31.982 | G81: 32.765559 | J81: 33.78048734 | O81: =ABS(SUMIF('Smoothed Prices'!$B$71:$B$126,B81,'Smoothed Prices'!$H$71:$H$126)-J81) -> 0
B82: ='Smoothed Prices'!B104 -> 25W LED | D82: ='Unsmoothed Prices'!D104 -> 31.982 | G82: 32.765559 | J82: 33.78048734 | O82: =ABS(SUMIF('Smoothed Prices'!$B$71:$B$126,B82,'Smoothed Prices'!$H$71:$H$126)-J82) -> 0
B83: ='Smoothed Prices'!B105 -> 18W LED Decorative - Bottom Pole Entry | D83: ='Unsmoothed Prices'!D105 -> 44.435 | G83: 45.5236575 | J83: 46.93377384 | O83: =ABS(SUMIF('Smoothed Prices'!$B$71:$B$126,B83,'Smoothed Prices'!$H$71:$H$126)-J83) -> 0
B84: ='Smoothed Prices'!B106 -> 18W LED Decorative - Side Entry | D84: ='Unsmoothed Prices'!D106 -> 44.435 | G84: 45.5236575 | J84: 46.93377384 | O84: =ABS(SUMIF('Smoothed Prices'!$B$71:$B$126,B84,'Smoothed Prices'!$H$71:$H$126)-J84) -> 0
B85: ='Smoothed Prices'!B107 -> 18W LED Decorative - Top Entry | D85: ='Unsmoothed Prices'!D107 -> 44.435 | G85: 45.5236575 | J85: 46.93377384 | O85: =ABS(SUMIF('Smoothed Prices'!$B$71:$B$126,B85,'Smoothed Prices'!$H$71:$H$126)-J85) -> 0
B86: ='Smoothed Prices'!B108 -> 25W LED Decorative - Bottom Pole Entry | D86: ='Unsmoothed Prices'!D108 -> 44.435 | G86: 45.5236575 | J86: 46.93377384 | O86: =ABS(SUMIF('Smoothed Prices'!$B$71:$B$126,B86,'Smoothed Prices'!$H$71:$H$126)-J86) -> 0
B87: ='Smoothed Prices'!B109 -> 25W LED Decorative - Side Entry | D87: ='Unsmoothed Prices'!D109 -> 44.435 | G87: 45.5236575 | J87: 46.93377384 | O87: =ABS(SUMIF('Smoothed Prices'!$B$71:$B$126,B87,'Smoothed Prices'!$H$71:$H$126)-J87) -> 0
B88: ='Smoothed Prices'!B110 -> 25W LED Decorative - Top Entry | D88: ='Unsmoothed Prices'!D110 -> 44.435 | G88: 45.5236575 | J88: 46.93377384 | O88: =ABS(SUMIF('Smoothed Prices'!$B$71:$B$126,B88,'Smoothed Prices'!$H$71:$H$126)-J88) -> 0
B89: ='Smoothed Prices'!B111 -> 30W LED | D89: ='Unsmoothed Prices'!D111 -> 31.982 | G89: 32.765559 | J89: 33.78048734 | O89: =ABS(SUMIF('Smoothed Prices'!$B$71:$B$126,B89,'Smoothed Prices'!$H$71:$H$126)-J89) -> 0
B90: ='Smoothed Prices'!B112 -> 88 LED Light | D90: ='Unsmoothed Prices'!D112 -> 31.982 | G90: 32.765559 | J90: 33.78048734 | O90: =ABS(SUMIF('Smoothed Prices'!$B$71:$B$126,B90,'Smoothed Prices'!$H$71:$H$126)-J90) -> 0
B91: ='Smoothed Prices'!B113 -> 100W Metal Halide | D91: ='Unsmoothed Prices'!D113 -> 42.744 | G91: 43.791228 | J91: 45.14768154 | O91: =ABS(SUMIF('Smoothed Prices'!$B$71:$B$126,B91,'Smoothed Prices'!$H$71:$H$126)-J91) -> 7.105427358e-15
B92: ='Smoothed Prices'!B114 -> 150W Metal Halide | D92: ='Unsmoothed Prices'!D114 -> 45.239 | G92: 46.3473555 | J92: 47.78298627 | O92: =ABS(SUMIF('Smoothed Prices'!$B$71:$B$126,B92,'Smoothed Prices'!$H$71:$H$126)-J92) -> 7.105427358e-15
B93: ='Smoothed Prices'!B115 -> 250W Metal Halide | D93: ='Unsmoothed Prices'!D115 -> 45.999 | G93: 47.1259755 | J93: 48.58572438 | O93: =ABS(SUMIF('Smoothed Prices'!$B$71:$B$126,B93,'Smoothed Prices'!$H$71:$H$126)-J93) -> 0
B94: ='Smoothed Prices'!B116 -> 400W Metal Halide | D94: ='Unsmoothed Prices'!D116 -> 50.959 | G94: 52.2074955 | J94: 53.82464681 | O94: =ABS(SUMIF('Smoothed Prices'!$B$71:$B$126,B94,'Smoothed Prices'!$H$71:$H$126)-J94) -> 0
B95: ='Smoothed Prices'!B117 -> 70W Metal Halide | D95: ='Unsmoothed Prices'!D117 -> 32.604 | G95: 33.402798 | J95: 34.43746511 | O95: =ABS(SUMIF('Smoothed Prices'!$B$71:$B$126,B95,'Smoothed Prices'!$H$71:$H$126)-J95) -> 0
B96: ='Smoothed Prices'!B118 -> 250W Metal Halide - Flood Light | D96: ='Unsmoothed Prices'!D118 -> 51.031 | G96: 52.2812595 | J96: 53.90069569 | O96: =ABS(SUMIF('Smoothed Prices'!$B$71:$B$126,B96,'Smoothed Prices'!$H$71:$H$126)-J96) -> 7.105427358e-15
B97: ='Smoothed Prices'!B119 -> 400W Metal Halide - Flood Light | D97: ='Unsmoothed Prices'!D119 -> 50.959 | G97: 52.2074955 | J97: 53.82464681 | O97: =ABS(SUMIF('Smoothed Prices'!$B$71:$B$126,B97,'Smoothed Prices'!$H$71:$H$126)-J97) -> 0
B98: ='Smoothed Prices'!B120 -> 125W Mercury Vapour | D98: ='Unsmoothed Prices'!D120 -> 42.398 | G98: 43.436751 | J98: 44.78222445 | O98: =ABS(SUMIF('Smoothed Prices'!$B$71:$B$126,B98,'Smoothed Prices'!$H$71:$H$126)-J98) -> 0
B99: ='Smoothed Prices'!B121 -> 250W Mercury Vapour | D99: ='Unsmoothed Prices'!D121 -> 42.83 | G99: 43.879335 | J99: 45.23851769 | O99: =ABS(SUMIF('Smoothed Prices'!$B$71:$B$126,B99,'Smoothed Prices'!$H$71:$H$126)-J99) -> 0
B100: ='Smoothed Prices'!B123 -> 400W Mercury Vapour | D100: ='Unsmoothed Prices'!D123 -> 44.787 | G100: 45.8842815 | J100: 47.30556834 | O100: =ABS(SUMIF('Smoothed Prices'!$B$71:$B$126,B100,'Smoothed Prices'!$H$71:$H$126)-J100) -> 7.105427358e-15
B101: ='Smoothed Prices'!B124 -> 50W Mercury Vapour | D101: ='Unsmoothed Prices'!D124 -> 31.523 | G101: 32.2953135 | J101: 33.29567577 | O101: =ABS(SUMIF('Smoothed Prices'!$B$71:$B$126,B101,'Smoothed Prices'!$H$71:$H$126)-J101) -> 0
B102: ='Smoothed Prices'!B125 -> 80W Mercury Vapour Art decorative | D102: ='Unsmoothed Prices'!D125 -> 46.961 | G102: 48.1115445 | J102: 49.60182184 | O102: =ABS(SUMIF('Smoothed Prices'!$B$71:$B$126,B102,'Smoothed Prices'!$H$71:$H$126)-J102) -> 0
B103: ='Smoothed Prices'!B126 -> 80W Mercury Vapour | D103: ='Unsmoothed Prices'!D126 -> 31.521 | G103: 32.2932645 | J103: 33.2935633 | O103: =ABS(SUMIF('Smoothed Prices'!$B$71:$B$126,B103,'Smoothed Prices'!$H$71:$H$126)-J103) -> 0

Sheet Master Data
A1: Previous Year | B1: =EOMONTH($B$2,-12) -> 2014-06-30 | D1: =TEXT(B1,"YY") -> 14 | E1: =TEXT(B1,"YYy") -> 2014 | F1: =TEXT(B1,"mmm") -> Jun | G1: =TEXT(B1,"mmmm") -> June
A2: Current Year | B2: =EOMONTH($B$3,-1) -> 2015-06-30 | D2: =TEXT(B2,"YY") -> 15 | E2: =TEXT(B2,"YYy") -> 2015 | F2: =TEXT(B2,"mmm") -> Jun | G2: =TEXT(B2,"mmmm") -> June | H2: =E1&"-"&D2 -> 2014-15
A3: Year Start | B3: 2015-07-01 | C3: 2015 | D3: =TEXT(B3,"YY") -> 15 | E3: =TEXT(B3,"YYy") -> 2015 | F3: =TEXT(B3,"mmm") -> Jul | G3: =TEXT(B3,"mmmm") -> July
A4: Year 1 | B4: =EOMONTH($B$3,11) -> 2016-06-30 | D4: =TEXT(B4,"YY") -> 16 | E4: =TEXT(B4,"YYy") -> 2016 | F4: =TEXT(B4,"mmm") -> Jun | G4: =TEXT(B4,"mmmm") -> June | H4: =E3&"-"&D4 -> 2015-16
A5: Year 2 | B5: =EOMONTH($B$3,23) -> 2017-06-30 | D5: =TEXT(B5,"YY") -> 17 | E5: =TEXT(B5,"YYy") -> 2017 | F5: =TEXT(B5,"mmm") -> Jun | G5: =TEXT(B5,"mmmm") -> June | H5: =E4&"-"&D5 -> 2016-17
A6: Year 3 | B6: =EOMONTH($B$3,35) -> 2018-06-30 | D6: 18 | E6: 2018 | F6: Jun | G6: June | H6: 2017-18
A7: Year 4 | B7: =EOMONTH($B$3,47) -> 2019-06-30 | D7: 19 | E7: 2019 | F7: Jun | G7: June | H7: 2018-19
A8: Year 5 | B8: =EOMONTH($B$3,59) -> 2020-06-30 | D8: 20 | E8: 2020 | F8: Jun | G8: June | H8: 2019-20
A9: Year 6 | B9: =EOMONTH($B$3,71) -> 2021-06-30 | D9: 21 | E9: 2021 | F9: Jun | G9: June | H9: 2020-21
A10: Year 7 | B10: =EOMONTH($B$3,83) -> 2022-06-30 | D10: 22 | E10: 2022 | F10: Jun | G10: June | H10: 2021-22
A11: Year 8 | B11: =EOMONTH($B$3,95) -> 2023-06-30 | D11: 23 | E11: 2023 | F11: Jun | G11: June | H11: 2022-23
A12: Year 9 | B12: =EOMONTH($B$3,107) -> 2024-06-30 | D12: 24 | E12: 2024 | F12: Jun | G12: June | H12: 2023-24
A13: Year 10 | B13: =EOMONTH($B$3,119) -> 2025-06-30 | D13: 25 | E13: 2025 | F13: Jun | G13: June | H13: 2024-25
A18: Year | F18: Current | G18: =A4 -> Year 1 | H18: =A5 -> Year 2 | I18: =A6 -> Year 3 | J18: =A7 -> Year 4 | K18: =A8 -> Year 5 | L18: =A9 -> Year 6 | M18: =A10 -> Year 7 | N18: =A11 -> Year 8 | O18: =A12 -> Year 9 | P18: =A13 -> Year 10
F19: =C3 -> 2015 | G19: =F19+1 -> 2016 | H19: =G19+1 -> 2017 | I19: 2018 | J19: 2019 | K19: 2020 | L19: 2021 | M19: 2022 | N19: 2023 | O19: 2024 | P19: =O19+1 -> 2025
B20: 2010-11 | C20: 2011-12 | D20: 2012-13 | E20: 2013-14 | F20: =H2 -> 2014-15 | G20: =H4 -> 2015-16 | H20: =H5 -> 2016-17 | I20: =H6 -> 2017-18 | J20: =H7 -> 2018-19 | K20: =H8 -> 2019-20 | L20: =H9 -> 2020-21 | M20: =H10 -> 2021-22 | N20: =H11 -> 2022-23 | O20: =H12 -> 2023-24 | P20: =H13 -> 2024-25
B22: =EOMONTH(C22,-12) -> 2011-06-30 | C22: 2012-06-30 | D22: 2013-06-30 | E22: =EOMONTH(F22,-12) -> 2014-06-30 | F22: =B2 -> 2015-06-30 | G22: =B4 -> 2016-06-30 | H22: =B5 -> 2017-06-30 | I22: =B6 -> 2018-06-30 | J22: =B7 -> 2019-06-30 | K22: =B8 -> 2020-06-30 | L22: =B9 -> 2021-06-30 | M22: =B10 -> 2022-06-30 | N22: =B11 -> 2023-06-30 | O22: =B12 -> 2024-06-30 | P22: =B13 -> 2025-06-30
A23: Days in the year | C23: =C22-B22 -> 366 | D23: 365 | E23: 365 | F23: 365 | G23: =G22-F22 -> 366 | H23: =H22-G22 -> 365 | I23: =I22-H22 -> 365 | J23: 365 | K23: 366 | L23: 365 | M23: 365 | N23: 365 | O23: 366 | P23: 365
A26: AER Inputs
B28: Year -4 | C28: Year -3 | D28: Year -2 | E28: Year -1 | F28: Current | G28: Year 1 | H28: Year 2 | I28: Year 3 | J28: Year 4
B29: 2010-11 | C29: 2011-12 | D29: 2012-13 | E29: 2013-14 | F29: =F$20 -> 2014-15 | G29: =G$20 -> 2015-16 | H29: 2016-17 | I29: 2017-18 | J29: 2018-19
A30: CPI | B30: 0.02654867257 | C30: 0.03103448276 | D30: =$C$48 -> 0.025 | E30: =$C$47 -> 0.0293 | F30: =$C$46 -> 0.0133 | G30: =$C$45 -> 0.0131 | H30: =$B$36 -> 0.0245 | I30: =$B$36 -> 0.0245 | J30: =$B$36 -> 0.0245
A31: Cumulative CPI | B31: =C31-(C31*B30) -> 0.8927137191 | C31: =D31-(D31*C30) -> 0.9170604569 | D31: =E31-(E31*D30) -> 0.9464325 | E31: =F31-(F31*E30) -> 0.9707 | F31: 1 | G31: =F31*(1+G30) -> 1.0131 | H31: =G31*(1+H30) -> 1.03792095
H32: 1 | I32: =H32*(1+I30) -> 1.0245 | J32: =I32*(1+J30) -> 1.04960025
G33: 1 | H33: =G33*(1+H30) -> 1.0245
A36: Forecast CPI | B36: 0.0245
A37: Nominal Vanilla WACC | B37: 0.05475423906
A38: Pre-tax Real WACC Rate | B38: 0.03591530525
A42: CPI - Weighted Av of 8 Capital Cities | D42: As per RFM
B43: CPI | C43: Annual Δ in CPI | D43: Old CPI Series
A45: 2016-03-01 | B45: 108.2 | C45: =ROUND(B45/B46-1,4) -> 0.0131
A46: 2015-03-01 | B46: 106.8 | C46: =ROUND(B46/B47-1,4) -> 0.0133
A47: 2014-03-01 | B47: 105.4 | C47: =ROUND(B47/B48-1,4) -> 0.0293
A48: 2013-03-01 | B48: 102.4 | C48: =ROUND(B48/B49-1,4) -> 0.025
A49: 2012-03-01 | B49: 99.9 | C49: =ROUND(B49/B50-1,4) -> 0.0163 | D49: =ROUND(179.5/176.7-1,4) -> 0.0158
A50: 2011-03-01 | B50: 98.3
A54: Submission Model Inputs
B56: Year -4 | C56: Year -3 | D56: Year -2 | E56: Year -1 | F56: Current | G56: Year 1 | H56: Year 2 | I56: Year 3 | J56: Year 4
B57: 2010-11 | C57: 2011-12 | D57: 2012-13 | E57: 2013-14 | F57: =F$20 -> 2014-15 | G57: =G$20 -> 2015-16 | H57: 2016-17 | I57: 2017-18 | J57: 2018-19
A58: CPI | B58: 0.02654867257 | C58: 0.03103448276 | D58: 0.026 | E58: 0.026 | F58: 0.025 | G58: 0.025 | H58: 0.025 | I58: 0.025 | J58: 0.025
A59: Cumulative CPI | B59: =C59-(C59*B58) -> 0.8948298798 | C59: =D59-(D59*C58) -> 0.919234331 | D59: =E59-(E59*D58) -> 0.948676 | E59: =F59-(F59*E58) -> 0.974 | F59: 1 | G59: =F59*(1+G$58) -> 1.025 | H59: =G59*(1+H$58) -> 1.050625 | I59: 1.076890625 | J59: 1.103812891
A60: 2017/18 dollars | I60: 1 | J60: =I60*(1+J$58) -> 1.025
G61: 1 | H61: =G61*(1+H$58) -> 1.025 | I61: =H61*(1+I$58) -> 1.050625
A62: Bracket Data | B62: 0.025 | C62: =B62 -> 0.025 | D62: =C62 -> 0.025 | E62: =D62 -> 0.025 | F62: =E62 -> 0.025 | G62: =F62 -> 0.025 | H62: =G62 -> 0.025 | I62: =H62 -> 0.025
A63: 1 | B63: =A63*(1+B$62) -> 1.025 | C63: =B63*(1+C$62) -> 1.050625 | D63: 1.076890625 | E63: 1.103812891 | F63: 1.131408213 | G63: 1.159693418 | H63: 1.188685754 | I63: 1.218402898
A67: Forecast CPI | B67: =I58 -> 0.025
A68: Nominal Vanilla WACC | B68: 0.0604
A69: Pre-tax Real WACC Rate | B69: 0.03994743024

Sheet Smoothed Prices
B4: Private Contract Lights
E6: X Factor | F6: Days | G6: ='Master Data'!I23 -> 365 | H6: ='Master Data'!J23 -> 365
E7: =S142 -> -0.006320607515 | F7: CPI | G7: ='Master Data'!I32 -> 1.0245 | H7: ='Master Data'!J32 -> 1.04960025 | M7: =HLOOKUP(M9,'Master Data'!$B$20:$P$23,4,FALSE) -> 365 | N7: =HLOOKUP(N9,'Master Data'!$B$20:$P$23,4,FALSE) -> 365 | P7: =HLOOKUP(P9,'Master Data'!$B$20:$P$23,4,FALSE) -> 365 | Q7: =HLOOKUP(Q9,'Master Data'!$B$20:$P$23,4,FALSE) -> 365
B8: Private Contract Lights | C8: Price (cents) per Light per day Real 2016/17 Smoothed | G8: Price (cents) per Light per day Nominal Smoothed | J8: Volumes | M8: Smooth Real Cost Dollars Per Year | P8: Smooth Nominal Cost Dollars Per Year | S8: Revenue Nominal Dollars Per Year | V8: Revenue Real Dollars Per Year
C9: Offered / No Longer Offered / NA | D9: ='Master Data'!I$29 -> 2017-18 | E9: ='Master Data'!J$29 -> 2018-19 | G9: ='Master Data'!I$29 -> 2017-18 | H9: ='Master Data'!J$29 -> 2018-19 | J9: ='Master Data'!I$29 -> 2017-18 | K9: ='Master Data'!J$29 -> 2018-19 | M9: ='Master Data'!I$29 -> 2017-18 | N9: ='Master Data'!J$29 -> 2018-19 | P9: ='Master Data'!I$29 -> 2017-18 | Q9: ='Master Data'!J$29 -> 2018-19 | S9: ='Master Data'!I$29 -> 2017-18 | T9: ='Master Data'!J$29 -> 2018-19 | V9: ='Master Data'!I$29 -> 2017-18 | W9: ='Master Data'!J$29 -> 2018-19
B10: =Inputs!$C69 -> 32W Compact Fluorescent | C10: Not Offered | D10: =IF($C10="NA","",'Unsmoothed Prices'!D10) -> 17.334 | E10: =IF($C10="NA","",D10*(1-$E$7)) -> 17.44356141 | G10: =IF($C10="NA","",D10*G$7) -> 17.758683 | H10: =IF($C10="NA","",E10*H$7) -> 18.30876642 | J10: =IFERROR(VLOOKUP($B10,Volumes!$B$4:$F$32,MATCH(J$9,Volumes!$B$4:$F$4,0),FALSE),0) -> 0 | K10: =IFERROR(VLOOKUP($B10,Volumes!$B$4:$F$32,MATCH(K$9,Volumes!$B$4:$F$4,0),FALSE),0) -> 0 | M10: =IF($C10="NA","",(D10*M$7)/100) -> 63.2691 | N10: =IF($C10="NA","",(E10*N$7)/100) -> 63.66899915 | P10: =IF($C10="NA","",(G10*P$7)/100) -> 64.81919295 | Q10: =IF($C10="NA","",(H10*Q$7)/100) -> 66.82699742 | S10: =IFERROR(P10*J10,0) -> 0 | T10: =IFERROR(Q10*K10,0) -> 0 | V10: =IFERROR(M10*J10,0) -> 0 | W10: =IFERROR(N10*K10,0) -> 0
B11: =Inputs!$C70 -> 42W Compact Fluorescent | C11: Offered | D11: =IF($C11="NA","",'Unsmoothed Prices'!D11) -> 17.334 | E11: =IF($C11="NA","",D11*(1-$E$7)) -> 17.44356141 | G11: =IF($C11="NA","",D11*G$7) -> 17.758683 | H11: =IF($C11="NA","",E11*H$7) -> 18.30876642 | J11: =IFERROR(VLOOKUP($B11,Volumes!$B$4:$F$32,MATCH(J$9,Volumes!$B$4:$F$4,0),FALSE),0) -> 0 | K11: =IFERROR(VLOOKUP($B11,Volumes!$B$4:$F$32,MATCH(K$9,Volumes!$B$4:$F$4,0),FALSE),0) -> 0 | M11: 63.2691 | N11: 63.66899915 | P11: 64.81919295 | Q11: 66.82699742 | S11: 0 | T11: 0 | V11: 0 | W11: 0
B12: =Inputs!$C71 -> 42W Compact Fluorescent - Bottom Pole Entry | C12: Offered | D12: =IF($C12="NA","",'Unsmoothed Prices'!D12) -> 17.334 | E12: 17.44356141 | G12: 17.758683 | H12: 18.30876642 | J12: =IFERROR(VLOOKUP($B12,Volumes!$B$4:$F$32,MATCH(J$9,Volumes!$B$4:$F$4,0),FALSE),0) -> 0 | K12: =IFERROR(VLOOKUP($B12,Volumes!$B$4:$F$32,MATCH(K$9,Volumes!$B$4:$F$4,0),FALSE),0) -> 0 | M12: 63.2691 | N12: 63.66899915 | P12: 64.81919295 | Q12: 66.82699742 | S12: 0 | T12: 0 | V12: 0 | W12: 0
B13: =Inputs!$C72 -> 2x24W Compact Fluorescent | C13: Not Offered | D13: =IF($C13="NA","",'Unsmoothed Prices'!D13) -> 17.642 | E13: 17.75350816 | G13: 18.074229 | H13: 18.6340866 | J13: =IFERROR(VLOOKUP($B13,Volumes!$B$4:$F$32,MATCH(J$9,Volumes!$B$4:$F$4,0),FALSE),0) -> 0 | K13: =IFERROR(VLOOKUP($B13,Volumes!$B$4:$F$32,MATCH(K$9,Volumes!$B$4:$F$4,0),FALSE),0) -> 0 | M13: 64.3933 | N13: 64.80030478 | P13: 65.97093585 | Q13: 68.01441609 | S13: 0 | T13: 0 | V13: 0 | W13: 0
B14: =Inputs!$C73 -> 1x20W Fluorescent | C14: Obsolete, no new Connections | D14: =IF($C14="NA","",'Unsmoothed Prices'!D14) -> 17.303 | E14: 17.41236547 | G14: 17.7269235 | H14: 18.27602315 | J14: =IFERROR(VLOOKUP($B14,Volumes!$B$4:$F$32,MATCH(J$9,Volumes!$B$4:$F$4,0),FALSE),0) -> 0 | K14: =IFERROR(VLOOKUP($B14,Volumes!$B$4:$F$32,MATCH(K$9,Volumes!$B$4:$F$4,0),FALSE),0) -> 0 | M14: 63.15595 | N14: 63.55513397 | P14: 64.70327078 | Q14: 66.70748451 | S14: 0 | T14: 0 | V14: 0 | W14: 0
B15: =Inputs!$C74 -> 1x40W Fluorescent | C15: Obsolete, no new Connections | D15: =IF($C15="NA","",'Unsmoothed Prices'!D15) -> 17.321 | E15: 17.43047924 | G15: 17.7453645 | H15: 18.29503537 | J15: =IFERROR(VLOOKUP($B15,Volumes!$B$4:$F$32,MATCH(J$9,Volumes!$B$4:$F$4,0),FALSE),0) -> 0 | K15: =IFERROR(VLOOKUP($B15,Volumes!$B$4:$F$32,MATCH(K$9,Volumes!$B$4:$F$4,0),FALSE),0) -> 0 | M15: 63.22165 | N15: 63.62124924 | P15: 64.77058043 | Q15: 66.7768791 | S15: 0 | T15: 0 | V15: 0 | W15: 0
B16: =Inputs!$C75 -> 2x20W Fluorescent | C16: Obsolete, no new Connections | D16: =IF($C16="NA","",'Unsmoothed Prices'!D16) -> 17.58 | E16: 17.69111628 | G16: 18.01071 | H16: 18.56860007 | J16: =IFERROR(VLOOKUP($B16,Volumes!$B$4:$F$32,MATCH(J$9,Volumes!$B$4:$F$4,0),FALSE),0) -> 0 | K16: =IFERROR(VLOOKUP($B16,Volumes!$B$4:$F$32,MATCH(K$9,Volumes!$B$4:$F$4,0),FALSE),0) -> 0 | M16: 64.167 | N16: 64.57257442 | P16: 65.7390915 | Q16: 67.77539026 | S16: 0 | T16: 0 | V16: 0 | W16: 0
B17: =Inputs!$C76 -> 2x24W Fluorescent | C17: Obsolete, no new Connections | D17: =IF($C17="NA","",'Unsmoothed Prices'!D17) -> 17.429 | E17: 17.53916187 | G17: 17.8560105 | H17: 18.40910868 | J17: =IFERROR(VLOOKUP($B17,Volumes!$B$4:$F$32,MATCH(J$9,Volumes!$B$4:$F$4,0),FALSE),0) -> 0 | K17: =IFERROR(VLOOKUP($B17,Volumes!$B$4:$F$32,MATCH(K$9,Volumes!$B$4:$F$4,0),FALSE),0) -> 0 | M17: 63.61585 | N17: 64.01794082 | P17: 65.17443832 | Q17: 67.19324669 | S17: 0 | T17: 0 | V17: 0 | W17: 0
B18: =Inputs!$C77 -> T5 Fluorescent 2 x 24W | C18: Obsolete, no new Connections | D18: =IF($C18="NA","",'Unsmoothed Prices'!D18) -> 17.58 | E18: 17.69111628 | G18: 18.01071 | H18: 18.56860007 | J18: =IFERROR(VLOOKUP($B18,Volumes!$B$4:$F$32,MATCH(J$9,Volumes!$B$4:$F$4,0),FALSE),0) -> 0 | K18: =IFERROR(VLOOKUP($B18,Volumes!$B$4:$F$32,MATCH(K$9,Volumes!$B$4:$F$4,0),FALSE),0) -> 0 | M18: 64.167 | N18: 64.57257442 | P18: 65.7390915 | Q18: 67.77539026 | S18: 0 | T18: 0 | V18: 0 | W18: 0
B19: =Inputs!$C78 -> 20 Fluorescent 1X20FL | C19: Obsolete, no new Connections | D19: =IF($C19="NA","",'Unsmoothed Prices'!D19) -> 17.303 | E19: 17.41236547 | G19: 17.7269235 | H19: 18.27602315 | J19: =IFERROR(VLOOKUP($B19,Volumes!$B$4:$F$32,MATCH(J$9,Volumes!$B$4:$F$4,0),FALSE),0) -> 0 | K19: =IFERROR(VLOOKUP($B19,Volumes!$B$4:$F$32,MATCH(K$9,Volumes!$B$4:$F$4,0),FALSE),0) -> 0 | M19: 63.15595 | N19: 63.55513397 | P19: 64.70327078 | Q19: 66.70748451 | S19: 0 | T19: 0 | V19: 0 | W19: 0
B20: =Inputs!$C79 -> 2x40W Fluorescent | C20: Obsolete, no new Connections | D20: =IF($C20="NA","",'Unsmoothed Prices'!D20) -> 17.616 | E20: 17.72734382 | G20: 18.047592 | H20: 18.60662451 | J20: =IFERROR(VLOOKUP($B20,Volumes!$B$4:$F$32,MATCH(J$9,Volumes!$B$4:$F$4,0),FALSE),0) -> 0 | K20: =IFERROR(VLOOKUP($B20,Volumes!$B$4:$F$32,MATCH(K$9,Volumes!$B$4:$F$4,0),FALSE),0) -> 0 | M20: 64.2984 | N20: 64.70480495 | P20: 65.8737108 | Q20: 67.91417945 | S20: 0 | T20: 0 | V20: 0 | W20: 0
B21: =Inputs!$C80 -> 3x40W Fluorescent | C21: Obsolete, no new Connections | D21: =IF($C21="NA","",'Unsmoothed Prices'!D21) -> 21.336 | E21: 21.47085648 | G21: 21.858732 | H21: 22.53581633 | J21: =IFERROR(VLOOKUP($B21,Volumes!$B$4:$F$32,MATCH(J$9,Volumes!$B$4:$F$4,0),FALSE),0) -> 0 | K21: =IFERROR(VLOOKUP($B21,Volumes!$B$4:$F$32,MATCH(K$9,Volumes!$B$4:$F$4,0),FALSE),0) -> 0 | M21: 77.8764 | N21: 78.36862616 | P21: 79.7843718 | Q21: 82.25572961 | S21: 0 | T21: 0 | V21: 0 | W21: 0
B22: =Inputs!$C81 -> 4x20 Fluorescent | C22: Obsolete, no new Connections | D22: =IF($C22="NA","",'Unsmoothed Prices'!D22) -> 18.135 | E22: 18.24962422 | G22: 18.5793075 | H22: 19.15481014 | J22: =IFERROR(VLOOKUP($B22,Volumes!$B$4:$F$32,MATCH(J$9,Volumes!$B$4:$F$4,0),FALSE),0) -> 0 | K22: =IFERROR(VLOOKUP($B22,Volumes!$B$4:$F$32,MATCH(K$9,Volumes!$B$4:$F$4,0),FALSE),0) -> 0 | M22: 66.19275 | N22: 66.61112839 | P22: 67.81447238 | Q22: 69.91505701 | S22: 0 | T22: 0 | V22: 0 | W22: 0
B23: =Inputs!$C82 -> 4x40W Fluorescent | C23: Obsolete, no new Connections | D23: =IF($C23="NA","",'Unsmoothed Prices'!D23) -> 21.631 | E23: 21.76772106 | G23: 22.1609595 | H23: 22.84740547 | J23: =IFERROR(VLOOKUP($B23,Volumes!$B$4:$F$32,MATCH(J$9,Volumes!$B$4:$F$4,0),FALSE),0) -> 0 | K23: =IFERROR(VLOOKUP($B23,Volumes!$B$4:$F$32,MATCH(K$9,Volumes!$B$4:$F$4,0),FALSE),0) -> 0 | M23: 78.95315 | N23: 79.45218187 | P23: 80.88750217 | Q23: 83.39302996 | S23: 0 | T23: 0 | V23: 0 | W23: 0
B24: =Inputs!$C83 -> 100W Sodium Vapour | C24: Offered | D24: =IF($C24="NA","",'Unsmoothed Prices'!D24) -> 21.475 | E24: 21.61073505 | G24: 22.0011375 | H24: 22.68263291 | J24: =IFERROR(VLOOKUP($B24,Volumes!$B$4:$F$32,MATCH(J$9,Volumes!$B$4:$F$4,0),FALSE),0) -> 5 | K24: =IFERROR(VLOOKUP($B24,Volumes!$B$4:$F$32,MATCH(K$9,Volumes!$B$4:$F$4,0),FALSE),0) -> 5 | M24: 78.38375 | N24: 78.87918292 | P24: 80.30415188 | Q24: 82.79161011 | S24: 401.5207594 | T24: 413.9580506 | V24: 391.91875 | W24: 394.3959146
B25: =Inputs!$C84 -> 0 | C25: NA | D25: =IF($C25="NA","",'Unsmoothed Prices'!D25) ->  | J25: =IFERROR(VLOOKUP($B25,Volumes!$B$4:$F$32,MATCH(J$9,Volumes!$B$4:$F$4,0),FALSE),0) -> 0 | K25: =IFERROR(VLOOKUP($B25,Volumes!$B$4:$F$32,MATCH(K$9,Volumes!$B$4:$F$4,0),FALSE),0) -> 0 | S25: 0 | T25: 0 | V25: 0 | W25: 0
B26: =Inputs!$C85 -> 150W Sodium Vapour | C26: Offered | D26: =IF($C26="NA","",'Unsmoothed Prices'!D26) -> 21.471 | E26: 21.60670976 | G26: 21.9970395 | H26: 22.67840797 | J26: =IFERROR(VLOOKUP($B26,Volumes!$B$4:$F$32,MATCH(J$9,Volumes!$B$4:$F$4,0),FALSE),0) -> 163 | K26: =IFERROR(VLOOKUP($B26,Volumes!$B$4:$F$32,MATCH(K$9,Volumes!$B$4:$F$4,0),FALSE),0) -> 163 | M26: 78.36915 | N26: 78.86449064 | P26: 80.28919418 | Q26: 82.77618909 | S26: 13087.13865 | T26: 13492.51882 | V26: 12774.17145 | W26: 12854.91197
B27: =Inputs!$C86 -> 0 | C27: NA | D27: =IF($C27="NA","",'Unsmoothed Prices'!D27) ->  | J27: =IFERROR(VLOOKUP($B27,Volumes!$B$4:$F$32,MATCH(J$9,Volumes!$B$4:$F$4,0),FALSE),0) -> 0 | K27: =IFERROR(VLOOKUP($B27,Volumes!$B$4:$F$32,MATCH(K$9,Volumes!$B$4:$F$4,0),FALSE),0) -> 0 | S27: 0 | T27: 0 | V27: 0 | W27: 0
B28: =Inputs!$C87 -> 0 | C28: NA | D28: =IF($C28="NA","",'Unsmoothed Prices'!D28) ->  | J28: =IFERROR(VLOOKUP($B28,Volumes!$B$4:$F$32,MATCH(J$9,Volumes!$B$4:$F$4,0),FALSE),0) -> 0 | K28: =IFERROR(VLOOKUP($B28,Volumes!$B$4:$F$32,MATCH(K$9,Volumes!$B$4:$F$4,0),FALSE),0) -> 0 | S28: 0 | T28: 0 | V28: 0 | W28: 0
B29: =Inputs!$C88 -> 0 | C29: NA | D29: =IF($C29="NA","",'Unsmoothed Prices'!D29) ->  | J29: =IFERROR(VLOOKUP($B29,Volumes!$B$4:$F$32,MATCH(J$9,Volumes!$B$4:$F$4,0),FALSE),0) -> 0 | K29: =IFERROR(VLOOKUP($B29,Volumes!$B$4:$F$32,MATCH(K$9,Volumes!$B$4:$F$4,0),FALSE),0) -> 0 | S29: 0 | T29: 0 | V29: 0 | W29: 0
B30: =Inputs!$C89 -> 250W Sodium Vapour | C30: Offered | D30: =IF($C30="NA","",'Unsmoothed Prices'!D30) -> 21.599 | E30: 21.7355188 | G30: 22.1281755 | H30: 22.81360597 | J30: =IFERROR(VLOOKUP($B30,Volumes!$B$4:$F$32,MATCH(J$9,Volumes!$B$4:$F$4,0),FALSE),0) -> 165 | K30: =IFERROR(VLOOKUP($B30,Volumes!$B$4:$F$32,MATCH(K$9,Volumes!$B$4:$F$4,0),FALSE),0) -> 165 | M30: 78.83635 | N30: 79.33464363 | P30: 80.76784057 | Q30: 83.26966178 | S30: 13326.69369 | T30: 13739.49419 | V30: 13007.99775 | W30: 13090.2162
B31: =Inputs!$C90 -> 0 | C31: NA | D31: =IF($C31="NA","",'Unsmoothed Prices'!D31) ->  | J31: =IFERROR(VLOOKUP($B31,Volumes!$B$4:$F$32,MATCH(J$9,Volumes!$B$4:$F$4,0),FALSE),0) -> 0 | K31: =IFERROR(VLOOKUP($B31,Volumes!$B$4:$F$32,MATCH(K$9,Volumes!$B$4:$F$4,0),FALSE),0) -> 0 | S31: 0 | T31: 0 | V31: 0 | W31: 0
B32: =Inputs!$C91 -> 0 | C32: NA | D32: =IF($C32="NA","",'Unsmoothed Prices'!D32) ->  | J32: =IFERROR(VLOOKUP($B32,Volumes!$B$4:$F$32,MATCH(J$9,Volumes!$B$4:$F$4,0),FALSE),0) -> 0 | K32: =IFERROR(VLOOKUP($B32,Volumes!$B$4:$F$32,MATCH(K$9,Volumes!$B$4:$F$4,0),FALSE),0) -> 0 | S32: 0 | T32: 0 | V32: 0 | W32: 0
B33: =Inputs!$C92 -> 0 | C33: NA | D33: =IF($C33="NA","",'Unsmoothed Prices'!D33) ->  | J33: =IFERROR(VLOOKUP($B33,Volumes!$B$4:$F$32,MATCH(J$9,Volumes!$B$4:$F$4,0),FALSE),0) -> 0 | K33: =IFERROR(VLOOKUP($B33,Volumes!$B$4:$F$32,MATCH(K$9,Volumes!$B$4:$F$4,0),FALSE),0) -> 0 | S33: 0 | T33: 0 | V33: 0 | W33: 0
B34: =Inputs!$C93 -> 250W Sodium Vapour - Flood Light | C34: Offered | D34: =IF($C34="NA","",'Unsmoothed Prices'!D34) -> 21.599 | E34: 21.7355188 | G34: 22.1281755 | H34: 22.81360597 | J34: =IFERROR(VLOOKUP($B34,Volumes!$B$4:$F$32,MATCH(J$9,Volumes!$B$4:$F$4,0),FALSE),0) -> 0 | K34: =IFERROR(VLOOKUP($B34,Volumes!$B$4:$F$32,MATCH(K$9,Volumes!$B$4:$F$4,0),FALSE),0) -> 0 | M34: 78.83635 | N34: 79.33464363 | P34: =IF($C34="NA","",(G34*P$7)/100) -> 80.76784057 | Q34: =IF($C34="NA","",(H34*Q$7)/100) -> 83.26966178 | S34: 0 | T34: 0 | V34: 0 | W34: 0
B35: =Inputs!$C94 -> 400W Sodium Vapour | C35: Offered | D35: =IF($C35="NA","",'Unsmoothed Prices'!D35) -> 21.642 | E35: 21.77879059 | G35: 22.172229 | H35: 22.85902405 | J35: =IFERROR(VLOOKUP($B35,Volumes!$B$4:$F$32,MATCH(J$9,Volumes!$B$4:$F$4,0),FALSE),0) -> 104 | K35: =IFERROR(VLOOKUP($B35,Volumes!$B$4:$F$32,MATCH(K$9,Volumes!$B$4:$F$4,0),FALSE),0) -> 104 | M35: 78.9933 | N35: 79.49258565 | P35: =IF($C35="NA","",(G35*P$7)/100) -> 80.92863585 | Q35: =IF($C35="NA","",(H35*Q$7)/100) -> 83.43543777 | S35: 8416.578128 | T35: 8677.285528 | V35: 8215.3032 | W35: 8267.228907
B36: =Inputs!$C95 -> 0 | C36: NA | D36: =IF($C36="NA","",'Unsmoothed Prices'!D36) ->  | J36: =IFERROR(VLOOKUP($B36,Volumes!$B$4:$F$32,MATCH(J$9,Volumes!$B$4:$F$4,0),FALSE),0) -> 0 | K36: =IFERROR(VLOOKUP($B36,Volumes!$B$4:$F$32,MATCH(K$9,Volumes!$B$4:$F$4,0),FALSE),0) -> 0 | S36: 0 | T36: 0 | V36: 0 | W36: 0
B37: =Inputs!$C96 -> 400W Sodium Vapour - Flood Light | C37: Offered | D37: =IF($C37="NA","",'Unsmoothed Prices'!D37) -> 21.642 | E37: 21.77879059 | G37: 22.172229 | H37: 22.85902405 | J37: =IFERROR(VLOOKUP($B37,Volumes!$B$4:$F$32,MATCH(J$9,Volumes!$B$4:$F$4,0),FALSE),0) -> 0 | K37: =IFERROR(VLOOKUP($B37,Volumes!$B$4:$F$32,MATCH(K$9,Volumes!$B$4:$F$4,0),FALSE),0) -> 0 | M37: 78.9933 | N37: 79.49258565 | P37: 80.92863585 | Q37: 83.43543777 | S37: 0 | T37: 0 | V37: 0 | W37: 0
B38: =Inputs!$C97 -> 70W Sodium Vapour | C38: Offered | D38: =IF($C38="NA","",'Unsmoothed Prices'!D38) -> 17.536 | E38: 17.64683817 | G38: 17.965632 | H38: 18.52212576 | J38: =IFERROR(VLOOKUP($B38,Volumes!$B$4:$F$32,MATCH(J$9,Volumes!$B$4:$F$4,0),FALSE),0) -> 73 | K38: =IFERROR(VLOOKUP($B38,Volumes!$B$4:$F$32,MATCH(K$9,Volumes!$B$4:$F$4,0),FALSE),0) -> 73 | M38: 64.0064 | N38: 64.41095933 | P38: 65.5745568 | Q38: 67.60575902 | S38: 4786.942646 | T38: 4935.220408 | V38: 4672.4672 | W38: 4702.000031
B39: =Inputs!$C98 -> 0 | C39: NA | D39: =IF($C39="NA","",'Unsmoothed Prices'!D39) ->  | J39: =IFERROR(VLOOKUP($B39,Volumes!$B$4:$F$32,MATCH(J$9,Volumes!$B$4:$F$4,0),FALSE),0) -> 0 | K39: =IFERROR(VLOOKUP($B39,Volumes!$B$4:$F$32,MATCH(K$9,Volumes!$B$4:$F$4,0),FALSE),0) -> 0 | S39: 0 | T39: 0 | V39: 0 | W39: 0
B40: =Inputs!$C99 -> 100W Incandescent | C40: Obsolete, no new Connections | D40: =IF($C40="NA","",'Unsmoothed Prices'!D40) -> 20.568 | E40: 20.69800226 | G40: 21.071916 | H40: 21.72462834 | J40: =IFERROR(VLOOKUP($B40,Volumes!$B$4:$F$32,MATCH(J$9,Volumes!$B$4:$F$4,0),FALSE),0) -> 0 | K40: =IFERROR(VLOOKUP($B40,Volumes!$B$4:$F$32,MATCH(K$9,Volumes!$B$4:$F$4,0),FALSE),0) -> 0 | M40: 75.0732 | N40: 75.54770823 | P40: 76.9124934 | Q40: 79.29489345 | S40: 0 | T40: 0 | V40: 0 | W40: 0
B41: =Inputs!$C100 -> 60W Incandescent | C41: Obsolete, no new Connections | D41: =IF($C41="NA","",'Unsmoothed Prices'!D41) -> 17.144 | E41: 17.2523605 | G41: 17.564028 | H41: 18.10808189 | J41: =IFERROR(VLOOKUP($B41,Volumes!$B$4:$F$32,MATCH(J$9,Volumes!$B$4:$F$4,0),FALSE),0) -> 0 | K41: =IFERROR(VLOOKUP($B41,Volumes!$B$4:$F$32,MATCH(K$9,Volumes!$B$4:$F$4,0),FALSE),0) -> 0 | M41: 62.5756 | N41: 62.97111581 | P41: 64.1087022 | Q41: 66.09449889 | S41: 0 | T41: 0 | V41: 0 | W41: 0
B42: =Inputs!$C101 -> 18W LED | C42: Offered | D42: =IF($C42="NA","",'Unsmoothed Prices'!D42) -> 11.726 | E42: 11.80011544 | G42: 12.013287 | H42: 12.38540412 | J42: =IFERROR(VLOOKUP($B42,Volumes!$B$4:$F$32,MATCH(J$9,Volumes!$B$4:$F$4,0),FALSE),0) -> 4762 | K42: =IFERROR(VLOOKUP($B42,Volumes!$B$4:$F$32,MATCH(K$9,Volumes!$B$4:$F$4,0),FALSE),0) -> 4810 | M42: =IF($C42="NA","",(D42*M$7)/100) -> 42.7999 | N42: =IF($C42="NA","",(E42*N$7)/100) -> 43.07042137 | P42: 43.84849755 | Q42: 45.20672504 | S42: =IFERROR(P42*J42,0) -> 208806.5453 | T42: =IFERROR(Q42*K42,0) -> 217444.3474 | V42: =IFERROR(M42*J42,0) -> 203813.1238 | W42: =IFERROR(N42*K42,0) -> 207168.7268
B43: =Inputs!$C102 -> 25W LED | C43: Offered | D43: =IF($C43="NA","",'Unsmoothed Prices'!D43) -> 11.726 | E43: 11.80011544 | G43: 12.013287 | H43: 12.38540412 | J43: =IFERROR(VLOOKUP($B43,Volumes!$B$4:$F$32,MATCH(J$9,Volumes!$B$4:$F$4,0),FALSE),0) -> 29 | K43: =IFERROR(VLOOKUP($B43,Volumes!$B$4:$F$32,MATCH(K$9,Volumes!$B$4:$F$4,0),FALSE),0) -> 29 | M43: 42.7999 | N43: 43.07042137 | P43: 43.84849755 | Q43: 45.20672504 | S43: 1271.606429 | T43: 1310.995026 | V43: 1241.1971 | W43: 1249.04222
B44: =Inputs!$C103 -> 18W LED Decorative - Bottom Pole Entry | C44: Offered | D44: =IF($C44="NA","",'Unsmoothed Prices'!D44) -> 11.726 | E44: 11.80011544 | G44: 12.013287 | H44: 12.38540412 | J44: =IFERROR(VLOOKUP($B44,Volumes!$B$4:$F$32,MATCH(J$9,Volumes!$B$4:$F$4,0),FALSE),0) -> 0 | K44: =IFERROR(VLOOKUP($B44,Volumes!$B$4:$F$32,MATCH(K$9,Volumes!$B$4:$F$4,0),FALSE),0) -> 0 | M44: 42.7999 | N44: 43.07042137 | P44: 43.84849755 | Q44: 45.20672504 | S44: 0 | T44: 0 | V44: 0 | W44: 0
B45: =Inputs!$C104 -> 18W LED Decorative - Side Entry | C45: Offered | D45: =IF($C45="NA","",'Unsmoothed Prices'!D45) -> 11.726 | E45: 11.80011544 | G45: 12.013287 | H45: 12.38540412 | J45: =IFERROR(VLOOKUP($B45,Volumes!$B$4:$F$32,MATCH(J$9,Volumes!$B$4:$F$4,0),FALSE),0) -> 0 | K45: =IFERROR(VLOOKUP($B45,Volumes!$B$4:$F$32,MATCH(K$9,Volumes!$B$4:$F$4,0),FALSE),0) -> 0 | M45: 42.7999 | N45: 43.07042137 | P45: 43.84849755 | Q45: 45.20672504 | S45: 0 | T45: 0 | V45: 0 | W45: 0
B46: =Inputs!$C105 -> 18W LED Decorative - Top Entry | C46: Offered | D46: =IF($C46="NA","",'Unsmoothed Prices'!D46) -> 11.726 | E46: 11.80011544 | G46: 12.013287 | H46: 12.38540412 | J46: =IFERROR(VLOOKUP($B46,Volumes!$B$4:$F$32,MATCH(J$9,Volumes!$B$4:$F$4,0),FALSE),0) -> 0 | K46: =IFERROR(VLOOKUP($B46,Volumes!$B$4:$F$32,MATCH(K$9,Volumes!$B$4:$F$4,0),FALSE),0) -> 0 | M46: 42.7999 | N46: 43.07042137 | P46: 43.84849755 | Q46: 45.20672504 | S46: 0 | T46: 0 | V46: 0 | W46: 0
B47: =Inputs!$C106 -> 25W LED Decorative - Bottom Pole Entry | C47: Offered | D47: =IF($C47="NA","",'Unsmoothed Prices'!D47) -> 11.726 | E47: 11.80011544 | G47: 12.013287 | H47: 12.38540412 | J47: =IFERROR(VLOOKUP($B47,Volumes!$B$4:$F$32,MATCH(J$9,Volumes!$B$4:$F$4,0),FALSE),0) -> 0 | K47: =IFERROR(VLOOKUP($B47,Volumes!$B$4:$F$32,MATCH(K$9,Volumes!$B$4:$F$4,0),FALSE),0) -> 0 | M47: 42.7999 | N47: 43.07042137 | P47: 43.84849755 | Q47: 45.20672504 | S47: 0 | T47: 0 | V47: 0 | W47: 0
B48: =Inputs!$C107 -> 25W LED Decorative - Side Entry | C48: Offered | D48: =IF($C48="NA","",'Unsmoothed Prices'!D48) -> 11.726 | E48: 11.80011544 | G48: 12.013287 | H48: 12.38540412 | J48: =IFERROR(VLOOKUP($B48,Volumes!$B$4:$F$32,MATCH(J$9,Volumes!$B$4:$F$4,0),FALSE),0) -> 0 | K48: =IFERROR(VLOOKUP($B48,Volumes!$B$4:$F$32,MATCH(K$9,Volumes!$B$4:$F$4,0),FALSE),0) -> 0 | M48: 42.7999 | N48: 43.07042137 | P48: 43.84849755 | Q48: 45.20672504 | S48: 0 | T48: 0 | V48: 0 | W48: 0
B49: =Inputs!$C108 -> 25W LED Decorative - Top Entry | C49: Offered | D49: =IF($C49="NA","",'Unsmoothed Prices'!D49) -> 11.726 | E49: 11.80011544 | G49: 12.013287 | H49: 12.38540412 | J49: =IFERROR(VLOOKUP($B49,Volumes!$B$4:$F$32,MATCH(J$9,Volumes!$B$4:$F$4,0),FALSE),0) -> 0 | K49: =IFERROR(VLOOKUP($B49,Volumes!$B$4:$F$32,MATCH(K$9,Volumes!$B$4:$F$4,0),FALSE),0) -> 0 | M49: 42.7999 | N49: 43.07042137 | P49: 43.84849755 | Q49: 45.20672504 | S49: 0 | T49: 0 | V49: 0 | W49: 0
B50: =Inputs!$C109 -> 30W LED | C50: Not Offered | D50: =IF($C50="NA","",'Unsmoothed Prices'!D50) -> 11.726 | E50: 11.80011544 | G50: 12.013287 | H50: 12.38540412 | J50: =IFERROR(VLOOKUP($B50,Volumes!$B$4:$F$32,MATCH(J$9,Volumes!$B$4:$F$4,0),FALSE),0) -> 32 | K50: =IFERROR(VLOOKUP($B50,Volumes!$B$4:$F$32,MATCH(K$9,Volumes!$B$4:$F$4,0),FALSE),0) -> 32 | M50: 42.7999 | N50: 43.07042137 | P50: 43.84849755 | Q50: 45.20672504 | S50: 1403.151922 | T50: 1446.615201 | V50: 1369.5968 | W50: 1378.253484
B51: =Inputs!$C110 -> 88 LED Light | C51: Not Offered | D51: =IF($C51="NA","",'Unsmoothed Prices'!D51) -> 11.726 | E51: 11.80011544 | G51: 12.013287 | H51: 12.38540412 | J51: =IFERROR(VLOOKUP($B51,Volumes!$B$4:$F$32,MATCH(J$9,Volumes!$B$4:$F$4,0),FALSE),0) -> 0 | K51: =IFERROR(VLOOKUP($B51,Volumes!$B$4:$F$32,MATCH(K$9,Volumes!$B$4:$F$4,0),FALSE),0) -> 0 | M51: 42.7999 | N51: 43.07042137 | P51: 43.84849755 | Q51: 45.20672504 | S51: 0 | T51: 0 | V51: 0 | W51: 0
B52: =Inputs!$C111 -> 100W Metal Halide | C52: Offered | D52: =IF($C52="NA","",'Unsmoothed Prices'!D52) -> 21.472 | E52: 21.60771608 | G52: 21.998064 | H52: 22.6794642 | J52: =IFERROR(VLOOKUP($B52,Volumes!$B$4:$F$32,MATCH(J$9,Volumes!$B$4:$F$4,0),FALSE),0) -> 5 | K52: =IFERROR(VLOOKUP($B52,Volumes!$B$4:$F$32,MATCH(K$9,Volumes!$B$4:$F$4,0),FALSE),0) -> 5 | M52: 78.3728 | N52: 78.86816371 | P52: 80.2929336 | Q52: 82.78004435 | S52: 401.464668 | T52: 413.9002217 | V52: 391.864 | W52: 394.3408185
B53: =Inputs!$C112 -> 150W Metal Halide | C53: Offered | D53: =IF($C53="NA","",'Unsmoothed Prices'!D53) -> 21.613 | E53: 21.74960729 | G53: 22.1425185 | H53: 22.82839325 | J53: =IFERROR(VLOOKUP($B53,Volumes!$B$4:$F$32,MATCH(J$9,Volumes!$B$4:$F$4,0),FALSE),0) -> 27 | K53: =IFERROR(VLOOKUP($B53,Volumes!$B$4:$F$32,MATCH(K$9,Volumes!$B$4:$F$4,0),FALSE),0) -> 27 | M53: 78.88745 | N53: 79.38606661 | P53: 80.82019252 | Q53: 83.32363536 | S53: 2182.145198 | T53: 2249.738155 | V53: 2129.96115 | W53: 2143.423798
B54: =Inputs!$C113 -> 250W Metal Halide | C54: Offered | D54: =IF($C54="NA","",'Unsmoothed Prices'!D54) -> 21.613 | E54: 21.74960729 | G54: 22.1425185 | H54: 22.82839325 | J54: =IFERROR(VLOOKUP($B54,Volumes!$B$4:$F$32,MATCH(J$9,Volumes!$B$4:$F$4,0),FALSE),0) -> 40 | K54: =IFERROR(VLOOKUP($B54,Volumes!$B$4:$F$32,MATCH(K$9,Volumes!$B$4:$F$4,0),FALSE),0) -> 40 | M54: 78.88745 | N54: 79.38606661 | P54: 80.82019252 | Q54: 83.32363536 | S54: 3232.807701 | T54: 3332.945414 | V54: 3155.498 | W54: 3175.442664
B55: =Inputs!$C114 -> 400W Metal Halide | C55: Offered | D55: =IF($C55="NA","",'Unsmoothed Prices'!D55) -> 22.286 | E55: 22.42686106 | G55: 22.832007 | H55: 23.53923897 | J55: =IFERROR(VLOOKUP($B55,Volumes!$B$4:$F$32,MATCH(J$9,Volumes!$B$4:$F$4,0),FALSE),0) -> 9 | K55: =IFERROR(VLOOKUP($B55,Volumes!$B$4:$F$32,MATCH(K$9,Volumes!$B$4:$F$4,0),FALSE),0) -> 9 | M55: 81.3439 | N55: 81.85804287 | P55: 83.33682555 | Q55: 85.91822226 | S55: 750.0314299 | T55: 773.2640003 | V55: 732.0951 | W55: 736.7223858
B56: =Inputs!$C115 -> 70W Metal Halide | C56: Not Offered | D56: =IF($C56="NA","",'Unsmoothed Prices'!D56) -> 18.029 | E56: 18.14295423 | G56: 18.4707105 | H56: 19.0428493 | J56: =IFERROR(VLOOKUP($B56,Volumes!$B$4:$F$32,MATCH(J$9,Volumes!$B$4:$F$4,0),FALSE),0) -> 0 | K56: =IFERROR(VLOOKUP($B56,Volumes!$B$4:$F$32,MATCH(K$9,Volumes!$B$4:$F$4,0),FALSE),0) -> 0 | M56: 65.80585 | N56: 66.22178295 | P56: 67.41809333 | Q56: 69.50639994 | S56: 0 | T56: 0 | V56: 0 | W56: 0
B57: =Inputs!$C116 -> 250W Metal Halide - Flood Light | C57: Offered | D57: =IF($C57="NA","",'Unsmoothed Prices'!D57) -> 21.613 | E57: 21.74960729 | G57: 22.1425185 | H57: 22.82839325 | J57: =IFERROR(VLOOKUP($B57,Volumes!$B$4:$F$32,MATCH(J$9,Volumes!$B$4:$F$4,0),FALSE),0) -> 0 | K57: =IFERROR(VLOOKUP($B57,Volumes!$B$4:$F$32,MATCH(K$9,Volumes!$B$4:$F$4,0),FALSE),0) -> 0 | M57: 78.88745 | N57: 79.38606661 | P57: 80.82019252 | Q57: 83.32363536 | S57: 0 | T57: 0 | V57: 0 | W57: 0
B58: =Inputs!$C117 -> 400W Metal Halide - Flood Light | C58: Offered | D58: =IF($C58="NA","",'Unsmoothed Prices'!D58) -> 22.286 | E58: 22.42686106 | G58: 22.832007 | H58: 23.53923897 | J58: =IFERROR(VLOOKUP($B58,Volumes!$B$4:$F$32,MATCH(J$9,Volumes!$B$4:$F$4,0),FALSE),0) -> 0 | K58: =IFERROR(VLOOKUP($B58,Volumes!$B$4:$F$32,MATCH(K$9,Volumes!$B$4:$F$4,0),FALSE),0) -> 0 | M58: 81.3439 | N58: 81.85804287 | P58: 83.33682555 | Q58: 85.91822226 | S58: 0 | T58: 0 | V58: 0 | W58: 0
B59: =Inputs!$C118 -> 125W Mercury Vapour | C59: Obsolete, no new Connections | D59: =IF($C59="NA","",'Unsmoothed Prices'!D59) -> 20.603 | E59: 20.73322348 | G59: 21.1077735 | H59: 21.76159654 | J59: =IFERROR(VLOOKUP($B59,Volumes!$B$4:$F$32,MATCH(J$9,Volumes!$B$4:$F$4,0),FALSE),0) -> 327 | K59: =IFERROR(VLOOKUP($B59,Volumes!$B$4:$F$32,MATCH(K$9,Volumes!$B$4:$F$4,0),FALSE),0) -> 320 | M59: 75.20095 | N59: 75.67626569 | P59: 77.04337328 | Q59: 79.42982739 | S59: 25193.18306 | T59: 25417.54476 | V59: 24590.71065 | W59: 24216.40502
B60: =Inputs!$C119 -> 250W Mercury Vapour | C60: Obsolete, no new Connections | D60: =IF($C60="NA","",'Unsmoothed Prices'!D60) -> 20.603 | E60: 20.73322348 | G60: 21.1077735 | H60: 21.76159654 | J60: =IFERROR(VLOOKUP($B60,Volumes!$B$4:$F$32,MATCH(J$9,Volumes!$B$4:$F$4,0),FALSE),0) -> 28 | K60: =IFERROR(VLOOKUP($B60,Volumes!$B$4:$F$32,MATCH(K$9,Volumes!$B$4:$F$4,0),FALSE),0) -> 28 | M60: 75.20095 | N60: 75.67626569 | P60: 77.04337328 | Q60: 79.42982739 | S60: 2157.214452 | T60: 2224.035167 | V60: 2105.6266 | W60: 2118.935439
B61: =Inputs!$C120 -> 0 | C61: NA | D61: =IF($C61="NA","",'Unsmoothed Prices'!D61) ->  | J61: =IFERROR(VLOOKUP($B61,Volumes!$B$4:$F$32,MATCH(J$9,Volumes!$B$4:$F$4,0),FALSE),0) -> 0 | K61: =IFERROR(VLOOKUP($B61,Volumes!$B$4:$F$32,MATCH(K$9,Volumes!$B$4:$F$4,0),FALSE),0) -> 0 | S61: 0 | T61: 0 | V61: 0 | W61: 0
B62: =Inputs!$C121 -> 400W Mercury Vapour | C62: Obsolete, no new Connections | D62: =IF($C62="NA","",'Unsmoothed Prices'!D62) -> 20.75 | E62: 20.88115261 | G62: 21.258375 | H62: 21.916863 | J62: =IFERROR(VLOOKUP($B62,Volumes!$B$4:$F$32,MATCH(J$9,Volumes!$B$4:$F$4,0),FALSE),0) -> 22 | K62: =IFERROR(VLOOKUP($B62,Volumes!$B$4:$F$32,MATCH(K$9,Volumes!$B$4:$F$4,0),FALSE),0) -> 21 | M62: 75.7375 | N62: 76.21620701 | P62: 77.59306875 | Q62: 79.99654993 | S62: 1707.047513 | T62: 1679.927549 | V62: 1666.225 | W62: 1600.540347
B63: =Inputs!$C122 -> 50W Mercury Vapour | C63: Obsolete, no new Connections | D63: =IF($C63="NA","",'Unsmoothed Prices'!D63) -> 17.206 | E63: 17.31475237 | G63: 17.627547 | H63: 18.17356842 | J63: =IFERROR(VLOOKUP($B63,Volumes!$B$4:$F$32,MATCH(J$9,Volumes!$B$4:$F$4,0),FALSE),0) -> 188 | K63: =IFERROR(VLOOKUP($B63,Volumes!$B$4:$F$32,MATCH(K$9,Volumes!$B$4:$F$4,0),FALSE),0) -> 184 | M63: 62.8019 | N63: 63.19884616 | P63: 64.34054655 | Q63: 66.33352473 | S63: 12096.02275 | T63: 12205.36855 | V63: 11806.7572 | W63: 11628.58769
B64: =Inputs!$C123 -> 80W Mercury Vapour Art decorative | C64: Obsolete, no new Connections | D64: =IF($C64="NA","",'Unsmoothed Prices'!D64) -> 17.175 | E64: 17.28355643 | G64: 17.5957875 | H64: 18.14082515 | J64: =IFERROR(VLOOKUP($B64,Volumes!$B$4:$F$32,MATCH(J$9,Volumes!$B$4:$F$4,0),FALSE),0) -> 0 | K64: =IFERROR(VLOOKUP($B64,Volumes!$B$4:$F$32,MATCH(K$9,Volumes!$B$4:$F$4,0),FALSE),0) -> 0 | M64: 62.68875 | N64: 63.08498098 | P64: 64.22462438 | Q64: 66.21401181 | S64: 0 | T64: 0 | V64: 0 | W64: 0
B65: =Inputs!$C124 -> 80W Mercury Vapour | C65: Obsolete, no new Connections | D65: =IF($C65="NA","",'Unsmoothed Prices'!D65) -> 17.175 | E65: 17.28355643 | G65: 17.5957875 | H65: 18.14082515 | J65: =IFERROR(VLOOKUP($B65,Volumes!$B$4:$F$32,MATCH(J$9,Volumes!$B$4:$F$4,0),FALSE),0) -> 350 | K65: =IFERROR(VLOOKUP($B65,Volumes!$B$4:$F$32,MATCH(K$9,Volumes!$B$4:$F$4,0),FALSE),0) -> 343 | M65: 62.68875 | N65: 63.08498098 | P65: 64.22462438 | Q65: 66.21401181 | S65: 22478.61853 | T65: 22711.40605 | V65: 21941.0625 | W65: 21638.14848
S66: 0 | T66: 0 | V66: 0 | W66: 0
J67: =SUM(J10:J66) -> 6329 | K67: 6358 | S67: =SUM(S10:S66) -> 321698.7129 | T67: =SUM(T10:T66) -> 332468.5645 | V67: =SUM(V10:V66) -> 314005.5762 | W67: 316757.3222
J68: =Volumes!E33=J67 -> TRUE | K68: =Volumes!F33=K67 -> TRUE
B69: Public Road Lights | C69: =C8 -> Price (cents) per Light per day Real 2016/17 Smoothed | G69: =G8 -> Price (cents) per Light per day Nominal Smoothed | J69: Volumes | M69: Smooth Real Cost Dollars Per Day | P69: Smooth Nominal Cost Dollars Per Day | S69: Revenue Nominal Dollars Per Year | V69: Revenue Real Dollars Per Year
C70: Offered / No Longer Offered / NA | D70: ='Master Data'!I$29 -> 2017-18 | E70: ='Master Data'!J$29 -> 2018-19 | G70: =G9 -> 2017-18 | H70: 2018-19 | J70: =J9 -> 2017-18 | K70: 2018-19 | M70: ='Master Data'!I$29 -> 2017-18 | N70: ='Master Data'!J$29 -> 2018-19 | P70: ='Master Data'!I$29 -> 2017-18 | Q70: ='Master Data'!J$29 -> 2018-19 | S70: ='Master Data'!I$29 -> 2017-18 | T70: ='Master Data'!J$29 -> 2018-19 | V70: ='Master Data'!I$29 -> 2017-18 | W70: ='Master Data'!J$29 -> 2018-19
B71: =Inputs!$C69 -> 32W Compact Fluorescent | C71: Not Offered | D71: =IF($C71="NA","",'Unsmoothed Prices'!D71) -> 33.796 | E71: =IF($C71="NA","",D71*(1-$E$7)) -> 34.00961125 | G71: =IF($C71="NA","",D71*G$7) -> 34.624002 | H71: =IF($C71="NA","",E71*H$7) -> 35.69649647 | J71: =IFERROR(VLOOKUP($B71,Volumes!$B$38:$F$79,MATCH(J$9,Volumes!$B$4:$F$4,0),FALSE),0) -> 0 | K71: =IFERROR(VLOOKUP($B71,Volumes!$B$38:$F$79,MATCH(K$9,Volumes!$B$4:$F$4,0),FALSE),0) -> 0 | M71: =IF($C71="NA","",(D71*M$7)/100) -> 123.3554 | N71: =IF($C71="NA","",(E71*N$7)/100) -> 124.1350811 | P71: =IF($C71="NA","",(G71*P$7)/100) -> 126.3776073 | Q71: =IF($C71="NA","",(H71*Q$7)/100) -> 130.2922121 | S71: =IFERROR(P71*J71,0) -> 0 | T71: =IFERROR(Q71*K71,0) -> 0 | V71: =IFERROR(M71*J71,0) -> 0 | W71: =IFERROR(N71*K71,0) -> 0
B72: =Inputs!$C70 -> 42W Compact Fluorescent | C72: Offered | D72: =IF($C72="NA","",'Unsmoothed Prices'!D72) -> 33.818 | E72: =IF($C72="NA","",D72*(1-$E$7)) -> 34.0317503 | G72: 34.646541 | H72: 35.71973363 | J72: =IFERROR(VLOOKUP($B72,Volumes!$B$38:$F$79,MATCH(J$9,Volumes!$B$4:$F$4,0),FALSE),0) -> 5704 | K72: =IFERROR(VLOOKUP($B72,Volumes!$B$38:$F$79,MATCH(K$9,Volumes!$B$4:$F$4,0),FALSE),0) -> 5419 | M72: 123.4357 | N72: 124.2158886 | P72: 126.4598747 | Q72: 130.3770277 | S72: 721327.125 | T72: 706513.1133 | V72: 704077.2328 | W72: 673125.9004
B73: =Inputs!$C71 -> 42W Compact Fluorescent - Bottom Pole Entry | C73: Offered | D73: =IF($C73="NA","",'Unsmoothed Prices'!D73) -> 33.818 | E73: 34.0317503 | G73: 34.646541 | H73: 35.71973363 | J73: =IFERROR(VLOOKUP($B73,Volumes!$B$38:$F$79,MATCH(J$9,Volumes!$B$4:$F$4,0),FALSE),0) -> 120 | K73: =IFERROR(VLOOKUP($B73,Volumes!$B$38:$F$79,MATCH(K$9,Volumes!$B$4:$F$4,0),FALSE),0) -> 170 | M73: 123.4357 | N73: 124.2158886 | P73: 126.4598747 | Q73: 130.3770277 | S73: 15175.18496 | T73: 22164.09472 | V73: 14812.284 | W73: 21116.70106
B74: =Inputs!$C72 -> 2x24W Compact Fluorescent | C74: Not Offered | D74: =IF($C74="NA","",'Unsmoothed Prices'!D74) -> 34.127 | E74: 34.34270337 | G74: 34.9631115 | H74: 36.04611005 | J74: =IFERROR(VLOOKUP($B74,Volumes!$B$38:$F$79,MATCH(J$9,Volumes!$B$4:$F$4,0),FALSE),0) -> 0 | K74: =IFERROR(VLOOKUP($B74,Volumes!$B$38:$F$79,MATCH(K$9,Volumes!$B$4:$F$4,0),FALSE),0) -> 0 | M74: 124.56355 | N74: 125.3508673 | P74: 127.615357 | Q74: 131.5683017 | S74: 0 | T74: 0 | V74: 0 | W74: 0
B75: =Inputs!$C73 -> 1x20W Fluorescent | C75: Obsolete, no new Connections | D75: =IF($C75="NA","",'Unsmoothed Prices'!D75) -> 35.337 | E75: 35.56035131 | G75: 36.2027565 | H75: 37.32415362 | J75: =IFERROR(VLOOKUP($B75,Volumes!$B$38:$F$79,MATCH(J$9,Volumes!$B$4:$F$4,0),FALSE),0) -> 0 | K75: =IFERROR(VLOOKUP($B75,Volumes!$B$38:$F$79,MATCH(K$9,Volumes!$B$4:$F$4,0),FALSE),0) -> 0 | M75: 128.98005 | N75: 129.7952823 | P75: 132.1400612 | Q75: 136.2331607 | S75: 0 | T75: 0 | V75: 0 | W75: 0
B76: =Inputs!$C74 -> 1x40W Fluorescent | C76: Abolished | D76: =IF($C76="NA","",'Unsmoothed Prices'!D76) -> 34.285 | E76: 34.50170203 | G76: 35.1249825 | H76: 36.21299507 | J76: =IFERROR(VLOOKUP($B76,Volumes!$B$38:$F$79,MATCH(J$9,Volumes!$B$4:$F$4,0),FALSE),0) -> 0 | K76: =IFERROR(VLOOKUP($B76,Volumes!$B$38:$F$79,MATCH(K$9,Volumes!$B$4:$F$4,0),FALSE),0) -> 0 | M76: 125.14025 | N76: 125.9312124 | P76: 128.2061861 | Q76: 132.177432 | S76: 0 | T76: 0 | V76: 0 | W76: 0
B77: =Inputs!$C75 -> 2x20W Fluorescent | C77: Abolished | D77: =IF($C77="NA","",'Unsmoothed Prices'!D77) -> 35.615 | E77: 35.84010844 | G77: 36.4875675 | H77: 37.61778678 | J77: =IFERROR(VLOOKUP($B77,Volumes!$B$38:$F$79,MATCH(J$9,Volumes!$B$4:$F$4,0),FALSE),0) -> 0 | K77: =IFERROR(VLOOKUP($B77,Volumes!$B$38:$F$79,MATCH(K$9,Volumes!$B$4:$F$4,0),FALSE),0) -> 0 | M77: 129.99475 | N77: 130.8163958 | P77: 133.1796214 | Q77: 137.3049217 | S77: 0 | T77: 0 | V77: 0 | W77: 0
B78: =Inputs!$C76 -> 2x24W Fluorescent | C78: Obsolete, no new Connections | D78: =IF($C78="NA","",'Unsmoothed Prices'!D78) -> 35.562 | E78: 35.78677344 | G78: 36.433269 | H78: 37.56180635 | J78: =IFERROR(VLOOKUP($B78,Volumes!$B$38:$F$79,MATCH(J$9,Volumes!$B$4:$F$4,0),FALSE),0) -> 0 | K78: =IFERROR(VLOOKUP($B78,Volumes!$B$38:$F$79,MATCH(K$9,Volumes!$B$4:$F$4,0),FALSE),0) -> 0 | M78: 129.8013 | N78: 130.6217231 | P78: 132.9814318 | Q78: 137.1005932 | S78: 0 | T78: 0 | V78: 0 | W78: 0
B79: =Inputs!$C77 -> T5 Fluorescent 2 x 24W | C79: Not Offered | D79: =IF($C79="NA","",'Unsmoothed Prices'!D79) -> 35.615 | E79: 35.84010844 | G79: 36.4875675 | H79: 37.61778678 | J79: =IFERROR(VLOOKUP($B79,Volumes!$B$38:$F$79,MATCH(J$9,Volumes!$B$4:$F$4,0),FALSE),0) -> 83 | K79: =IFERROR(VLOOKUP($B79,Volumes!$B$38:$F$79,MATCH(K$9,Volumes!$B$4:$F$4,0),FALSE),0) -> 83 | M79: 129.99475 | N79: 130.8163958 | P79: 133.1796214 | Q79: 137.3049217 | S79: 11053.90857 | T79: 11396.3085 | V79: 10789.56425 | W79: 10857.76085
B80: =Inputs!$C78 -> 20 Fluorescent 1X20FL | C80: Not Offered | D80: =IF($C80="NA","",'Unsmoothed Prices'!D80) -> 35.337 | E80: 35.56035131 | G80: 36.2027565 | H80: 37.32415362 | J80: =IFERROR(VLOOKUP($B80,Volumes!$B$38:$F$79,MATCH(J$9,Volumes!$B$4:$F$4,0),FALSE),0) -> 0 | K80: =IFERROR(VLOOKUP($B80,Volumes!$B$38:$F$79,MATCH(K$9,Volumes!$B$4:$F$4,0),FALSE),0) -> 0 | M80: 128.98005 | N80: 129.7952823 | P80: 132.1400612 | Q80: 136.2331607 | S80: 0 | T80: 0 | V80: 0 | W80: 0
B81: =Inputs!$C79 -> 2x40W Fluorescent | C81: Abolished | D81: =IF($C81="NA","",'Unsmoothed Prices'!D81) -> 34.581 | E81: 34.79957293 | G81: 35.4282345 | H81: 36.52564045 | J81: =IFERROR(VLOOKUP($B81,Volumes!$B$38:$F$79,MATCH(J$9,Volumes!$B$4:$F$4,0),FALSE),0) -> 0 | K81: =IFERROR(VLOOKUP($B81,Volumes!$B$38:$F$79,MATCH(K$9,Volumes!$B$4:$F$4,0),FALSE),0) -> 0 | M81: 126.22065 | N81: 127.0184412 | P81: 129.3130559 | Q81: 133.3185876 | S81: 0 | T81: 0 | V81: 0 | W81: 0
B82: =Inputs!$C80 -> 3x40W Fluorescent | C82: Not Offered | D82: =IF($C82="NA","",'Unsmoothed Prices'!D82) -> 43.376 | E82: 43.65016267 | G82: 44.438712 | H82: 45.81522165 | J82: =IFERROR(VLOOKUP($B82,Volumes!$B$38:$F$79,MATCH(J$9,Volumes!$B$4:$F$4,0),FALSE),0) -> 0 | K82: =IFERROR(VLOOKUP($B82,Volumes!$B$38:$F$79,MATCH(K$9,Volumes!$B$4:$F$4,0),FALSE),0) -> 0 | M82: 158.3224 | N82: 159.3230938 | P82: 162.2012988 | Q82: 167.225559 | S82: 0 | T82: 0 | V82: 0 | W82: 0
B83: =Inputs!$C81 -> 4x20 Fluorescent | C83: Abolished | D83: =IF($C83="NA","",'Unsmoothed Prices'!D83) -> 36.17 | E83: 36.39861637 | G83: 37.056165 | H83: 38.20399685 | J83: =IFERROR(VLOOKUP($B83,Volumes!$B$38:$F$79,MATCH(J$9,Volumes!$B$4:$F$4,0),FALSE),0) -> 0 | K83: =IFERROR(VLOOKUP($B83,Volumes!$B$38:$F$79,MATCH(K$9,Volumes!$B$4:$F$4,0),FALSE),0) -> 0 | M83: 132.0205 | N83: 132.8549498 | P83: 135.2550022 | Q83: 139.4445885 | S83: 0 | T83: 0 | V83: 0 | W83: 0
B84: =Inputs!$C82 -> 4x40W Fluorescent | C84: Abolished | D84: =IF($C84="NA","",'Unsmoothed Prices'!D84) -> 44.741 | E84: 45.0237903 | G84: 45.8371545 | H84: 47.25698156 | J84: =IFERROR(VLOOKUP($B84,Volumes!$B$38:$F$79,MATCH(J$9,Volumes!$B$4:$F$4,0),FALSE),0) -> 0 | K84: =IFERROR(VLOOKUP($B84,Volumes!$B$38:$F$79,MATCH(K$9,Volumes!$B$4:$F$4,0),FALSE),0) -> 0 | M84: 163.30465 | N84: 164.3368346 | P84: 167.3056139 | Q84: 172.4879827 | S84: 0 | T84: 0 | V84: 0 | W84: 0
B85: =Inputs!$C83 -> 100W Sodium Vapour | C85: Offered | D85: =IF($C85="NA","",'Unsmoothed Prices'!D85) -> 42.603 | E85: 42.87227684 | G85: 43.6467735 | H85: 44.99875249 | J85: =IFERROR(VLOOKUP($B85,Volumes!$B$38:$F$79,MATCH(J$9,Volumes!$B$4:$F$4,0),FALSE),0) -> 403 | K85: =IFERROR(VLOOKUP($B85,Volumes!$B$38:$F$79,MATCH(K$9,Volumes!$B$4:$F$4,0),FALSE),0) -> 423 | M85: 155.50095 | N85: 156.4838105 | P85: 159.3107233 | Q85: 164.2454466 | S85: 64202.22148 | T85: 69475.82391 | V85: 62666.88285 | W85: 66192.65183
B86: =Inputs!$C84 -> 0 | C86: NA | D86: =IF($C86="NA","",'Unsmoothed Prices'!D86) ->  | J86: =IFERROR(VLOOKUP($B86,Volumes!$B$38:$F$79,MATCH(J$9,Volumes!$B$4:$F$4,0),FALSE),0) -> 0 | K86: =IFERROR(VLOOKUP($B86,Volumes!$B$38:$F$79,MATCH(K$9,Volumes!$B$4:$F$4,0),FALSE),0) -> 0 | S86: 0 | T86: 0 | V86: 0 | W86: 0
B87: =Inputs!$C85 -> 150W Sodium Vapour | C87: Offered | D87: =IF($C87="NA","",'Unsmoothed Prices'!D87) -> 44.705 | E87: 44.98756276 | G87: 45.8002725 | H87: 47.21895712 | J87: =IFERROR(VLOOKUP($B87,Volumes!$B$38:$F$79,MATCH(J$9,Volumes!$B$4:$F$4,0),FALSE),0) -> 4827 | K87: =IFERROR(VLOOKUP($B87,Volumes!$B$38:$F$79,MATCH(K$9,Volumes!$B$4:$F$4,0),FALSE),0) -> 5069 | M87: 163.17325 | N87: 164.2046041 | P87: 167.1709946 | Q87: 172.3491935 | S87: 806934.3911 | T87: 873638.0618 | V87: 787637.2778 | W87: 832353.138
B88: =Inputs!$C86 -> 0 | C88: NA | D88: =IF($C88="NA","",'Unsmoothed Prices'!D88) ->  | J88: =IFERROR(VLOOKUP($B88,Volumes!$B$38:$F$79,MATCH(J$9,Volumes!$B$4:$F$4,0),FALSE),0) -> 0 | K88: =IFERROR(VLOOKUP($B88,Volumes!$B$38:$F$79,MATCH(K$9,Volumes!$B$4:$F$4,0),FALSE),0) -> 0 | S88: 0 | T88: 0 | V88: 0 | W88: 0
B89: =Inputs!$C87 -> 0 | C89: NA | D89: =IF($C89="NA","",'Unsmoothed Prices'!D89) ->  | J89: =IFERROR(VLOOKUP($B89,Volumes!$B$38:$F$79,MATCH(J$9,Volumes!$B$4:$F$4,0),FALSE),0) -> 0 | K89: =IFERROR(VLOOKUP($B89,Volumes!$B$38:$F$79,MATCH(K$9,Volumes!$B$4:$F$4,0),FALSE),0) -> 0 | S89: 0 | T89: 0 | V89: 0 | W89: 0
B90: =Inputs!$C88 -> 0 | C90: NA | D90: =IF($C90="NA","",'Unsmoothed Prices'!D90) ->  | J90: =IFERROR(VLOOKUP($B90,Volumes!$B$38:$F$79,MATCH(J$9,Volumes!$B$4:$F$4,0),FALSE),0) -> 0 | K90: =IFERROR(VLOOKUP($B90,Volumes!$B$38:$F$79,MATCH(K$9,Volumes!$B$4:$F$4,0),FALSE),0) -> 0 | S90: 0 | T90: 0 | V90: 0 | W90: 0
B91: =Inputs!$C89 -> 250W Sodium Vapour | C91: Offered | D91: =IF($C91="NA","",'Unsmoothed Prices'!D91) -> 45.724 | E91: 46.01300346 | G91: 46.844238 | H91: 48.29525993 | J91: =IFERROR(VLOOKUP($B91,Volumes!$B$38:$F$79,MATCH(J$9,Volumes!$B$4:$F$4,0),FALSE),0) -> 6000 | K91: =IFERROR(VLOOKUP($B91,Volumes!$B$38:$F$79,MATCH(K$9,Volumes!$B$4:$F$4,0),FALSE),0) -> 6300 | M91: 166.8926 | N91: 167.9474626 | P91: 170.9814687 | Q91: 176.2776988 | S91: 1025888.812 | T91: 1110549.502 | V91: 1001355.6 | W91: 1058069.015
B92: =Inputs!$C90 -> 0 | C92: NA | D92: =IF($C92="NA","",'Unsmoothed Prices'!D92) ->  | J92: =IFERROR(VLOOKUP($B92,Volumes!$B$38:$F$79,MATCH(J$9,Volumes!$B$4:$F$4,0),FALSE),0) -> 0 | K92: =IFERROR(VLOOKUP($B92,Volumes!$B$38:$F$79,MATCH(K$9,Volumes!$B$4:$F$4,0),FALSE),0) -> 0 | S92: 0 | T92: 0 | V92: 0 | W92: 0
B93: =Inputs!$C91 -> 0 | C93: NA | D93: =IF($C93="NA","",'Unsmoothed Prices'!D93) ->  | J93: =IFERROR(VLOOKUP($B93,Volumes!$B$38:$F$79,MATCH(J$9,Volumes!$B$4:$F$4,0),FALSE),0) -> 0 | K93: =IFERROR(VLOOKUP($B93,Volumes!$B$38:$F$79,MATCH(K$9,Volumes!$B$4:$F$4,0),FALSE),0) -> 0 | S93: 0 | T93: 0 | V93: 0 | W93: 0
B94: =Inputs!$C92 -> 0 | C94: NA | D94: =IF($C94="NA","",'Unsmoothed Prices'!D94) ->  | J94: =IFERROR(VLOOKUP($B94,Volumes!$B$38:$F$79,MATCH(J$9,Volumes!$B$4:$F$4,0),FALSE),0) -> 0 | K94: =IFERROR(VLOOKUP($B94,Volumes!$B$38:$F$79,MATCH(K$9,Volumes!$B$4:$F$4,0),FALSE),0) -> 0 | S94: 0 | T94: 0 | V94: 0 | W94: 0
B95: =Inputs!$C93 -> 250W Sodium Vapour - Flood Light | C95: Offered | D95: =IF($C95="NA","",'Unsmoothed Prices'!D95) -> 49.445 | E95: 49.75752244 | G95: 50.6564025 | H95: 52.22550799 | J95: =IFERROR(VLOOKUP($B95,Volumes!$B$38:$F$79,MATCH(J$9,Volumes!$B$4:$F$4,0),FALSE),0) -> 33 | K95: =IFERROR(VLOOKUP($B95,Volumes!$B$38:$F$79,MATCH(K$9,Volumes!$B$4:$F$4,0),FALSE),0) -> 35 | M95: 180.47425 | N95: 181.6149569 | P95: 184.8958691 | Q95: 190.6231042 | S95: 6101.563681 | T95: 6671.808646 | V95: 5955.65025 | W95: 6356.523492
B96: =Inputs!$C94 -> 400W Sodium Vapour | C96: Offered | D96: =IF($C96="NA","",'Unsmoothed Prices'!D96) -> 46.538 | E96: 46.83214843 | G96: 47.678181 | H96: 49.1550347 | J96: =IFERROR(VLOOKUP($B96,Volumes!$B$38:$F$79,MATCH(J$9,Volumes!$B$4:$F$4,0),FALSE),0) -> 611 | K96: =IFERROR(VLOOKUP($B96,Volumes!$B$38:$F$79,MATCH(K$9,Volumes!$B$4:$F$4,0),FALSE),0) -> 642 | M96: 169.8637 | N96: 170.9373418 | P96: 174.0253606 | Q96: 179.4158767 | S96: 106329.4954 | T96: 115184.9928 | V96: 103786.7207 | W96: 109741.7734
B97: =Inputs!$C95 -> 0 | C97: NA | D97: =IF($C97="NA","",'Unsmoothed Prices'!D97) ->  | J97: =IFERROR(VLOOKUP($B97,Volumes!$B$38:$F$79,MATCH(J$9,Volumes!$B$4:$F$4,0),FALSE),0) -> 0 | K97: =IFERROR(VLOOKUP($B97,Volumes!$B$38:$F$79,MATCH(K$9,Volumes!$B$4:$F$4,0),FALSE),0) -> 0 | S97: 0 | T97: 0 | V97: 0 | W97: 0
B98: =Inputs!$C96 -> 400W Sodium Vapour - Flood Light | C98: Offered | D98: =IF($C98="NA","",'Unsmoothed Prices'!D98) -> 48.993 | E98: 49.30266552 | G98: 50.1933285 | H98: 51.74809006 | J98: =IFERROR(VLOOKUP($B98,Volumes!$B$38:$F$79,MATCH(J$9,Volumes!$B$4:$F$4,0),FALSE),0) -> 33 | K98: =IFERROR(VLOOKUP($B98,Volumes!$B$38:$F$79,MATCH(K$9,Volumes!$B$4:$F$4,0),FALSE),0) -> 35 | M98: 178.82445 | N98: 179.9547292 | P98: 183.205649 | Q98: 188.8805287 | S98: 6045.786418 | T98: 6610.818505 | V98: 5901.20685 | W98: 6298.415521
B99: =Inputs!$C97 -> 70W Sodium Vapour | C99: Offered | D99: =IF($C99="NA","",'Unsmoothed Prices'!D99) -> 33.672 | E99: 33.8848275 | G99: 34.496964 | H99: 35.56552341 | J99: =IFERROR(VLOOKUP($B99,Volumes!$B$38:$F$79,MATCH(J$9,Volumes!$B$4:$F$4,0),FALSE),0) -> 214 | K99: =IFERROR(VLOOKUP($B99,Volumes!$B$38:$F$79,MATCH(K$9,Volumes!$B$4:$F$4,0),FALSE),0) -> 225 | M99: 122.9028 | N99: 123.6796204 | P99: 125.9139186 | Q99: 129.8141605 | S99: 26945.57858 | T99: 29208.1861 | V99: 26301.1992 | W99: 27827.91458
B100: =Inputs!$C98 -> 0 | C100: NA | D100: =IF($C100="NA","",'Unsmoothed Prices'!D100) ->  | J100: =IFERROR(VLOOKUP($B100,Volumes!$B$38:$F$79,MATCH(J$9,Volumes!$B$4:$F$4,0),FALSE),0) -> 0 | K100: =IFERROR(VLOOKUP($B100,Volumes!$B$38:$F$79,MATCH(K$9,Volumes!$B$4:$F$4,0),FALSE),0) -> 0 | S100: 0 | T100: 0 | V100: 0 | W100: 0
B101: =Inputs!$C99 -> 100W Incandescent | C101: Abolished | D101: =IF($C101="NA","",'Unsmoothed Prices'!D101) -> 39.359 | E101: 39.60777279 | G101: 40.3232955 | H101: 41.57232822 | J101: =IFERROR(VLOOKUP($B101,Volumes!$B$38:$F$79,MATCH(J$9,Volumes!$B$4:$F$4,0),FALSE),0) -> 0 | K101: =IFERROR(VLOOKUP($B101,Volumes!$B$38:$F$79,MATCH(K$9,Volumes!$B$4:$F$4,0),FALSE),0) -> 0 | M101: 143.66035 | N101: 144.5683707 | P101: 147.1800286 | Q101: 151.738998 | S101: 0 | T101: 0 | V101: 0 | W101: 0
B102: =Inputs!$C100 -> 60W Incandescent | C102: Abolished | D102: =IF($C102="NA","",'Unsmoothed Prices'!D102) -> 30.86 | E102: 31.05505395 | G102: 31.61607 | H102: 32.59539239 | J102: =IFERROR(VLOOKUP($B102,Volumes!$B$38:$F$79,MATCH(J$9,Volumes!$B$4:$F$4,0),FALSE),0) -> 0 | K102: =IFERROR(VLOOKUP($B102,Volumes!$B$38:$F$79,MATCH(K$9,Volumes!$B$4:$F$4,0),FALSE),0) -> 0 | M102: 112.639 | N102: 113.3509469 | P102: 115.3986555 | Q102: 118.9731822 | S102: 0 | T102: 0 | V102: 0 | W102: 0
B103: =Inputs!$C101 -> 18W LED | C103: Offered | D103: =IF($C103="NA","",'Unsmoothed Prices'!D103) -> 31.982 | E103: 32.18414567 | G103: 32.765559 | H103: 33.78048734 | J103: =IFERROR(VLOOKUP($B103,Volumes!$B$38:$F$79,MATCH(J$9,Volumes!$B$4:$F$4,0),FALSE),0) -> 10110 | K103: =IFERROR(VLOOKUP($B103,Volumes!$B$38:$F$79,MATCH(K$9,Volumes!$B$4:$F$4,0),FALSE),0) -> 14210 | M103: =IF($C103="NA","",(D103*M$7)/100) -> 116.7343 | N103: =IF($C103="NA","",(E103*N$7)/100) -> 117.4721317 | P103: 119.5942903 | Q103: 123.2987788 | S103: =IFERROR(P103*J103,0) -> 1209098.275 | T103: =IFERROR(Q103*K103,0) -> 1752075.647 | V103: =IFERROR(M103*J103,0) -> 1180183.773 | W103: =IFERROR(N103*K103,0) -> 1669278.991
B104: =Inputs!$C102 -> 25W LED | C104: Offered | D104: =IF($C104="NA","",'Unsmoothed Prices'!D104) -> 31.982 | E104: 32.18414567 | G104: 32.765559 | H104: 33.78048734 | J104: =IFERROR(VLOOKUP($B104,Volumes!$B$38:$F$79,MATCH(J$9,Volumes!$B$4:$F$4,0),FALSE),0) -> 21 | K104: =IFERROR(VLOOKUP($B104,Volumes!$B$38:$F$79,MATCH(K$9,Volumes!$B$4:$F$4,0),FALSE),0) -> 21 | M104: 116.7343 | N104: 117.4721317 | P104: 119.5942903 | Q104: 123.2987788 | S104: 2511.480097 | T104: 2589.274355 | V104: 2451.4203 | W104: 2466.914766
B105: =Inputs!$C103 -> 18W LED Decorative - Bottom Pole Entry | C105: Offered | D105: =IF($C105="NA","",'Unsmoothed Prices'!D105) -> 44.435 | E105: 44.71585619 | G105: 45.5236575 | H105: 46.93377384 | J105: =IFERROR(VLOOKUP($B105,Volumes!$B$38:$F$79,MATCH(J$9,Volumes!$B$4:$F$4,0),FALSE),0) -> 33 | K105: =IFERROR(VLOOKUP($B105,Volumes!$B$38:$F$79,MATCH(K$9,Volumes!$B$4:$F$4,0),FALSE),0) -> 35 | M105: 162.18775 | N105: 163.2128751 | P105: 166.1613499 | Q105: 171.3082745 | S105: 5483.324546 | T105: 5995.789608 | V105: 5352.19575 | W105: 5712.450629
B106: =Inputs!$C104 -> 18W LED Decorative - Side Entry | C106: Offered | D106: =IF($C106="NA","",'Unsmoothed Prices'!D106) -> 44.435 | E106: 44.71585619 | G106: 45.5236575 | H106: 46.93377384 | J106: =IFERROR(VLOOKUP($B106,Volumes!$B$38:$F$79,MATCH(J$9,Volumes!$B$4:$F$4,0),FALSE),0) -> 33 | K106: =IFERROR(VLOOKUP($B106,Volumes!$B$38:$F$79,MATCH(K$9,Volumes!$B$4:$F$4,0),FALSE),0) -> 35 | M106: 162.18775 | N106: 163.2128751 | P106: 166.1613499 | Q106: 171.3082745 | S106: 5483.324546 | T106: 5995.789608 | V106: 5352.19575 | W106: 5712.450629
B107: =Inputs!$C105 -> 18W LED Decorative - Top Entry | C107: Offered | D107: =IF($C107="NA","",'Unsmoothed Prices'!D107) -> 44.435 | E107: 44.71585619 | G107: 45.5236575 | H107: 46.93377384 | J107: =IFERROR(VLOOKUP($B107,Volumes!$B$38:$F$79,MATCH(J$9,Volumes!$B$4:$F$4,0),FALSE),0) -> 33 | K107: =IFERROR(VLOOKUP($B107,Volumes!$B$38:$F$79,MATCH(K$9,Volumes!$B$4:$F$4,0),FALSE),0) -> 35 | M107: 162.18775 | N107: 163.2128751 | P107: 166.1613499 | Q107: 171.3082745 | S107: 5483.324546 | T107: 5995.789608 | V107: 5352.19575 | W107: 5712.450629
B108: =Inputs!$C106 -> 25W LED Decorative - Bottom Pole Entry | C108: Offered | D108: =IF($C108="NA","",'Unsmoothed Prices'!D108) -> 44.435 | E108: 44.71585619 | G108: 45.5236575 | H108: 46.93377384 | J108: =IFERROR(VLOOKUP($B108,Volumes!$B$38:$F$79,MATCH(J$9,Volumes!$B$4:$F$4,0),FALSE),0) -> 33 | K108: =IFERROR(VLOOKUP($B108,Volumes!$B$38:$F$79,MATCH(K$9,Volumes!$B$4:$F$4,0),FALSE),0) -> 35 | M108: 162.18775 | N108: 163.2128751 | P108: 166.1613499 | Q108: 171.3082745 | S108: 5483.324546 | T108: 5995.789608 | V108: 5352.19575 | W108: 5712.450629
B109: =Inputs!$C107 -> 25W LED Decorative - Side Entry | C109: Offered | D109: =IF($C109="NA","",'Unsmoothed Prices'!D109) -> 44.435 | E109: 44.71585619 | G109: 45.5236575 | H109: 46.93377384 | J109: =IFERROR(VLOOKUP($B109,Volumes!$B$38:$F$79,MATCH(J$9,Volumes!$B$4:$F$4,0),FALSE),0) -> 33 | K109: =IFERROR(VLOOKUP($B109,Volumes!$B$38:$F$79,MATCH(K$9,Volumes!$B$4:$F$4,0),FALSE),0) -> 35 | M109: 162.18775 | N109: 163.2128751 | P109: 166.1613499 | Q109: 171.3082745 | S109: 5483.324546 | T109: 5995.789608 | V109: 5352.19575 | W109: 5712.450629
B110: =Inputs!$C108 -> 25W LED Decorative - Top Entry | C110: Offered | D110: =IF($C110="NA","",'Unsmoothed Prices'!D110) -> 44.435 | E110: 44.71585619 | G110: 45.5236575 | H110: 46.93377384 | J110: =IFERROR(VLOOKUP($B110,Volumes!$B$38:$F$79,MATCH(J$9,Volumes!$B$4:$F$4,0),FALSE),0) -> 33 | K110: =IFERROR(VLOOKUP($B110,Volumes!$B$38:$F$79,MATCH(K$9,Volumes!$B$4:$F$4,0),FALSE),0) -> 35 | M110: 162.18775 | N110: 163.2128751 | P110: 166.1613499 | Q110: 171.3082745 | S110: 5483.324546 | T110: 5995.789608 | V110: 5352.19575 | W110: 5712.450629
B111: =Inputs!$C109 -> 30W LED | C111: Not Offered | D111: =IF($C111="NA","",'Unsmoothed Prices'!D111) -> 31.982 | E111: 32.18414567 | G111: 32.765559 | H111: 33.78048734 | J111: =IFERROR(VLOOKUP($B111,Volumes!$B$38:$F$79,MATCH(J$9,Volumes!$B$4:$F$4,0),FALSE),0) -> 0 | K111: =IFERROR(VLOOKUP($B111,Volumes!$B$38:$F$79,MATCH(K$9,Volumes!$B$4:$F$4,0),FALSE),0) -> 0 | M111: 116.7343 | N111: 117.4721317 | P111: 119.5942903 | Q111: 123.2987788 | S111: 0 | T111: 0 | V111: 0 | W111: 0
B112: =Inputs!$C110 -> 88 LED Light | C112: Abolished | D112: =IF($C112="NA","",'Unsmoothed Prices'!D112) -> 31.982 | E112: 32.18414567 | G112: 32.765559 | H112: 33.78048734 | J112: =IFERROR(VLOOKUP($B112,Volumes!$B$38:$F$79,MATCH(J$9,Volumes!$B$4:$F$4,0),FALSE),0) -> 0 | K112: =IFERROR(VLOOKUP($B112,Volumes!$B$38:$F$79,MATCH(K$9,Volumes!$B$4:$F$4,0),FALSE),0) -> 0 | M112: 116.7343 | N112: 117.4721317 | P112: 119.5942903 | Q112: 123.2987788 | S112: 0 | T112: 0 | V112: 0 | W112: 0
B113: =Inputs!$C111 -> 100W Metal Halide | C113: Offered | D113: =IF($C113="NA","",'Unsmoothed Prices'!D113) -> 42.744 | E113: 43.01416805 | G113: 43.791228 | H113: 45.14768154 | J113: =IFERROR(VLOOKUP($B113,Volumes!$B$38:$F$79,MATCH(J$9,Volumes!$B$4:$F$4,0),FALSE),0) -> 17 | K113: =IFERROR(VLOOKUP($B113,Volumes!$B$38:$F$79,MATCH(K$9,Volumes!$B$4:$F$4,0),FALSE),0) -> 17 | M113: 156.0156 | N113: 157.0017134 | P113: 159.8379822 | Q113: 164.7890376 | S113: 2717.245697 | T113: 2801.413639 | V113: 2652.2652 | W113: 2669.029127
B114: =Inputs!$C112 -> 150W Metal Halide | C114: Offered | D114: =IF($C114="NA","",'Unsmoothed Prices'!D114) -> 45.239 | E114: 45.52493796 | G114: 46.3473555 | H114: 47.78298627 | J114: =IFERROR(VLOOKUP($B114,Volumes!$B$38:$F$79,MATCH(J$9,Volumes!$B$4:$F$4,0),FALSE),0) -> 14 | K114: =IFERROR(VLOOKUP($B114,Volumes!$B$38:$F$79,MATCH(K$9,Volumes!$B$4:$F$4,0),FALSE),0) -> 15 | M114: 165.12235 | N114: 166.1660236 | P114: 169.1678476 | Q114: 174.4078999 | S114: 2368.349866 | T114: 2616.118498 | V114: 2311.7129 | W114: 2492.490353
B115: =Inputs!$C113 -> 250W Metal Halide | C115: Offered | D115: =IF($C115="NA","",'Unsmoothed Prices'!D115) -> 45.999 | E115: 46.28974163 | G115: 47.1259755 | H115: 48.58572438 | J115: =IFERROR(VLOOKUP($B115,Volumes!$B$38:$F$79,MATCH(J$9,Volumes!$B$4:$F$4,0),FALSE),0) -> 88 | K115: =IFERROR(VLOOKUP($B115,Volumes!$B$38:$F$79,MATCH(K$9,Volumes!$B$4:$F$4,0),FALSE),0) -> 89 | M115: 167.89635 | N115: 168.9575569 | P115: 172.0098106 | Q115: 177.337894 | S115: 15136.86333 | T115: 15783.07257 | V115: 14774.8788 | W115: 15037.22257
B116: =Inputs!$C114 -> 400W Metal Halide | C116: Offered | D116: =IF($C116="NA","",'Unsmoothed Prices'!D116) -> 50.959 | E116: 51.28109184 | G116: 52.2074955 | H116: 53.82464681 | J116: =IFERROR(VLOOKUP($B116,Volumes!$B$38:$F$79,MATCH(J$9,Volumes!$B$4:$F$4,0),FALSE),0) -> 17 | K116: =IFERROR(VLOOKUP($B116,Volumes!$B$38:$F$79,MATCH(K$9,Volumes!$B$4:$F$4,0),FALSE),0) -> 17 | M116: 186.00035 | N116: 187.1759852 | P116: 190.5573586 | Q116: 196.4599609 | S116: 3239.475096 | T116: 3339.819335 | V116: 3162.00595 | W116: 3181.991749
B117: =Inputs!$C115 -> 70W Metal Halide | C117: Not Offered | D117: =IF($C117="NA","",'Unsmoothed Prices'!D117) -> 32.604 | E117: 32.81007709 | G117: 33.402798 | H117: 34.43746511 | J117: =IFERROR(VLOOKUP($B117,Volumes!$B$38:$F$79,MATCH(J$9,Volumes!$B$4:$F$4,0),FALSE),0) -> 0 | K117: =IFERROR(VLOOKUP($B117,Volumes!$B$38:$F$79,MATCH(K$9,Volumes!$B$4:$F$4,0),FALSE),0) -> 0 | M117: 119.0046 | N117: 119.7567814 | P117: 121.9202127 | Q117: 125.6967477 | S117: 0 | T117: 0 | V117: 0 | W117: 0
B118: =Inputs!$C116 -> 250W Metal Halide - Flood Light | C118: Offered | D118: =IF($C118="NA","",'Unsmoothed Prices'!D118) -> 51.031 | E118: 51.35354692 | G118: 52.2812595 | H118: 53.90069569 | J118: =IFERROR(VLOOKUP($B118,Volumes!$B$38:$F$79,MATCH(J$9,Volumes!$B$4:$F$4,0),FALSE),0) -> 33 | K118: =IFERROR(VLOOKUP($B118,Volumes!$B$38:$F$79,MATCH(K$9,Volumes!$B$4:$F$4,0),FALSE),0) -> 35 | M118: 186.26315 | N118: 187.4404463 | P118: 190.8265972 | Q118: 196.7375393 | S118: 6297.277707 | T118: 6885.813874 | V118: 6146.68395 | W118: 6560.415619
B119: =Inputs!$C117 -> 400W Metal Halide - Flood Light | C119: Offered | D119: =IF($C119="NA","",'Unsmoothed Prices'!D119) -> 50.959 | E119: 51.28109184 | G119: 52.2074955 | H119: 53.82464681 | J119: =IFERROR(VLOOKUP($B119,Volumes!$B$38:$F$79,MATCH(J$9,Volumes!$B$4:$F$4,0),FALSE),0) -> 33 | K119: =IFERROR(VLOOKUP($B119,Volumes!$B$38:$F$79,MATCH(K$9,Volumes!$B$4:$F$4,0),FALSE),0) -> 35 | M119: 186.00035 | N119: 187.1759852 | P119: 190.5573586 | Q119: 196.4599609 | S119: 6288.392833 | T119: 6876.09863 | V119: 6138.01155 | W119: 6551.159482
B120: =Inputs!$C118 -> 125W Mercury Vapour | C120: Obsolete, no new Connections | D120: =IF($C120="NA","",'Unsmoothed Prices'!D120) -> 42.398 | E120: 42.66598112 | G120: 43.436751 | H120: 44.78222445 | J120: =IFERROR(VLOOKUP($B120,Volumes!$B$38:$F$79,MATCH(J$9,Volumes!$B$4:$F$4,0),FALSE),0) -> 0 | K120: =IFERROR(VLOOKUP($B120,Volumes!$B$38:$F$79,MATCH(K$9,Volumes!$B$4:$F$4,0),FALSE),0) -> 0 | M120: 154.7527 | N120: 155.7308311 | P120: 158.5441412 | Q120: 163.4551192 | S120: 0 | T120: 0 | V120: 0 | W120: 0
B121: =Inputs!$C119 -> 250W Mercury Vapour | C121: Obsolete, no new Connections | D121: =IF($C121="NA","",'Unsmoothed Prices'!D121) -> 42.83 | E121: 43.10071162 | G121: 43.879335 | H121: 45.23851769 | J121: =IFERROR(VLOOKUP($B121,Volumes!$B$38:$F$79,MATCH(J$9,Volumes!$B$4:$F$4,0),FALSE),0) -> 427 | K121: =IFERROR(VLOOKUP($B121,Volumes!$B$38:$F$79,MATCH(K$9,Volumes!$B$4:$F$4,0),FALSE),0) -> 406 | M121: 156.3295 | N121: 157.3175974 | P121: 160.1595727 | Q121: 165.1205896 | S121: 68388.13756 | T121: 67038.95937 | V121: 66752.6965 | W121: 63870.94455
B122: =Inputs!$C120 -> 0 | C122: NA | D122: =IF($C122="NA","",'Unsmoothed Prices'!D122) ->  | J122: =IFERROR(VLOOKUP($B122,Volumes!$B$38:$F$79,MATCH(J$9,Volumes!$B$4:$F$4,0),FALSE),0) -> 0 | K122: =IFERROR(VLOOKUP($B122,Volumes!$B$38:$F$79,MATCH(K$9,Volumes!$B$4:$F$4,0),FALSE),0) -> 0 | S122: 0 | T122: 0 | V122: 0 | W122: 0
B123: =Inputs!$C121 -> 400W Mercury Vapour | C123: Obsolete, no new Connections | D123: =IF($C123="NA","",'Unsmoothed Prices'!D123) -> 44.787 | E123: 45.07008105 | G123: 45.8842815 | H123: 47.30556834 | J123: =IFERROR(VLOOKUP($B123,Volumes!$B$38:$F$79,MATCH(J$9,Volumes!$B$4:$F$4,0),FALSE),0) -> 32 | K123: =IFERROR(VLOOKUP($B123,Volumes!$B$38:$F$79,MATCH(K$9,Volumes!$B$4:$F$4,0),FALSE),0) -> 31 | M123: 163.47255 | N123: 164.5057958 | P123: 167.4776275 | Q123: 172.6653244 | S123: 5359.284079 | T123: 5352.625057 | V123: 5231.1216 | W123: 5099.679671
B124: =Inputs!$C122 -> 50W Mercury Vapour | C124: Obsolete, no new Connections | D124: =IF($C124="NA","",'Unsmoothed Prices'!D124) -> 31.523 | E124: 31.72224451 | G124: 32.2953135 | H124: 33.29567577 | J124: =IFERROR(VLOOKUP($B124,Volumes!$B$38:$F$79,MATCH(J$9,Volumes!$B$4:$F$4,0),FALSE),0) -> 0 | K124: =IFERROR(VLOOKUP($B124,Volumes!$B$38:$F$79,MATCH(K$9,Volumes!$B$4:$F$4,0),FALSE),0) -> 0 | M124: 115.05895 | N124: 115.7861925 | P124: 117.8778943 | Q124: 121.5292166 | S124: 0 | T124: 0 | V124: 0 | W124: 0
B125: =Inputs!$C123 -> 80W Mercury Vapour Art decorative | C125: Obsolete, no new Connections | D125: =IF($C125="NA","",'Unsmoothed Prices'!D125) -> 46.961 | E125: 47.25782205 | G125: 48.1115445 | H125: 49.60182184 | J125: =IFERROR(VLOOKUP($B125,Volumes!$B$38:$F$79,MATCH(J$9,Volumes!$B$4:$F$4,0),FALSE),0) -> 40 | K125: =IFERROR(VLOOKUP($B125,Volumes!$B$38:$F$79,MATCH(K$9,Volumes!$B$4:$F$4,0),FALSE),0) -> 40 | M125: 171.40765 | N125: 172.4910505 | P125: 175.6071374 | Q125: 181.0466497 | S125: 7024.285497 | T125: 7241.865988 | V125: 6856.306 | W125: 6899.642019
B126: =Inputs!$C124 -> 80W Mercury Vapour | C126: Obsolete, no new Connections | D126: =IF($C126="NA","",'Unsmoothed Prices'!D126) -> 31.521 | E126: 31.72023187 | G126: 32.2932645 | H126: 33.2935633 | J126: =IFERROR(VLOOKUP($B126,Volumes!$B$38:$F$79,MATCH(J$9,Volumes!$B$4:$F$4,0),FALSE),0) -> 14235 | K126: =IFERROR(VLOOKUP($B126,Volumes!$B$38:$F$79,MATCH(K$9,Volumes!$B$4:$F$4,0),FALSE),0) -> 10135 | M126: 115.05165 | N126: 115.7788463 | P126: 117.8704154 | Q126: 121.521506 | S126: 1677885.364 | T126: 1231620.464 | V126: 1637760.238 | W126: 1173418.607
J128: =SUM(J71:J127) -> 43293 | K128: 43662 | S128: =SUM(S71:S127) -> 5829218.445 | T128: =SUM(T71:T127) -> 6091608.62 | V128: =SUM(V71:V127) -> 5689817.907 | W128: =SUM(W71:W127) -> 5803741.586
J129: =Volumes!E80=J128 -> TRUE | K129: =Volumes!F80=K128 -> TRUE
B130: Total | J130: =SUM(J67,J128) -> 49622 | K130: 50020 | S130: =SUM(S67,S128) -> 6150917.158 | T130: 6424077.184 | V130: =SUM(V67,V128) -> 6003823.483 | W130: 6120498.908
J131: =Volumes!E84=J130 -> TRUE | K131: =Volumes!F84=K130 -> TRUE
Q132: ='Master Data'!A37 -> Nominal Vanilla WACC | S132: ='Master Data'!B37 -> 0.05475423906
S134: =S9 -> 2017-18 | T134: =T9 -> 2018-19
Q135: Unsmoothed Nominal Revenue | S135: ='Unsmoothed Prices'!M130*10^6 -> 6150917.158 | T135: ='Unsmoothed Prices'!N130*10^6 -> 6424077.184
Q136: NPV | S136: =NPV(S$132,S135:T135) -> 11606029.34
Q138: Smoothed Nominal Revenue | S138: =S130 -> 6150917.158 | T138: =T130 -> 6424077.184
S139: =NPV(S$132,S138:T138) -> 11606029.34
Q140: Difference in NPVs | S140: =S136-S139 -> 0
Q142: X Factor 2018-19 | S142: -0.006320607515

Sheet Unsmoothed Prices
B4: Private Contract Lights
F6: Days | G6: ='Master Data'!I23 -> 365 | H6: ='Master Data'!J23 -> 365
D7: 8 | E7: =D7+1 -> 9 | M7: ='Master Data'!I32 -> 1.0245 | N7: ='Master Data'!J32 -> 1.04960025
B8: Private Contract Lights | C8: Price (cents) per Light per day | G8: Revenue ($m) - Real | M8: Revenue ($m) - Nominal
C9: Offered / No Longer Offered / NA | D9: ='Master Data'!I$29 -> 2017-18 | E9: ='Master Data'!J$29 -> 2018-19 | G9: =D9 -> 2017-18 | H9: =E9 -> 2018-19 | J9: =G9 -> 2017-18 | K9: =H9 -> 2018-19 | M9: ='Master Data'!I$29 -> 2017-18 | N9: ='Master Data'!J$29 -> 2018-19
B10: =Inputs!$C69 -> 32W Compact Fluorescent | C10: Not Offered | D10: =IF($C10="NA","",OFFSET('Combined Annuity Prices CL'!$B$10,MATCH($B10,'Combined Annuity Prices CL'!$B$10:$B$3811,0)+12,D$7)) -> 17.334 | E10: =IF($C10="NA","",OFFSET('Combined Annuity Prices CL'!$B$10,MATCH($B10,'Combined Annuity Prices CL'!$B$10:$B$3811,0)+12,E$7)) -> 17.363 | G10: =IF($C10="NA","",D10*J10*G$6/100/10^6) -> 0 | H10: =IF($C10="NA","",E10*K10*H$6/100/10^6) -> 0 | J10: =IFERROR(VLOOKUP($B10,Volumes!$B$4:$F$32,MATCH(J$9,Volumes!$B$4:$F$4,0),FALSE),0) -> 0 | K10: =IFERROR(VLOOKUP($B10,Volumes!$B$4:$F$32,MATCH(K$9,Volumes!$B$4:$F$4,0),FALSE),0) -> 0 | M10: =IF($C10="NA","",D10*M$7*J10*G$6/100/10^6) -> 0 | N10: =IF($C10="NA","",E10*N$7*K10*H$6/100/10^6) -> 0
B11: =Inputs!$C70 -> 42W Compact Fluorescent | C11: Offered | D11: =IF($C11="NA","",OFFSET('Combined Annuity Prices CL'!$B$10,MATCH($B11,'Combined Annuity Prices CL'!$B$10:$B$3811,0)+12,D$7)) -> 17.334 | E11: =IF($C11="NA","",OFFSET('Combined Annuity Prices CL'!$B$10,MATCH($B11,'Combined Annuity Prices CL'!$B$10:$B$3811,0)+12,E$7)) -> 17.363 | G11: 0 | H11: 0 | J11: =IFERROR(VLOOKUP($B11,Volumes!$B$4:$F$32,MATCH(J$9,Volumes!$B$4:$F$4,0),FALSE),0) -> 0 | K11: =IFERROR(VLOOKUP($B11,Volumes!$B$4:$F$32,MATCH(K$9,Volumes!$B$4:$F$4,0),FALSE),0) -> 0 | M11: 0 | N11: 0
B12: =Inputs!$C71 -> 42W Compact Fluorescent - Bottom Pole Entry | C12: Offered | D12: =IF($C12="NA","",OFFSET('Combined Annuity Prices CL'!$B$10,MATCH($B12,'Combined Annuity Prices CL'!$B$10:$B$3811,0)+12,D$7)) -> 17.334 | E12: =IF($C12="NA","",OFFSET('Combined Annuity Prices CL'!$B$10,MATCH($B12,'Combined Annuity Prices CL'!$B$10:$B$3811,0)+12,E$7)) -> 17.363 | G12: 0 | H12: 0 | J12: =IFERROR(VLOOKUP($B12,Volumes!$B$4:$F$32,MATCH(J$9,Volumes!$B$4:$F$4,0),FALSE),0) -> 0 | K12: =IFERROR(VLOOKUP($B12,Volumes!$B$4:$F$32,MATCH(K$9,Volumes!$B$4:$F$4,0),FALSE),0) -> 0 | M12: 0 | N12: 0
B13: =Inputs!$C72 -> 2x24W Compact Fluorescent | C13: Not Offered | D13: =IF($C13="NA","",OFFSET('Combined Annuity Prices CL'!$B$10,MATCH($B13,'Combined Annuity Prices CL'!$B$10:$B$3811,0)+12,D$7)) -> 17.642 | E13: =IF($C13="NA","",OFFSET('Combined Annuity Prices CL'!$B$10,MATCH($B13,'Combined Annuity Prices CL'!$B$10:$B$3811,0)+12,E$7)) -> 17.671 | G13: 0 | H13: 0 | J13: =IFERROR(VLOOKUP($B13,Volumes!$B$4:$F$32,MATCH(J$9,Volumes!$B$4:$F$4,0),FALSE),0) -> 0 | K13: =IFERROR(VLOOKUP($B13,Volumes!$B$4:$F$32,MATCH(K$9,Volumes!$B$4:$F$4,0),FALSE),0) -> 0 | M13: 0 | N13: 0
B14: =Inputs!$C73 -> 1x20W Fluorescent | C14: Obsolete, no new Connections | D14: =IF($C14="NA","",OFFSET('Combined Annuity Prices CL'!$B$10,MATCH($B14,'Combined Annuity Prices CL'!$B$10:$B$3811,0)+12,D$7)) -> 17.303 | E14: =IF($C14="NA","",OFFSET('Combined Annuity Prices CL'!$B$10,MATCH($B14,'Combined Annuity Prices CL'!$B$10:$B$3811,0)+12,E$7)) -> 17.332 | G14: 0 | H14: 0 | J14: =IFERROR(VLOOKUP($B14,Volumes!$B$4:$F$32,MATCH(J$9,Volumes!$B$4:$F$4,0),FALSE),0) -> 0 | K14: =IFERROR(VLOOKUP($B14,Volumes!$B$4:$F$32,MATCH(K$9,Volumes!$B$4:$F$4,0),FALSE),0) -> 0 | M14: 0 | N14: 0
B15: =Inputs!$C74 -> 1x40W Fluorescent | C15: Obsolete, no new Connections | D15: =IF($C15="NA","",OFFSET('Combined Annuity Prices CL'!$B$10,MATCH($B15,'Combined Annuity Prices CL'!$B$10:$B$3811,0)+12,D$7)) -> 17.321 | E15: =IF($C15="NA","",OFFSET('Combined Annuity Prices CL'!$B$10,MATCH($B15,'Combined Annuity Prices CL'!$B$10:$B$3811,0)+12,E$7)) -> 17.35 | G15: 0 | H15: 0 | J15: =IFERROR(VLOOKUP($B15,Volumes!$B$4:$F$32,MATCH(J$9,Volumes!$B$4:$F$4,0),FALSE),0) -> 0 | K15: =IFERROR(VLOOKUP($B15,Volumes!$B$4:$F$32,MATCH(K$9,Volumes!$B$4:$F$4,0),FALSE),0) -> 0 | M15: 0 | N15: 0
B16: =Inputs!$C75 -> 2x20W Fluorescent | C16: Obsolete, no new Connections | D16: =IF($C16="NA","",OFFSET('Combined Annuity Prices CL'!$B$10,MATCH($B16,'Combined Annuity Prices CL'!$B$10:$B$3811,0)+12,D$7)) -> 17.58 | E16: =IF($C16="NA","",OFFSET('Combined Annuity Prices CL'!$B$10,MATCH($B16,'Combined Annuity Prices CL'!$B$10:$B$3811,0)+12,E$7)) -> 17.609 | G16: 0 | H16: 0 | J16: =IFERROR(VLOOKUP($B16,Volumes!$B$4:$F$32,MATCH(J$9,Volumes!$B$4:$F$4,0),FALSE),0) -> 0 | K16: =IFERROR(VLOOKUP($B16,Volumes!$B$4:$F$32,MATCH(K$9,Volumes!$B$4:$F$4,0),FALSE),0) -> 0 | M16: 0 | N16: 0
B17: =Inputs!$C76 -> 2x24W Fluorescent | C17: Obsolete, no new Connections | D17: =IF($C17="NA","",OFFSET('Combined Annuity Prices CL'!$B$10,MATCH($B17,'Combined Annuity Prices CL'!$B$10:$B$3811,0)+12,D$7)) -> 17.429 | E17: =IF($C17="NA","",OFFSET('Combined Annuity Prices CL'!$B$10,MATCH($B17,'Combined Annuity Prices CL'!$B$10:$B$3811,0)+12,E$7)) -> 17.458 | G17: 0 | H17: 0 | J17: =IFERROR(VLOOKUP($B17,Volumes!$B$4:$F$32,MATCH(J$9,Volumes!$B$4:$F$4,0),FALSE),0) -> 0 | K17: =IFERROR(VLOOKUP($B17,Volumes!$B$4:$F$32,MATCH(K$9,Volumes!$B$4:$F$4,0),FALSE),0) -> 0 | M17: 0 | N17: 0
B18: =Inputs!$C77 -> T5 Fluorescent 2 x 24W | C18: Obsolete, no new Connections | D18: =IF($C18="NA","",OFFSET('Combined Annuity Prices CL'!$B$10,MATCH($B18,'Combined Annuity Prices CL'!$B$10:$B$3811,0)+12,D$7)) -> 17.58 | E18: =IF($C18="NA","",OFFSET('Combined Annuity Prices CL'!$B$10,MATCH($B18,'Combined Annuity Prices CL'!$B$10:$B$3811,0)+12,E$7)) -> 17.609 | G18: 0 | H18: 0 | J18: =IFERROR(VLOOKUP($B18,Volumes!$B$4:$F$32,MATCH(J$9,Volumes!$B$4:$F$4,0),FALSE),0) -> 0 | K18: =IFERROR(VLOOKUP($B18,Volumes!$B$4:$F$32,MATCH(K$9,Volumes!$B$4:$F$4,0),FALSE),0) -> 0 | M18: 0 | N18: 0
B19: =Inputs!$C78 -> 20 Fluorescent 1X20FL | C19: Obsolete, no new Connections | D19: =IF($C19="NA","",OFFSET('Combined Annuity Prices CL'!$B$10,MATCH($B19,'Combined Annuity Prices CL'!$B$10:$B$3811,0)+12,D$7)) -> 17.303 | E19: =IF($C19="NA","",OFFSET('Combined Annuity Prices CL'!$B$10,MATCH($B19,'Combined Annuity Prices CL'!$B$10:$B$3811,0)+12,E$7)) -> 17.332 | G19: 0 | H19: 0 | J19: =IFERROR(VLOOKUP($B19,Volumes!$B$4:$F$32,MATCH(J$9,Volumes!$B$4:$F$4,0),FALSE),0) -> 0 | K19: =IFERROR(VLOOKUP($B19,Volumes!$B$4:$F$32,MATCH(K$9,Volumes!$B$4:$F$4,0),FALSE),0) -> 0 | M19: 0 | N19: 0
B20: =Inputs!$C79 -> 2x40W Fluorescent | C20: Obsolete, no new Connections | D20: =IF($C20="NA","",OFFSET('Combined Annuity Prices CL'!$B$10,MATCH($B20,'Combined Annuity Prices CL'!$B$10:$B$3811,0)+12,D$7)) -> 17.616 | E20: =IF($C20="NA","",OFFSET('Combined Annuity Prices CL'!$B$10,MATCH($B20,'Combined Annuity Prices CL'!$B$10:$B$3811,0)+12,E$7)) -> 17.645 | G20: 0 | H20: 0 | J20: =IFERROR(VLOOKUP($B20,Volumes!$B$4:$F$32,MATCH(J$9,Volumes!$B$4:$F$4,0),FALSE),0) -> 0 | K20: =IFERROR(VLOOKUP($B20,Volumes!$B$4:$F$32,MATCH(K$9,Volumes!$B$4:$F$4,0),FALSE),0) -> 0 | M20: 0 | N20: 0
B21: =Inputs!$C80 -> 3x40W Fluorescent | C21: Obsolete, no new Connections | D21: =IF($C21="NA","",OFFSET('Combined Annuity Prices CL'!$B$10,MATCH($B21,'Combined Annuity Prices CL'!$B$10:$B$3811,0)+12,D$7)) -> 21.336 | E21: =IF($C21="NA","",OFFSET('Combined Annuity Prices CL'!$B$10,MATCH($B21,'Combined Annuity Prices CL'!$B$10:$B$3811,0)+12,E$7)) -> 21.365 | G21: 0 | H21: 0 | J21: =IFERROR(VLOOKUP($B21,Volumes!$B$4:$F$32,MATCH(J$9,Volumes!$B$4:$F$4,0),FALSE),0) -> 0 | K21: =IFERROR(VLOOKUP($B21,Volumes!$B$4:$F$32,MATCH(K$9,Volumes!$B$4:$F$4,0),FALSE),0) -> 0 | M21: 0 | N21: 0
B22: =Inputs!$C81 -> 4x20 Fluorescent | C22: Obsolete, no new Connections | D22: =IF($C22="NA","",OFFSET('Combined Annuity Prices CL'!$B$10,MATCH($B22,'Combined Annuity Prices CL'!$B$10:$B$3811,0)+12,D$7)) -> 18.135 | E22: =IF($C22="NA","",OFFSET('Combined Annuity Prices CL'!$B$10,MATCH($B22,'Combined Annuity Prices CL'!$B$10:$B$3811,0)+12,E$7)) -> 18.164 | G22: 0 | H22: 0 | J22: =IFERROR(VLOOKUP($B22,Volumes!$B$4:$F$32,MATCH(J$9,Volumes!$B$4:$F$4,0),FALSE),0) -> 0 | K22: =IFERROR(VLOOKUP($B22,Volumes!$B$4:$F$32,MATCH(K$9,Volumes!$B$4:$F$4,0),FALSE),0) -> 0 | M22: 0 | N22: 0
B23: =Inputs!$C82 -> 4x40W Fluorescent | C23: Obsolete, no new Connections | D23: =IF($C23="NA","",OFFSET('Combined Annuity Prices CL'!$B$10,MATCH($B23,'Combined Annuity Prices CL'!$B$10:$B$3811,0)+12,D$7)) -> 21.631 | E23: =IF($C23="NA","",OFFSET('Combined Annuity Prices CL'!$B$10,MATCH($B23,'Combined Annuity Prices CL'!$B$10:$B$3811,0)+12,E$7)) -> 21.66 | G23: 0 | H23: 0 | J23: =IFERROR(VLOOKUP($B23,Volumes!$B$4:$F$32,MATCH(J$9,Volumes!$B$4:$F$4,0),FALSE),0) -> 0 | K23: =IFERROR(VLOOKUP($B23,Volumes!$B$4:$F$32,MATCH(K$9,Volumes!$B$4:$F$4,0),FALSE),0) -> 0 | M23: 0 | N23: 0
B24: =Inputs!$C83 -> 100W Sodium Vapour | C24: Offered | D24: =IF($C24="NA","",OFFSET('Combined Annuity Prices CL'!$B$10,MATCH($B24,'Combined Annuity Prices CL'!$B$10:$B$3811,0)+12,D$7)) -> 21.475 | E24: =IF($C24="NA","",OFFSET('Combined Annuity Prices CL'!$B$10,MATCH($B24,'Combined Annuity Prices CL'!$B$10:$B$3811,0)+12,E$7)) -> 21.504 | G24: 0.00039191875 | H24: 0.000392448 | J24: =IFERROR(VLOOKUP($B24,Volumes!$B$4:$F$32,MATCH(J$9,Volumes!$B$4:$F$4,0),FALSE),0) -> 5 | K24: =IFERROR(VLOOKUP($B24,Volumes!$B$4:$F$32,MATCH(K$9,Volumes!$B$4:$F$4,0),FALSE),0) -> 5 | M24: 0.0004015207594 | N24: 0.0004119135189
B25: =Inputs!$C84 -> 0 | C25: NA | D25: =IF($C25="NA","",OFFSET('Combined Annuity Prices CL'!$B$10,MATCH($B25,'Combined Annuity Prices CL'!$B$10:$B$3811,0)+12,D$7)) ->  | E25: =IF($C25="NA","",OFFSET('Combined Annuity Prices CL'!$B$10,MATCH($B25,'Combined Annuity Prices CL'!$B$10:$B$3811,0)+12,E$7)) ->  | J25: =IFERROR(VLOOKUP($B25,Volumes!$B$4:$F$32,MATCH(J$9,Volumes!$B$4:$F$4,0),FALSE),0) -> 0 | K25: =IFERROR(VLOOKUP($B25,Volumes!$B$4:$F$32,MATCH(K$9,Volumes!$B$4:$F$4,0),FALSE),0) -> 0
B26: =Inputs!$C85 -> 150W Sodium Vapour | C26: Offered | D26: =IF($C26="NA","",OFFSET('Combined Annuity Prices CL'!$B$10,MATCH($B26,'Combined Annuity Prices CL'!$B$10:$B$3811,0)+12,D$7)) -> 21.471 | E26: =IF($C26="NA","",OFFSET('Combined Annuity Prices CL'!$B$10,MATCH($B26,'Combined Annuity Prices CL'!$B$10:$B$3811,0)+12,E$7)) -> 21.5 | G26: 0.01277417145 | H26: 0.012791425 | J26: =IFERROR(VLOOKUP($B26,Volumes!$B$4:$F$32,MATCH(J$9,Volumes!$B$4:$F$4,0),FALSE),0) -> 163 | K26: =IFERROR(VLOOKUP($B26,Volumes!$B$4:$F$32,MATCH(K$9,Volumes!$B$4:$F$4,0),FALSE),0) -> 163 | M26: 0.01308713865 | N26: 0.01342588288
B27: =Inputs!$C86 -> 0 | C27: NA | D27: =IF($C27="NA","",OFFSET('Combined Annuity Prices CL'!$B$10,MATCH($B27,'Combined Annuity Prices CL'!$B$10:$B$3811,0)+12,D$7)) ->  | E27: =IF($C27="NA","",OFFSET('Combined Annuity Prices CL'!$B$10,MATCH($B27,'Combined Annuity Prices CL'!$B$10:$B$3811,0)+12,E$7)) ->  | J27: =IFERROR(VLOOKUP($B27,Volumes!$B$4:$F$32,MATCH(J$9,Volumes!$B$4:$F$4,0),FALSE),0) -> 0 | K27: =IFERROR(VLOOKUP($B27,Volumes!$B$4:$F$32,MATCH(K$9,Volumes!$B$4:$F$4,0),FALSE),0) -> 0
B28: =Inputs!$C87 -> 0 | C28: NA | D28: =IF($C28="NA","",OFFSET('Combined Annuity Prices CL'!$B$10,MATCH($B28,'Combined Annuity Prices CL'!$B$10:$B$3811,0)+12,D$7)) ->  | E28: =IF($C28="NA","",OFFSET('Combined Annuity Prices CL'!$B$10,MATCH($B28,'Combined Annuity Prices CL'!$B$10:$B$3811,0)+12,E$7)) ->  | J28: =IFERROR(VLOOKUP($B28,Volumes!$B$4:$F$32,MATCH(J$9,Volumes!$B$4:$F$4,0),FALSE),0) -> 0 | K28: =IFERROR(VLOOKUP($B28,Volumes!$B$4:$F$32,MATCH(K$9,Volumes!$B$4:$F$4,0),FALSE),0) -> 0
B29: =Inputs!$C88 -> 0 | C29: NA | D29: =IF($C29="NA","",OFFSET('Combined Annuity Prices CL'!$B$10,MATCH($B29,'Combined Annuity Prices CL'!$B$10:$B$3811,0)+12,D$7)) ->  | E29: =IF($C29="NA","",OFFSET('Combined Annuity Prices CL'!$B$10,MATCH($B29,'Combined Annuity Prices CL'!$B$10:$B$3811,0)+12,E$7)) ->  | J29: =IFERROR(VLOOKUP($B29,Volumes!$B$4:$F$32,MATCH(J$9,Volumes!$B$4:$F$4,0),FALSE),0) -> 0 | K29: =IFERROR(VLOOKUP($B29,Volumes!$B$4:$F$32,MATCH(K$9,Volumes!$B$4:$F$4,0),FALSE),0) -> 0
B30: =Inputs!$C89 -> 250W Sodium Vapour | C30: Offered | D30: =IF($C30="NA","",OFFSET('Combined Annuity Prices CL'!$B$10,MATCH($B30,'Combined Annuity Prices CL'!$B$10:$B$3811,0)+12,D$7)) -> 21.599 | E30: =IF($C30="NA","",OFFSET('Combined Annuity Prices CL'!$B$10,MATCH($B30,'Combined Annuity Prices CL'!$B$10:$B$3811,0)+12,E$7)) -> 21.628 | G30: 0.01300799775 | H30: 0.013025463 | J30: =IFERROR(VLOOKUP($B30,Volumes!$B$4:$F$32,MATCH(J$9,Volumes!$B$4:$F$4,0),FALSE),0) -> 165 | K30: =IFERROR(VLOOKUP($B30,Volumes!$B$4:$F$32,MATCH(K$9,Volumes!$B$4:$F$4,0),FALSE),0) -> 165 | M30: 0.01332669369 | N30: 0.01367152922
B31: =Inputs!$C90 -> 0 | C31: NA | D31: =IF($C31="NA","",OFFSET('Combined Annuity Prices CL'!$B$10,MATCH($B31,'Combined Annuity Prices CL'!$B$10:$B$3811,0)+12,D$7)) ->  | E31: =IF($C31="NA","",OFFSET('Combined Annuity Prices CL'!$B$10,MATCH($B31,'Combined Annuity Prices CL'!$B$10:$B$3811,0)+12,E$7)) ->  | J31: =IFERROR(VLOOKUP($B31,Volumes!$B$4:$F$32,MATCH(J$9,Volumes!$B$4:$F$4,0),FALSE),0) -> 0 | K31: =IFERROR(VLOOKUP($B31,Volumes!$B$4:$F$32,MATCH(K$9,Volumes!$B$4:$F$4,0),FALSE),0) -> 0
B32: =Inputs!$C91 -> 0 | C32: NA | D32: =IF($C32="NA","",OFFSET('Combined Annuity Prices CL'!$B$10,MATCH($B32,'Combined Annuity Prices CL'!$B$10:$B$3811,0)+12,D$7)) ->  | E32: =IF($C32="NA","",OFFSET('Combined Annuity Prices CL'!$B$10,MATCH($B32,'Combined Annuity Prices CL'!$B$10:$B$3811,0)+12,E$7)) ->  | J32: =IFERROR(VLOOKUP($B32,Volumes!$B$4:$F$32,MATCH(J$9,Volumes!$B$4:$F$4,0),FALSE),0) -> 0 | K32: =IFERROR(VLOOKUP($B32,Volumes!$B$4:$F$32,MATCH(K$9,Volumes!$B$4:$F$4,0),FALSE),0) -> 0
B33: =Inputs!$C92 -> 0 | C33: NA | D33: =IF($C33="NA","",OFFSET('Combined Annuity Prices CL'!$B$10,MATCH($B33,'Combined Annuity Prices CL'!$B$10:$B$3811,0)+12,D$7)) ->  | E33: =IF($C33="NA","",OFFSET('Combined Annuity Prices CL'!$B$10,MATCH($B33,'Combined Annuity Prices CL'!$B$10:$B$3811,0)+12,E$7)) ->  | J33: =IFERROR(VLOOKUP($B33,Volumes!$B$4:$F$32,MATCH(J$9,Volumes!$B$4:$F$4,0),FALSE),0) -> 0 | K33: =IFERROR(VLOOKUP($B33,Volumes!$B$4:$F$32,MATCH(K$9,Volumes!$B$4:$F$4,0),FALSE),0) -> 0
B34: =Inputs!$C93 -> 250W Sodium Vapour - Flood Light | C34: Offered | D34: =IF($C34="NA","",OFFSET('Combined Annuity Prices CL'!$B$10,MATCH($B34,'Combined Annuity Prices CL'!$B$10:$B$3811,0)+12,D$7)) -> 21.599 | E34: =IF($C34="NA","",OFFSET('Combined Annuity Prices CL'!$B$10,MATCH($B34,'Combined Annuity Prices CL'!$B$10:$B$3811,0)+12,E$7)) -> 21.628 | G34: 0 | H34: 0 | J34: =IFERROR(VLOOKUP($B34,Volumes!$B$4:$F$32,MATCH(J$9,Volumes!$B$4:$F$4,0),FALSE),0) -> 0 | K34: =IFERROR(VLOOKUP($B34,Volumes!$B$4:$F$32,MATCH(K$9,Volumes!$B$4:$F$4,0),FALSE),0) -> 0 | M34: 0 | N34: 0
B35: =Inputs!$C94 -> 400W Sodium Vapour | C35: Offered | D35: =IF($C35="NA","",OFFSET('Combined Annuity Prices CL'!$B$10,MATCH($B35,'Combined Annuity Prices CL'!$B$10:$B$3811,0)+12,D$7)) -> 21.642 | E35: =IF($C35="NA","",OFFSET('Combined Annuity Prices CL'!$B$10,MATCH($B35,'Combined Annuity Prices CL'!$B$10:$B$3811,0)+12,E$7)) -> 21.671 | G35: 0.0082153032 | H35: 0.0082263116 | J35: =IFERROR(VLOOKUP($B35,Volumes!$B$4:$F$32,MATCH(J$9,Volumes!$B$4:$F$4,0),FALSE),0) -> 104 | K35: =IFERROR(VLOOKUP($B35,Volumes!$B$4:$F$32,MATCH(K$9,Volumes!$B$4:$F$4,0),FALSE),0) -> 104 | M35: 0.008416578128 | N35: 0.008634338712
B36: =Inputs!$C95 -> 0 | C36: NA | D36: =IF($C36="NA","",OFFSET('Combined Annuity Prices CL'!$B$10,MATCH($B36,'Combined Annuity Prices CL'!$B$10:$B$3811,0)+12,D$7)) ->  | E36: =IF($C36="NA","",OFFSET('Combined Annuity Prices CL'!$B$10,MATCH($B36,'Combined Annuity Prices CL'!$B$10:$B$3811,0)+12,E$7)) ->  | J36: =IFERROR(VLOOKUP($B36,Volumes!$B$4:$F$32,MATCH(J$9,Volumes!$B$4:$F$4,0),FALSE),0) -> 0 | K36: =IFERROR(VLOOKUP($B36,Volumes!$B$4:$F$32,MATCH(K$9,Volumes!$B$4:$F$4,0),FALSE),0) -> 0
B37: =Inputs!$C96 -> 400W Sodium Vapour - Flood Light | C37: Offered | D37: =IF($C37="NA","",OFFSET('Combined Annuity Prices CL'!$B$10,MATCH($B37,'Combined Annuity Prices CL'!$B$10:$B$3811,0)+12,D$7)) -> 21.642 | E37: =IF($C37="NA","",OFFSET('Combined Annuity Prices CL'!$B$10,MATCH($B37,'Combined Annuity Prices CL'!$B$10:$B$3811,0)+12,E$7)) -> 21.671 | G37: 0 | H37: 0 | J37: =IFERROR(VLOOKUP($B37,Volumes!$B$4:$F$32,MATCH(J$9,Volumes!$B$4:$F$4,0),FALSE),0) -> 0 | K37: =IFERROR(VLOOKUP($B37,Volumes!$B$4:$F$32,MATCH(K$9,Volumes!$B$4:$F$4,0),FALSE),0) -> 0 | M37: 0 | N37: 0
B38: =Inputs!$C97 -> 70W Sodium Vapour | C38: Offered | D38: =IF($C38="NA","",OFFSET('Combined Annuity Prices CL'!$B$10,MATCH($B38,'Combined Annuity Prices CL'!$B$10:$B$3811,0)+12,D$7)) -> 17.536 | E38: =IF($C38="NA","",OFFSET('Combined Annuity Prices CL'!$B$10,MATCH($B38,'Combined Annuity Prices CL'!$B$10:$B$3811,0)+12,E$7)) -> 17.565 | G38: 0.0046724672 | H38: 0.00468019425 | J38: =IFERROR(VLOOKUP($B38,Volumes!$B$4:$F$32,MATCH(J$9,Volumes!$B$4:$F$4,0),FALSE),0) -> 73 | K38: =IFERROR(VLOOKUP($B38,Volumes!$B$4:$F$32,MATCH(K$9,Volumes!$B$4:$F$4,0),FALSE),0) -> 73 | M38: 0.004786942646 | N38: 0.004912333055
B39: =Inputs!$C98 -> 0 | C39: NA | D39: =IF($C39="NA","",OFFSET('Combined Annuity Prices CL'!$B$10,MATCH($B39,'Combined Annuity Prices CL'!$B$10:$B$3811,0)+12,D$7)) ->  | E39: =IF($C39="NA","",OFFSET('Combined Annuity Prices CL'!$B$10,MATCH($B39,'Combined Annuity Prices CL'!$B$10:$B$3811,0)+12,E$7)) ->  | J39: =IFERROR(VLOOKUP($B39,Volumes!$B$4:$F$32,MATCH(J$9,Volumes!$B$4:$F$4,0),FALSE),0) -> 0 | K39: =IFERROR(VLOOKUP($B39,Volumes!$B$4:$F$32,MATCH(K$9,Volumes!$B$4:$F$4,0),FALSE),0) -> 0
B40: =Inputs!$C99 -> 100W Incandescent | C40: Obsolete, no new Connections | D40: =IF($C40="NA","",OFFSET('Combined Annuity Prices CL'!$B$10,MATCH($B40,'Combined Annuity Prices CL'!$B$10:$B$3811,0)+12,D$7)) -> 20.568 | E40: =IF($C40="NA","",OFFSET('Combined Annuity Prices CL'!$B$10,MATCH($B40,'Combined Annuity Prices CL'!$B$10:$B$3811,0)+12,E$7)) -> 20.597 | G40: 0 | H40: 0 | J40: =IFERROR(VLOOKUP($B40,Volumes!$B$4:$F$32,MATCH(J$9,Volumes!$B$4:$F$4,0),FALSE),0) -> 0 | K40: =IFERROR(VLOOKUP($B40,Volumes!$B$4:$F$32,MATCH(K$9,Volumes!$B$4:$F$4,0),FALSE),0) -> 0 | M40: 0 | N40: 0
B41: =Inputs!$C100 -> 60W Incandescent | C41: Obsolete, no new Connections | D41: =IF($C41="NA","",OFFSET('Combined Annuity Prices CL'!$B$10,MATCH($B41,'Combined Annuity Prices CL'!$B$10:$B$3811,0)+12,D$7)) -> 17.144 | E41: =IF($C41="NA","",OFFSET('Combined Annuity Prices CL'!$B$10,MATCH($B41,'Combined Annuity Prices CL'!$B$10:$B$3811,0)+12,E$7)) -> 17.173 | G41: 0 | H41: 0 | J41: =IFERROR(VLOOKUP($B41,Volumes!$B$4:$F$32,MATCH(J$9,Volumes!$B$4:$F$4,0),FALSE),0) -> 0 | K41: =IFERROR(VLOOKUP($B41,Volumes!$B$4:$F$32,MATCH(K$9,Volumes!$B$4:$F$4,0),FALSE),0) -> 0 | M41: 0 | N41: 0
B42: =Inputs!$C101 -> 18W LED | C42: Offered | D42: =IF($C42="NA","",OFFSET('Combined Annuity Prices CL'!$B$10,MATCH($B42,'Combined Annuity Prices CL'!$B$10:$B$3811,0)+12,D$7)) -> 11.726 | E42: =IF($C42="NA","",OFFSET('Combined Annuity Prices CL'!$B$10,MATCH($B42,'Combined Annuity Prices CL'!$B$10:$B$3811,0)+12,E$7)) -> 11.755 | G42: =IF($C42="NA","",D42*J42*G$6/100/10^6) -> 0.2038131238 | H42: =IF($C42="NA","",E42*K42*H$6/100/10^6) -> 0.2063766575 | J42: =IFERROR(VLOOKUP($B42,Volumes!$B$4:$F$32,MATCH(J$9,Volumes!$B$4:$F$4,0),FALSE),0) -> 4762 | K42: =IFERROR(VLOOKUP($B42,Volumes!$B$4:$F$32,MATCH(K$9,Volumes!$B$4:$F$4,0),FALSE),0) -> 4810 | M42: =IF($C42="NA","",D42*M$7*J42*G$6/100/10^6) -> 0.2088065453 | N42: =IF($C42="NA","",E42*N$7*K42*H$6/100/10^6) -> 0.2166129913
B43: =Inputs!$C102 -> 25W LED | C43: Offered | D43: =IF($C43="NA","",OFFSET('Combined Annuity Prices CL'!$B$10,MATCH($B43,'Combined Annuity Prices CL'!$B$10:$B$3811,0)+12,D$7)) -> 11.726 | E43: =IF($C43="NA","",OFFSET('Combined Annuity Prices CL'!$B$10,MATCH($B43,'Combined Annuity Prices CL'!$B$10:$B$3811,0)+12,E$7)) -> 11.755 | G43: 0.0012411971 | H43: 0.00124426675 | J43: =IFERROR(VLOOKUP($B43,Volumes!$B$4:$F$32,MATCH(J$9,Volumes!$B$4:$F$4,0),FALSE),0) -> 29 | K43: =IFERROR(VLOOKUP($B43,Volumes!$B$4:$F$32,MATCH(K$9,Volumes!$B$4:$F$4,0),FALSE),0) -> 29 | M43: 0.001271606429 | N43: 0.001305982692
B44: =Inputs!$C103 -> 18W LED Decorative - Bottom Pole Entry | C44: Offered | D44: =IF($C44="NA","",OFFSET('Combined Annuity Prices CL'!$B$10,MATCH($B44,'Combined Annuity Prices CL'!$B$10:$B$3811,0)+12,D$7)) -> 11.726 | E44: =IF($C44="NA","",OFFSET('Combined Annuity Prices CL'!$B$10,MATCH($B44,'Combined Annuity Prices CL'!$B$10:$B$3811,0)+12,E$7)) -> 11.755 | G44: 0 | H44: 0 | J44: =IFERROR(VLOOKUP($B44,Volumes!$B$4:$F$32,MATCH(J$9,Volumes!$B$4:$F$4,0),FALSE),0) -> 0 | K44: =IFERROR(VLOOKUP($B44,Volumes!$B$4:$F$32,MATCH(K$9,Volumes!$B$4:$F$4,0),FALSE),0) -> 0 | M44: 0 | N44: 0
B45: =Inputs!$C104 -> 18W LED Decorative - Side Entry | C45: Offered | D45: =IF($C45="NA","",OFFSET('Combined Annuity Prices CL'!$B$10,MATCH($B45,'Combined Annuity Prices CL'!$B$10:$B$3811,0)+12,D$7)) -> 11.726 | E45: =IF($C45="NA","",OFFSET('Combined Annuity Prices CL'!$B$10,MATCH($B45,'Combined Annuity Prices CL'!$B$10:$B$3811,0)+12,E$7)) -> 11.755 | G45: 0 | H45: 0 | J45: =IFERROR(VLOOKUP($B45,Volumes!$B$4:$F$32,MATCH(J$9,Volumes!$B$4:$F$4,0),FALSE),0) -> 0 | K45: =IFERROR(VLOOKUP($B45,Volumes!$B$4:$F$32,MATCH(K$9,Volumes!$B$4:$F$4,0),FALSE),0) -> 0 | M45: 0 | N45: 0
B46: =Inputs!$C105 -> 18W LED Decorative - Top Entry | C46: Offered | D46: =IF($C46="NA","",OFFSET('Combined Annuity Prices CL'!$B$10,MATCH($B46,'Combined Annuity Prices CL'!$B$10:$B$3811,0)+12,D$7)) -> 11.726 | E46: =IF($C46="NA","",OFFSET('Combined Annuity Prices CL'!$B$10,MATCH($B46,'Combined Annuity Prices CL'!$B$10:$B$3811,0)+12,E$7)) -> 11.755 | G46: 0 | H46: 0 | J46: =IFERROR(VLOOKUP($B46,Volumes!$B$4:$F$32,MATCH(J$9,Volumes!$B$4:$F$4,0),FALSE),0) -> 0 | K46: =IFERROR(VLOOKUP($B46,Volumes!$B$4:$F$32,MATCH(K$9,Volumes!$B$4:$F$4,0),FALSE),0) -> 0 | M46: 0 | N46: 0
B47: =Inputs!$C106 -> 25W LED Decorative - Bottom Pole Entry | C47: Offered | D47: =IF($C47="NA","",OFFSET('Combined Annuity Prices CL'!$B$10,MATCH($B47,'Combined Annuity Prices CL'!$B$10:$B$3811,0)+12,D$7)) -> 11.726 | E47: =IF($C47="NA","",OFFSET('Combined Annuity Prices CL'!$B$10,MATCH($B47,'Combined Annuity Prices CL'!$B$10:$B$3811,0)+12,E$7)) -> 11.755 | G47: 0 | H47: 0 | J47: =IFERROR(VLOOKUP($B47,Volumes!$B$4:$F$32,MATCH(J$9,Volumes!$B$4:$F$4,0),FALSE),0) -> 0 | K47: =IFERROR(VLOOKUP($B47,Volumes!$B$4:$F$32,MATCH(K$9,Volumes!$B$4:$F$4,0),FALSE),0) -> 0 | M47: 0 | N47: 0
B48: =Inputs!$C107 -> 25W LED Decorative - Side Entry | C48: Offered | D48: =IF($C48="NA","",OFFSET('Combined Annuity Prices CL'!$B$10,MATCH($B48,'Combined Annuity Prices CL'!$B$10:$B$3811,0)+12,D$7)) -> 11.726 | E48: =IF($C48="NA","",OFFSET('Combined Annuity Prices CL'!$B$10,MATCH($B48,'Combined Annuity Prices CL'!$B$10:$B$3811,0)+12,E$7)) -> 11.755 | G48: 0 | H48: 0 | J48: =IFERROR(VLOOKUP($B48,Volumes!$B$4:$F$32,MATCH(J$9,Volumes!$B$4:$F$4,0),FALSE),0) -> 0 | K48: =IFERROR(VLOOKUP($B48,Volumes!$B$4:$F$32,MATCH(K$9,Volumes!$B$4:$F$4,0),FALSE),0) -> 0 | M48: 0 | N48: 0
B49: =Inputs!$C108 -> 25W LED Decorative - Top Entry | C49: Offered | D49: =IF($C49="NA","",OFFSET('Combined Annuity Prices CL'!$B$10,MATCH($B49,'Combined Annuity Prices CL'!$B$10:$B$3811,0)+12,D$7)) -> 11.726 | E49: =IF($C49="NA","",OFFSET('Combined Annuity Prices CL'!$B$10,MATCH($B49,'Combined Annuity Prices CL'!$B$10:$B$3811,0)+12,E$7)) -> 11.755 | G49: 0 | H49: 0 | J49: =IFERROR(VLOOKUP($B49,Volumes!$B$4:$F$32,MATCH(J$9,Volumes!$B$4:$F$4,0),FALSE),0) -> 0 | K49: =IFERROR(VLOOKUP($B49,Volumes!$B$4:$F$32,MATCH(K$9,Volumes!$B$4:$F$4,0),FALSE),0) -> 0 | M49: 0 | N49: 0
B50: =Inputs!$C109 -> 30W LED | C50: Not Offered | D50: =IF($C50="NA","",OFFSET('Combined Annuity Prices CL'!$B$10,MATCH($B50,'Combined Annuity Prices CL'!$B$10:$B$3811,0)+12,D$7)) -> 11.726 | E50: =IF($C50="NA","",OFFSET('Combined Annuity Prices CL'!$B$10,MATCH($B50,'Combined Annuity Prices CL'!$B$10:$B$3811,0)+12,E$7)) -> 11.755 | G50: 0.0013695968 | H50: 0.001372984 | J50: =IFERROR(VLOOKUP($B50,Volumes!$B$4:$F$32,MATCH(J$9,Volumes!$B$4:$F$4,0),FALSE),0) -> 32 | K50: =IFERROR(VLOOKUP($B50,Volumes!$B$4:$F$32,MATCH(K$9,Volumes!$B$4:$F$4,0),FALSE),0) -> 32 | M50: 0.001403151922 | N50: 0.00144108435
B51: =Inputs!$C110 -> 88 LED Light | C51: Not Offered | D51: =IF($C51="NA","",OFFSET('Combined Annuity Prices CL'!$B$10,MATCH($B51,'Combined Annuity Prices CL'!$B$10:$B$3811,0)+12,D$7)) -> 11.726 | E51: =IF($C51="NA","",OFFSET('Combined Annuity Prices CL'!$B$10,MATCH($B51,'Combined Annuity Prices CL'!$B$10:$B$3811,0)+12,E$7)) -> 11.755 | G51: 0 | H51: 0 | J51: =IFERROR(VLOOKUP($B51,Volumes!$B$4:$F$32,MATCH(J$9,Volumes!$B$4:$F$4,0),FALSE),0) -> 0 | K51: =IFERROR(VLOOKUP($B51,Volumes!$B$4:$F$32,MATCH(K$9,Volumes!$B$4:$F$4,0),FALSE),0) -> 0 | M51: 0 | N51: 0
B52: =Inputs!$C111 -> 100W Metal Halide | C52: Offered | D52: =IF($C52="NA","",OFFSET('Combined Annuity Prices CL'!$B$10,MATCH($B52,'Combined Annuity Prices CL'!$B$10:$B$3811,0)+12,D$7)) -> 21.472 | E52: =IF($C52="NA","",OFFSET('Combined Annuity Prices CL'!$B$10,MATCH($B52,'Combined Annuity Prices CL'!$B$10:$B$3811,0)+12,E$7)) -> 21.501 | G52: 0.000391864 | H52: 0.00039239325 | J52: =IFERROR(VLOOKUP($B52,Volumes!$B$4:$F$32,MATCH(J$9,Volumes!$B$4:$F$4,0),FALSE),0) -> 5 | K52: =IFERROR(VLOOKUP($B52,Volumes!$B$4:$F$32,MATCH(K$9,Volumes!$B$4:$F$4,0),FALSE),0) -> 5 | M52: 0.000401464668 | N52: 0.0004118560533
B53: =Inputs!$C112 -> 150W Metal Halide | C53: Offered | D53: =IF($C53="NA","",OFFSET('Combined Annuity Prices CL'!$B$10,MATCH($B53,'Combined Annuity Prices CL'!$B$10:$B$3811,0)+12,D$7)) -> 21.613 | E53: =IF($C53="NA","",OFFSET('Combined Annuity Prices CL'!$B$10,MATCH($B53,'Combined Annuity Prices CL'!$B$10:$B$3811,0)+12,E$7)) -> 21.642 | G53: 0.00212996115 | H53: 0.0021328191 | J53: =IFERROR(VLOOKUP($B53,Volumes!$B$4:$F$32,MATCH(J$9,Volumes!$B$4:$F$4,0),FALSE),0) -> 27 | K53: =IFERROR(VLOOKUP($B53,Volumes!$B$4:$F$32,MATCH(K$9,Volumes!$B$4:$F$4,0),FALSE),0) -> 27 | M53: 0.002182145198 | N53: 0.002238607461
B54: =Inputs!$C113 -> 250W Metal Halide | C54: Offered | D54: =IF($C54="NA","",OFFSET('Combined Annuity Prices CL'!$B$10,MATCH($B54,'Combined Annuity Prices CL'!$B$10:$B$3811,0)+12,D$7)) -> 21.613 | E54: =IF($C54="NA","",OFFSET('Combined Annuity Prices CL'!$B$10,MATCH($B54,'Combined Annuity Prices CL'!$B$10:$B$3811,0)+12,E$7)) -> 21.642 | G54: 0.003155498 | H54: 0.003159732 | J54: =IFERROR(VLOOKUP($B54,Volumes!$B$4:$F$32,MATCH(J$9,Volumes!$B$4:$F$4,0),FALSE),0) -> 40 | K54: =IFERROR(VLOOKUP($B54,Volumes!$B$4:$F$32,MATCH(K$9,Volumes!$B$4:$F$4,0),FALSE),0) -> 40 | M54: 0.003232807701 | N54: 0.003316455497
B55: =Inputs!$C114 -> 400W Metal Halide | C55: Offered | D55: =IF($C55="NA","",OFFSET('Combined Annuity Prices CL'!$B$10,MATCH($B55,'Combined Annuity Prices CL'!$B$10:$B$3811,0)+12,D$7)) -> 22.286 | E55: =IF($C55="NA","",OFFSET('Combined Annuity Prices CL'!$B$10,MATCH($B55,'Combined Annuity Prices CL'!$B$10:$B$3811,0)+12,E$7)) -> 22.315 | G55: 0.0007320951 | H55: 0.00073304775 | J55: =IFERROR(VLOOKUP($B55,Volumes!$B$4:$F$32,MATCH(J$9,Volumes!$B$4:$F$4,0),FALSE),0) -> 9 | K55: =IFERROR(VLOOKUP($B55,Volumes!$B$4:$F$32,MATCH(K$9,Volumes!$B$4:$F$4,0),FALSE),0) -> 9 | M55: 0.00075003143 | N55: 0.0007694071017
B56: =Inputs!$C115 -> 70W Metal Halide | C56: Not Offered | D56: =IF($C56="NA","",OFFSET('Combined Annuity Prices CL'!$B$10,MATCH($B56,'Combined Annuity Prices CL'!$B$10:$B$3811,0)+12,D$7)) -> 18.029 | E56: =IF($C56="NA","",OFFSET('Combined Annuity Prices CL'!$B$10,MATCH($B56,'Combined Annuity Prices CL'!$B$10:$B$3811,0)+12,E$7)) -> 18.058 | G56: 0 | H56: 0 | J56: =IFERROR(VLOOKUP($B56,Volumes!$B$4:$F$32,MATCH(J$9,Volumes!$B$4:$F$4,0),FALSE),0) -> 0 | K56: =IFERROR(VLOOKUP($B56,Volumes!$B$4:$F$32,MATCH(K$9,Volumes!$B$4:$F$4,0),FALSE),0) -> 0 | M56: 0 | N56: 0
B57: =Inputs!$C116 -> 250W Metal Halide - Flood Light | C57: Offered | D57: =IF($C57="NA","",OFFSET('Combined Annuity Prices CL'!$B$10,MATCH($B57,'Combined Annuity Prices CL'!$B$10:$B$3811,0)+12,D$7)) -> 21.613 | E57: =IF($C57="NA","",OFFSET('Combined Annuity Prices CL'!$B$10,MATCH($B57,'Combined Annuity Prices CL'!$B$10:$B$3811,0)+12,E$7)) -> 21.642 | G57: 0 | H57: 0 | J57: =IFERROR(VLOOKUP($B57,Volumes!$B$4:$F$32,MATCH(J$9,Volumes!$B$4:$F$4,0),FALSE),0) -> 0 | K57: =IFERROR(VLOOKUP($B57,Volumes!$B$4:$F$32,MATCH(K$9,Volumes!$B$4:$F$4,0),FALSE),0) -> 0 | M57: 0 | N57: 0
B58: =Inputs!$C117 -> 400W Metal Halide - Flood Light | C58: Offered | D58: =IF($C58="NA","",OFFSET('Combined Annuity Prices CL'!$B$10,MATCH($B58,'Combined Annuity Prices CL'!$B$10:$B$3811,0)+12,D$7)) -> 22.286 | E58: =IF($C58="NA","",OFFSET('Combined Annuity Prices CL'!$B$10,MATCH($B58,'Combined Annuity Prices CL'!$B$10:$B$3811,0)+12,E$7)) -> 22.315 | G58: 0 | H58: 0 | J58: =IFERROR(VLOOKUP($B58,Volumes!$B$4:$F$32,MATCH(J$9,Volumes!$B$4:$F$4,0),FALSE),0) -> 0 | K58: =IFERROR(VLOOKUP($B58,Volumes!$B$4:$F$32,MATCH(K$9,Volumes!$B$4:$F$4,0),FALSE),0) -> 0 | M58: 0 | N58: 0
B59: =Inputs!$C118 -> 125W Mercury Vapour | C59: Obsolete, no new Connections | D59: =IF($C59="NA","",OFFSET('Combined Annuity Prices CL'!$B$10,MATCH($B59,'Combined Annuity Prices CL'!$B$10:$B$3811,0)+12,D$7)) -> 20.603 | E59: =IF($C59="NA","",OFFSET('Combined Annuity Prices CL'!$B$10,MATCH($B59,'Combined Annuity Prices CL'!$B$10:$B$3811,0)+12,E$7)) -> 20.632 | G59: 0.02459071065 | H59: 0.024098176 | J59: =IFERROR(VLOOKUP($B59,Volumes!$B$4:$F$32,MATCH(J$9,Volumes!$B$4:$F$4,0),FALSE),0) -> 327 | K59: =IFERROR(VLOOKUP($B59,Volumes!$B$4:$F$32,MATCH(K$9,Volumes!$B$4:$F$4,0),FALSE),0) -> 320 | M59: 0.02519318306 | N59: 0.02529345155
B60: =Inputs!$C119 -> 250W Mercury Vapour | C60: Obsolete, no new Connections | D60: =IF($C60="NA","",OFFSET('Combined Annuity Prices CL'!$B$10,MATCH($B60,'Combined Annuity Prices CL'!$B$10:$B$3811,0)+12,D$7)) -> 20.603 | E60: =IF($C60="NA","",OFFSET('Combined Annuity Prices CL'!$B$10,MATCH($B60,'Combined Annuity Prices CL'!$B$10:$B$3811,0)+12,E$7)) -> 20.632 | G60: 0.0021056266 | H60: 0.0021085904 | J60: =IFERROR(VLOOKUP($B60,Volumes!$B$4:$F$32,MATCH(J$9,Volumes!$B$4:$F$4,0),FALSE),0) -> 28 | K60: =IFERROR(VLOOKUP($B60,Volumes!$B$4:$F$32,MATCH(K$9,Volumes!$B$4:$F$4,0),FALSE),0) -> 28 | M60: 0.002157214452 | N60: 0.002213177011
B61: =Inputs!$C120 -> 0 | C61: NA | D61: =IF($C61="NA","",OFFSET('Combined Annuity Prices CL'!$B$10,MATCH($B61,'Combined Annuity Prices CL'!$B$10:$B$3811,0)+12,D$7)) ->  | E61: =IF($C61="NA","",OFFSET('Combined Annuity Prices CL'!$B$10,MATCH($B61,'Combined Annuity Prices CL'!$B$10:$B$3811,0)+12,E$7)) ->  | J61: =IFERROR(VLOOKUP($B61,Volumes!$B$4:$F$32,MATCH(J$9,Volumes!$B$4:$F$4,0),FALSE),0) -> 0 | K61: =IFERROR(VLOOKUP($B61,Volumes!$B$4:$F$32,MATCH(K$9,Volumes!$B$4:$F$4,0),FALSE),0) -> 0
B62: =Inputs!$C121 -> 400W Mercury Vapour | C62: Obsolete, no new Connections | D62: =IF($C62="NA","",OFFSET('Combined Annuity Prices CL'!$B$10,MATCH($B62,'Combined Annuity Prices CL'!$B$10:$B$3811,0)+12,D$7)) -> 20.75 | E62: =IF($C62="NA","",OFFSET('Combined Annuity Prices CL'!$B$10,MATCH($B62,'Combined Annuity Prices CL'!$B$10:$B$3811,0)+12,E$7)) -> 20.779 | G62: 0.001666225 | H62: 0.00159271035 | J62: =IFERROR(VLOOKUP($B62,Volumes!$B$4:$F$32,MATCH(J$9,Volumes!$B$4:$F$4,0),FALSE),0) -> 22 | K62: =IFERROR(VLOOKUP($B62,Volumes!$B$4:$F$32,MATCH(K$9,Volumes!$B$4:$F$4,0),FALSE),0) -> 21 | M62: 0.001707047513 | N62: 0.001671709182
B63: =Inputs!$C122 -> 50W Mercury Vapour | C63: Obsolete, no new Connections | D63: =IF($C63="NA","",OFFSET('Combined Annuity Prices CL'!$B$10,MATCH($B63,'Combined Annuity Prices CL'!$B$10:$B$3811,0)+12,D$7)) -> 17.206 | E63: =IF($C63="NA","",OFFSET('Combined Annuity Prices CL'!$B$10,MATCH($B63,'Combined Annuity Prices CL'!$B$10:$B$3811,0)+12,E$7)) -> 17.235 | G63: 0.0118067572 | H63: 0.011575026 | J63: =IFERROR(VLOOKUP($B63,Volumes!$B$4:$F$32,MATCH(J$9,Volumes!$B$4:$F$4,0),FALSE),0) -> 188 | K63: =IFERROR(VLOOKUP($B63,Volumes!$B$4:$F$32,MATCH(K$9,Volumes!$B$4:$F$4,0),FALSE),0) -> 184 | M63: 0.01209602275 | N63: 0.01214915018
B64: =Inputs!$C123 -> 80W Mercury Vapour Art decorative | C64: Obsolete, no new Connections | D64: =IF($C64="NA","",OFFSET('Combined Annuity Prices CL'!$B$10,MATCH($B64,'Combined Annuity Prices CL'!$B$10:$B$3811,0)+12,D$7)) -> 17.175 | E64: =IF($C64="NA","",OFFSET('Combined Annuity Prices CL'!$B$10,MATCH($B64,'Combined Annuity Prices CL'!$B$10:$B$3811,0)+12,E$7)) -> 17.204 | G64: 0 | H64: 0 | J64: =IFERROR(VLOOKUP($B64,Volumes!$B$4:$F$32,MATCH(J$9,Volumes!$B$4:$F$4,0),FALSE),0) -> 0 | K64: =IFERROR(VLOOKUP($B64,Volumes!$B$4:$F$32,MATCH(K$9,Volumes!$B$4:$F$4,0),FALSE),0) -> 0 | M64: 0 | N64: 0
B65: =Inputs!$C124 -> 80W Mercury Vapour | C65: Obsolete, no new Connections | D65: =IF($C65="NA","",OFFSET('Combined Annuity Prices CL'!$B$10,MATCH($B65,'Combined Annuity Prices CL'!$B$10:$B$3811,0)+12,D$7)) -> 17.175 | E65: =IF($C65="NA","",OFFSET('Combined Annuity Prices CL'!$B$10,MATCH($B65,'Combined Annuity Prices CL'!$B$10:$B$3811,0)+12,E$7)) -> 17.204 | G65: 0.0219410625 | H65: 0.0215385478 | J65: =IFERROR(VLOOKUP($B65,Volumes!$B$4:$F$32,MATCH(J$9,Volumes!$B$4:$F$4,0),FALSE),0) -> 350 | K65: =IFERROR(VLOOKUP($B65,Volumes!$B$4:$F$32,MATCH(K$9,Volumes!$B$4:$F$4,0),FALSE),0) -> 343 | M65: 0.02247861853 | N65: 0.02260686516
M66: 0 | N66: 0
G67: =SUM(G10:G66) -> 0.3140055763 | H67: 0.3154407928 | J67: =SUM(J10:J66) -> 6329 | K67: 6358 | M67: =SUM(M10:M66) -> 0.3216987129 | N67: 0.3310867349
J68: =Volumes!E33=J67 -> TRUE | K68: =Volumes!F33=K67 -> TRUE
B69: Public Road Lights | C69: =C8 -> Price (cents) per Light per day | G69: =G8 -> Revenue ($m) - Real | M69: Revenue ($m) - Nominal
C70: Offered / No Longer Offered / NA | D70: ='Master Data'!I$29 -> 2017-18 | E70: ='Master Data'!J$29 -> 2018-19 | G70: =G9 -> 2017-18 | H70: 2018-19 | J70: =J9 -> 2017-18 | K70: 2018-19 | M70: ='Master Data'!I$29 -> 2017-18 | N70: ='Master Data'!J$29 -> 2018-19
B71: =Inputs!$C69 -> 32W Compact Fluorescent | C71: Not Offered | D71: =IF($C71="NA","",IF($B71=0,"",OFFSET('Combined Annuity Prices PL'!$B$10,MATCH($B71,'Combined Annuity Prices PL'!$B$10:$B$3811,0)+12,D$7))) -> 33.796 | E71: =IF($C71="NA","",IF($B71=0,"",OFFSET('Combined Annuity Prices PL'!$B$10,MATCH($B71,'Combined Annuity Prices PL'!$B$10:$B$3811,0)+12,E$7))) -> 34.033 | G71: =IF($C71="NA","",D71*J71*G$6/100/10^6) -> 0 | H71: =IF($C71="NA","",E71*K71*H$6/100/10^6) -> 0 | J71: =IFERROR(VLOOKUP($B71,Volumes!$B$38:$F$79,MATCH(J$9,Volumes!$B$4:$F$4,0),FALSE),0) -> 0 | K71: =IFERROR(VLOOKUP($B71,Volumes!$B$38:$F$79,MATCH(K$9,Volumes!$B$4:$F$4,0),FALSE),0) -> 0 | M71: =IF($C71="NA","",D71*M$7*J71*G$6/100/10^6) -> 0 | N71: =IF($C71="NA","",E71*N$7*K71*H$6/100/10^6) -> 0
B72: =Inputs!$C70 -> 42W Compact Fluorescent | C72: Offered | D72: =IF($C72="NA","",IF($B72=0,"",OFFSET('Combined Annuity Prices PL'!$B$10,MATCH($B72,'Combined Annuity Prices PL'!$B$10:$B$3811,0)+12,D$7))) -> 33.818 | E72: =IF($C72="NA","",IF($B72=0,"",OFFSET('Combined Annuity Prices PL'!$B$10,MATCH($B72,'Combined Annuity Prices PL'!$B$10:$B$3811,0)+12,E$7))) -> 34.055 | G72: 0.7040772328 | H72: 0.6735857643 | J72: =IFERROR(VLOOKUP($B72,Volumes!$B$38:$F$79,MATCH(J$9,Volumes!$B$4:$F$4,0),FALSE),0) -> 5704 | K72: =IFERROR(VLOOKUP($B72,Volumes!$B$38:$F$79,MATCH(K$9,Volumes!$B$4:$F$4,0),FALSE),0) -> 5419 | M72: 0.721327125 | N72: 0.7069957866
B73: =Inputs!$C71 -> 42W Compact Fluorescent - Bottom Pole Entry | C73: Offered | D73: =IF($C73="NA","",IF($B73=0,"",OFFSET('Combined Annuity Prices PL'!$B$10,MATCH($B73,'Combined Annuity Prices PL'!$B$10:$B$3811,0)+12,D$7))) -> 33.818 | E73: =IF($C73="NA","",IF($B73=0,"",OFFSET('Combined Annuity Prices PL'!$B$10,MATCH($B73,'Combined Annuity Prices PL'!$B$10:$B$3811,0)+12,E$7))) -> 34.055 | G73: 0.014812284 | H73: 0.0211311275 | J73: =IFERROR(VLOOKUP($B73,Volumes!$B$38:$F$79,MATCH(J$9,Volumes!$B$4:$F$4,0),FALSE),0) -> 120 | K73: =IFERROR(VLOOKUP($B73,Volumes!$B$38:$F$79,MATCH(K$9,Volumes!$B$4:$F$4,0),FALSE),0) -> 170 | M73: 0.01517518496 | N73: 0.02217923671
B74: =Inputs!$C72 -> 2x24W Compact Fluorescent | C74: Not Offered | D74: =IF($C74="NA","",IF($B74=0,"",OFFSET('Combined Annuity Prices PL'!$B$10,MATCH($B74,'Combined Annuity Prices PL'!$B$10:$B$3811,0)+12,D$7))) -> 34.127 | E74: =IF($C74="NA","",IF($B74=0,"",OFFSET('Combined Annuity Prices PL'!$B$10,MATCH($B74,'Combined Annuity Prices PL'!$B$10:$B$3811,0)+12,E$7))) -> 34.363 | G74: 0 | H74: 0 | J74: =IFERROR(VLOOKUP($B74,Volumes!$B$38:$F$79,MATCH(J$9,Volumes!$B$4:$F$4,0),FALSE),0) -> 0 | K74: =IFERROR(VLOOKUP($B74,Volumes!$B$38:$F$79,MATCH(K$9,Volumes!$B$4:$F$4,0),FALSE),0) -> 0 | M74: 0 | N74: 0
B75: =Inputs!$C73 -> 1x20W Fluorescent | C75: Obsolete, no new Connections | D75: =IF($C75="NA","",IF($B75=0,"",OFFSET('Combined Annuity Prices PL'!$B$10,MATCH($B75,'Combined Annuity Prices PL'!$B$10:$B$3811,0)+12,D$7))) -> 35.337 | E75: =IF($C75="NA","",IF($B75=0,"",OFFSET('Combined Annuity Prices PL'!$B$10,MATCH($B75,'Combined Annuity Prices PL'!$B$10:$B$3811,0)+12,E$7))) -> 35.574 | G75: 0 | H75: 0 | J75: =IFERROR(VLOOKUP($B75,Volumes!$B$38:$F$79,MATCH(J$9,Volumes!$B$4:$F$4,0),FALSE),0) -> 0 | K75: =IFERROR(VLOOKUP($B75,Volumes!$B$38:$F$79,MATCH(K$9,Volumes!$B$4:$F$4,0),FALSE),0) -> 0 | M75: 0 | N75: 0
B76: =Inputs!$C74 -> 1x40W Fluorescent | C76: Abolished | D76: =IF($C76="NA","",IF($B76=0,"",OFFSET('Combined Annuity Prices PL'!$B$10,MATCH($B76,'Combined Annuity Prices PL'!$B$10:$B$3811,0)+12,D$7))) -> 34.285 | E76: =IF($C76="NA","",IF($B76=0,"",OFFSET('Combined Annuity Prices PL'!$B$10,MATCH($B76,'Combined Annuity Prices PL'!$B$10:$B$3811,0)+12,E$7))) -> 34.522 | G76: 0 | H76: 0 | J76: =IFERROR(VLOOKUP($B76,Volumes!$B$38:$F$79,MATCH(J$9,Volumes!$B$4:$F$4,0),FALSE),0) -> 0 | K76: =IFERROR(VLOOKUP($B76,Volumes!$B$38:$F$79,MATCH(K$9,Volumes!$B$4:$F$4,0),FALSE),0) -> 0 | M76: 0 | N76: 0
B77: =Inputs!$C75 -> 2x20W Fluorescent | C77: Abolished | D77: =IF($C77="NA","",IF($B77=0,"",OFFSET('Combined Annuity Prices PL'!$B$10,MATCH($B77,'Combined Annuity Prices PL'!$B$10:$B$3811,0)+12,D$7))) -> 35.615 | E77: =IF($C77="NA","",IF($B77=0,"",OFFSET('Combined Annuity Prices PL'!$B$10,MATCH($B77,'Combined Annuity Prices PL'!$B$10:$B$3811,0)+12,E$7))) -> 35.852 | G77: 0 | H77: 0 | J77: =IFERROR(VLOOKUP($B77,Volumes!$B$38:$F$79,MATCH(J$9,Volumes!$B$4:$F$4,0),FALSE),0) -> 0 | K77: =IFERROR(VLOOKUP($B77,Volumes!$B$38:$F$79,MATCH(K$9,Volumes!$B$4:$F$4,0),FALSE),0) -> 0 | M77: 0 | N77: 0
B78: =Inputs!$C76 -> 2x24W Fluorescent | C78: Obsolete, no new Connections | D78: =IF($C78="NA","",IF($B78=0,"",OFFSET('Combined Annuity Prices PL'!$B$10,MATCH($B78,'Combined Annuity Prices PL'!$B$10:$B$3811,0)+12,D$7))) -> 35.562 | E78: =IF($C78="NA","",IF($B78=0,"",OFFSET('Combined Annuity Prices PL'!$B$10,MATCH($B78,'Combined Annuity Prices PL'!$B$10:$B$3811,0)+12,E$7))) -> 35.799 | G78: 0 | H78: 0 | J78: =IFERROR(VLOOKUP($B78,Volumes!$B$38:$F$79,MATCH(J$9,Volumes!$B$4:$F$4,0),FALSE),0) -> 0 | K78: =IFERROR(VLOOKUP($B78,Volumes!$B$38:$F$79,MATCH(K$9,Volumes!$B$4:$F$4,0),FALSE),0) -> 0 | M78: 0 | N78: 0
B79: =Inputs!$C77 -> T5 Fluorescent 2 x 24W | C79: Not Offered | D79: =IF($C79="NA","",IF($B79=0,"",OFFSET('Combined Annuity Prices PL'!$B$10,MATCH($B79,'Combined Annuity Prices PL'!$B$10:$B$3811,0)+12,D$7))) -> 35.615 | E79: =IF($C79="NA","",IF($B79=0,"",OFFSET('Combined Annuity Prices PL'!$B$10,MATCH($B79,'Combined Annuity Prices PL'!$B$10:$B$3811,0)+12,E$7))) -> 35.852 | G79: 0.01078956425 | H79: 0.0108613634 | J79: =IFERROR(VLOOKUP($B79,Volumes!$B$38:$F$79,MATCH(J$9,Volumes!$B$4:$F$4,0),FALSE),0) -> 83 | K79: =IFERROR(VLOOKUP($B79,Volumes!$B$38:$F$79,MATCH(K$9,Volumes!$B$4:$F$4,0),FALSE),0) -> 83 | M79: 0.01105390857 | N79: 0.01140008974
B80: =Inputs!$C78 -> 20 Fluorescent 1X20FL | C80: Not Offered | D80: =IF($C80="NA","",IF($B80=0,"",OFFSET('Combined Annuity Prices PL'!$B$10,MATCH($B80,'Combined Annuity Prices PL'!$B$10:$B$3811,0)+12,D$7))) -> 35.337 | E80: =IF($C80="NA","",IF($B80=0,"",OFFSET('Combined Annuity Prices PL'!$B$10,MATCH($B80,'Combined Annuity Prices PL'!$B$10:$B$3811,0)+12,E$7))) -> 35.574 | G80: 0 | H80: 0 | J80: =IFERROR(VLOOKUP($B80,Volumes!$B$38:$F$79,MATCH(J$9,Volumes!$B$4:$F$4,0),FALSE),0) -> 0 | K80: =IFERROR(VLOOKUP($B80,Volumes!$B$38:$F$79,MATCH(K$9,Volumes!$B$4:$F$4,0),FALSE),0) -> 0 | M80: 0 | N80: 0
B81: =Inputs!$C79 -> 2x40W Fluorescent | C81: Abolished | D81: =IF($C81="NA","",IF($B81=0,"",OFFSET('Combined Annuity Prices PL'!$B$10,MATCH($B81,'Combined Annuity Prices PL'!$B$10:$B$3811,0)+12,D$7))) -> 34.581 | E81: =IF($C81="NA","",IF($B81=0,"",OFFSET('Combined Annuity Prices PL'!$B$10,MATCH($B81,'Combined Annuity Prices PL'!$B$10:$B$3811,0)+12,E$7))) -> 34.818 | G81: 0 | H81: 0 | J81: =IFERROR(VLOOKUP($B81,Volumes!$B$38:$F$79,MATCH(J$9,Volumes!$B$4:$F$4,0),FALSE),0) -> 0 | K81: =IFERROR(VLOOKUP($B81,Volumes!$B$38:$F$79,MATCH(K$9,Volumes!$B$4:$F$4,0),FALSE),0) -> 0 | M81: 0 | N81: 0
B82: =Inputs!$C80 -> 3x40W Fluorescent | C82: Not Offered | D82: =IF($C82="NA","",IF($B82=0,"",OFFSET('Combined Annuity Prices PL'!$B$10,MATCH($B82,'Combined Annuity Prices PL'!$B$10:$B$3811,0)+12,D$7))) -> 43.376 | E82: =IF($C82="NA","",IF($B82=0,"",OFFSET('Combined Annuity Prices PL'!$B$10,MATCH($B82,'Combined Annuity Prices PL'!$B$10:$B$3811,0)+12,E$7))) -> 43.612 | G82: 0 | H82: 0 | J82: =IFERROR(VLOOKUP($B82,Volumes!$B$38:$F$79,MATCH(J$9,Volumes!$B$4:$F$4,0),FALSE),0) -> 0 | K82: =IFERROR(VLOOKUP($B82,Volumes!$B$38:$F$79,MATCH(K$9,Volumes!$B$4:$F$4,0),FALSE),0) -> 0 | M82: 0 | N82: 0
B83: =Inputs!$C81 -> 4x20 Fluorescent | C83: Abolished | D83: =IF($C83="NA","",IF($B83=0,"",OFFSET('Combined Annuity Prices PL'!$B$10,MATCH($B83,'Combined Annuity Prices PL'!$B$10:$B$3811,0)+12,D$7))) -> 36.17 | E83: =IF($C83="NA","",IF($B83=0,"",OFFSET('Combined Annuity Prices PL'!$B$10,MATCH($B83,'Combined Annuity Prices PL'!$B$10:$B$3811,0)+12,E$7))) -> 36.406 | G83: 0 | H83: 0 | J83: =IFERROR(VLOOKUP($B83,Volumes!$B$38:$F$79,MATCH(J$9,Volumes!$B$4:$F$4,0),FALSE),0) -> 0 | K83: =IFERROR(VLOOKUP($B83,Volumes!$B$38:$F$79,MATCH(K$9,Volumes!$B$4:$F$4,0),FALSE),0) -> 0 | M83: 0 | N83: 0
B84: =Inputs!$C82 -> 4x40W Fluorescent | C84: Abolished | D84: =IF($C84="NA","",IF($B84=0,"",OFFSET('Combined Annuity Prices PL'!$B$10,MATCH($B84,'Combined Annuity Prices PL'!$B$10:$B$3811,0)+12,D$7))) -> 44.741 | E84: =IF($C84="NA","",IF($B84=0,"",OFFSET('Combined Annuity Prices PL'!$B$10,MATCH($B84,'Combined Annuity Prices PL'!$B$10:$B$3811,0)+12,E$7))) -> 44.978 | G84: 0 | H84: 0 | J84: =IFERROR(VLOOKUP($B84,Volumes!$B$38:$F$79,MATCH(J$9,Volumes!$B$4:$F$4,0),FALSE),0) -> 0 | K84: =IFERROR(VLOOKUP($B84,Volumes!$B$38:$F$79,MATCH(K$9,Volumes!$B$4:$F$4,0),FALSE),0) -> 0 | M84: 0 | N84: 0
B85: =Inputs!$C83 -> 100W Sodium Vapour | C85: Offered | D85: =IF($C85="NA","",IF($B85=0,"",OFFSET('Combined Annuity Prices PL'!$B$10,MATCH($B85,'Combined Annuity Prices PL'!$B$10:$B$3811,0)+12,D$7))) -> 42.603 | E85: =IF($C85="NA","",IF($B85=0,"",OFFSET('Combined Annuity Prices PL'!$B$10,MATCH($B85,'Combined Annuity Prices PL'!$B$10:$B$3811,0)+12,E$7))) -> 42.84 | G85: 0.06266688285 | H85: 0.066142818 | J85: =IFERROR(VLOOKUP($B85,Volumes!$B$38:$F$79,MATCH(J$9,Volumes!$B$4:$F$4,0),FALSE),0) -> 403 | K85: =IFERROR(VLOOKUP($B85,Volumes!$B$38:$F$79,MATCH(K$9,Volumes!$B$4:$F$4,0),FALSE),0) -> 423 | M85: 0.06420222148 | N85: 0.06942351831
B86: =Inputs!$C84 -> 0 | C86: NA | D86: =IF($C86="NA","",IF($B86=0,"",OFFSET('Combined Annuity Prices PL'!$B$10,MATCH($B86,'Combined Annuity Prices PL'!$B$10:$B$3811,0)+12,D$7))) ->  | E86: =IF($C86="NA","",IF($B86=0,"",OFFSET('Combined Annuity Prices PL'!$B$10,MATCH($B86,'Combined Annuity Prices PL'!$B$10:$B$3811,0)+12,E$7))) ->  | J86: =IFERROR(VLOOKUP($B86,Volumes!$B$38:$F$79,MATCH(J$9,Volumes!$B$4:$F$4,0),FALSE),0) -> 0 | K86: =IFERROR(VLOOKUP($B86,Volumes!$B$38:$F$79,MATCH(K$9,Volumes!$B$4:$F$4,0),FALSE),0) -> 0
B87: =Inputs!$C85 -> 150W Sodium Vapour | C87: Offered | D87: =IF($C87="NA","",IF($B87=0,"",OFFSET('Combined Annuity Prices PL'!$B$10,MATCH($B87,'Combined Annuity Prices PL'!$B$10:$B$3811,0)+12,D$7))) -> 44.705 | E87: =IF($C87="NA","",IF($B87=0,"",OFFSET('Combined Annuity Prices PL'!$B$10,MATCH($B87,'Combined Annuity Prices PL'!$B$10:$B$3811,0)+12,E$7))) -> 44.942 | G87: 0.7876372778 | H87: 0.8315101427 | J87: =IFERROR(VLOOKUP($B87,Volumes!$B$38:$F$79,MATCH(J$9,Volumes!$B$4:$F$4,0),FALSE),0) -> 4827 | K87: =IFERROR(VLOOKUP($B87,Volumes!$B$38:$F$79,MATCH(K$9,Volumes!$B$4:$F$4,0),FALSE),0) -> 5069 | M87: 0.8069343911 | N87: 0.8727532537
B88: =Inputs!$C86 -> 0 | C88: NA | D88: =IF($C88="NA","",IF($B88=0,"",OFFSET('Combined Annuity Prices PL'!$B$10,MATCH($B88,'Combined Annuity Prices PL'!$B$10:$B$3811,0)+12,D$7))) ->  | E88: =IF($C88="NA","",IF($B88=0,"",OFFSET('Combined Annuity Prices PL'!$B$10,MATCH($B88,'Combined Annuity Prices PL'!$B$10:$B$3811,0)+12,E$7))) ->  | J88: =IFERROR(VLOOKUP($B88,Volumes!$B$38:$F$79,MATCH(J$9,Volumes!$B$4:$F$4,0),FALSE),0) -> 0 | K88: =IFERROR(VLOOKUP($B88,Volumes!$B$38:$F$79,MATCH(K$9,Volumes!$B$4:$F$4,0),FALSE),0) -> 0
B89: =Inputs!$C87 -> 0 | C89: NA | D89: =IF($C89="NA","",IF($B89=0,"",OFFSET('Combined Annuity Prices PL'!$B$10,MATCH($B89,'Combined Annuity Prices PL'!$B$10:$B$3811,0)+12,D$7))) ->  | E89: =IF($C89="NA","",IF($B89=0,"",OFFSET('Combined Annuity Prices PL'!$B$10,MATCH($B89,'Combined Annuity Prices PL'!$B$10:$B$3811,0)+12,E$7))) ->  | J89: =IFERROR(VLOOKUP($B89,Volumes!$B$38:$F$79,MATCH(J$9,Volumes!$B$4:$F$4,0),FALSE),0) -> 0 | K89: =IFERROR(VLOOKUP($B89,Volumes!$B$38:$F$79,MATCH(K$9,Volumes!$B$4:$F$4,0),FALSE),0) -> 0
B90: =Inputs!$C88 -> 0 | C90: NA | D90: =IF($C90="NA","",IF($B90=0,"",OFFSET('Combined Annuity Prices PL'!$B$10,MATCH($B90,'Combined Annuity Prices PL'!$B$10:$B$3811,0)+12,D$7))) ->  | E90: =IF($C90="NA","",IF($B90=0,"",OFFSET('Combined Annuity Prices PL'!$B$10,MATCH($B90,'Combined Annuity Prices PL'!$B$10:$B$3811,0)+12,E$7))) ->  | J90: =IFERROR(VLOOKUP($B90,Volumes!$B$38:$F$79,MATCH(J$9,Volumes!$B$4:$F$4,0),FALSE),0) -> 0 | K90: =IFERROR(VLOOKUP($B90,Volumes!$B$38:$F$79,MATCH(K$9,Volumes!$B$4:$F$4,0),FALSE),0) -> 0
B91: =Inputs!$C89 -> 250W Sodium Vapour | C91: Offered | D91: =IF($C91="NA","",IF($B91=0,"",OFFSET('Combined Annuity Prices PL'!$B$10,MATCH($B91,'Combined Annuity Prices PL'!$B$10:$B$3811,0)+12,D$7))) -> 45.724 | E91: =IF($C91="NA","",IF($B91=0,"",OFFSET('Combined Annuity Prices PL'!$B$10,MATCH($B91,'Combined Annuity Prices PL'!$B$10:$B$3811,0)+12,E$7))) -> 45.961 | G91: 1.0013556 | H91: 1.056873195 | J91: =IFERROR(VLOOKUP($B91,Volumes!$B$38:$F$79,MATCH(J$9,Volumes!$B$4:$F$4,0),FALSE),0) -> 6000 | K91: =IFERROR(VLOOKUP($B91,Volumes!$B$38:$F$79,MATCH(K$9,Volumes!$B$4:$F$4,0),FALSE),0) -> 6300 | M91: 1.025888812 | N91: 1.10929437
B92: =Inputs!$C90 -> 0 | C92: NA | D92: =IF($C92="NA","",IF($B92=0,"",OFFSET('Combined Annuity Prices PL'!$B$10,MATCH($B92,'Combined Annuity Prices PL'!$B$10:$B$3811,0)+12,D$7))) ->  | E92: =IF($C92="NA","",IF($B92=0,"",OFFSET('Combined Annuity Prices PL'!$B$10,MATCH($B92,'Combined Annuity Prices PL'!$B$10:$B$3811,0)+12,E$7))) ->  | J92: =IFERROR(VLOOKUP($B92,Volumes!$B$38:$F$79,MATCH(J$9,Volumes!$B$4:$F$4,0),FALSE),0) -> 0 | K92: =IFERROR(VLOOKUP($B92,Volumes!$B$38:$F$79,MATCH(K$9,Volumes!$B$4:$F$4,0),FALSE),0) -> 0
B93: =Inputs!$C91 -> 0 | C93: NA | D93: =IF($C93="NA","",IF($B93=0,"",OFFSET('Combined Annuity Prices PL'!$B$10,MATCH($B93,'Combined Annuity Prices PL'!$B$10:$B$3811,0)+12,D$7))) ->  | E93: =IF($C93="NA","",IF($B93=0,"",OFFSET('Combined Annuity Prices PL'!$B$10,MATCH($B93,'Combined Annuity Prices PL'!$B$10:$B$3811,0)+12,E$7))) ->  | J93: =IFERROR(VLOOKUP($B93,Volumes!$B$38:$F$79,MATCH(J$9,Volumes!$B$4:$F$4,0),FALSE),0) -> 0 | K93: =IFERROR(VLOOKUP($B93,Volumes!$B$38:$F$79,MATCH(K$9,Volumes!$B$4:$F$4,0),FALSE),0) -> 0
B94: =Inputs!$C92 -> 0 | C94: NA | D94: =IF($C94="NA","",IF($B94=0,"",OFFSET('Combined Annuity Prices PL'!$B$10,MATCH($B94,'Combined Annuity Prices PL'!$B$10:$B$3811,0)+12,D$7))) ->  | E94: =IF($C94="NA","",IF($B94=0,"",OFFSET('Combined Annuity Prices PL'!$B$10,MATCH($B94,'Combined Annuity Prices PL'!$B$10:$B$3811,0)+12,E$7))) ->  | J94: =IFERROR(VLOOKUP($B94,Volumes!$B$38:$F$79,MATCH(J$9,Volumes!$B$4:$F$4,0),FALSE),0) -> 0 | K94: =IFERROR(VLOOKUP($B94,Volumes!$B$38:$F$79,MATCH(K$9,Volumes!$B$4:$F$4,0),FALSE),0) -> 0
B95: =Inputs!$C93 -> 250W Sodium Vapour - Flood Light | C95: Offered | D95: =IF($C95="NA","",IF($B95=0,"",OFFSET('Combined Annuity Prices PL'!$B$10,MATCH($B95,'Combined Annuity Prices PL'!$B$10:$B$3811,0)+12,D$7))) -> 49.445 | E95: =IF($C95="NA","",IF($B95=0,"",OFFSET('Combined Annuity Prices PL'!$B$10,MATCH($B95,'Combined Annuity Prices PL'!$B$10:$B$3811,0)+12,E$7))) -> 49.682 | G95: 0.00595565025 | H95: 0.0063468755 | J95: =IFERROR(VLOOKUP($B95,Volumes!$B$38:$F$79,MATCH(J$9,Volumes!$B$4:$F$4,0),FALSE),0) -> 33 | K95: =IFERROR(VLOOKUP($B95,Volumes!$B$38:$F$79,MATCH(K$9,Volumes!$B$4:$F$4,0),FALSE),0) -> 35 | M95: 0.006101563681 | N95: 0.006661682112
B96: =Inputs!$C94 -> 400W Sodium Vapour | C96: Offered | D96: =IF($C96="NA","",IF($B96=0,"",OFFSET('Combined Annuity Prices PL'!$B$10,MATCH($B96,'Combined Annuity Prices PL'!$B$10:$B$3811,0)+12,D$7))) -> 46.538 | E96: =IF($C96="NA","",IF($B96=0,"",OFFSET('Combined Annuity Prices PL'!$B$10,MATCH($B96,'Combined Annuity Prices PL'!$B$10:$B$3811,0)+12,E$7))) -> 46.775 | G96: 0.1037867207 | H96: 0.1096078575 | J96: =IFERROR(VLOOKUP($B96,Volumes!$B$38:$F$79,MATCH(J$9,Volumes!$B$4:$F$4,0),FALSE),0) -> 611 | K96: =IFERROR(VLOOKUP($B96,Volumes!$B$38:$F$79,MATCH(K$9,Volumes!$B$4:$F$4,0),FALSE),0) -> 642 | M96: 0.1063294954 | N96: 0.1150444346
B97: =Inputs!$C95 -> 0 | C97: NA | D97: =IF($C97="NA","",IF($B97=0,"",OFFSET('Combined Annuity Prices PL'!$B$10,MATCH($B97,'Combined Annuity Prices PL'!$B$10:$B$3811,0)+12,D$7))) ->  | E97: =IF($C97="NA","",IF($B97=0,"",OFFSET('Combined Annuity Prices PL'!$B$10,MATCH($B97,'Combined Annuity Prices PL'!$B$10:$B$3811,0)+12,E$7))) ->  | J97: =IFERROR(VLOOKUP($B97,Volumes!$B$38:$F$79,MATCH(J$9,Volumes!$B$4:$F$4,0),FALSE),0) -> 0 | K97: =IFERROR(VLOOKUP($B97,Volumes!$B$38:$F$79,MATCH(K$9,Volumes!$B$4:$F$4,0),FALSE),0) -> 0
B98: =Inputs!$C96 -> 400W Sodium Vapour - Flood Light | C98: Offered | D98: =IF($C98="NA","",IF($B98=0,"",OFFSET('Combined Annuity Prices PL'!$B$10,MATCH($B98,'Combined Annuity Prices PL'!$B$10:$B$3811,0)+12,D$7))) -> 48.993 | E98: =IF($C98="NA","",IF($B98=0,"",OFFSET('Combined Annuity Prices PL'!$B$10,MATCH($B98,'Combined Annuity Prices PL'!$B$10:$B$3811,0)+12,E$7))) -> 49.229 | G98: 0.00590120685 | H98: 0.00628900475 | J98: =IFERROR(VLOOKUP($B98,Volumes!$B$38:$F$79,MATCH(J$9,Volumes!$B$4:$F$4,0),FALSE),0) -> 33 | K98: =IFERROR(VLOOKUP($B98,Volumes!$B$38:$F$79,MATCH(K$9,Volumes!$B$4:$F$4,0),FALSE),0) -> 35 | M98: 0.006045786418 | N98: 0.006600940958
B99: =Inputs!$C97 -> 70W Sodium Vapour | C99: Offered | D99: =IF($C99="NA","",IF($B99=0,"",OFFSET('Combined Annuity Prices PL'!$B$10,MATCH($B99,'Combined Annuity Prices PL'!$B$10:$B$3811,0)+12,D$7))) -> 33.672 | E99: =IF($C99="NA","",IF($B99=0,"",OFFSET('Combined Annuity Prices PL'!$B$10,MATCH($B99,'Combined Annuity Prices PL'!$B$10:$B$3811,0)+12,E$7))) -> 33.909 | G99: 0.0263011992 | H99: 0.02784776625 | J99: =IFERROR(VLOOKUP($B99,Volumes!$B$38:$F$79,MATCH(J$9,Volumes!$B$4:$F$4,0),FALSE),0) -> 214 | K99: =IFERROR(VLOOKUP($B99,Volumes!$B$38:$F$79,MATCH(K$9,Volumes!$B$4:$F$4,0),FALSE),0) -> 225 | M99: 0.02694557858 | N99: 0.02922902242
B100: =Inputs!$C98 -> 0 | C100: NA | D100: =IF($C100="NA","",IF($B100=0,"",OFFSET('Combined Annuity Prices PL'!$B$10,MATCH($B100,'Combined Annuity Prices PL'!$B$10:$B$3811,0)+12,D$7))) ->  | E100: =IF($C100="NA","",IF($B100=0,"",OFFSET('Combined Annuity Prices PL'!$B$10,MATCH($B100,'Combined Annuity Prices PL'!$B$10:$B$3811,0)+12,E$7))) ->  | J100: =IFERROR(VLOOKUP($B100,Volumes!$B$38:$F$79,MATCH(J$9,Volumes!$B$4:$F$4,0),FALSE),0) -> 0 | K100: =IFERROR(VLOOKUP($B100,Volumes!$B$38:$F$79,MATCH(K$9,Volumes!$B$4:$F$4,0),FALSE),0) -> 0
B101: =Inputs!$C99 -> 100W Incandescent | C101: Abolished | D101: =IF($C101="NA","",IF($B101=0,"",OFFSET('Combined Annuity Prices PL'!$B$10,MATCH($B101,'Combined Annuity Prices PL'!$B$10:$B$3811,0)+12,D$7))) -> 39.359 | E101: =IF($C101="NA","",IF($B101=0,"",OFFSET('Combined Annuity Prices PL'!$B$10,MATCH($B101,'Combined Annuity Prices PL'!$B$10:$B$3811,0)+12,E$7))) -> 39.596 | G101: 0 | H101: 0 | J101: =IFERROR(VLOOKUP($B101,Volumes!$B$38:$F$79,MATCH(J$9,Volumes!$B$4:$F$4,0),FALSE),0) -> 0 | K101: =IFERROR(VLOOKUP($B101,Volumes!$B$38:$F$79,MATCH(K$9,Volumes!$B$4:$F$4,0),FALSE),0) -> 0 | M101: 0 | N101: 0
B102: =Inputs!$C100 -> 60W Incandescent | C102: Abolished | D102: =IF($C102="NA","",IF($B102=0,"",OFFSET('Combined Annuity Prices PL'!$B$10,MATCH($B102,'Combined Annuity Prices PL'!$B$10:$B$3811,0)+12,D$7))) -> 30.86 | E102: =IF($C102="NA","",IF($B102=0,"",OFFSET('Combined Annuity Prices PL'!$B$10,MATCH($B102,'Combined Annuity Prices PL'!$B$10:$B$3811,0)+12,E$7))) -> 31.097 | G102: 0 | H102: 0 | J102: =IFERROR(VLOOKUP($B102,Volumes!$B$38:$F$79,MATCH(J$9,Volumes!$B$4:$F$4,0),FALSE),0) -> 0 | K102: =IFERROR(VLOOKUP($B102,Volumes!$B$38:$F$79,MATCH(K$9,Volumes!$B$4:$F$4,0),FALSE),0) -> 0 | M102: 0 | N102: 0
B103: =Inputs!$C101 -> 18W LED | C103: Offered | D103: =IF($C103="NA","",IF($B103=0,"",OFFSET('Combined Annuity Prices PL'!$B$10,MATCH($B103,'Combined Annuity Prices PL'!$B$10:$B$3811,0)+12,D$7))) -> 31.982 | E103: =IF($C103="NA","",IF($B103=0,"",OFFSET('Combined Annuity Prices PL'!$B$10,MATCH($B103,'Combined Annuity Prices PL'!$B$10:$B$3811,0)+12,E$7))) -> 32.219 | G103: =IF($C103="NA","",D103*J103*G$6/100/10^6) -> 1.180183773 | H103: =IF($C103="NA","",E103*K103*H$6/100/10^6) -> 1.671086763 | J103: =IFERROR(VLOOKUP($B103,Volumes!$B$38:$F$79,MATCH(J$9,Volumes!$B$4:$F$4,0),FALSE),0) -> 10110 | K103: =IFERROR(VLOOKUP($B103,Volumes!$B$38:$F$79,MATCH(K$9,Volumes!$B$4:$F$4,0),FALSE),0) -> 14210 | M103: =IF($C103="NA","",D103*M$7*J103*G$6/100/10^6) -> 1.209098275 | N103: =IF($C103="NA","",E103*N$7*K103*H$6/100/10^6) -> 1.753973085
B104: =Inputs!$C102 -> 25W LED | C104: Offered | D104: =IF($C104="NA","",IF($B104=0,"",OFFSET('Combined Annuity Prices PL'!$B$10,MATCH($B104,'Combined Annuity Prices PL'!$B$10:$B$3811,0)+12,D$7))) -> 31.982 | E104: =IF($C104="NA","",IF($B104=0,"",OFFSET('Combined Annuity Prices PL'!$B$10,MATCH($B104,'Combined Annuity Prices PL'!$B$10:$B$3811,0)+12,E$7))) -> 32.219 | G104: 0.0024514203 | H104: 0.00246958635 | J104: =IFERROR(VLOOKUP($B104,Volumes!$B$38:$F$79,MATCH(J$9,Volumes!$B$4:$F$4,0),FALSE),0) -> 21 | K104: =IFERROR(VLOOKUP($B104,Volumes!$B$38:$F$79,MATCH(K$9,Volumes!$B$4:$F$4,0),FALSE),0) -> 21 | M104: 0.002511480097 | N104: 0.00259207845
B105: =Inputs!$C103 -> 18W LED Decorative - Bottom Pole Entry | C105: Offered | D105: =IF($C105="NA","",IF($B105=0,"",OFFSET('Combined Annuity Prices PL'!$B$10,MATCH($B105,'Combined Annuity Prices PL'!$B$10:$B$3811,0)+12,D$7))) -> 44.435 | E105: =IF($C105="NA","",IF($B105=0,"",OFFSET('Combined Annuity Prices PL'!$B$10,MATCH($B105,'Combined Annuity Prices PL'!$B$10:$B$3811,0)+12,E$7))) -> 44.672 | G105: 0.00535219575 | H105: 0.005706848 | J105: =IFERROR(VLOOKUP($B105,Volumes!$B$38:$F$79,MATCH(J$9,Volumes!$B$4:$F$4,0),FALSE),0) -> 33 | K105: =IFERROR(VLOOKUP($B105,Volumes!$B$38:$F$79,MATCH(K$9,Volumes!$B$4:$F$4,0),FALSE),0) -> 35 | M105: 0.005483324546 | N105: 0.005989909088
B106: =Inputs!$C104 -> 18W LED Decorative - Side Entry | C106: Offered | D106: =IF($C106="NA","",IF($B106=0,"",OFFSET('Combined Annuity Prices PL'!$B$10,MATCH($B106,'Combined Annuity Prices PL'!$B$10:$B$3811,0)+12,D$7))) -> 44.435 | E106: =IF($C106="NA","",IF($B106=0,"",OFFSET('Combined Annuity Prices PL'!$B$10,MATCH($B106,'Combined Annuity Prices PL'!$B$10:$B$3811,0)+12,E$7))) -> 44.672 | G106: 0.00535219575 | H106: 0.005706848 | J106: =IFERROR(VLOOKUP($B106,Volumes!$B$38:$F$79,MATCH(J$9,Volumes!$B$4:$F$4,0),FALSE),0) -> 33 | K106: =IFERROR(VLOOKUP($B106,Volumes!$B$38:$F$79,MATCH(K$9,Volumes!$B$4:$F$4,0),FALSE),0) -> 35 | M106: 0.005483324546 | N106: 0.005989909088
B107: =Inputs!$C105 -> 18W LED Decorative - Top Entry | C107: Offered | D107: =IF($C107="NA","",IF($B107=0,"",OFFSET('Combined Annuity Prices PL'!$B$10,MATCH($B107,'Combined Annuity Prices PL'!$B$10:$B$3811,0)+12,D$7))) -> 44.435 | E107: =IF($C107="NA","",IF($B107=0,"",OFFSET('Combined Annuity Prices PL'!$B$10,MATCH($B107,'Combined Annuity Prices PL'!$B$10:$B$3811,0)+12,E$7))) -> 44.672 | G107: 0.00535219575 | H107: 0.005706848 | J107: =IFERROR(VLOOKUP($B107,Volumes!$B$38:$F$79,MATCH(J$9,Volumes!$B$4:$F$4,0),FALSE),0) -> 33 | K107: =IFERROR(VLOOKUP($B107,Volumes!$B$38:$F$79,MATCH(K$9,Volumes!$B$4:$F$4,0),FALSE),0) -> 35 | M107: 0.005483324546 | N107: 0.005989909088
B108: =Inputs!$C106 -> 25W LED Decorative - Bottom Pole Entry | C108: Offered | D108: =IF($C108="NA","",IF($B108=0,"",OFFSET('Combined Annuity Prices PL'!$B$10,MATCH($B108,'Combined Annuity Prices PL'!$B$10:$B$3811,0)+12,D$7))) -> 44.435 | E108: =IF($C108="NA","",IF($B108=0,"",OFFSET('Combined Annuity Prices PL'!$B$10,MATCH($B108,'Combined Annuity Prices PL'!$B$10:$B$3811,0)+12,E$7))) -> 44.672 | G108: 0.00535219575 | H108: 0.005706848 | J108: =IFERROR(VLOOKUP($B108,Volumes!$B$38:$F$79,MATCH(J$9,Volumes!$B$4:$F$4,0),FALSE),0) -> 33 | K108: =IFERROR(VLOOKUP($B108,Volumes!$B$38:$F$79,MATCH(K$9,Volumes!$B$4:$F$4,0),FALSE),0) -> 35 | M108: 0.005483324546 | N108: 0.005989909088
B109: =Inputs!$C107 -> 25W LED Decorative - Side Entry | C109: Offered | D109: =IF($C109="NA","",IF($B109=0,"",OFFSET('Combined Annuity Prices PL'!$B$10,MATCH($B109,'Combined Annuity Prices PL'!$B$10:$B$3811,0)+12,D$7))) -> 44.435 | E109: =IF($C109="NA","",IF($B109=0,"",OFFSET('Combined Annuity Prices PL'!$B$10,MATCH($B109,'Combined Annuity Prices PL'!$B$10:$B$3811,0)+12,E$7))) -> 44.672 | G109: 0.00535219575 | H109: 0.005706848 | J109: =IFERROR(VLOOKUP($B109,Volumes!$B$38:$F$79,MATCH(J$9,Volumes!$B$4:$F$4,0),FALSE),0) -> 33 | K109: =IFERROR(VLOOKUP($B109,Volumes!$B$38:$F$79,MATCH(K$9,Volumes!$B$4:$F$4,0),FALSE),0) -> 35 | M109: 0.005483324546 | N109: 0.005989909088
B110: =Inputs!$C108 -> 25W LED Decorative - Top Entry | C110: Offered | D110: =IF($C110="NA","",IF($B110=0,"",OFFSET('Combined Annuity Prices PL'!$B$10,MATCH($B110,'Combined Annuity Prices PL'!$B$10:$B$3811,0)+12,D$7))) -> 44.435 | E110: =IF($C110="NA","",IF($B110=0,"",OFFSET('Combined Annuity Prices PL'!$B$10,MATCH($B110,'Combined Annuity Prices PL'!$B$10:$B$3811,0)+12,E$7))) -> 44.672 | G110: 0.00535219575 | H110: 0.005706848 | J110: =IFERROR(VLOOKUP($B110,Volumes!$B$38:$F$79,MATCH(J$9,Volumes!$B$4:$F$4,0),FALSE),0) -> 33 | K110: =IFERROR(VLOOKUP($B110,Volumes!$B$38:$F$79,MATCH(K$9,Volumes!$B$4:$F$4,0),FALSE),0) -> 35 | M110: 0.005483324546 | N110: 0.005989909088
B111: =Inputs!$C109 -> 30W LED | C111: Not Offered | D111: =IF($C111="NA","",IF($B111=0,"",OFFSET('Combined Annuity Prices PL'!$B$10,MATCH($B111,'Combined Annuity Prices PL'!$B$10:$B$3811,0)+12,D$7))) -> 31.982 | E111: =IF($C111="NA","",IF($B111=0,"",OFFSET('Combined Annuity Prices PL'!$B$10,MATCH($B111,'Combined Annuity Prices PL'!$B$10:$B$3811,0)+12,E$7))) -> 32.219 | G111: 0 | H111: 0 | J111: =IFERROR(VLOOKUP($B111,Volumes!$B$38:$F$79,MATCH(J$9,Volumes!$B$4:$F$4,0),FALSE),0) -> 0 | K111: =IFERROR(VLOOKUP($B111,Volumes!$B$38:$F$79,MATCH(K$9,Volumes!$B$4:$F$4,0),FALSE),0) -> 0 | M111: 0 | N111: 0
B112: =Inputs!$C110 -> 88 LED Light | C112: Abolished | D112: =IF($C112="NA","",IF($B112=0,"",OFFSET('Combined Annuity Prices PL'!$B$10,MATCH($B112,'Combined Annuity Prices PL'!$B$10:$B$3811,0)+12,D$7))) -> 31.982 | E112: =IF($C112="NA","",IF($B112=0,"",OFFSET('Combined Annuity Prices PL'!$B$10,MATCH($B112,'Combined Annuity Prices PL'!$B$10:$B$3811,0)+12,E$7))) -> 32.219 | G112: 0 | H112: 0 | J112: =IFERROR(VLOOKUP($B112,Volumes!$B$38:$F$79,MATCH(J$9,Volumes!$B$4:$F$4,0),FALSE),0) -> 0 | K112: =IFERROR(VLOOKUP($B112,Volumes!$B$38:$F$79,MATCH(K$9,Volumes!$B$4:$F$4,0),FALSE),0) -> 0 | M112: 0 | N112: 0
B113: =Inputs!$C111 -> 100W Metal Halide | C113: Offered | D113: =IF($C113="NA","",IF($B113=0,"",OFFSET('Combined Annuity Prices PL'!$B$10,MATCH($B113,'Combined Annuity Prices PL'!$B$10:$B$3811,0)+12,D$7))) -> 42.744 | E113: =IF($C113="NA","",IF($B113=0,"",OFFSET('Combined Annuity Prices PL'!$B$10,MATCH($B113,'Combined Annuity Prices PL'!$B$10:$B$3811,0)+12,E$7))) -> 42.98 | G113: 0.0026522652 | H113: 0.002666909 | J113: =IFERROR(VLOOKUP($B113,Volumes!$B$38:$F$79,MATCH(J$9,Volumes!$B$4:$F$4,0),FALSE),0) -> 17 | K113: =IFERROR(VLOOKUP($B113,Volumes!$B$38:$F$79,MATCH(K$9,Volumes!$B$4:$F$4,0),FALSE),0) -> 17 | M113: 0.002717245697 | N113: 0.002799188353
B114: =Inputs!$C112 -> 150W Metal Halide | C114: Offered | D114: =IF($C114="NA","",IF($B114=0,"",OFFSET('Combined Annuity Prices PL'!$B$10,MATCH($B114,'Combined Annuity Prices PL'!$B$10:$B$3811,0)+12,D$7))) -> 45.239 | E114: =IF($C114="NA","",IF($B114=0,"",OFFSET('Combined Annuity Prices PL'!$B$10,MATCH($B114,'Combined Annuity Prices PL'!$B$10:$B$3811,0)+12,E$7))) -> 45.476 | G114: 0.0023117129 | H114: 0.002489811 | J114: =IFERROR(VLOOKUP($B114,Volumes!$B$38:$F$79,MATCH(J$9,Volumes!$B$4:$F$4,0),FALSE),0) -> 14 | K114: =IFERROR(VLOOKUP($B114,Volumes!$B$38:$F$79,MATCH(K$9,Volumes!$B$4:$F$4,0),FALSE),0) -> 15 | M114: 0.002368349866 | N114: 0.002613306248
B115: =Inputs!$C113 -> 250W Metal Halide | C115: Offered | D115: =IF($C115="NA","",IF($B115=0,"",OFFSET('Combined Annuity Prices PL'!$B$10,MATCH($B115,'Combined Annuity Prices PL'!$B$10:$B$3811,0)+12,D$7))) -> 45.999 | E115: =IF($C115="NA","",IF($B115=0,"",OFFSET('Combined Annuity Prices PL'!$B$10,MATCH($B115,'Combined Annuity Prices PL'!$B$10:$B$3811,0)+12,E$7))) -> 46.235 | G115: 0.0147748788 | H115: 0.01501943975 | J115: =IFERROR(VLOOKUP($B115,Volumes!$B$38:$F$79,MATCH(J$9,Volumes!$B$4:$F$4,0),FALSE),0) -> 88 | K115: =IFERROR(VLOOKUP($B115,Volumes!$B$38:$F$79,MATCH(K$9,Volumes!$B$4:$F$4,0),FALSE),0) -> 89 | M115: 0.01513686333 | N115: 0.01576440772
B116: =Inputs!$C114 -> 400W Metal Halide | C116: Offered | D116: =IF($C116="NA","",IF($B116=0,"",OFFSET('Combined Annuity Prices PL'!$B$10,MATCH($B116,'Combined Annuity Prices PL'!$B$10:$B$3811,0)+12,D$7))) -> 50.959 | E116: =IF($C116="NA","",IF($B116=0,"",OFFSET('Combined Annuity Prices PL'!$B$10,MATCH($B116,'Combined Annuity Prices PL'!$B$10:$B$3811,0)+12,E$7))) -> 51.196 | G116: 0.00316200595 | H116: 0.0031767118 | J116: =IFERROR(VLOOKUP($B116,Volumes!$B$38:$F$79,MATCH(J$9,Volumes!$B$4:$F$4,0),FALSE),0) -> 17 | K116: =IFERROR(VLOOKUP($B116,Volumes!$B$38:$F$79,MATCH(K$9,Volumes!$B$4:$F$4,0),FALSE),0) -> 17 | M116: 0.003239475096 | N116: 0.003334277499
B117: =Inputs!$C115 -> 70W Metal Halide | C117: Not Offered | D117: =IF($C117="NA","",IF($B117=0,"",OFFSET('Combined Annuity Prices PL'!$B$10,MATCH($B117,'Combined Annuity Prices PL'!$B$10:$B$3811,0)+12,D$7))) -> 32.604 | E117: =IF($C117="NA","",IF($B117=0,"",OFFSET('Combined Annuity Prices PL'!$B$10,MATCH($B117,'Combined Annuity Prices PL'!$B$10:$B$3811,0)+12,E$7))) -> 32.841 | G117: 0 | H117: 0 | J117: =IFERROR(VLOOKUP($B117,Volumes!$B$38:$F$79,MATCH(J$9,Volumes!$B$4:$F$4,0),FALSE),0) -> 0 | K117: =IFERROR(VLOOKUP($B117,Volumes!$B$38:$F$79,MATCH(K$9,Volumes!$B$4:$F$4,0),FALSE),0) -> 0 | M117: 0 | N117: 0
B118: =Inputs!$C116 -> 250W Metal Halide - Flood Light | C118: Offered | D118: =IF($C118="NA","",IF($B118=0,"",OFFSET('Combined Annuity Prices PL'!$B$10,MATCH($B118,'Combined Annuity Prices PL'!$B$10:$B$3811,0)+12,D$7))) -> 51.031 | E118: =IF($C118="NA","",IF($B118=0,"",OFFSET('Combined Annuity Prices PL'!$B$10,MATCH($B118,'Combined Annuity Prices PL'!$B$10:$B$3811,0)+12,E$7))) -> 51.268 | G118: 0.00614668395 | H118: 0.006549487 | J118: =IFERROR(VLOOKUP($B118,Volumes!$B$38:$F$79,MATCH(J$9,Volumes!$B$4:$F$4,0),FALSE),0) -> 33 | K118: =IFERROR(VLOOKUP($B118,Volumes!$B$38:$F$79,MATCH(K$9,Volumes!$B$4:$F$4,0),FALSE),0) -> 35 | M118: 0.006297277707 | N118: 0.006874343193
B119: =Inputs!$C117 -> 400W Metal Halide - Flood Light | C119: Offered | D119: =IF($C119="NA","",IF($B119=0,"",OFFSET('Combined Annuity Prices PL'!$B$10,MATCH($B119,'Combined Annuity Prices PL'!$B$10:$B$3811,0)+12,D$7))) -> 50.959 | E119: =IF($C119="NA","",IF($B119=0,"",OFFSET('Combined Annuity Prices PL'!$B$10,MATCH($B119,'Combined Annuity Prices PL'!$B$10:$B$3811,0)+12,E$7))) -> 51.196 | G119: 0.00613801155 | H119: 0.006540289 | J119: =IFERROR(VLOOKUP($B119,Volumes!$B$38:$F$79,MATCH(J$9,Volumes!$B$4:$F$4,0),FALSE),0) -> 33 | K119: =IFERROR(VLOOKUP($B119,Volumes!$B$38:$F$79,MATCH(K$9,Volumes!$B$4:$F$4,0),FALSE),0) -> 35 | M119: 0.006288392833 | N119: 0.006864688969
B120: =Inputs!$C118 -> 125W Mercury Vapour | C120: Obsolete, no new Connections | D120: =IF($C120="NA","",IF($B120=0,"",OFFSET('Combined Annuity Prices PL'!$B$10,MATCH($B120,'Combined Annuity Prices PL'!$B$10:$B$3811,0)+12,D$7))) -> 42.398 | E120: =IF($C120="NA","",IF($B120=0,"",OFFSET('Combined Annuity Prices PL'!$B$10,MATCH($B120,'Combined Annuity Prices PL'!$B$10:$B$3811,0)+12,E$7))) -> 42.634 | G120: 0 | H120: 0 | J120: =IFERROR(VLOOKUP($B120,Volumes!$B$38:$F$79,MATCH(J$9,Volumes!$B$4:$F$4,0),FALSE),0) -> 0 | K120: =IFERROR(VLOOKUP($B120,Volumes!$B$38:$F$79,MATCH(K$9,Volumes!$B$4:$F$4,0),FALSE),0) -> 0 | M120: 0 | N120: 0
B121: =Inputs!$C119 -> 250W Mercury Vapour | C121: Obsolete, no new Connections | D121: =IF($C121="NA","",IF($B121=0,"",OFFSET('Combined Annuity Prices PL'!$B$10,MATCH($B121,'Combined Annuity Prices PL'!$B$10:$B$3811,0)+12,D$7))) -> 42.83 | E121: =IF($C121="NA","",IF($B121=0,"",OFFSET('Combined Annuity Prices PL'!$B$10,MATCH($B121,'Combined Annuity Prices PL'!$B$10:$B$3811,0)+12,E$7))) -> 43.067 | G121: 0.0667526965 | H121: 0.0638209873 | J121: =IFERROR(VLOOKUP($B121,Volumes!$B$38:$F$79,MATCH(J$9,Volumes!$B$4:$F$4,0),FALSE),0) -> 427 | K121: =IFERROR(VLOOKUP($B121,Volumes!$B$38:$F$79,MATCH(K$9,Volumes!$B$4:$F$4,0),FALSE),0) -> 406 | M121: 0.06838813756 | N121: 0.06698652423
B122: =Inputs!$C120 -> 0 | C122: NA | D122: =IF($C122="NA","",IF($B122=0,"",OFFSET('Combined Annuity Prices PL'!$B$10,MATCH($B122,'Combined Annuity Prices PL'!$B$10:$B$3811,0)+12,D$7))) ->  | E122: =IF($C122="NA","",IF($B122=0,"",OFFSET('Combined Annuity Prices PL'!$B$10,MATCH($B122,'Combined Annuity Prices PL'!$B$10:$B$3811,0)+12,E$7))) ->  | J122: =IFERROR(VLOOKUP($B122,Volumes!$B$38:$F$79,MATCH(J$9,Volumes!$B$4:$F$4,0),FALSE),0) -> 0 | K122: =IFERROR(VLOOKUP($B122,Volumes!$B$38:$F$79,MATCH(K$9,Volumes!$B$4:$F$4,0),FALSE),0) -> 0
B123: =Inputs!$C121 -> 400W Mercury Vapour | C123: Obsolete, no new Connections | D123: =IF($C123="NA","",IF($B123=0,"",OFFSET('Combined Annuity Prices PL'!$B$10,MATCH($B123,'Combined Annuity Prices PL'!$B$10:$B$3811,0)+12,D$7))) -> 44.787 | E123: =IF($C123="NA","",IF($B123=0,"",OFFSET('Combined Annuity Prices PL'!$B$10,MATCH($B123,'Combined Annuity Prices PL'!$B$10:$B$3811,0)+12,E$7))) -> 45.024 | G123: 0.0052311216 | H123: 0.0050944656 | J123: =IFERROR(VLOOKUP($B123,Volumes!$B$38:$F$79,MATCH(J$9,Volumes!$B$4:$F$4,0),FALSE),0) -> 32 | K123: =IFERROR(VLOOKUP($B123,Volumes!$B$38:$F$79,MATCH(K$9,Volumes!$B$4:$F$4,0),FALSE),0) -> 31 | M123: 0.005359284079 | N123: 0.005347152367
B124: =Inputs!$C122 -> 50W Mercury Vapour | C124: Obsolete, no new Connections | D124: =IF($C124="NA","",IF($B124=0,"",OFFSET('Combined Annuity Prices PL'!$B$10,MATCH($B124,'Combined Annuity Prices PL'!$B$10:$B$3811,0)+12,D$7))) -> 31.523 | E124: =IF($C124="NA","",IF($B124=0,"",OFFSET('Combined Annuity Prices PL'!$B$10,MATCH($B124,'Combined Annuity Prices PL'!$B$10:$B$3811,0)+12,E$7))) -> 31.76 | G124: 0 | H124: 0 | J124: =IFERROR(VLOOKUP($B124,Volumes!$B$38:$F$79,MATCH(J$9,Volumes!$B$4:$F$4,0),FALSE),0) -> 0 | K124: =IFERROR(VLOOKUP($B124,Volumes!$B$38:$F$79,MATCH(K$9,Volumes!$B$4:$F$4,0),FALSE),0) -> 0 | M124: 0 | N124: 0
B125: =Inputs!$C123 -> 80W Mercury Vapour Art decorative | C125: Obsolete, no new Connections | D125: =IF($C125="NA","",IF($B125=0,"",OFFSET('Combined Annuity Prices PL'!$B$10,MATCH($B125,'Combined Annuity Prices PL'!$B$10:$B$3811,0)+12,D$7))) -> 46.961 | E125: =IF($C125="NA","",IF($B125=0,"",OFFSET('Combined Annuity Prices PL'!$B$10,MATCH($B125,'Combined Annuity Prices PL'!$B$10:$B$3811,0)+12,E$7))) -> 47.198 | G125: 0.006856306 | H125: 0.006890908 | J125: =IFERROR(VLOOKUP($B125,Volumes!$B$38:$F$79,MATCH(J$9,Volumes!$B$4:$F$4,0),FALSE),0) -> 40 | K125: =IFERROR(VLOOKUP($B125,Volumes!$B$38:$F$79,MATCH(K$9,Volumes!$B$4:$F$4,0),FALSE),0) -> 40 | M125: =IF($C125="NA","",D125*M$7*J125*G$6/100/10^6) -> 0.007024285497 | N125: 0.00723269876
B126: =Inputs!$C124 -> 80W Mercury Vapour | C126: Obsolete, no new Connections | D126: =IF($C126="NA","",IF($B126=0,"",OFFSET('Combined Annuity Prices PL'!$B$10,MATCH($B126,'Combined Annuity Prices PL'!$B$10:$B$3811,0)+12,D$7))) -> 31.521 | E126: =IF($C126="NA","",IF($B126=0,"",OFFSET('Combined Annuity Prices PL'!$B$10,MATCH($B126,'Combined Annuity Prices PL'!$B$10:$B$3811,0)+12,E$7))) -> 31.758 | G126: 1.637760238 | H126: 1.174815754 | J126: =IFERROR(VLOOKUP($B126,Volumes!$B$38:$F$79,MATCH(J$9,Volumes!$B$4:$F$4,0),FALSE),0) -> 14235 | K126: =IFERROR(VLOOKUP($B126,Volumes!$B$38:$F$79,MATCH(K$9,Volumes!$B$4:$F$4,0),FALSE),0) -> 10135 | M126: 1.677885364 | N126: 1.23308691
M127: 0 | N127: 0
G128: =SUM(G71:G127) -> 5.689817907 | H128: =SUM(H71:H127) -> 5.805058116 | J128: =SUM(J71:J127) -> 43293 | K128: 43662 | M128: =SUM(M71:M127) -> 5.829218445 | N128: =SUM(N71:N127) -> 6.092990449
J129: =Volumes!E80=J128 -> TRUE | K129: =Volumes!F80=K128 -> TRUE
B130: Total | F130: =G8 -> Revenue ($m) - Real | G130: =SUM(G67,G128) -> 6.003823483 | H130: =SUM(H67,H128) -> 6.120498908 | J130: =SUM(J67,J128) -> 49622 | K130: 50020 | M130: =SUM(M67,M128) -> 6.150917158 | N130: =SUM(N67,N128) -> 6.424077184
J131: =Volumes!E84=J130 -> TRUE | K131: =Volumes!F84=K130 -> TRUE
F133: Nominal ($m Nominal) | G133: =G130*'Master Data'!I32 -> 6.150917158 | H133: =H130*'Master Data'!J32 -> 6.424077184
F134: Check | G134: =G133-M130 -> 0 | H134: =H133-N130 -> 0

Sheet Combined Annuity Prices CL
I1: ='Master Data'!H$22 -> 2017-06-30 | J1: ='Master Data'!I$22 -> 2018-06-30 | K1: ='Master Data'!J$22 -> 2019-06-30
J2: =HLOOKUP(J1,'Master Data'!$B$22:$P$23,2,FALSE) -> 365 | K2: =HLOOKUP(K1,'Master Data'!$B$22:$P$23,2,FALSE) -> 365
E3: ='Master Data'!I29 -> 2017-18 | F3: ='Master Data'!J29 -> 2018-19 | J3: ='Master Data'!I29 -> 2017-18 | K3: ='Master Data'!J29 -> 2018-19
E4: Cost $ Per year | J4: Cost Cents per Day
D5: Check errors | E5: =SUBTOTAL(9,$E$10:$E$758) -> 5965.801032 | F5: =SUBTOTAL(9,$E$10:$E$758) -> 5965.801032
B6: Lookup/Offset | D6: Offset | E6: 13 | F6: =E6+1 -> 14
B7: =Inputs!$C$68 -> Light Description | D7: Useful Life
B8: Private Contract Lighting
A10: 1 | B10: =IFERROR(VLOOKUP($A10,Inputs!$B$68:$AK$129,MATCH($B$7,Inputs!$B$68:$AK$68,0),FALSE),"Blank") -> 32W Compact Fluorescent | I10: =IFERROR(VLOOKUP($A10,Inputs!$B$68:$AK$129,MATCH($B$7,Inputs!$B$68:$AK$68,0),FALSE),"Blank") -> 32W Compact Fluorescent
B11: =Inputs!$R$68 -> Lamp UNIT price Annualised Cost | C11: =Inputs!$P$68 -> Lamp Maintenance cycle | E11: =IF($B10="Blank",0,VLOOKUP($B10,Inputs!$C$68:$AK$129,MATCH($B11,Inputs!$C$68:$AK$68,0),FALSE)) -> 1.12537633 | F11: =IF($B10="Blank",0,VLOOKUP($B10,Inputs!$C$68:$AK$129,MATCH($B11,Inputs!$C$68:$AK$68,0),FALSE)) -> 1.12537633 | I11: =B11 -> Lamp UNIT price Annualised Cost | J11: =IF(E11="NA","",E11/J$2*100) -> 0.3083222821 | K11: =IF(F11="NA","",F11/K$2*100) -> 0.3083222821
B12: =Inputs!$K$68 -> PE Cell UNIT price Annualised Cost | C12: =Inputs!$I$68 -> PE Cell Maintenance Cycle | E12: =IF($B10="Blank",0,VLOOKUP($B10,Inputs!$C$68:$AK$129,MATCH($B12,Inputs!$C$68:$AK$68,0),FALSE)) -> 0.5955547094 | F12: =IF($B10="Blank",0,VLOOKUP($B10,Inputs!$C$68:$AK$129,MATCH($B12,Inputs!$C$68:$AK$68,0),FALSE)) -> 0.5955547094 | I12: PE Cell UNIT price Annualised Cost | J12: 0.1631656738 | K12: 0.1631656738
B13: Corp capex annuity per light | E13: =IF($B10="Blank",0,'Corp Capex Annuity calcs'!F$109) -> 11.34474414 | F13: =IF($B10="Blank",0,'Corp Capex Annuity calcs'!G$109) -> 11.25447609 | I13: Corp capex annuity per light | J13: 3.108149081 | K13: 3.083418106
B14: =Inputs!$T$68 -> Lamp Service costs Annualised | E14: =IF($B10="Blank",0,VLOOKUP($B10,Inputs!$C$68:$AK$129,MATCH($B14,Inputs!$C$68:$AK$68,0),FALSE)) -> 25.3939337 | F14: =IF($B10="Blank",0,VLOOKUP($B10,Inputs!$C$68:$AK$129,MATCH($B14,Inputs!$C$68:$AK$68,0),FALSE)) -> 25.3939337 | I14: Lamp Service costs Annualised | J14: 6.95724211 | K14: 6.95724211
B15: =Inputs!$M$68 -> PE Cell Service costs Annualised | E15: =IF($B10="Blank",0,VLOOKUP($B10,Inputs!$C$68:$AK$129,MATCH($B15,Inputs!$C$68:$AK$68,0),FALSE)) -> 0 | F15: =IF($B10="Blank",0,VLOOKUP($B10,Inputs!$C$68:$AK$129,MATCH($B15,Inputs!$C$68:$AK$68,0),FALSE)) -> 0 | I15: PE Cell Service costs Annualised | J15: 0 | K15: 0
B16: Indirect Opex | E16: =IF($B10="Blank",0,IF($B$8="Private Contract Lighting",'Opex Weighting'!D$113,'Opex Weighting'!D$111)) -> 13.16019425 | F16: =IF($B10="Blank",0,IF($B$8="Private Contract Lighting",'Opex Weighting'!E$113,'Opex Weighting'!E$111)) -> 13.05548099 | I16: Indirect Opex | J16: 3.605532672 | K16: 3.576844107
B17: Indirect Capex | E17: =IF($B11="Blank",0,IF($B$8="Private Contract Lighting",'Capex Weighting'!D$115,'Capex Weighting'!D$117)) -> 0 | F17: =IF($B11="Blank",0,IF($B$8="Private Contract Lighting",'Capex Weighting'!E$115,'Capex Weighting'!E$117)) -> 0 | I17: Indirect Capex | J17: 0 | K17: 0
B18: Overhead Costs per light | E18: =IF($B10="Blank",0,IF($B$8="Private Contract Lighting",'Building Block'!C$49,'Building Block'!C$48)) -> 11.64791546 | F18: =IF($B10="Blank",0,IF($B$8="Private Contract Lighting",'Building Block'!D$49,'Building Block'!D$48)) -> 11.94867494 | I18: Overhead Costs per light | J18: 3.191209715 | K18: 3.273609574
B19: =Inputs!$AH$68 -> Bracket UNIT price | C19: 0 | E19: NA | F19: NA | I19: Bracket UNIT price
B20: =Inputs!$Y$68 -> CAPEX Installation costs | C20: =C19+1 -> 1 | E20: NA | F20: NA | I20: CAPEX Installation costs
B21: =Inputs!$X$68 -> Luminaire UNIT price | C21: =C20+1 -> 2 | E21: NA | F21: NA | I21: Luminaire UNIT price
B22: =Inputs!$Y$68 -> CAPEX Installation costs | C22: =C21+1 -> 3 | E22: NA | F22: NA | I22: CAPEX Installation costs
E23: =SUM(E11:E22) -> 63.2677186 | F23: =SUM(F11:F22) -> 63.37349676 | J23: =ROUND(E23/J$2*100,3) -> 17.334 | K23: =ROUND(F23/K$2*100,3) -> 17.363
A25: =A10+1 -> 2 | B25: =IFERROR(VLOOKUP($A25,Inputs!$B$68:$AK$129,MATCH($B$7,Inputs!$B$68:$AK$68,0),FALSE),"Blank") -> 42W Compact Fluorescent | I25: =IFERROR(VLOOKUP($A25,Inputs!$B$68:$AK$129,MATCH($B$7,Inputs!$B$68:$AK$68,0),FALSE),"Blank") -> 42W Compact Fluorescent
B26: =Inputs!$R$68 -> Lamp UNIT price Annualised Cost | C26: =Inputs!$P$68 -> Lamp Maintenance cycle | E26: =IF($B25="Blank",0,VLOOKUP($B25,Inputs!$C$68:$AK$129,MATCH($B26,Inputs!$C$68:$AK$68,0),FALSE)) -> 1.12537633 | F26: =IF($B25="Blank",0,VLOOKUP($B25,Inputs!$C$68:$AK$129,MATCH($B26,Inputs!$C$68:$AK$68,0),FALSE)) -> 1.12537633 | I26: =B26 -> Lamp UNIT price Annualised Cost | J26: =IF(E26="NA","",E26/J$2*100) -> 0.3083222821 | K26: =IF(F26="NA","",F26/K$2*100) -> 0.3083222821
B27: =Inputs!$K$68 -> PE Cell UNIT price Annualised Cost | C27: =Inputs!$I$68 -> PE Cell Maintenance Cycle | E27: =IF($B25="Blank",0,VLOOKUP($B25,Inputs!$C$68:$AK$129,MATCH($B27,Inputs!$C$68:$AK$68,0),FALSE)) -> 0.5955547094 | F27: =IF($B25="Blank",0,VLOOKUP($B25,Inputs!$C$68:$AK$129,MATCH($B27,Inputs!$C$68:$AK$68,0),FALSE)) -> 0.5955547094 | I27: PE Cell UNIT price Annualised Cost | J27: 0.1631656738 | K27: 0.1631656738
B28: Corp capex annuity per light | E28: =IF($B25="Blank",0,'Corp Capex Annuity calcs'!F$109) -> 11.34474414 | F28: =IF($B25="Blank",0,'Corp Capex Annuity calcs'!G$109) -> 11.25447609 | I28: Corp capex annuity per light | J28: 3.108149081 | K28: 3.083418106
B29: =Inputs!$T$68 -> Lamp Service costs Annualised | E29: =IF($B25="Blank",0,VLOOKUP($B25,Inputs!$C$68:$AK$129,MATCH($B29,Inputs!$C$68:$AK$68,0),FALSE)) -> 25.3939337 | F29: =IF($B25="Blank",0,VLOOKUP($B25,Inputs!$C$68:$AK$129,MATCH($B29,Inputs!$C$68:$AK$68,0),FALSE)) -> 25.3939337 | I29: Lamp Service costs Annualised | J29: 6.95724211 | K29: 6.95724211
B30: =Inputs!$M$68 -> PE Cell Service costs Annualised | E30: =IF($B25="Blank",0,VLOOKUP($B25,Inputs!$C$68:$AK$129,MATCH($B30,Inputs!$C$68:$AK$68,0),FALSE)) -> 0 | F30: =IF($B25="Blank",0,VLOOKUP($B25,Inputs!$C$68:$AK$129,MATCH($B30,Inputs!$C$68:$AK$68,0),FALSE)) -> 0 | I30: PE Cell Service costs Annualised | J30: 0 | K30: 0
B31: Indirect Opex | E31: =IF($B25="Blank",0,IF($B$8="Private Contract Lighting",'Opex Weighting'!D$113,'Opex Weighting'!D$111)) -> 13.16019425 | F31: =IF($B25="Blank",0,IF($B$8="Private Contract Lighting",'Opex Weighting'!E$113,'Opex Weighting'!E$111)) -> 13.05548099 | I31: Indirect Opex | J31: 3.605532672 | K31: 3.576844107
B32: Indirect Capex | E32: =IF($B26="Blank",0,IF($B$8="Private Contract Lighting",'Capex Weighting'!D$115,'Capex Weighting'!D$117)) -> 0 | F32: =IF($B26="Blank",0,IF($B$8="Private Contract Lighting",'Capex Weighting'!E$115,'Capex Weighting'!E$117)) -> 0 | I32: Indirect Capex | J32: 0 | K32: 0
B33: Overhead Costs per light | E33: =IF($B25="Blank",0,IF($B$8="Private Contract Lighting",'Building Block'!C$49,'Building Block'!C$48)) -> 11.64791546 | F33: =IF($B25="Blank",0,IF($B$8="Private Contract Lighting",'Building Block'!D$49,'Building Block'!D$48)) -> 11.94867494 | I33: Overhead Costs per light | J33: 3.191209715 | K33: 3.273609574
B34: =Inputs!$AH$68 -> Bracket UNIT price | C34: 0 | E34: NA | F34: NA | I34: Bracket UNIT price
B35: =Inputs!$Y$68 -> CAPEX Installation costs | C35: =C34+1 -> 1 | E35: NA | F35: NA | I35: CAPEX Installation costs
B36: =Inputs!$X$68 -> Luminaire UNIT price | C36: =C35+1 -> 2 | E36: NA | F36: NA | I36: Luminaire UNIT price
B37: =Inputs!$Y$68 -> CAPEX Installation costs | C37: 3 | E37: NA | F37: NA | I37: CAPEX Installation costs
E38: =SUM(E26:E37) -> 63.2677186 | F38: =SUM(F26:F37) -> 63.37349676 | J38: =ROUND(E38/J$2*100,3) -> 17.334 | K38: =ROUND(F38/K$2*100,3) -> 17.363
A40: =A25+1 -> 3 | B40: =IFERROR(VLOOKUP($A40,Inputs!$B$68:$AK$129,MATCH($B$7,Inputs!$B$68:$AK$68,0),FALSE),"Blank") -> 42W Compact Fluorescent - Bottom Pole Entry | I40: =IFERROR(VLOOKUP($A40,Inputs!$B$68:$AK$129,MATCH($B$7,Inputs!$B$68:$AK$68,0),FALSE),"Blank") -> 42W Compact Fluorescent - Bottom Pole Entry
B41: =Inputs!$R$68 -> Lamp UNIT price Annualised Cost | C41: =Inputs!$P$68 -> Lamp Maintenance cycle | E41: =IF($B40="Blank",0,VLOOKUP($B40,Inputs!$C$68:$AK$129,MATCH($B41,Inputs!$C$68:$AK$68,0),FALSE)) -> 1.12537633 | F41: =IF($B40="Blank",0,VLOOKUP($B40,Inputs!$C$68:$AK$129,MATCH($B41,Inputs!$C$68:$AK$68,0),FALSE)) -> 1.12537633 | I41: =B41 -> Lamp UNIT price Annualised Cost | J41: =IF(E41="NA","",E41/J$2*100) -> 0.3083222821 | K41: =IF(F41="NA","",F41/K$2*100) -> 0.3083222821
B42: =Inputs!$K$68 -> PE Cell UNIT price Annualised Cost | C42: =Inputs!$I$68 -> PE Cell Maintenance Cycle | E42: =IF($B40="Blank",0,VLOOKUP($B40,Inputs!$C$68:$AK$129,MATCH($B42,Inputs!$C$68:$AK$68,0),FALSE)) -> 0.5955547094 | F42: =IF($B40="Blank",0,VLOOKUP($B40,Inputs!$C$68:$AK$129,MATCH($B42,Inputs!$C$68:$AK$68,0),FALSE)) -> 0.5955547094 | I42: PE Cell UNIT price Annualised Cost | J42: 0.1631656738 | K42: 0.1631656738
B43: Corp capex annuity per light | E43: =IF($B40="Blank",0,'Corp Capex Annuity calcs'!F$109) -> 11.34474414 | F43: =IF($B40="Blank",0,'Corp Capex Annuity calcs'!G$109) -> 11.25447609 | I43: Corp capex annuity per light | J43: 3.108149081 | K43: 3.083418106
B44: =Inputs!$T$68 -> Lamp Service costs Annualised | E44: =IF($B40="Blank",0,VLOOKUP($B40,Inputs!$C$68:$AK$129,MATCH($B44,Inputs!$C$68:$AK$68,0),FALSE)) -> 25.3939337 | F44: =IF($B40="Blank",0,VLOOKUP($B40,Inputs!$C$68:$AK$129,MATCH($B44,Inputs!$C$68:$AK$68,0),FALSE)) -> 25.3939337 | I44: Lamp Service costs Annualised | J44: 6.95724211 | K44: 6.95724211
B45: =Inputs!$M$68 -> PE Cell Service costs Annualised | E45: =IF($B40="Blank",0,VLOOKUP($B40,Inputs!$C$68:$AK$129,MATCH($B45,Inputs!$C$68:$AK$68,0),FALSE)) -> 0 | F45: =IF($B40="Blank",0,VLOOKUP($B40,Inputs!$C$68:$AK$129,MATCH($B45,Inputs!$C$68:$AK$68,0),FALSE)) -> 0 | I45: PE Cell Service costs Annualised | J45: 0 | K45: 0
B46: Indirect Opex | E46: =IF($B40="Blank",0,IF($B$8="Private Contract Lighting",'Opex Weighting'!D$113,'Opex Weighting'!D$111)) -> 13.16019425 | F46: =IF($B40="Blank",0,IF($B$8="Private Contract Lighting",'Opex Weighting'!E$113,'Opex Weighting'!E$111)) -> 13.05548099 | I46: Indirect Opex | J46: 3.605532672 | K46: 3.576844107
B47: Indirect Capex | E47: =IF($B41="Blank",0,IF($B$8="Private Contract Lighting",'Capex Weighting'!D$115,'Capex Weighting'!D$117)) -> 0 | F47: =IF($B41="Blank",0,IF($B$8="Private Contract Lighting",'Capex Weighting'!E$115,'Capex Weighting'!E$117)) -> 0 | I47: Indirect Capex | J47: 0 | K47: 0
B48: Overhead Costs per light | E48: =IF($B40="Blank",0,IF($B$8="Private Contract Lighting",'Building Block'!C$49,'Building Block'!C$48)) -> 11.64791546 | F48: =IF($B40="Blank",0,IF($B$8="Private Contract Lighting",'Building Block'!D$49,'Building Block'!D$48)) -> 11.94867494 | I48: Overhead Costs per light | J48: 3.191209715 | K48: 3.273609574
B49: =Inputs!$AH$68 -> Bracket UNIT price | C49: 0 | E49: NA | F49: NA | I49: Bracket UNIT price
B50: =Inputs!$Y$68 -> CAPEX Installation costs | C50: =C49+1 -> 1 | E50: NA | F50: NA | I50: CAPEX Installation costs
B51: =Inputs!$X$68 -> Luminaire UNIT price | C51: =C50+1 -> 2 | E51: NA | F51: NA | I51: Luminaire UNIT price
B52: =Inputs!$Y$68 -> CAPEX Installation costs | C52: 3 | E52: NA | F52: NA | I52: CAPEX Installation costs
E53: =SUM(E41:E52) -> 63.2677186 | F53: =SUM(F41:F52) -> 63.37349676 | J53: =ROUND(E53/J$2*100,3) -> 17.334 | K53: =ROUND(F53/K$2*100,3) -> 17.363
A55: =A40+1 -> 4 | B55: =IFERROR(VLOOKUP($A55,Inputs!$B$68:$AK$129,MATCH($B$7,Inputs!$B$68:$AK$68,0),FALSE),"Blank") -> 2x24W Compact Fluorescent | I55: =IFERROR(VLOOKUP($A55,Inputs!$B$68:$AK$129,MATCH($B$7,Inputs!$B$68:$AK$68,0),FALSE),"Blank") -> 2x24W Compact Fluorescent
B56: =Inputs!$R$68 -> Lamp UNIT price Annualised Cost | C56: =Inputs!$P$68 -> Lamp Maintenance cycle | E56: =IF($B55="Blank",0,VLOOKUP($B55,Inputs!$C$68:$AK$129,MATCH($B56,Inputs!$C$68:$AK$68,0),FALSE)) -> 2.250752659 | F56: =IF($B55="Blank",0,VLOOKUP($B55,Inputs!$C$68:$AK$129,MATCH($B56,Inputs!$C$68:$AK$68,0),FALSE)) -> 2.250752659 | I56: =B56 -> Lamp UNIT price Annualised Cost | J56: =IF(E56="NA","",E56/J$2*100) -> 0.6166445641 | K56: =IF(F56="NA","",F56/K$2*100) -> 0.6166445641
B57: =Inputs!$K$68 -> PE Cell UNIT price Annualised Cost | C57: =Inputs!$I$68 -> PE Cell Maintenance Cycle | E57: =IF($B55="Blank",0,VLOOKUP($B55,Inputs!$C$68:$AK$129,MATCH($B57,Inputs!$C$68:$AK$68,0),FALSE)) -> 0.5955547094 | F57: =IF($B55="Blank",0,VLOOKUP($B55,Inputs!$C$68:$AK$129,MATCH($B57,Inputs!$C$68:$AK$68,0),FALSE)) -> 0.5955547094 | I57: PE Cell UNIT price Annualised Cost | J57: 0.1631656738 | K57: 0.1631656738
B58: Corp capex annuity per light | E58: =IF($B55="Blank",0,'Corp Capex Annuity calcs'!F$109) -> 11.34474414 | F58: =IF($B55="Blank",0,'Corp Capex Annuity calcs'!G$109) -> 11.25447609 | I58: Corp capex annuity per light | J58: 3.108149081 | K58: 3.083418106
B59: =Inputs!$T$68 -> Lamp Service costs Annualised | E59: =IF($B55="Blank",0,VLOOKUP($B55,Inputs!$C$68:$AK$129,MATCH($B59,Inputs!$C$68:$AK$68,0),FALSE)) -> 25.3939337 | F59: =IF($B55="Blank",0,VLOOKUP($B55,Inputs!$C$68:$AK$129,MATCH($B59,Inputs!$C$68:$AK$68,0),FALSE)) -> 25.3939337 | I59: Lamp Service costs Annualised | J59: 6.95724211 | K59: 6.95724211
B60: =Inputs!$M$68 -> PE Cell Service costs Annualised | E60: =IF($B55="Blank",0,VLOOKUP($B55,Inputs!$C$68:$AK$129,MATCH($B60,Inputs!$C$68:$AK$68,0),FALSE)) -> 0 | F60: =IF($B55="Blank",0,VLOOKUP($B55,Inputs!$C$68:$AK$129,MATCH($B60,Inputs!$C$68:$AK$68,0),FALSE)) -> 0 | I60: PE Cell Service costs Annualised | J60: 0 | K60: 0
B61: Indirect Opex | E61: =IF($B55="Blank",0,IF($B$8="Private Contract Lighting",'Opex Weighting'!D$113,'Opex Weighting'!D$111)) -> 13.16019425 | F61: =IF($B55="Blank",0,IF($B$8="Private Contract Lighting",'Opex Weighting'!E$113,'Opex Weighting'!E$111)) -> 13.05548099 | I61: Indirect Opex | J61: 3.605532672 | K61: 3.576844107
B62: Indirect Capex | E62: =IF($B56="Blank",0,IF($B$8="Private Contract Lighting",'Capex Weighting'!D$115,'Capex Weighting'!D$117)) -> 0 | F62: =IF($B56="Blank",0,IF($B$8="Private Contract Lighting",'Capex Weighting'!E$115,'Capex Weighting'!E$117)) -> 0 | I62: Indirect Capex | J62: 0 | K62: 0
B63: Overhead Costs per light | E63: =IF($B55="Blank",0,IF($B$8="Private Contract Lighting",'Building Block'!C$49,'Building Block'!C$48)) -> 11.64791546 | F63: =IF($B55="Blank",0,IF($B$8="Private Contract Lighting",'Building Block'!D$49,'Building Block'!D$48)) -> 11.94867494 | I63: Overhead Costs per light | J63: 3.191209715 | K63: 3.273609574
B64: =Inputs!$AH$68 -> Bracket UNIT price | C64: 0 | E64: NA | F64: NA | I64: Bracket UNIT price
B65: =Inputs!$Y$68 -> CAPEX Installation costs | C65: =C64+1 -> 1 | E65: NA | F65: NA | I65: CAPEX Installation costs
B66: =Inputs!$X$68 -> Luminaire UNIT price | C66: =C65+1 -> 2 | E66: NA | F66: NA | I66: Luminaire UNIT price
B67: =Inputs!$Y$68 -> CAPEX Installation costs | C67: 3 | E67: NA | F67: NA | I67: CAPEX Installation costs
E68: =SUM(E56:E67) -> 64.39309493 | F68: =SUM(F56:F67) -> 64.49887309 | J68: =ROUND(E68/J$2*100,3) -> 17.642 | K68: =ROUND(F68/K$2*100,3) -> 17.671
A70: =A55+1 -> 5 | B70: =IFERROR(VLOOKUP($A70,Inputs!$B$68:$AK$129,MATCH($B$7,Inputs!$B$68:$AK$68,0),FALSE),"Blank") -> 1x20W Fluorescent | I70: =IFERROR(VLOOKUP($A70,Inputs!$B$68:$AK$129,MATCH($B$7,Inputs!$B$68:$AK$68,0),FALSE),"Blank") -> 1x20W Fluorescent
B71: =Inputs!$R$68 -> Lamp UNIT price Annualised Cost | C71: =Inputs!$P$68 -> Lamp Maintenance cycle | E71: =IF($B70="Blank",0,VLOOKUP($B70,Inputs!$C$68:$AK$129,MATCH($B71,Inputs!$C$68:$AK$68,0),FALSE)) -> 1.012344111 | F71: =IF($B70="Blank",0,VLOOKUP($B70,Inputs!$C$68:$AK$129,MATCH($B71,Inputs!$C$68:$AK$68,0),FALSE)) -> 1.012344111 | I71: =B71 -> Lamp UNIT price Annualised Cost | J71: =IF(E71="NA","",E71/J$2*100) -> 0.277354551 | K71: =IF(F71="NA","",F71/K$2*100) -> 0.277354551
B72: =Inputs!$K$68 -> PE Cell UNIT price Annualised Cost | C72: =Inputs!$I$68 -> PE Cell Maintenance Cycle | E72: =IF($B70="Blank",0,VLOOKUP($B70,Inputs!$C$68:$AK$129,MATCH($B72,Inputs!$C$68:$AK$68,0),FALSE)) -> 0.5955547094 | F72: =IF($B70="Blank",0,VLOOKUP($B70,Inputs!$C$68:$AK$129,MATCH($B72,Inputs!$C$68:$AK$68,0),FALSE)) -> 0.5955547094 | I72: PE Cell UNIT price Annualised Cost | J72: 0.1631656738 | K72: 0.1631656738
B73: Corp capex annuity per light | E73: =IF($B70="Blank",0,'Corp Capex Annuity calcs'!F$109) -> 11.34474414 | F73: =IF($B70="Blank",0,'Corp Capex Annuity calcs'!G$109) -> 11.25447609 | I73: Corp capex annuity per light | J73: 3.108149081 | K73: 3.083418106
B74: =Inputs!$T$68 -> Lamp Service costs Annualised | E74: =IF($B70="Blank",0,VLOOKUP($B70,Inputs!$C$68:$AK$129,MATCH($B74,Inputs!$C$68:$AK$68,0),FALSE)) -> 25.3939337 | F74: =IF($B70="Blank",0,VLOOKUP($B70,Inputs!$C$68:$AK$129,MATCH($B74,Inputs!$C$68:$AK$68,0),FALSE)) -> 25.3939337 | I74: Lamp Service costs Annualised | J74: 6.95724211 | K74: 6.95724211
B75: =Inputs!$M$68 -> PE Cell Service costs Annualised | E75: =IF($B70="Blank",0,VLOOKUP($B70,Inputs!$C$68:$AK$129,MATCH($B75,Inputs!$C$68:$AK$68,0),FALSE)) -> 0 | F75: =IF($B70="Blank",0,VLOOKUP($B70,Inputs!$C$68:$AK$129,MATCH($B75,Inputs!$C$68:$AK$68,0),FALSE)) -> 0 | I75: PE Cell Service costs Annualised | J75: 0 | K75: 0
B76: Indirect Opex | E76: =IF($B70="Blank",0,IF($B$8="Private Contract Lighting",'Opex Weighting'!D$113,'Opex Weighting'!D$111)) -> 13.16019425 | F76: =IF($B70="Blank",0,IF($B$8="Private Contract Lighting",'Opex Weighting'!E$113,'Opex Weighting'!E$111)) -> 13.05548099 | I76: Indirect Opex | J76: 3.605532672 | K76: 3.576844107
B77: Indirect Capex | E77: =IF($B71="Blank",0,IF($B$8="Private Contract Lighting",'Capex Weighting'!D$115,'Capex Weighting'!D$117)) -> 0 | F77: =IF($B71="Blank",0,IF($B$8="Private Contract Lighting",'Capex Weighting'!E$115,'Capex Weighting'!E$117)) -> 0 | I77: Indirect Capex | J77: 0 | K77: 0
B78: Overhead Costs per light | E78: =IF($B70="Blank",0,IF($B$8="Private Contract Lighting",'Building Block'!C$49,'Building Block'!C$48)) -> 11.64791546 | F78: =IF($B70="Blank",0,IF($B$8="Private Contract Lighting",'Building Block'!D$49,'Building Block'!D$48)) -> 11.94867494 | I78: Overhead Costs per light | J78: 3.191209715 | K78: 3.273609574
B79: =Inputs!$AH$68 -> Bracket UNIT price | C79: 0 | E79: NA | F79: NA | I79: Bracket UNIT price
B80: =Inputs!$Y$68 -> CAPEX Installation costs | C80: =C79+1 -> 1 | E80: NA | F80: NA | I80: CAPEX Installation costs
B81: =Inputs!$X$68 -> Luminaire UNIT price | C81: =C80+1 -> 2 | E81: NA | F81: NA | I81: Luminaire UNIT price
B82: =Inputs!$Y$68 -> CAPEX Installation costs | C82: 3 | E82: NA | F82: NA | I82: CAPEX Installation costs
E83: =SUM(E71:E82) -> 63.15468638 | F83: =SUM(F71:F82) -> 63.26046455 | J83: =ROUND(E83/J$2*100,3) -> 17.303 | K83: =ROUND(F83/K$2*100,3) -> 17.332
A85: =A70+1 -> 6 | B85: =IFERROR(VLOOKUP($A85,Inputs!$B$68:$AK$129,MATCH($B$7,Inputs!$B$68:$AK$68,0),FALSE),"Blank") -> 1x40W Fluorescent | I85: =IFERROR(VLOOKUP($A85,Inputs!$B$68:$AK$129,MATCH($B$7,Inputs!$B$68:$AK$68,0),FALSE),"Blank") -> 1x40W Fluorescent
B86: =Inputs!$R$68 -> Lamp UNIT price Annualised Cost | C86: =Inputs!$P$68 -> Lamp Maintenance cycle | E86: =IF($B85="Blank",0,VLOOKUP($B85,Inputs!$C$68:$AK$129,MATCH($B86,Inputs!$C$68:$AK$68,0),FALSE)) -> 1.078111246 | F86: =IF($B85="Blank",0,VLOOKUP($B85,Inputs!$C$68:$AK$129,MATCH($B86,Inputs!$C$68:$AK$68,0),FALSE)) -> 1.078111246 | I86: =B86 -> Lamp UNIT price Annualised Cost | J86: =IF(E86="NA","",E86/J$2*100) -> 0.2953729441 | K86: =IF(F86="NA","",F86/K$2*100) -> 0.2953729441
B87: =Inputs!$K$68 -> PE Cell UNIT price Annualised Cost | C87: =Inputs!$I$68 -> PE Cell Maintenance Cycle | E87: =IF($B85="Blank",0,VLOOKUP($B85,Inputs!$C$68:$AK$129,MATCH($B87,Inputs!$C$68:$AK$68,0),FALSE)) -> 0.5955547094 | F87: =IF($B85="Blank",0,VLOOKUP($B85,Inputs!$C$68:$AK$129,MATCH($B87,Inputs!$C$68:$AK$68,0),FALSE)) -> 0.5955547094 | I87: PE Cell UNIT price Annualised Cost | J87: 0.1631656738 | K87: 0.1631656738
B88: Corp capex annuity per light | E88: =IF($B85="Blank",0,'Corp Capex Annuity calcs'!F$109) -> 11.34474414 | F88: =IF($B85="Blank",0,'Corp Capex Annuity calcs'!G$109) -> 11.25447609 | I88: Corp capex annuity per light | J88: 3.108149081 | K88: 3.083418106
B89: =Inputs!$T$68 -> Lamp Service costs Annualised | E89: =IF($B85="Blank",0,VLOOKUP($B85,Inputs!$C$68:$AK$129,MATCH($B89,Inputs!$C$68:$AK$68,0),FALSE)) -> 25.3939337 | F89: =IF($B85="Blank",0,VLOOKUP($B85,Inputs!$C$68:$AK$129,MATCH($B89,Inputs!$C$68:$AK$68,0),FALSE)) -> 25.3939337 | I89: Lamp Service costs Annualised | J89: 6.95724211 | K89: 6.95724211
B90: =Inputs!$M$68 -> PE Cell Service costs Annualised | E90: =IF($B85="Blank",0,VLOOKUP($B85,Inputs!$C$68:$AK$129,MATCH($B90,Inputs!$C$68:$AK$68,0),FALSE)) -> 0 | F90: =IF($B85="Blank",0,VLOOKUP($B85,Inputs!$C$68:$AK$129,MATCH($B90,Inputs!$C$68:$AK$68,0),FALSE)) -> 0 | I90: PE Cell Service costs Annualised | J90: 0 | K90: 0
B91: Indirect Opex | E91: =IF($B85="Blank",0,IF($B$8="Private Contract Lighting",'Opex Weighting'!D$113,'Opex Weighting'!D$111)) -> 13.16019425 | F91: =IF($B85="Blank",0,IF($B$8="Private Contract Lighting",'Opex Weighting'!E$113,'Opex Weighting'!E$111)) -> 13.05548099 | I91: Indirect Opex | J91: 3.605532672 | K91: 3.576844107
B92: Indirect Capex | E92: =IF($B86="Blank",0,IF($B$8="Private Contract Lighting",'Capex Weighting'!D$115,'Capex Weighting'!D$117)) -> 0 | F92: =IF($B86="Blank",0,IF($B$8="Private Contract Lighting",'Capex Weighting'!E$115,'Capex Weighting'!E$117)) -> 0 | I92: Indirect Capex | J92: 0 | K92: 0
B93: Overhead Costs per light | E93: =IF($B85="Blank",0,IF($B$8="Private Contract Lighting",'Building Block'!C$49,'Building Block'!C$48)) -> 11.64791546 | F93: =IF($B85="Blank",0,IF($B$8="Private Contract Lighting",'Building Block'!D$49,'Building Block'!D$48)) -> 11.94867494 | I93: Overhead Costs per light | J93: 3.191209715 | K93: 3.273609574
B94: =Inputs!$AH$68 -> Bracket UNIT price | C94: 0 | E94: NA | F94: NA | I94: Bracket UNIT price
B95: =Inputs!$Y$68 -> CAPEX Installation costs | C95: =C94+1 -> 1 | E95: NA | F95: NA | I95: CAPEX Installation costs
B96: =Inputs!$X$68 -> Luminaire UNIT price | C96: =C95+1 -> 2 | E96: NA | F96: NA | I96: Luminaire UNIT price
B97: =Inputs!$Y$68 -> CAPEX Installation costs | C97: 3 | E97: NA | F97: NA | I97: CAPEX Installation costs
E98: =SUM(E86:E97) -> 63.22045351 | F98: =SUM(F86:F97) -> 63.32623168 | J98: =ROUND(E98/J$2*100,3) -> 17.321 | K98: =ROUND(F98/K$2*100,3) -> 17.35
A100: =A85+1 -> 7 | B100: =IFERROR(VLOOKUP($A100,Inputs!$B$68:$AK$129,MATCH($B$7,Inputs!$B$68:$AK$68,0),FALSE),"Blank") -> 2x20W Fluorescent | I100: =IFERROR(VLOOKUP($A100,Inputs!$B$68:$AK$129,MATCH($B$7,Inputs!$B$68:$AK$68,0),FALSE),"Blank") -> 2x20W Fluorescent
B101: =Inputs!$R$68 -> Lamp UNIT price Annualised Cost | C101: =Inputs!$P$68 -> Lamp Maintenance cycle | E101: =IF($B100="Blank",0,VLOOKUP($B100,Inputs!$C$68:$AK$129,MATCH($B101,Inputs!$C$68:$AK$68,0),FALSE)) -> 2.024688222 | F101: =IF($B100="Blank",0,VLOOKUP($B100,Inputs!$C$68:$AK$129,MATCH($B101,Inputs!$C$68:$AK$68,0),FALSE)) -> 2.024688222 | I101: =B101 -> Lamp UNIT price Annualised Cost | J101: =IF(E101="NA","",E101/J$2*100) -> 0.554709102 | K101: =IF(F101="NA","",F101/K$2*100) -> 0.554709102
B102: =Inputs!$K$68 -> PE Cell UNIT price Annualised Cost | C102: =Inputs!$I$68 -> PE Cell Maintenance Cycle | E102: =IF($B100="Blank",0,VLOOKUP($B100,Inputs!$C$68:$AK$129,MATCH($B102,Inputs!$C$68:$AK$68,0),FALSE)) -> 0.5955547094 | F102: =IF($B100="Blank",0,VLOOKUP($B100,Inputs!$C$68:$AK$129,MATCH($B102,Inputs!$C$68:$AK$68,0),FALSE)) -> 0.5955547094 | I102: PE Cell UNIT price Annualised Cost | J102: 0.1631656738 | K102: 0.1631656738
B103: Corp capex annuity per light | E103: =IF($B100="Blank",0,'Corp Capex Annuity calcs'!F$109) -> 11.34474414 | F103: =IF($B100="Blank",0,'Corp Capex Annuity calcs'!G$109) -> 11.25447609 | I103: Corp capex annuity per light | J103: 3.108149081 | K103: 3.083418106
B104: =Inputs!$T$68 -> Lamp Service costs Annualised | E104: =IF($B100="Blank",0,VLOOKUP($B100,Inputs!$C$68:$AK$129,MATCH($B104,Inputs!$C$68:$AK$68,0),FALSE)) -> 25.3939337 | F104: =IF($B100="Blank",0,VLOOKUP($B100,Inputs!$C$68:$AK$129,MATCH($B104,Inputs!$C$68:$AK$68,0),FALSE)) -> 25.3939337 | I104: Lamp Service costs Annualised | J104: 6.95724211 | K104: 6.95724211
B105: =Inputs!$M$68 -> PE Cell Service costs Annualised | E105: =IF($B100="Blank",0,VLOOKUP($B100,Inputs!$C$68:$AK$129,MATCH($B105,Inputs!$C$68:$AK$68,0),FALSE)) -> 0 | F105: =IF($B100="Blank",0,VLOOKUP($B100,Inputs!$C$68:$AK$129,MATCH($B105,Inputs!$C$68:$AK$68,0),FALSE)) -> 0 | I105: PE Cell Service costs Annualised | J105: 0 | K105: 0
B106: Indirect Opex | E106: =IF($B100="Blank",0,IF($B$8="Private Contract Lighting",'Opex Weighting'!D$113,'Opex Weighting'!D$111)) -> 13.16019425 | F106: =IF($B100="Blank",0,IF($B$8="Private Contract Lighting",'Opex Weighting'!E$113,'Opex Weighting'!E$111)) -> 13.05548099 | I106: Indirect Opex | J106: 3.605532672 | K106: 3.576844107
B107: Indirect Capex | E107: =IF($B101="Blank",0,IF($B$8="Private Contract Lighting",'Capex Weighting'!D$115,'Capex Weighting'!D$117)) -> 0 | F107: =IF($B101="Blank",0,IF($B$8="Private Contract Lighting",'Capex Weighting'!E$115,'Capex Weighting'!E$117)) -> 0 | I107: Indirect Capex | J107: 0 | K107: 0
B108: Overhead Costs per light | E108: =IF($B100="Blank",0,IF($B$8="Private Contract Lighting",'Building Block'!C$49,'Building Block'!C$48)) -> 11.64791546 | F108: =IF($B100="Blank",0,IF($B$8="Private Contract Lighting",'Building Block'!D$49,'Building Block'!D$48)) -> 11.94867494 | I108: Overhead Costs per light | J108: 3.191209715 | K108: 3.273609574
B109: =Inputs!$AH$68 -> Bracket UNIT price | C109: 0 | E109: NA | F109: NA | I109: Bracket UNIT price
B110: =Inputs!$Y$68 -> CAPEX Installation costs | C110: =C109+1 -> 1 | E110: NA | F110: NA | I110: CAPEX Installation costs
B111: =Inputs!$X$68 -> Luminaire UNIT price | C111: =C110+1 -> 2 | E111: NA | F111: NA | I111: Luminaire UNIT price
B112: =Inputs!$Y$68 -> CAPEX Installation costs | C112: 3 | E112: NA | F112: NA | I112: CAPEX Installation costs
E113: =SUM(E101:E112) -> 64.16703049 | F113: =SUM(F101:F112) -> 64.27280866 | J113: =ROUND(E113/J$2*100,3) -> 17.58 | K113: =ROUND(F113/K$2*100,3) -> 17.609
A115: =A100+1 -> 8 | B115: =IFERROR(VLOOKUP($A115,Inputs!$B$68:$AK$129,MATCH($B$7,Inputs!$B$68:$AK$68,0),FALSE),"Blank") -> 2x24W Fluorescent | I115: =IFERROR(VLOOKUP($A115,Inputs!$B$68:$AK$129,MATCH($B$7,Inputs!$B$68:$AK$68,0),FALSE),"Blank") -> 2x24W Fluorescent
B116: =Inputs!$R$68 -> Lamp UNIT price Annualised Cost | C116: =Inputs!$P$68 -> Lamp Maintenance cycle | E116: =IF($B115="Blank",0,VLOOKUP($B115,Inputs!$C$68:$AK$129,MATCH($B116,Inputs!$C$68:$AK$68,0),FALSE)) -> 1.472211242 | F116: =IF($B115="Blank",0,VLOOKUP($B115,Inputs!$C$68:$AK$129,MATCH($B116,Inputs!$C$68:$AK$68,0),FALSE)) -> 1.472211242 | I116: =B116 -> Lamp UNIT price Annualised Cost | J116: =IF(E116="NA","",E116/J$2*100) -> 0.4033455457 | K116: =IF(F116="NA","",F116/K$2*100) -> 0.4033455457
B117: =Inputs!$K$68 -> PE Cell UNIT price Annualised Cost | C117: =Inputs!$I$68 -> PE Cell Maintenance Cycle | E117: =IF($B115="Blank",0,VLOOKUP($B115,Inputs!$C$68:$AK$129,MATCH($B117,Inputs!$C$68:$AK$68,0),FALSE)) -> 0.5955547094 | F117: =IF($B115="Blank",0,VLOOKUP($B115,Inputs!$C$68:$AK$129,MATCH($B117,Inputs!$C$68:$AK$68,0),FALSE)) -> 0.5955547094 | I117: PE Cell UNIT price Annualised Cost | J117: 0.1631656738 | K117: 0.1631656738
B118: Corp capex annuity per light | E118: =IF($B115="Blank",0,'Corp Capex Annuity calcs'!F$109) -> 11.34474414 | F118: =IF($B115="Blank",0,'Corp Capex Annuity calcs'!G$109) -> 11.25447609 | I118: Corp capex annuity per light | J118: 3.108149081 | K118: 3.083418106
B119: =Inputs!$T$68 -> Lamp Service costs Annualised | E119: =IF($B115="Blank",0,VLOOKUP($B115,Inputs!$C$68:$AK$129,MATCH($B119,Inputs!$C$68:$AK$68,0),FALSE)) -> 25.3939337 | F119: =IF($B115="Blank",0,VLOOKUP($B115,Inputs!$C$68:$AK$129,MATCH($B119,Inputs!$C$68:$AK$68,0),FALSE)) -> 25.3939337 | I119: Lamp Service costs Annualised | J119: 6.95724211 | K119: 6.95724211
B120: =Inputs!$M$68 -> PE Cell Service costs Annualised | E120: =IF($B115="Blank",0,VLOOKUP($B115,Inputs!$C$68:$AK$129,MATCH($B120,Inputs!$C$68:$AK$68,0),FALSE)) -> 0 | F120: =IF($B115="Blank",0,VLOOKUP($B115,Inputs!$C$68:$AK$129,MATCH($B120,Inputs!$C$68:$AK$68,0),FALSE)) -> 0 | I120: PE Cell Service costs Annualised | J120: 0 | K120: 0
B121: Indirect Opex | E121: =IF($B115="Blank",0,IF($B$8="Private Contract Lighting",'Opex Weighting'!D$113,'Opex Weighting'!D$111)) -> 13.16019425 | F121: =IF($B115="Blank",0,IF($B$8="Private Contract Lighting",'Opex Weighting'!E$113,'Opex Weighting'!E$111)) -> 13.05548099 | I121: Indirect Opex | J121: 3.605532672 | K121: 3.576844107
B122: Indirect Capex | E122: =IF($B116="Blank",0,IF($B$8="Private Contract Lighting",'Capex Weighting'!D$115,'Capex Weighting'!D$117)) -> 0 | F122: =IF($B116="Blank",0,IF($B$8="Private Contract Lighting",'Capex Weighting'!E$115,'Capex Weighting'!E$117)) -> 0 | I122: Indirect Capex | J122: 0 | K122: 0
B123: Overhead Costs per light | E123: =IF($B115="Blank",0,IF($B$8="Private Contract Lighting",'Building Block'!C$49,'Building Block'!C$48)) -> 11.64791546 | F123: =IF($B115="Blank",0,IF($B$8="Private Contract Lighting",'Building Block'!D$49,'Building Block'!D$48)) -> 11.94867494 | I123: Overhead Costs per light | J123: 3.191209715 | K123: 3.273609574
B124: =Inputs!$AH$68 -> Bracket UNIT price | C124: 0 | E124: NA | F124: NA | I124: Bracket UNIT price
B125: =Inputs!$Y$68 -> CAPEX Installation costs | C125: =C124+1 -> 1 | E125: NA | F125: NA | I125: CAPEX Installation costs
B126: =Inputs!$X$68 -> Luminaire UNIT price | C126: =C125+1 -> 2 | E126: NA | F126: NA | I126: Luminaire UNIT price
B127: =Inputs!$Y$68 -> CAPEX Installation costs | C127: 3 | E127: NA | F127: NA | I127: CAPEX Installation costs
E128: =SUM(E116:E127) -> 63.61455351 | F128: =SUM(F116:F127) -> 63.72033168 | J128: =ROUND(E128/J$2*100,3) -> 17.429 | K128: =ROUND(F128/K$2*100,3) -> 17.458
A130: =A115+1 -> 9 | B130: =IFERROR(VLOOKUP($A130,Inputs!$B$68:$AK$129,MATCH($B$7,Inputs!$B$68:$AK$68,0),FALSE),"Blank") -> T5 Fluorescent 2 x 24W | I130: =IFERROR(VLOOKUP($A130,Inputs!$B$68:$AK$129,MATCH($B$7,Inputs!$B$68:$AK$68,0),FALSE),"Blank") -> T5 Fluorescent 2 x 24W
B131: =Inputs!$R$68 -> Lamp UNIT price Annualised Cost | C131: =Inputs!$P$68 -> Lamp Maintenance cycle | E131: =IF($B130="Blank",0,VLOOKUP($B130,Inputs!$C$68:$AK$129,MATCH($B131,Inputs!$C$68:$AK$68,0),FALSE)) -> 2.024688222 | F131: =IF($B130="Blank",0,VLOOKUP($B130,Inputs!$C$68:$AK$129,MATCH($B131,Inputs!$C$68:$AK$68,0),FALSE)) -> 2.024688222 | I131: =B131 -> Lamp UNIT price Annualised Cost | J131: =IF(E131="NA","",E131/J$2*100) -> 0.554709102 | K131: =IF(F131="NA","",F131/K$2*100) -> 0.554709102
B132: =Inputs!$K$68 -> PE Cell UNIT price Annualised Cost | C132: =Inputs!$I$68 -> PE Cell Maintenance Cycle | E132: =IF($B130="Blank",0,VLOOKUP($B130,Inputs!$C$68:$AK$129,MATCH($B132,Inputs!$C$68:$AK$68,0),FALSE)) -> 0.5955547094 | F132: =IF($B130="Blank",0,VLOOKUP($B130,Inputs!$C$68:$AK$129,MATCH($B132,Inputs!$C$68:$AK$68,0),FALSE)) -> 0.5955547094 | I132: PE Cell UNIT price Annualised Cost | J132: 0.1631656738 | K132: 0.1631656738
B133: Corp capex annuity per light | E133: =IF($B130="Blank",0,'Corp Capex Annuity calcs'!F$109) -> 11.34474414 | F133: =IF($B130="Blank",0,'Corp Capex Annuity calcs'!G$109) -> 11.25447609 | I133: Corp capex annuity per light | J133: 3.108149081 | K133: 3.083418106
B134: =Inputs!$T$68 -> Lamp Service costs Annualised | E134: =IF($B130="Blank",0,VLOOKUP($B130,Inputs!$C$68:$AK$129,MATCH($B134,Inputs!$C$68:$AK$68,0),FALSE)) -> 25.3939337 | F134: =IF($B130="Blank",0,VLOOKUP($B130,Inputs!$C$68:$AK$129,MATCH($B134,Inputs!$C$68:$AK$68,0),FALSE)) -> 25.3939337 | I134: Lamp Service costs Annualised | J134: 6.95724211 | K134: 6.95724211
B135: =Inputs!$M$68 -> PE Cell Service costs Annualised | E135: =IF($B130="Blank",0,VLOOKUP($B130,Inputs!$C$68:$AK$129,MATCH($B135,Inputs!$C$68:$AK$68,0),FALSE)) -> 0 | F135: =IF($B130="Blank",0,VLOOKUP($B130,Inputs!$C$68:$AK$129,MATCH($B135,Inputs!$C$68:$AK$68,0),FALSE)) -> 0 | I135: PE Cell Service costs Annualised | J135: 0 | K135: 0
B136: Indirect Opex | E136: =IF($B130="Blank",0,IF($B$8="Private Contract Lighting",'Opex Weighting'!D$113,'Opex Weighting'!D$111)) -> 13.16019425 | F136: =IF($B130="Blank",0,IF($B$8="Private Contract Lighting",'Opex Weighting'!E$113,'Opex Weighting'!E$111)) -> 13.05548099 | I136: Indirect Opex | J136: 3.605532672 | K136: 3.576844107
B137: Indirect Capex | E137: =IF($B131="Blank",0,IF($B$8="Private Contract Lighting",'Capex Weighting'!D$115,'Capex Weighting'!D$117)) -> 0 | F137: =IF($B131="Blank",0,IF($B$8="Private Contract Lighting",'Capex Weighting'!E$115,'Capex Weighting'!E$117)) -> 0 | I137: Indirect Capex | J137: 0 | K137: 0
B138: Overhead Costs per light | E138: =IF($B130="Blank",0,IF($B$8="Private Contract Lighting",'Building Block'!C$49,'Building Block'!C$48)) -> 11.64791546 | F138: =IF($B130="Blank",0,IF($B$8="Private Contract Lighting",'Building Block'!D$49,'Building Block'!D$48)) -> 11.94867494 | I138: Overhead Costs per light | J138: 3.191209715 | K138: 3.273609574
B139: =Inputs!$AH$68 -> Bracket UNIT price | C139: 0 | E139: NA | F139: NA | I139: Bracket UNIT price
B140: =Inputs!$Y$68 -> CAPEX Installation costs | C140: =C139+1 -> 1 | E140: NA | F140: NA | I140: CAPEX Installation costs
B141: =Inputs!$X$68 -> Luminaire UNIT price | C141: =C140+1 -> 2 | E141: NA | F141: NA | I141: Luminaire UNIT price
B142: =Inputs!$Y$68 -> CAPEX Installation costs | C142: 3 | E142: NA | F142: NA | I142: CAPEX Installation costs
E143: =SUM(E131:E142) -> 64.16703049 | F143: =SUM(F131:F142) -> 64.27280866 | J143: =ROUND(E143/J$2*100,3) -> 17.58 | K143: =ROUND(F143/K$2*100,3) -> 17.609
A145: =A130+1 -> 10 | B145: =IFERROR(VLOOKUP($A145,Inputs!$B$68:$AK$129,MATCH($B$7,Inputs!$B$68:$AK$68,0),FALSE),"Blank") -> 20 Fluorescent 1X20FL | I145: =IFERROR(VLOOKUP($A145,Inputs!$B$68:$AK$129,MATCH($B$7,Inputs!$B$68:$AK$68,0),FALSE),"Blank") -> 20 Fluorescent 1X20FL
B146: =Inputs!$R$68 -> Lamp UNIT price Annualised Cost | C146: =Inputs!$P$68 -> Lamp Maintenance cycle | E146: =IF($B145="Blank",0,VLOOKUP($B145,Inputs!$C$68:$AK$129,MATCH($B146,Inputs!$C$68:$AK$68,0),FALSE)) -> 1.012344111 | F146: =IF($B145="Blank",0,VLOOKUP($B145,Inputs!$C$68:$AK$129,MATCH($B146,Inputs!$C$68:$AK$68,0),FALSE)) -> 1.012344111 | I146: =B146 -> Lamp UNIT price Annualised Cost | J146: =IF(E146="NA","",E146/J$2*100) -> 0.277354551 | K146: =IF(F146="NA","",F146/K$2*100) -> 0.277354551
B147: =Inputs!$K$68 -> PE Cell UNIT price Annualised Cost | C147: =Inputs!$I$68 -> PE Cell Maintenance Cycle | E147: =IF($B145="Blank",0,VLOOKUP($B145,Inputs!$C$68:$AK$129,MATCH($B147,Inputs!$C$68:$AK$68,0),FALSE)) -> 0.5955547094 | F147: =IF($B145="Blank",0,VLOOKUP($B145,Inputs!$C$68:$AK$129,MATCH($B147,Inputs!$C$68:$AK$68,0),FALSE)) -> 0.5955547094 | I147: PE Cell UNIT price Annualised Cost | J147: 0.1631656738 | K147: 0.1631656738
B148: Corp capex annuity per light | E148: =IF($B145="Blank",0,'Corp Capex Annuity calcs'!F$109) -> 11.34474414 | F148: =IF($B145="Blank",0,'Corp Capex Annuity calcs'!G$109) -> 11.25447609 | I148: Corp capex annuity per light | J148: 3.108149081 | K148: 3.083418106
B149: =Inputs!$T$68 -> Lamp Service costs Annualised | E149: =IF($B145="Blank",0,VLOOKUP($B145,Inputs!$C$68:$AK$129,MATCH($B149,Inputs!$C$68:$AK$68,0),FALSE)) -> 25.3939337 | F149: =IF($B145="Blank",0,VLOOKUP($B145,Inputs!$C$68:$AK$129,MATCH($B149,Inputs!$C$68:$AK$68,0),FALSE)) -> 25.3939337 | I149: Lamp Service costs Annualised | J149: 6.95724211 | K149: 6.95724211
B150: =Inputs!$M$68 -> PE Cell Service costs Annualised | E150: =IF($B145="Blank",0,VLOOKUP($B145,Inputs!$C$68:$AK$129,MATCH($B150,Inputs!$C$68:$AK$68,0),FALSE)) -> 0 | F150: =IF($B145="Blank",0,VLOOKUP($B145,Inputs!$C$68:$AK$129,MATCH($B150,Inputs!$C$68:$AK$68,0),FALSE)) -> 0 | I150: PE Cell Service costs Annualised | J150: 0 | K150: 0
B151: Indirect Opex | E151: =IF($B145="Blank",0,IF($B$8="Private Contract Lighting",'Opex Weighting'!D$113,'Opex Weighting'!D$111)) -> 13.16019425 | F151: =IF($B145="Blank",0,IF($B$8="Private Contract Lighting",'Opex Weighting'!E$113,'Opex Weighting'!E$111)) -> 13.05548099 | I151: Indirect Opex | J151: 3.605532672 | K151: 3.576844107
B152: Indirect Capex | E152: =IF($B146="Blank",0,IF($B$8="Private Contract Lighting",'Capex Weighting'!D$115,'Capex Weighting'!D$117)) -> 0 | F152: =IF($B146="Blank",0,IF($B$8="Private Contract Lighting",'Capex Weighting'!E$115,'Capex Weighting'!E$117)) -> 0 | I152: Indirect Capex | J152: 0 | K152: 0
B153: Overhead Costs per light | E153: =IF($B145="Blank",0,IF($B$8="Private Contract Lighting",'Building Block'!C$49,'Building Block'!C$48)) -> 11.64791546 | F153: =IF($B145="Blank",0,IF($B$8="Private Contract Lighting",'Building Block'!D$49,'Building Block'!D$48)) -> 11.94867494 | I153: Overhead Costs per light | J153: 3.191209715 | K153: 3.273609574
B154: =Inputs!$AH$68 -> Bracket UNIT price | C154: 0 | E154: NA | F154: NA | I154: Bracket UNIT price
B155: =Inputs!$Y$68 -> CAPEX Installation costs | C155: =C154+1 -> 1 | E155: NA | F155: NA | I155: CAPEX Installation costs
B156: =Inputs!$X$68 -> Luminaire UNIT price | C156: =C155+1 -> 2 | E156: NA | F156: NA | I156: Luminaire UNIT price
B157: =Inputs!$Y$68 -> CAPEX Installation costs | C157: 3 | E157: NA | F157: NA | I157: CAPEX Installation costs
E158: =SUM(E146:E157) -> 63.15468638 | F158: =SUM(F146:F157) -> 63.26046455 | J158: =ROUND(E158/J$2*100,3) -> 17.303 | K158: =ROUND(F158/K$2*100,3) -> 17.332
A160: =A145+1 -> 11 | B160: =IFERROR(VLOOKUP($A160,Inputs!$B$68:$AK$129,MATCH($B$7,Inputs!$B$68:$AK$68,0),FALSE),"Blank") -> 2x40W Fluorescent | I160: =IFERROR(VLOOKUP($A160,Inputs!$B$68:$AK$129,MATCH($B$7,Inputs!$B$68:$AK$68,0),FALSE),"Blank") -> 2x40W Fluorescent
B161: =Inputs!$R$68 -> Lamp UNIT price Annualised Cost | C161: =Inputs!$P$68 -> Lamp Maintenance cycle | E161: =IF($B160="Blank",0,VLOOKUP($B160,Inputs!$C$68:$AK$129,MATCH($B161,Inputs!$C$68:$AK$68,0),FALSE)) -> 2.156222492 | F161: =IF($B160="Blank",0,VLOOKUP($B160,Inputs!$C$68:$AK$129,MATCH($B161,Inputs!$C$68:$AK$68,0),FALSE)) -> 2.156222492 | I161: =B161 -> Lamp UNIT price Annualised Cost | J161: =IF(E161="NA","",E161/J$2*100) -> 0.5907458882 | K161: =IF(F161="NA","",F161/K$2*100) -> 0.5907458882
B162: =Inputs!$K$68 -> PE Cell UNIT price Annualised Cost | C162: =Inputs!$I$68 -> PE Cell Maintenance Cycle | E162: =IF($B160="Blank",0,VLOOKUP($B160,Inputs!$C$68:$AK$129,MATCH($B162,Inputs!$C$68:$AK$68,0),FALSE)) -> 0.5955547094 | F162: =IF($B160="Blank",0,VLOOKUP($B160,Inputs!$C$68:$AK$129,MATCH($B162,Inputs!$C$68:$AK$68,0),FALSE)) -> 0.5955547094 | I162: PE Cell UNIT price Annualised Cost | J162: 0.1631656738 | K162: 0.1631656738
B163: Corp capex annuity per light | E163: =IF($B160="Blank",0,'Corp Capex Annuity calcs'!F$109) -> 11.34474414 | F163: =IF($B160="Blank",0,'Corp Capex Annuity calcs'!G$109) -> 11.25447609 | I163: Corp capex annuity per light | J163: 3.108149081 | K163: 3.083418106
B164: =Inputs!$T$68 -> Lamp Service costs Annualised | E164: =IF($B160="Blank",0,VLOOKUP($B160,Inputs!$C$68:$AK$129,MATCH($B164,Inputs!$C$68:$AK$68,0),FALSE)) -> 25.3939337 | F164: =IF($B160="Blank",0,VLOOKUP($B160,Inputs!$C$68:$AK$129,MATCH($B164,Inputs!$C$68:$AK$68,0),FALSE)) -> 25.3939337 | I164: Lamp Service costs Annualised | J164: 6.95724211 | K164: 6.95724211
B165: =Inputs!$M$68 -> PE Cell Service costs Annualised | E165: =IF($B160="Blank",0,VLOOKUP($B160,Inputs!$C$68:$AK$129,MATCH($B165,Inputs!$C$68:$AK$68,0),FALSE)) -> 0 | F165: =IF($B160="Blank",0,VLOOKUP($B160,Inputs!$C$68:$AK$129,MATCH($B165,Inputs!$C$68:$AK$68,0),FALSE)) -> 0 | I165: PE Cell Service costs Annualised | J165: 0 | K165: 0
B166: Indirect Opex | E166: =IF($B160="Blank",0,IF($B$8="Private Contract Lighting",'Opex Weighting'!D$113,'Opex Weighting'!D$111)) -> 13.16019425 | F166: =IF($B160="Blank",0,IF($B$8="Private Contract Lighting",'Opex Weighting'!E$113,'Opex Weighting'!E$111)) -> 13.05548099 | I166: Indirect Opex | J166: 3.605532672 | K166: 3.576844107
B167: Indirect Capex | E167: =IF($B161="Blank",0,IF($B$8="Private Contract Lighting",'Capex Weighting'!D$115,'Capex Weighting'!D$117)) -> 0 | F167: =IF($B161="Blank",0,IF($B$8="Private Contract Lighting",'Capex Weighting'!E$115,'Capex Weighting'!E$117)) -> 0 | I167: Indirect Capex | J167: 0 | K167: 0
B168: Overhead Costs per light | E168: =IF($B160="Blank",0,IF($B$8="Private Contract Lighting",'Building Block'!C$49,'Building Block'!C$48)) -> 11.64791546 | F168: =IF($B160="Blank",0,IF($B$8="Private Contract Lighting",'Building Block'!D$49,'Building Block'!D$48)) -> 11.94867494 | I168: Overhead Costs per light | J168: 3.191209715 | K168: 3.273609574
B169: =Inputs!$AH$68 -> Bracket UNIT price | C169: 0 | E169: NA | F169: NA | I169: Bracket UNIT price
B170: =Inputs!$Y$68 -> CAPEX Installation costs | C170: =C169+1 -> 1 | E170: NA | F170: NA | I170: CAPEX Installation costs
B171: =Inputs!$X$68 -> Luminaire UNIT price | C171: =C170+1 -> 2 | E171: NA | F171: NA | I171: Luminaire UNIT price
B172: =Inputs!$Y$68 -> CAPEX Installation costs | C172: 3 | E172: NA | F172: NA | I172: CAPEX Installation costs
E173: =SUM(E161:E172) -> 64.29856476 | F173: =SUM(F161:F172) -> 64.40434293 | J173: =ROUND(E173/J$2*100,3) -> 17.616 | K173: =ROUND(F173/K$2*100,3) -> 17.645
A175: =A160+1 -> 12 | B175: =IFERROR(VLOOKUP($A175,Inputs!$B$68:$AK$129,MATCH($B$7,Inputs!$B$68:$AK$68,0),FALSE),"Blank") -> 3x40W Fluorescent | I175: =IFERROR(VLOOKUP($A175,Inputs!$B$68:$AK$129,MATCH($B$7,Inputs!$B$68:$AK$68,0),FALSE),"Blank") -> 3x40W Fluorescent
B176: =Inputs!$R$68 -> Lamp UNIT price Annualised Cost | C176: =Inputs!$P$68 -> Lamp Maintenance cycle | E176: =IF($B175="Blank",0,VLOOKUP($B175,Inputs!$C$68:$AK$129,MATCH($B176,Inputs!$C$68:$AK$68,0),FALSE)) -> 3.234333738 | F176: =IF($B175="Blank",0,VLOOKUP($B175,Inputs!$C$68:$AK$129,MATCH($B176,Inputs!$C$68:$AK$68,0),FALSE)) -> 3.234333738 | I176: =B176 -> Lamp UNIT price Annualised Cost | J176: =IF(E176="NA","",E176/J$2*100) -> 0.8861188323 | K176: =IF(F176="NA","",F176/K$2*100) -> 0.8861188323
B177: =Inputs!$K$68 -> PE Cell UNIT price Annualised Cost | C177: =Inputs!$I$68 -> PE Cell Maintenance Cycle | E177: =IF($B175="Blank",0,VLOOKUP($B175,Inputs!$C$68:$AK$129,MATCH($B177,Inputs!$C$68:$AK$68,0),FALSE)) -> 1.734578327 | F177: =IF($B175="Blank",0,VLOOKUP($B175,Inputs!$C$68:$AK$129,MATCH($B177,Inputs!$C$68:$AK$68,0),FALSE)) -> 1.734578327 | I177: PE Cell UNIT price Annualised Cost | J177: 0.4752269388 | K177: 0.4752269388
B178: Corp capex annuity per light | E178: =IF($B175="Blank",0,'Corp Capex Annuity calcs'!F$109) -> 11.34474414 | F178: =IF($B175="Blank",0,'Corp Capex Annuity calcs'!G$109) -> 11.25447609 | I178: Corp capex annuity per light | J178: 3.108149081 | K178: 3.083418106
B179: =Inputs!$T$68 -> Lamp Service costs Annualised | E179: =IF($B175="Blank",0,VLOOKUP($B175,Inputs!$C$68:$AK$129,MATCH($B179,Inputs!$C$68:$AK$68,0),FALSE)) -> 36.75437773 | F179: =IF($B175="Blank",0,VLOOKUP($B175,Inputs!$C$68:$AK$129,MATCH($B179,Inputs!$C$68:$AK$68,0),FALSE)) -> 36.75437773 | I179: Lamp Service costs Annualised | J179: 10.06969253 | K179: 10.06969253
B180: =Inputs!$M$68 -> PE Cell Service costs Annualised | E180: =IF($B175="Blank",0,VLOOKUP($B175,Inputs!$C$68:$AK$129,MATCH($B180,Inputs!$C$68:$AK$68,0),FALSE)) -> 0 | F180: =IF($B175="Blank",0,VLOOKUP($B175,Inputs!$C$68:$AK$129,MATCH($B180,Inputs!$C$68:$AK$68,0),FALSE)) -> 0 | I180: PE Cell Service costs Annualised | J180: 0 | K180: 0
B181: Indirect Opex | E181: =IF($B175="Blank",0,IF($B$8="Private Contract Lighting",'Opex Weighting'!D$113,'Opex Weighting'!D$111)) -> 13.16019425 | F181: =IF($B175="Blank",0,IF($B$8="Private Contract Lighting",'Opex Weighting'!E$113,'Opex Weighting'!E$111)) -> 13.05548099 | I181: Indirect Opex | J181: 3.605532672 | K181: 3.576844107
B182: Indirect Capex | E182: =IF($B176="Blank",0,IF($B$8="Private Contract Lighting",'Capex Weighting'!D$115,'Capex Weighting'!D$117)) -> 0 | F182: =IF($B176="Blank",0,IF($B$8="Private Contract Lighting",'Capex Weighting'!E$115,'Capex Weighting'!E$117)) -> 0 | I182: Indirect Capex | J182: 0 | K182: 0
B183: Overhead Costs per light | E183: =IF($B175="Blank",0,IF($B$8="Private Contract Lighting",'Building Block'!C$49,'Building Block'!C$48)) -> 11.64791546 | F183: =IF($B175="Blank",0,IF($B$8="Private Contract Lighting",'Building Block'!D$49,'Building Block'!D$48)) -> 11.94867494 | I183: Overhead Costs per light | J183: 3.191209715 | K183: 3.273609574
B184: =Inputs!$AH$68 -> Bracket UNIT price | C184: 0 | E184: NA | F184: NA | I184: Bracket UNIT price
B185: =Inputs!$Y$68 -> CAPEX Installation costs | C185: =C184+1 -> 1 | E185: NA | F185: NA | I185: CAPEX Installation costs
B186: =Inputs!$X$68 -> Luminaire UNIT price | C186: =C185+1 -> 2 | E186: NA | F186: NA | I186: Luminaire UNIT price
B187: =Inputs!$Y$68 -> CAPEX Installation costs | C187: 3 | E187: NA | F187: NA | I187: CAPEX Installation costs
E188: =SUM(E176:E187) -> 77.87614365 | F188: =SUM(F176:F187) -> 77.98192181 | J188: =ROUND(E188/J$2*100,3) -> 21.336 | K188: =ROUND(F188/K$2*100,3) -> 21.365
A190: =A175+1 -> 13 | B190: =IFERROR(VLOOKUP($A190,Inputs!$B$68:$AK$129,MATCH($B$7,Inputs!$B$68:$AK$68,0),FALSE),"Blank") -> 4x20 Fluorescent | I190: =IFERROR(VLOOKUP($A190,Inputs!$B$68:$AK$129,MATCH($B$7,Inputs!$B$68:$AK$68,0),FALSE),"Blank") -> 4x20 Fluorescent
B191: =Inputs!$R$68 -> Lamp UNIT price Annualised Cost | C191: =Inputs!$P$68 -> Lamp Maintenance cycle | E191: =IF($B190="Blank",0,VLOOKUP($B190,Inputs!$C$68:$AK$129,MATCH($B191,Inputs!$C$68:$AK$68,0),FALSE)) -> 4.049376445 | F191: =IF($B190="Blank",0,VLOOKUP($B190,Inputs!$C$68:$AK$129,MATCH($B191,Inputs!$C$68:$AK$68,0),FALSE)) -> 4.049376445 | I191: =B191 -> Lamp UNIT price Annualised Cost | J191: =IF(E191="NA","",E191/J$2*100) -> 1.109418204 | K191: =IF(F191="NA","",F191/K$2*100) -> 1.109418204
B192: =Inputs!$K$68 -> PE Cell UNIT price Annualised Cost | C192: =Inputs!$I$68 -> PE Cell Maintenance Cycle | E192: =IF($B190="Blank",0,VLOOKUP($B190,Inputs!$C$68:$AK$129,MATCH($B192,Inputs!$C$68:$AK$68,0),FALSE)) -> 0.5955547094 | F192: =IF($B190="Blank",0,VLOOKUP($B190,Inputs!$C$68:$AK$129,MATCH($B192,Inputs!$C$68:$AK$68,0),FALSE)) -> 0.5955547094 | I192: PE Cell UNIT price Annualised Cost | J192: 0.1631656738 | K192: 0.1631656738
B193: Corp capex annuity per light | E193: =IF($B190="Blank",0,'Corp Capex Annuity calcs'!F$109) -> 11.34474414 | F193: =IF($B190="Blank",0,'Corp Capex Annuity calcs'!G$109) -> 11.25447609 | I193: Corp capex annuity per light | J193: 3.108149081 | K193: 3.083418106
B194: =Inputs!$T$68 -> Lamp Service costs Annualised | E194: =IF($B190="Blank",0,VLOOKUP($B190,Inputs!$C$68:$AK$129,MATCH($B194,Inputs!$C$68:$AK$68,0),FALSE)) -> 25.3939337 | F194: =IF($B190="Blank",0,VLOOKUP($B190,Inputs!$C$68:$AK$129,MATCH($B194,Inputs!$C$68:$AK$68,0),FALSE)) -> 25.3939337 | I194: Lamp Service costs Annualised | J194: 6.95724211 | K194: 6.95724211
B195: =Inputs!$M$68 -> PE Cell Service costs Annualised | E195: =IF($B190="Blank",0,VLOOKUP($B190,Inputs!$C$68:$AK$129,MATCH($B195,Inputs!$C$68:$AK$68,0),FALSE)) -> 0 | F195: =IF($B190="Blank",0,VLOOKUP($B190,Inputs!$C$68:$AK$129,MATCH($B195,Inputs!$C$68:$AK$68,0),FALSE)) -> 0 | I195: PE Cell Service costs Annualised | J195: 0 | K195: 0
B196: Indirect Opex | E196: =IF($B190="Blank",0,IF($B$8="Private Contract Lighting",'Opex Weighting'!D$113,'Opex Weighting'!D$111)) -> 13.16019425 | F196: =IF($B190="Blank",0,IF($B$8="Private Contract Lighting",'Opex Weighting'!E$113,'Opex Weighting'!E$111)) -> 13.05548099 | I196: Indirect Opex | J196: 3.605532672 | K196: 3.576844107
B197: Indirect Capex | E197: =IF($B191="Blank",0,IF($B$8="Private Contract Lighting",'Capex Weighting'!D$115,'Capex Weighting'!D$117)) -> 0 | F197: =IF($B191="Blank",0,IF($B$8="Private Contract Lighting",'Capex Weighting'!E$115,'Capex Weighting'!E$117)) -> 0 | I197: Indirect Capex | J197: 0 | K197: 0
B198: Overhead Costs per light | E198: =IF($B190="Blank",0,IF($B$8="Private Contract Lighting",'Building Block'!C$49,'Building Block'!C$48)) -> 11.64791546 | F198: =IF($B190="Blank",0,IF($B$8="Private Contract Lighting",'Building Block'!D$49,'Building Block'!D$48)) -> 11.94867494 | I198: Overhead Costs per light | J198: 3.191209715 | K198: 3.273609574
B199: =Inputs!$AH$68 -> Bracket UNIT price | C199: 0 | E199: NA | F199: NA | I199: Bracket UNIT price
B200: =Inputs!$Y$68 -> CAPEX Installation costs | C200: =C199+1 -> 1 | E200: NA | F200: NA | I200: CAPEX Installation costs
B201: =Inputs!$X$68 -> Luminaire UNIT price | C201: =C200+1 -> 2 | E201: NA | F201: NA | I201: Luminaire UNIT price
B202: =Inputs!$Y$68 -> CAPEX Installation costs | C202: 3 | E202: NA | F202: NA | I202: CAPEX Installation costs
E203: =SUM(E191:E202) -> 66.19171871 | F203: =SUM(F191:F202) -> 66.29749688 | J203: =ROUND(E203/J$2*100,3) -> 18.135 | K203: =ROUND(F203/K$2*100,3) -> 18.164
A205: =A190+1 -> 14 | B205: =IFERROR(VLOOKUP($A205,Inputs!$B$68:$AK$129,MATCH($B$7,Inputs!$B$68:$AK$68,0),FALSE),"Blank") -> 4x40W Fluorescent | I205: =IFERROR(VLOOKUP($A205,Inputs!$B$68:$AK$129,MATCH($B$7,Inputs!$B$68:$AK$68,0),FALSE),"Blank") -> 4x40W Fluorescent
B206: =Inputs!$R$68 -> Lamp UNIT price Annualised Cost | C206: =Inputs!$P$68 -> Lamp Maintenance cycle | E206: =IF($B205="Blank",0,VLOOKUP($B205,Inputs!$C$68:$AK$129,MATCH($B206,Inputs!$C$68:$AK$68,0),FALSE)) -> 4.312444984 | F206: =IF($B205="Blank",0,VLOOKUP($B205,Inputs!$C$68:$AK$129,MATCH($B206,Inputs!$C$68:$AK$68,0),FALSE)) -> 4.312444984 | I206: =B206 -> Lamp UNIT price Annualised Cost | J206: =IF(E206="NA","",E206/J$2*100) -> 1.181491776 | K206: =IF(F206="NA","",F206/K$2*100) -> 1.181491776
B207: =Inputs!$K$68 -> PE Cell UNIT price Annualised Cost | C207: =Inputs!$I$68 -> PE Cell Maintenance Cycle | E207: =IF($B205="Blank",0,VLOOKUP($B205,Inputs!$C$68:$AK$129,MATCH($B207,Inputs!$C$68:$AK$68,0),FALSE)) -> 1.734578327 | F207: =IF($B205="Blank",0,VLOOKUP($B205,Inputs!$C$68:$AK$129,MATCH($B207,Inputs!$C$68:$AK$68,0),FALSE)) -> 1.734578327 | I207: PE Cell UNIT price Annualised Cost | J207: 0.4752269388 | K207: 0.4752269388
B208: Corp capex annuity per light | E208: =IF($B205="Blank",0,'Corp Capex Annuity calcs'!F$109) -> 11.34474414 | F208: =IF($B205="Blank",0,'Corp Capex Annuity calcs'!G$109) -> 11.25447609 | I208: Corp capex annuity per light | J208: 3.108149081 | K208: 3.083418106
B209: =Inputs!$T$68 -> Lamp Service costs Annualised | E209: =IF($B205="Blank",0,VLOOKUP($B205,Inputs!$C$68:$AK$129,MATCH($B209,Inputs!$C$68:$AK$68,0),FALSE)) -> 36.75437773 | F209: =IF($B205="Blank",0,VLOOKUP($B205,Inputs!$C$68:$AK$129,MATCH($B209,Inputs!$C$68:$AK$68,0),FALSE)) -> 36.75437773 | I209: Lamp Service costs Annualised | J209: 10.06969253 | K209: 10.06969253
B210: =Inputs!$M$68 -> PE Cell Service costs Annualised | E210: =IF($B205="Blank",0,VLOOKUP($B205,Inputs!$C$68:$AK$129,MATCH($B210,Inputs!$C$68:$AK$68,0),FALSE)) -> 0 | F210: =IF($B205="Blank",0,VLOOKUP($B205,Inputs!$C$68:$AK$129,MATCH($B210,Inputs!$C$68:$AK$68,0),FALSE)) -> 0 | I210: PE Cell Service costs Annualised | J210: 0 | K210: 0
B211: Indirect Opex | E211: =IF($B205="Blank",0,IF($B$8="Private Contract Lighting",'Opex Weighting'!D$113,'Opex Weighting'!D$111)) -> 13.16019425 | F211: =IF($B205="Blank",0,IF($B$8="Private Contract Lighting",'Opex Weighting'!E$113,'Opex Weighting'!E$111)) -> 13.05548099 | I211: Indirect Opex | J211: 3.605532672 | K211: 3.576844107
B212: Indirect Capex | E212: =IF($B206="Blank",0,IF($B$8="Private Contract Lighting",'Capex Weighting'!D$115,'Capex Weighting'!D$117)) -> 0 | F212: =IF($B206="Blank",0,IF($B$8="Private Contract Lighting",'Capex Weighting'!E$115,'Capex Weighting'!E$117)) -> 0 | I212: Indirect Capex | J212: 0 | K212: 0
B213: Overhead Costs per light | E213: =IF($B205="Blank",0,IF($B$8="Private Contract Lighting",'Building Block'!C$49,'Building Block'!C$48)) -> 11.64791546 | F213: =IF($B205="Blank",0,IF($B$8="Private Contract Lighting",'Building Block'!D$49,'Building Block'!D$48)) -> 11.94867494 | I213: Overhead Costs per light | J213: 3.191209715 | K213: 3.273609574
B214: =Inputs!$AH$68 -> Bracket UNIT price | C214: 0 | E214: NA | F214: NA | I214: Bracket UNIT price
... 508 more rows

Sheet Combined Annuity Prices PL
I1: ='Master Data'!H$22 -> 2017-06-30 | J1: ='Master Data'!I$22 -> 2018-06-30 | K1: ='Master Data'!J$22 -> 2019-06-30
J2: =HLOOKUP(J1,'Master Data'!$B$22:$P$23,2,FALSE) -> 365 | K2: =HLOOKUP(K1,'Master Data'!$B$22:$P$23,2,FALSE) -> 365
E3: ='Master Data'!I29 -> 2017-18 | F3: ='Master Data'!J29 -> 2018-19 | J3: ='Master Data'!I29 -> 2017-18 | K3: ='Master Data'!J29 -> 2018-19
E4: Cost $ Per year | J4: Cost Cents per Day
B6: Lookup/Offset | D6: Offset | E6: 13 | F6: =E6+1 -> 14
B7: =Inputs!$C$68 -> Light Description | D7: Useful Life
B8: Public Lighting
A10: 1 | B10: =IFERROR(VLOOKUP($A10,Inputs!$B$68:$AK$129,MATCH($B$7,Inputs!$B$68:$AK$68,0),FALSE),"Blank") -> 32W Compact Fluorescent | I10: =IFERROR(VLOOKUP($A10,Inputs!$B$68:$AK$129,MATCH($B$7,Inputs!$B$68:$AK$68,0),FALSE),"Blank") -> 32W Compact Fluorescent
B11: =Inputs!$R$68 -> Lamp UNIT price Annualised Cost | C11: =Inputs!$P$68 -> Lamp Maintenance cycle | E11: =IF($B10="Blank",0,VLOOKUP($B10,Inputs!$C$68:$AK$129,MATCH($B11,Inputs!$C$68:$AK$68,0),FALSE)) -> 1.12537633 | F11: =IF($B10="Blank",0,VLOOKUP($B10,Inputs!$C$68:$AK$129,MATCH($B11,Inputs!$C$68:$AK$68,0),FALSE)) -> 1.12537633 | I11: =B11 -> Lamp UNIT price Annualised Cost | J11: =IF(E11="NA","",E11/J$2*100) -> 0.3083222821 | K11: =IF(F11="NA","",F11/K$2*100) -> 0.3083222821
B12: =Inputs!$K$68 -> PE Cell UNIT price Annualised Cost | C12: =Inputs!$I$68 -> PE Cell Maintenance Cycle | E12: =IF($B10="Blank",0,VLOOKUP($B10,Inputs!$C$68:$AK$129,MATCH($B12,Inputs!$C$68:$AK$68,0),FALSE)) -> 0.5955547094 | F12: =IF($B10="Blank",0,VLOOKUP($B10,Inputs!$C$68:$AK$129,MATCH($B12,Inputs!$C$68:$AK$68,0),FALSE)) -> 0.5955547094 | I12: PE Cell UNIT price Annualised Cost | J12: 0.1631656738 | K12: 0.1631656738
B13: Corp capex annuity per light | E13: =IF($B10="Blank",0,'Corp Capex Annuity calcs'!F$109) -> 11.34474414 | F13: =IF($B10="Blank",0,'Corp Capex Annuity calcs'!G$109) -> 11.25447609 | I13: Corp capex annuity per light | J13: 3.108149081 | K13: 3.083418106
B14: =Inputs!$T$68 -> Lamp Service costs Annualised | E14: =IF($B10="Blank",0,VLOOKUP($B10,Inputs!$C$68:$AK$129,MATCH($B14,Inputs!$C$68:$AK$68,0),FALSE)) -> 25.3939337 | F14: =IF($B10="Blank",0,VLOOKUP($B10,Inputs!$C$68:$AK$129,MATCH($B14,Inputs!$C$68:$AK$68,0),FALSE)) -> 25.3939337 | I14: Lamp Service costs Annualised | J14: 6.95724211 | K14: 6.95724211
B15: =Inputs!$M$68 -> PE Cell Service costs Annualised | E15: =IF($B10="Blank",0,VLOOKUP($B10,Inputs!$C$68:$AK$129,MATCH($B15,Inputs!$C$68:$AK$68,0),FALSE)) -> 0 | F15: =IF($B10="Blank",0,VLOOKUP($B10,Inputs!$C$68:$AK$129,MATCH($B15,Inputs!$C$68:$AK$68,0),FALSE)) -> 0 | I15: PE Cell Service costs Annualised | J15: 0 | K15: 0
B16: Indirect Opex | E16: =IF($B10="Blank",0,IF($B$8="Private Contract Lighting",'Opex Weighting'!D$113,'Opex Weighting'!D$111)) -> 23.2103802 | F16: =IF($B10="Blank",0,IF($B$8="Private Contract Lighting",'Opex Weighting'!E$113,'Opex Weighting'!E$111)) -> 24.22507388 | I16: Indirect Opex | J16: 6.359008274 | K16: 6.637006543
B17: Indirect Capex | E17: ='Capex Weighting'!D$115 -> 0 | F17: ='Capex Weighting'!E$114 -> 0 | I17: Indirect Capex | J17: 0 | K17: 0
B18: Overhead Costs per light | E18: =IF($B10="Blank",0,IF($B$8="Private Contract Lighting",'Building Block'!C$49,'Building Block'!C$48)) -> 28.55140463 | F18: =IF($B10="Blank",0,IF($B$8="Private Contract Lighting",'Building Block'!D$49,'Building Block'!D$48)) -> 28.49138942 | I18: Overhead Costs per light | J18: 7.82230264 | K18: 7.805860115
B19: =Inputs!$AH$68 -> Bracket UNIT price | C19: 0 | E19: =IF($B10="Blank",0,OFFSET('CAPEX Annuity calcs'!$B$9,MATCH($B10,'CAPEX Annuity calcs'!$B$9:$B$500,0)+$C19,E$6)) -> 3.445686244 | F19: =IF($B10="Blank",0,OFFSET('CAPEX Annuity calcs'!$B$9,MATCH($B10,'CAPEX Annuity calcs'!$B$9:$B$500,0)+$C19,F$6)) -> 3.445686244 | I19: Bracket UNIT price | J19: 0.9440236286 | K19: 0.9440236286
B20: =Inputs!$Y$68 -> CAPEX Installation costs | C20: =C19+1 -> 1 | E20: =IF($B10="Blank",0,OFFSET('CAPEX Annuity calcs'!$B$9,MATCH($B10,'CAPEX Annuity calcs'!$B$9:$B$500,0)+$C20,E$6)) -> 0 | F20: =IF($B10="Blank",0,OFFSET('CAPEX Annuity calcs'!$B$9,MATCH($B10,'CAPEX Annuity calcs'!$B$9:$B$500,0)+$C20,F$6)) -> 0 | I20: CAPEX Installation costs | J20: 0 | K20: 0
B21: =Inputs!$X$68 -> Luminaire UNIT price | C21: =C20+1 -> 2 | E21: =IF($B10="Blank",0,OFFSET('CAPEX Annuity calcs'!$B$9,MATCH($B10,'CAPEX Annuity calcs'!$B$9:$B$500,0)+$C21,E$6)) -> 13.7303825 | F21: =IF($B10="Blank",0,OFFSET('CAPEX Annuity calcs'!$B$9,MATCH($B10,'CAPEX Annuity calcs'!$B$9:$B$500,0)+$C21,F$6)) -> 13.7303825 | I21: Luminaire UNIT price | J21: 3.761748629 | K21: 3.761748629
B22: =Inputs!$Y$68 -> CAPEX Installation costs | C22: 3 | E22: =IF($B10="Blank",0,OFFSET('CAPEX Annuity calcs'!$B$9,MATCH($B10,'CAPEX Annuity calcs'!$B$9:$B$500,0)+$C22,E$6)) -> 15.95868573 | F22: =IF($B10="Blank",0,OFFSET('CAPEX Annuity calcs'!$B$9,MATCH($B10,'CAPEX Annuity calcs'!$B$9:$B$500,0)+$C22,F$6)) -> 15.95868573 | I22: CAPEX Installation costs | J22: 4.372242666 | K22: 4.372242666
E23: =SUM(E11:E22) -> 123.3561482 | F23: =SUM(F11:F22) -> 124.2205586 | J23: =ROUND(E23/J$2*100,3) -> 33.796 | K23: =ROUND(F23/K$2*100,3) -> 34.033
A25: =A10+1 -> 2 | B25: =IFERROR(VLOOKUP($A25,Inputs!$B$68:$AK$129,MATCH($B$7,Inputs!$B$68:$AK$68,0),FALSE),"Blank") -> 42W Compact Fluorescent | I25: =IFERROR(VLOOKUP($A25,Inputs!$B$68:$AK$129,MATCH($B$7,Inputs!$B$68:$AK$68,0),FALSE),"Blank") -> 42W Compact Fluorescent
B26: =Inputs!$R$68 -> Lamp UNIT price Annualised Cost | C26: =Inputs!$P$68 -> Lamp Maintenance cycle | E26: =IF($B25="Blank",0,VLOOKUP($B25,Inputs!$C$68:$AK$129,MATCH($B26,Inputs!$C$68:$AK$68,0),FALSE)) -> 1.12537633 | F26: =IF($B25="Blank",0,VLOOKUP($B25,Inputs!$C$68:$AK$129,MATCH($B26,Inputs!$C$68:$AK$68,0),FALSE)) -> 1.12537633 | I26: =B26 -> Lamp UNIT price Annualised Cost | J26: =IF(E26="NA","",E26/J$2*100) -> 0.3083222821 | K26: =IF(F26="NA","",F26/K$2*100) -> 0.3083222821
B27: =Inputs!$K$68 -> PE Cell UNIT price Annualised Cost | C27: =Inputs!$I$68 -> PE Cell Maintenance Cycle | E27: =IF($B25="Blank",0,VLOOKUP($B25,Inputs!$C$68:$AK$129,MATCH($B27,Inputs!$C$68:$AK$68,0),FALSE)) -> 0.5955547094 | F27: =IF($B25="Blank",0,VLOOKUP($B25,Inputs!$C$68:$AK$129,MATCH($B27,Inputs!$C$68:$AK$68,0),FALSE)) -> 0.5955547094 | I27: PE Cell UNIT price Annualised Cost | J27: 0.1631656738 | K27: 0.1631656738
B28: Corp capex annuity per light | E28: =IF($B25="Blank",0,'Corp Capex Annuity calcs'!F$109) -> 11.34474414 | F28: =IF($B25="Blank",0,'Corp Capex Annuity calcs'!G$109) -> 11.25447609 | I28: Corp capex annuity per light | J28: 3.108149081 | K28: 3.083418106
B29: =Inputs!$T$68 -> Lamp Service costs Annualised | E29: =IF($B25="Blank",0,VLOOKUP($B25,Inputs!$C$68:$AK$129,MATCH($B29,Inputs!$C$68:$AK$68,0),FALSE)) -> 25.3939337 | F29: =IF($B25="Blank",0,VLOOKUP($B25,Inputs!$C$68:$AK$129,MATCH($B29,Inputs!$C$68:$AK$68,0),FALSE)) -> 25.3939337 | I29: Lamp Service costs Annualised | J29: 6.95724211 | K29: 6.95724211
B30: =Inputs!$M$68 -> PE Cell Service costs Annualised | E30: =IF($B25="Blank",0,VLOOKUP($B25,Inputs!$C$68:$AK$129,MATCH($B30,Inputs!$C$68:$AK$68,0),FALSE)) -> 0 | F30: =IF($B25="Blank",0,VLOOKUP($B25,Inputs!$C$68:$AK$129,MATCH($B30,Inputs!$C$68:$AK$68,0),FALSE)) -> 0 | I30: PE Cell Service costs Annualised | J30: 0 | K30: 0
B31: Indirect Opex | E31: =IF($B25="Blank",0,IF($B$8="Private Contract Lighting",'Opex Weighting'!D$113,'Opex Weighting'!D$111)) -> 23.2103802 | F31: =IF($B25="Blank",0,IF($B$8="Private Contract Lighting",'Opex Weighting'!E$113,'Opex Weighting'!E$111)) -> 24.22507388 | I31: Indirect Opex | J31: 6.359008274 | K31: 6.637006543
B32: Indirect Capex | E32: ='Capex Weighting'!D$115 -> 0 | F32: ='Capex Weighting'!E$114 -> 0 | I32: Indirect Capex | J32: 0 | K32: 0
B33: Overhead Costs per light | E33: =IF($B25="Blank",0,IF($B$8="Private Contract Lighting",'Building Block'!C$49,'Building Block'!C$48)) -> 28.55140463 | F33: =IF($B25="Blank",0,IF($B$8="Private Contract Lighting",'Building Block'!D$49,'Building Block'!D$48)) -> 28.49138942 | I33: Overhead Costs per light | J33: 7.82230264 | K33: 7.805860115
B34: =Inputs!$AH$68 -> Bracket UNIT price | C34: 0 | E34: =IF($B25="Blank",0,OFFSET('CAPEX Annuity calcs'!$B$9,MATCH($B25,'CAPEX Annuity calcs'!$B$9:$B$500,0)+$C34,E$6)) -> 3.526717078 | F34: =IF($B25="Blank",0,OFFSET('CAPEX Annuity calcs'!$B$9,MATCH($B25,'CAPEX Annuity calcs'!$B$9:$B$500,0)+$C34,F$6)) -> 3.526717078 | I34: Bracket UNIT price | J34: 0.966223857 | K34: 0.966223857
B35: =Inputs!$Y$68 -> CAPEX Installation costs | C35: =C34+1 -> 1 | E35: =IF($B25="Blank",0,OFFSET('CAPEX Annuity calcs'!$B$9,MATCH($B25,'CAPEX Annuity calcs'!$B$9:$B$500,0)+$C35,E$6)) -> 0 | F35: =IF($B25="Blank",0,OFFSET('CAPEX Annuity calcs'!$B$9,MATCH($B25,'CAPEX Annuity calcs'!$B$9:$B$500,0)+$C35,F$6)) -> 0 | I35: CAPEX Installation costs | J35: 0 | K35: 0
B36: =Inputs!$X$68 -> Luminaire UNIT price | C36: =C35+1 -> 2 | E36: =IF($B25="Blank",0,OFFSET('CAPEX Annuity calcs'!$B$9,MATCH($B25,'CAPEX Annuity calcs'!$B$9:$B$500,0)+$C36,E$6)) -> 13.7303825 | F36: =IF($B25="Blank",0,OFFSET('CAPEX Annuity calcs'!$B$9,MATCH($B25,'CAPEX Annuity calcs'!$B$9:$B$500,0)+$C36,F$6)) -> 13.7303825 | I36: Luminaire UNIT price | J36: 3.761748629 | K36: 3.761748629
B37: =Inputs!$Y$68 -> CAPEX Installation costs | C37: 3 | E37: =IF($B25="Blank",0,OFFSET('CAPEX Annuity calcs'!$B$9,MATCH($B25,'CAPEX Annuity calcs'!$B$9:$B$500,0)+$C37,E$6)) -> 15.95868573 | F37: =IF($B25="Blank",0,OFFSET('CAPEX Annuity calcs'!$B$9,MATCH($B25,'CAPEX Annuity calcs'!$B$9:$B$500,0)+$C37,F$6)) -> 15.95868573 | I37: CAPEX Installation costs | J37: 4.372242666 | K37: 4.372242666
E38: =SUM(E26:E37) -> 123.437179 | F38: =SUM(F26:F37) -> 124.3015894 | J38: =ROUND(E38/J$2*100,3) -> 33.818 | K38: =ROUND(F38/K$2*100,3) -> 34.055
A40: =A25+1 -> 3 | B40: =IFERROR(VLOOKUP($A40,Inputs!$B$68:$AK$129,MATCH($B$7,Inputs!$B$68:$AK$68,0),FALSE),"Blank") -> 42W Compact Fluorescent - Bottom Pole Entry | I40: =IFERROR(VLOOKUP($A40,Inputs!$B$68:$AK$129,MATCH($B$7,Inputs!$B$68:$AK$68,0),FALSE),"Blank") -> 42W Compact Fluorescent - Bottom Pole Entry
B41: =Inputs!$R$68 -> Lamp UNIT price Annualised Cost | C41: =Inputs!$P$68 -> Lamp Maintenance cycle | E41: =IF($B40="Blank",0,VLOOKUP($B40,Inputs!$C$68:$AK$129,MATCH($B41,Inputs!$C$68:$AK$68,0),FALSE)) -> 1.12537633 | F41: =IF($B40="Blank",0,VLOOKUP($B40,Inputs!$C$68:$AK$129,MATCH($B41,Inputs!$C$68:$AK$68,0),FALSE)) -> 1.12537633 | I41: =B41 -> Lamp UNIT price Annualised Cost | J41: =IF(E41="NA","",E41/J$2*100) -> 0.3083222821 | K41: =IF(F41="NA","",F41/K$2*100) -> 0.3083222821
B42: =Inputs!$K$68 -> PE Cell UNIT price Annualised Cost | C42: =Inputs!$I$68 -> PE Cell Maintenance Cycle | E42: =IF($B40="Blank",0,VLOOKUP($B40,Inputs!$C$68:$AK$129,MATCH($B42,Inputs!$C$68:$AK$68,0),FALSE)) -> 0.5955547094 | F42: =IF($B40="Blank",0,VLOOKUP($B40,Inputs!$C$68:$AK$129,MATCH($B42,Inputs!$C$68:$AK$68,0),FALSE)) -> 0.5955547094 | I42: PE Cell UNIT price Annualised Cost | J42: 0.1631656738 | K42: 0.1631656738
B43: Corp capex annuity per light | E43: =IF($B40="Blank",0,'Corp Capex Annuity calcs'!F$109) -> 11.34474414 | F43: =IF($B40="Blank",0,'Corp Capex Annuity calcs'!G$109) -> 11.25447609 | I43: Corp capex annuity per light | J43: 3.108149081 | K43: 3.083418106
B44: =Inputs!$T$68 -> Lamp Service costs Annualised | E44: =IF($B40="Blank",0,VLOOKUP($B40,Inputs!$C$68:$AK$129,MATCH($B44,Inputs!$C$68:$AK$68,0),FALSE)) -> 25.3939337 | F44: =IF($B40="Blank",0,VLOOKUP($B40,Inputs!$C$68:$AK$129,MATCH($B44,Inputs!$C$68:$AK$68,0),FALSE)) -> 25.3939337 | I44: Lamp Service costs Annualised | J44: 6.95724211 | K44: 6.95724211
B45: =Inputs!$M$68 -> PE Cell Service costs Annualised | E45: =IF($B40="Blank",0,VLOOKUP($B40,Inputs!$C$68:$AK$129,MATCH($B45,Inputs!$C$68:$AK$68,0),FALSE)) -> 0 | F45: =IF($B40="Blank",0,VLOOKUP($B40,Inputs!$C$68:$AK$129,MATCH($B45,Inputs!$C$68:$AK$68,0),FALSE)) -> 0 | I45: PE Cell Service costs Annualised | J45: 0 | K45: 0
B46: Indirect Opex | E46: =IF($B40="Blank",0,IF($B$8="Private Contract Lighting",'Opex Weighting'!D$113,'Opex Weighting'!D$111)) -> 23.2103802 | F46: =IF($B40="Blank",0,IF($B$8="Private Contract Lighting",'Opex Weighting'!E$113,'Opex Weighting'!E$111)) -> 24.22507388 | I46: Indirect Opex | J46: 6.359008274 | K46: 6.637006543
B47: Indirect Capex | E47: ='Capex Weighting'!D$115 -> 0 | F47: ='Capex Weighting'!E$114 -> 0 | I47: Indirect Capex | J47: 0 | K47: 0
B48: Overhead Costs per light | E48: =IF($B40="Blank",0,IF($B$8="Private Contract Lighting",'Building Block'!C$49,'Building Block'!C$48)) -> 28.55140463 | F48: =IF($B40="Blank",0,IF($B$8="Private Contract Lighting",'Building Block'!D$49,'Building Block'!D$48)) -> 28.49138942 | I48: Overhead Costs per light | J48: 7.82230264 | K48: 7.805860115
B49: =Inputs!$AH$68 -> Bracket UNIT price | C49: 0 | E49: =IF($B40="Blank",0,OFFSET('CAPEX Annuity calcs'!$B$9,MATCH($B40,'CAPEX Annuity calcs'!$B$9:$B$500,0)+$C49,E$6)) -> 3.526717078 | F49: =IF($B40="Blank",0,OFFSET('CAPEX Annuity calcs'!$B$9,MATCH($B40,'CAPEX Annuity calcs'!$B$9:$B$500,0)+$C49,F$6)) -> 3.526717078 | I49: Bracket UNIT price | J49: 0.966223857 | K49: 0.966223857
B50: =Inputs!$Y$68 -> CAPEX Installation costs | C50: =C49+1 -> 1 | E50: =IF($B40="Blank",0,OFFSET('CAPEX Annuity calcs'!$B$9,MATCH($B40,'CAPEX Annuity calcs'!$B$9:$B$500,0)+$C50,E$6)) -> 0 | F50: =IF($B40="Blank",0,OFFSET('CAPEX Annuity calcs'!$B$9,MATCH($B40,'CAPEX Annuity calcs'!$B$9:$B$500,0)+$C50,F$6)) -> 0 | I50: CAPEX Installation costs | J50: 0 | K50: 0
B51: =Inputs!$X$68 -> Luminaire UNIT price | C51: =C50+1 -> 2 | E51: =IF($B40="Blank",0,OFFSET('CAPEX Annuity calcs'!$B$9,MATCH($B40,'CAPEX Annuity calcs'!$B$9:$B$500,0)+$C51,E$6)) -> 13.7303825 | F51: =IF($B40="Blank",0,OFFSET('CAPEX Annuity calcs'!$B$9,MATCH($B40,'CAPEX Annuity calcs'!$B$9:$B$500,0)+$C51,F$6)) -> 13.7303825 | I51: Luminaire UNIT price | J51: 3.761748629 | K51: 3.761748629
B52: =Inputs!$Y$68 -> CAPEX Installation costs | C52: 3 | E52: =IF($B40="Blank",0,OFFSET('CAPEX Annuity calcs'!$B$9,MATCH($B40,'CAPEX Annuity calcs'!$B$9:$B$500,0)+$C52,E$6)) -> 15.95868573 | F52: =IF($B40="Blank",0,OFFSET('CAPEX Annuity calcs'!$B$9,MATCH($B40,'CAPEX Annuity calcs'!$B$9:$B$500,0)+$C52,F$6)) -> 15.95868573 | I52: CAPEX Installation costs | J52: 4.372242666 | K52: 4.372242666
E53: =SUM(E41:E52) -> 123.437179 | F53: =SUM(F41:F52) -> 124.3015894 | J53: =ROUND(E53/J$2*100,3) -> 33.818 | K53: =ROUND(F53/K$2*100,3) -> 34.055
A55: =A40+1 -> 4 | B55: =IFERROR(VLOOKUP($A55,Inputs!$B$68:$AK$129,MATCH($B$7,Inputs!$B$68:$AK$68,0),FALSE),"Blank") -> 2x24W Compact Fluorescent | I55: =IFERROR(VLOOKUP($A55,Inputs!$B$68:$AK$129,MATCH($B$7,Inputs!$B$68:$AK$68,0),FALSE),"Blank") -> 2x24W Compact Fluorescent
B56: =Inputs!$R$68 -> Lamp UNIT price Annualised Cost | C56: =Inputs!$P$68 -> Lamp Maintenance cycle | E56: =IF($B55="Blank",0,VLOOKUP($B55,Inputs!$C$68:$AK$129,MATCH($B56,Inputs!$C$68:$AK$68,0),FALSE)) -> 2.250752659 | F56: =IF($B55="Blank",0,VLOOKUP($B55,Inputs!$C$68:$AK$129,MATCH($B56,Inputs!$C$68:$AK$68,0),FALSE)) -> 2.250752659 | I56: =B56 -> Lamp UNIT price Annualised Cost | J56: =IF(E56="NA","",E56/J$2*100) -> 0.6166445641 | K56: =IF(F56="NA","",F56/K$2*100) -> 0.6166445641
B57: =Inputs!$K$68 -> PE Cell UNIT price Annualised Cost | C57: =Inputs!$I$68 -> PE Cell Maintenance Cycle | E57: =IF($B55="Blank",0,VLOOKUP($B55,Inputs!$C$68:$AK$129,MATCH($B57,Inputs!$C$68:$AK$68,0),FALSE)) -> 0.5955547094 | F57: =IF($B55="Blank",0,VLOOKUP($B55,Inputs!$C$68:$AK$129,MATCH($B57,Inputs!$C$68:$AK$68,0),FALSE)) -> 0.5955547094 | I57: PE Cell UNIT price Annualised Cost | J57: 0.1631656738 | K57: 0.1631656738
B58: Corp capex annuity per light | E58: =IF($B55="Blank",0,'Corp Capex Annuity calcs'!F$109) -> 11.34474414 | F58: =IF($B55="Blank",0,'Corp Capex Annuity calcs'!G$109) -> 11.25447609 | I58: Corp capex annuity per light | J58: 3.108149081 | K58: 3.083418106
B59: =Inputs!$T$68 -> Lamp Service costs Annualised | E59: =IF($B55="Blank",0,VLOOKUP($B55,Inputs!$C$68:$AK$129,MATCH($B59,Inputs!$C$68:$AK$68,0),FALSE)) -> 25.3939337 | F59: =IF($B55="Blank",0,VLOOKUP($B55,Inputs!$C$68:$AK$129,MATCH($B59,Inputs!$C$68:$AK$68,0),FALSE)) -> 25.3939337 | I59: Lamp Service costs Annualised | J59: 6.95724211 | K59: 6.95724211
B60: =Inputs!$M$68 -> PE Cell Service costs Annualised | E60: =IF($B55="Blank",0,VLOOKUP($B55,Inputs!$C$68:$AK$129,MATCH($B60,Inputs!$C$68:$AK$68,0),FALSE)) -> 0 | F60: =IF($B55="Blank",0,VLOOKUP($B55,Inputs!$C$68:$AK$129,MATCH($B60,Inputs!$C$68:$AK$68,0),FALSE)) -> 0 | I60: PE Cell Service costs Annualised | J60: 0 | K60: 0
B61: Indirect Opex | E61: =IF($B55="Blank",0,IF($B$8="Private Contract Lighting",'Opex Weighting'!D$113,'Opex Weighting'!D$111)) -> 23.2103802 | F61: =IF($B55="Blank",0,IF($B$8="Private Contract Lighting",'Opex Weighting'!E$113,'Opex Weighting'!E$111)) -> 24.22507388 | I61: Indirect Opex | J61: 6.359008274 | K61: 6.637006543
B62: Indirect Capex | E62: ='Capex Weighting'!D$115 -> 0 | F62: ='Capex Weighting'!E$114 -> 0 | I62: Indirect Capex | J62: 0 | K62: 0
B63: Overhead Costs per light | E63: =IF($B55="Blank",0,IF($B$8="Private Contract Lighting",'Building Block'!C$49,'Building Block'!C$48)) -> 28.55140463 | F63: =IF($B55="Blank",0,IF($B$8="Private Contract Lighting",'Building Block'!D$49,'Building Block'!D$48)) -> 28.49138942 | I63: Overhead Costs per light | J63: 7.82230264 | K63: 7.805860115
B64: =Inputs!$AH$68 -> Bracket UNIT price | C64: 0 | E64: =IF($B55="Blank",0,OFFSET('CAPEX Annuity calcs'!$B$9,MATCH($B55,'CAPEX Annuity calcs'!$B$9:$B$500,0)+$C64,E$6)) -> 3.526406317 | F64: =IF($B55="Blank",0,OFFSET('CAPEX Annuity calcs'!$B$9,MATCH($B55,'CAPEX Annuity calcs'!$B$9:$B$500,0)+$C64,F$6)) -> 3.526406317 | I64: Bracket UNIT price | J64: 0.9661387171 | K64: 0.9661387171
B65: =Inputs!$Y$68 -> CAPEX Installation costs | C65: =C64+1 -> 1 | E65: =IF($B55="Blank",0,OFFSET('CAPEX Annuity calcs'!$B$9,MATCH($B55,'CAPEX Annuity calcs'!$B$9:$B$500,0)+$C65,E$6)) -> 0 | F65: =IF($B55="Blank",0,OFFSET('CAPEX Annuity calcs'!$B$9,MATCH($B55,'CAPEX Annuity calcs'!$B$9:$B$500,0)+$C65,F$6)) -> 0 | I65: CAPEX Installation costs | J65: 0 | K65: 0
B66: =Inputs!$X$68 -> Luminaire UNIT price | C66: =C65+1 -> 2 | E66: =IF($B55="Blank",0,OFFSET('CAPEX Annuity calcs'!$B$9,MATCH($B55,'CAPEX Annuity calcs'!$B$9:$B$500,0)+$C66,E$6)) -> 13.7303825 | F66: =IF($B55="Blank",0,OFFSET('CAPEX Annuity calcs'!$B$9,MATCH($B55,'CAPEX Annuity calcs'!$B$9:$B$500,0)+$C66,F$6)) -> 13.7303825 | I66: Luminaire UNIT price | J66: 3.761748629 | K66: 3.761748629
B67: =Inputs!$Y$68 -> CAPEX Installation costs | C67: 3 | E67: =IF($B55="Blank",0,OFFSET('CAPEX Annuity calcs'!$B$9,MATCH($B55,'CAPEX Annuity calcs'!$B$9:$B$500,0)+$C67,E$6)) -> 15.95868573 | F67: =IF($B55="Blank",0,OFFSET('CAPEX Annuity calcs'!$B$9,MATCH($B55,'CAPEX Annuity calcs'!$B$9:$B$500,0)+$C67,F$6)) -> 15.95868573 | I67: CAPEX Installation costs | J67: 4.372242666 | K67: 4.372242666
E68: =SUM(E56:E67) -> 124.5622446 | F68: =SUM(F56:F67) -> 125.426655 | J68: =ROUND(E68/J$2*100,3) -> 34.127 | K68: =ROUND(F68/K$2*100,3) -> 34.363
A70: =A55+1 -> 5 | B70: =IFERROR(VLOOKUP($A70,Inputs!$B$68:$AK$129,MATCH($B$7,Inputs!$B$68:$AK$68,0),FALSE),"Blank") -> 1x20W Fluorescent | I70: =IFERROR(VLOOKUP($A70,Inputs!$B$68:$AK$129,MATCH($B$7,Inputs!$B$68:$AK$68,0),FALSE),"Blank") -> 1x20W Fluorescent
B71: =Inputs!$R$68 -> Lamp UNIT price Annualised Cost | C71: =Inputs!$P$68 -> Lamp Maintenance cycle | E71: =IF($B70="Blank",0,VLOOKUP($B70,Inputs!$C$68:$AK$129,MATCH($B71,Inputs!$C$68:$AK$68,0),FALSE)) -> 1.012344111 | F71: =IF($B70="Blank",0,VLOOKUP($B70,Inputs!$C$68:$AK$129,MATCH($B71,Inputs!$C$68:$AK$68,0),FALSE)) -> 1.012344111 | I71: =B71 -> Lamp UNIT price Annualised Cost | J71: =IF(E71="NA","",E71/J$2*100) -> 0.277354551 | K71: =IF(F71="NA","",F71/K$2*100) -> 0.277354551
B72: =Inputs!$K$68 -> PE Cell UNIT price Annualised Cost | C72: =Inputs!$I$68 -> PE Cell Maintenance Cycle | E72: =IF($B70="Blank",0,VLOOKUP($B70,Inputs!$C$68:$AK$129,MATCH($B72,Inputs!$C$68:$AK$68,0),FALSE)) -> 0.5955547094 | F72: =IF($B70="Blank",0,VLOOKUP($B70,Inputs!$C$68:$AK$129,MATCH($B72,Inputs!$C$68:$AK$68,0),FALSE)) -> 0.5955547094 | I72: PE Cell UNIT price Annualised Cost | J72: 0.1631656738 | K72: 0.1631656738
B73: Corp capex annuity per light | E73: =IF($B70="Blank",0,'Corp Capex Annuity calcs'!F$109) -> 11.34474414 | F73: =IF($B70="Blank",0,'Corp Capex Annuity calcs'!G$109) -> 11.25447609 | I73: Corp capex annuity per light | J73: 3.108149081 | K73: 3.083418106
B74: =Inputs!$T$68 -> Lamp Service costs Annualised | E74: =IF($B70="Blank",0,VLOOKUP($B70,Inputs!$C$68:$AK$129,MATCH($B74,Inputs!$C$68:$AK$68,0),FALSE)) -> 25.3939337 | F74: =IF($B70="Blank",0,VLOOKUP($B70,Inputs!$C$68:$AK$129,MATCH($B74,Inputs!$C$68:$AK$68,0),FALSE)) -> 25.3939337 | I74: Lamp Service costs Annualised | J74: 6.95724211 | K74: 6.95724211
B75: =Inputs!$M$68 -> PE Cell Service costs Annualised | E75: =IF($B70="Blank",0,VLOOKUP($B70,Inputs!$C$68:$AK$129,MATCH($B75,Inputs!$C$68:$AK$68,0),FALSE)) -> 0 | F75: =IF($B70="Blank",0,VLOOKUP($B70,Inputs!$C$68:$AK$129,MATCH($B75,Inputs!$C$68:$AK$68,0),FALSE)) -> 0 | I75: PE Cell Service costs Annualised | J75: 0 | K75: 0
B76: Indirect Opex | E76: =IF($B70="Blank",0,IF($B$8="Private Contract Lighting",'Opex Weighting'!D$113,'Opex Weighting'!D$111)) -> 23.2103802 | F76: =IF($B70="Blank",0,IF($B$8="Private Contract Lighting",'Opex Weighting'!E$113,'Opex Weighting'!E$111)) -> 24.22507388 | I76: Indirect Opex | J76: 6.359008274 | K76: 6.637006543
B77: Indirect Capex | E77: ='Capex Weighting'!D$115 -> 0 | F77: ='Capex Weighting'!E$114 -> 0 | I77: Indirect Capex | J77: 0 | K77: 0
B78: Overhead Costs per light | E78: =IF($B70="Blank",0,IF($B$8="Private Contract Lighting",'Building Block'!C$49,'Building Block'!C$48)) -> 28.55140463 | F78: =IF($B70="Blank",0,IF($B$8="Private Contract Lighting",'Building Block'!D$49,'Building Block'!D$48)) -> 28.49138942 | I78: Overhead Costs per light | J78: 7.82230264 | K78: 7.805860115
B79: =Inputs!$AH$68 -> Bracket UNIT price | C79: 0 | E79: =IF($B70="Blank",0,OFFSET('CAPEX Annuity calcs'!$B$9,MATCH($B70,'CAPEX Annuity calcs'!$B$9:$B$500,0)+$C79,E$6)) -> 4.869424658 | F79: =IF($B70="Blank",0,OFFSET('CAPEX Annuity calcs'!$B$9,MATCH($B70,'CAPEX Annuity calcs'!$B$9:$B$500,0)+$C79,F$6)) -> 4.869424658 | I79: Bracket UNIT price | J79: 1.334088947 | K79: 1.334088947
B80: =Inputs!$Y$68 -> CAPEX Installation costs | C80: =C79+1 -> 1 | E80: =IF($B70="Blank",0,OFFSET('CAPEX Annuity calcs'!$B$9,MATCH($B70,'CAPEX Annuity calcs'!$B$9:$B$500,0)+$C80,E$6)) -> 0 | F80: =IF($B70="Blank",0,OFFSET('CAPEX Annuity calcs'!$B$9,MATCH($B70,'CAPEX Annuity calcs'!$B$9:$B$500,0)+$C80,F$6)) -> 0 | I80: CAPEX Installation costs | J80: 0 | K80: 0
B81: =Inputs!$X$68 -> Luminaire UNIT price | C81: =C80+1 -> 2 | E81: =IF($B70="Blank",0,OFFSET('CAPEX Annuity calcs'!$B$9,MATCH($B70,'CAPEX Annuity calcs'!$B$9:$B$500,0)+$C81,E$6)) -> 18.0451906 | F81: =IF($B70="Blank",0,OFFSET('CAPEX Annuity calcs'!$B$9,MATCH($B70,'CAPEX Annuity calcs'!$B$9:$B$500,0)+$C81,F$6)) -> 18.0451906 | I81: Luminaire UNIT price | J81: 4.943887836 | K81: 4.943887836
B82: =Inputs!$Y$68 -> CAPEX Installation costs | C82: 3 | E82: =IF($B70="Blank",0,OFFSET('CAPEX Annuity calcs'!$B$9,MATCH($B70,'CAPEX Annuity calcs'!$B$9:$B$500,0)+$C82,E$6)) -> 15.95868573 | F82: =IF($B70="Blank",0,OFFSET('CAPEX Annuity calcs'!$B$9,MATCH($B70,'CAPEX Annuity calcs'!$B$9:$B$500,0)+$C82,F$6)) -> 15.95868573 | I82: CAPEX Installation costs | J82: 4.372242666 | K82: 4.372242666
E83: =SUM(E71:E82) -> 128.9816625 | F83: =SUM(F71:F82) -> 129.8460729 | J83: =ROUND(E83/J$2*100,3) -> 35.337 | K83: =ROUND(F83/K$2*100,3) -> 35.574
A85: =A70+1 -> 6 | B85: =IFERROR(VLOOKUP($A85,Inputs!$B$68:$AK$129,MATCH($B$7,Inputs!$B$68:$AK$68,0),FALSE),"Blank") -> 1x40W Fluorescent | I85: =IFERROR(VLOOKUP($A85,Inputs!$B$68:$AK$129,MATCH($B$7,Inputs!$B$68:$AK$68,0),FALSE),"Blank") -> 1x40W Fluorescent
B86: =Inputs!$R$68 -> Lamp UNIT price Annualised Cost | C86: =Inputs!$P$68 -> Lamp Maintenance cycle | E86: =IF($B85="Blank",0,VLOOKUP($B85,Inputs!$C$68:$AK$129,MATCH($B86,Inputs!$C$68:$AK$68,0),FALSE)) -> 1.078111246 | F86: =IF($B85="Blank",0,VLOOKUP($B85,Inputs!$C$68:$AK$129,MATCH($B86,Inputs!$C$68:$AK$68,0),FALSE)) -> 1.078111246 | I86: =B86 -> Lamp UNIT price Annualised Cost | J86: =IF(E86="NA","",E86/J$2*100) -> 0.2953729441 | K86: =IF(F86="NA","",F86/K$2*100) -> 0.2953729441
B87: =Inputs!$K$68 -> PE Cell UNIT price Annualised Cost | C87: =Inputs!$I$68 -> PE Cell Maintenance Cycle | E87: =IF($B85="Blank",0,VLOOKUP($B85,Inputs!$C$68:$AK$129,MATCH($B87,Inputs!$C$68:$AK$68,0),FALSE)) -> 0.5955547094 | F87: =IF($B85="Blank",0,VLOOKUP($B85,Inputs!$C$68:$AK$129,MATCH($B87,Inputs!$C$68:$AK$68,0),FALSE)) -> 0.5955547094 | I87: PE Cell UNIT price Annualised Cost | J87: 0.1631656738 | K87: 0.1631656738
B88: Corp capex annuity per light | E88: =IF($B85="Blank",0,'Corp Capex Annuity calcs'!F$109) -> 11.34474414 | F88: =IF($B85="Blank",0,'Corp Capex Annuity calcs'!G$109) -> 11.25447609 | I88: Corp capex annuity per light | J88: 3.108149081 | K88: 3.083418106
B89: =Inputs!$T$68 -> Lamp Service costs Annualised | E89: =IF($B85="Blank",0,VLOOKUP($B85,Inputs!$C$68:$AK$129,MATCH($B89,Inputs!$C$68:$AK$68,0),FALSE)) -> 25.3939337 | F89: =IF($B85="Blank",0,VLOOKUP($B85,Inputs!$C$68:$AK$129,MATCH($B89,Inputs!$C$68:$AK$68,0),FALSE)) -> 25.3939337 | I89: Lamp Service costs Annualised | J89: 6.95724211 | K89: 6.95724211
B90: =Inputs!$M$68 -> PE Cell Service costs Annualised | E90: =IF($B85="Blank",0,VLOOKUP($B85,Inputs!$C$68:$AK$129,MATCH($B90,Inputs!$C$68:$AK$68,0),FALSE)) -> 0 | F90: =IF($B85="Blank",0,VLOOKUP($B85,Inputs!$C$68:$AK$129,MATCH($B90,Inputs!$C$68:$AK$68,0),FALSE)) -> 0 | I90: PE Cell Service costs Annualised | J90: 0 | K90: 0
B91: Indirect Opex | E91: =IF($B85="Blank",0,IF($B$8="Private Contract Lighting",'Opex Weighting'!D$113,'Opex Weighting'!D$111)) -> 23.2103802 | F91: =IF($B85="Blank",0,IF($B$8="Private Contract Lighting",'Opex Weighting'!E$113,'Opex Weighting'!E$111)) -> 24.22507388 | I91: Indirect Opex | J91: 6.359008274 | K91: 6.637006543
B92: Indirect Capex | E92: ='Capex Weighting'!D$115 -> 0 | F92: ='Capex Weighting'!E$114 -> 0 | I92: Indirect Capex | J92: 0 | K92: 0
B93: Overhead Costs per light | E93: =IF($B85="Blank",0,IF($B$8="Private Contract Lighting",'Building Block'!C$49,'Building Block'!C$48)) -> 28.55140463 | F93: =IF($B85="Blank",0,IF($B$8="Private Contract Lighting",'Building Block'!D$49,'Building Block'!D$48)) -> 28.49138942 | I93: Overhead Costs per light | J93: 7.82230264 | K93: 7.805860115
B94: =Inputs!$AH$68 -> Bracket UNIT price | C94: 0 | E94: =IF($B85="Blank",0,OFFSET('CAPEX Annuity calcs'!$B$9,MATCH($B85,'CAPEX Annuity calcs'!$B$9:$B$500,0)+$C94,E$6)) -> 4.869424658 | F94: =IF($B85="Blank",0,OFFSET('CAPEX Annuity calcs'!$B$9,MATCH($B85,'CAPEX Annuity calcs'!$B$9:$B$500,0)+$C94,F$6)) -> 4.869424658 | I94: Bracket UNIT price | J94: 1.334088947 | K94: 1.334088947
B95: =Inputs!$Y$68 -> CAPEX Installation costs | C95: =C94+1 -> 1 | E95: =IF($B85="Blank",0,OFFSET('CAPEX Annuity calcs'!$B$9,MATCH($B85,'CAPEX Annuity calcs'!$B$9:$B$500,0)+$C95,E$6)) -> 0 | F95: =IF($B85="Blank",0,OFFSET('CAPEX Annuity calcs'!$B$9,MATCH($B85,'CAPEX Annuity calcs'!$B$9:$B$500,0)+$C95,F$6)) -> 0 | I95: CAPEX Installation costs | J95: 0 | K95: 0
B96: =Inputs!$X$68 -> Luminaire UNIT price | C96: =C95+1 -> 2 | E96: =IF($B85="Blank",0,OFFSET('CAPEX Annuity calcs'!$B$9,MATCH($B85,'CAPEX Annuity calcs'!$B$9:$B$500,0)+$C96,E$6)) -> 14.1392042 | F96: =IF($B85="Blank",0,OFFSET('CAPEX Annuity calcs'!$B$9,MATCH($B85,'CAPEX Annuity calcs'!$B$9:$B$500,0)+$C96,F$6)) -> 14.1392042 | I96: Luminaire UNIT price | J96: 3.873754575 | K96: 3.873754575
B97: =Inputs!$Y$68 -> CAPEX Installation costs | C97: 3 | E97: =IF($B85="Blank",0,OFFSET('CAPEX Annuity calcs'!$B$9,MATCH($B85,'CAPEX Annuity calcs'!$B$9:$B$500,0)+$C97,E$6)) -> 15.95868573 | F97: =IF($B85="Blank",0,OFFSET('CAPEX Annuity calcs'!$B$9,MATCH($B85,'CAPEX Annuity calcs'!$B$9:$B$500,0)+$C97,F$6)) -> 15.95868573 | I97: CAPEX Installation costs | J97: 4.372242666 | K97: 4.372242666
E98: =SUM(E86:E97) -> 125.1414432 | F98: =SUM(F86:F97) -> 126.0058536 | J98: =ROUND(E98/J$2*100,3) -> 34.285 | K98: =ROUND(F98/K$2*100,3) -> 34.522
A100: =A85+1 -> 7 | B100: =IFERROR(VLOOKUP($A100,Inputs!$B$68:$AK$129,MATCH($B$7,Inputs!$B$68:$AK$68,0),FALSE),"Blank") -> 2x20W Fluorescent | I100: =IFERROR(VLOOKUP($A100,Inputs!$B$68:$AK$129,MATCH($B$7,Inputs!$B$68:$AK$68,0),FALSE),"Blank") -> 2x20W Fluorescent
B101: =Inputs!$R$68 -> Lamp UNIT price Annualised Cost | C101: =Inputs!$P$68 -> Lamp Maintenance cycle | E101: =IF($B100="Blank",0,VLOOKUP($B100,Inputs!$C$68:$AK$129,MATCH($B101,Inputs!$C$68:$AK$68,0),FALSE)) -> 2.024688222 | F101: =IF($B100="Blank",0,VLOOKUP($B100,Inputs!$C$68:$AK$129,MATCH($B101,Inputs!$C$68:$AK$68,0),FALSE)) -> 2.024688222 | I101: =B101 -> Lamp UNIT price Annualised Cost | J101: =IF(E101="NA","",E101/J$2*100) -> 0.554709102 | K101: =IF(F101="NA","",F101/K$2*100) -> 0.554709102
B102: =Inputs!$K$68 -> PE Cell UNIT price Annualised Cost | C102: =Inputs!$I$68 -> PE Cell Maintenance Cycle | E102: =IF($B100="Blank",0,VLOOKUP($B100,Inputs!$C$68:$AK$129,MATCH($B102,Inputs!$C$68:$AK$68,0),FALSE)) -> 0.5955547094 | F102: =IF($B100="Blank",0,VLOOKUP($B100,Inputs!$C$68:$AK$129,MATCH($B102,Inputs!$C$68:$AK$68,0),FALSE)) -> 0.5955547094 | I102: PE Cell UNIT price Annualised Cost | J102: 0.1631656738 | K102: 0.1631656738
B103: Corp capex annuity per light | E103: =IF($B100="Blank",0,'Corp Capex Annuity calcs'!F$109) -> 11.34474414 | F103: =IF($B100="Blank",0,'Corp Capex Annuity calcs'!G$109) -> 11.25447609 | I103: Corp capex annuity per light | J103: 3.108149081 | K103: 3.083418106
B104: =Inputs!$T$68 -> Lamp Service costs Annualised | E104: =IF($B100="Blank",0,VLOOKUP($B100,Inputs!$C$68:$AK$129,MATCH($B104,Inputs!$C$68:$AK$68,0),FALSE)) -> 25.3939337 | F104: =IF($B100="Blank",0,VLOOKUP($B100,Inputs!$C$68:$AK$129,MATCH($B104,Inputs!$C$68:$AK$68,0),FALSE)) -> 25.3939337 | I104: Lamp Service costs Annualised | J104: 6.95724211 | K104: 6.95724211
B105: =Inputs!$M$68 -> PE Cell Service costs Annualised | E105: =IF($B100="Blank",0,VLOOKUP($B100,Inputs!$C$68:$AK$129,MATCH($B105,Inputs!$C$68:$AK$68,0),FALSE)) -> 0 | F105: =IF($B100="Blank",0,VLOOKUP($B100,Inputs!$C$68:$AK$129,MATCH($B105,Inputs!$C$68:$AK$68,0),FALSE)) -> 0 | I105: PE Cell Service costs Annualised | J105: 0 | K105: 0
B106: Indirect Opex | E106: =IF($B100="Blank",0,IF($B$8="Private Contract Lighting",'Opex Weighting'!D$113,'Opex Weighting'!D$111)) -> 23.2103802 | F106: =IF($B100="Blank",0,IF($B$8="Private Contract Lighting",'Opex Weighting'!E$113,'Opex Weighting'!E$111)) -> 24.22507388 | I106: Indirect Opex | J106: 6.359008274 | K106: 6.637006543
B107: Indirect Capex | E107: ='Capex Weighting'!D$115 -> 0 | F107: ='Capex Weighting'!E$114 -> 0 | I107: Indirect Capex | J107: 0 | K107: 0
B108: Overhead Costs per light | E108: =IF($B100="Blank",0,IF($B$8="Private Contract Lighting",'Building Block'!C$49,'Building Block'!C$48)) -> 28.55140463 | F108: =IF($B100="Blank",0,IF($B$8="Private Contract Lighting",'Building Block'!D$49,'Building Block'!D$48)) -> 28.49138942 | I108: Overhead Costs per light | J108: 7.82230264 | K108: 7.805860115
B109: =Inputs!$AH$68 -> Bracket UNIT price | C109: 0 | E109: =IF($B100="Blank",0,OFFSET('CAPEX Annuity calcs'!$B$9,MATCH($B100,'CAPEX Annuity calcs'!$B$9:$B$500,0)+$C109,E$6)) -> 4.869424658 | F109: =IF($B100="Blank",0,OFFSET('CAPEX Annuity calcs'!$B$9,MATCH($B100,'CAPEX Annuity calcs'!$B$9:$B$500,0)+$C109,F$6)) -> 4.869424658 | I109: Bracket UNIT price | J109: 1.334088947 | K109: 1.334088947
B110: =Inputs!$Y$68 -> CAPEX Installation costs | C110: =C109+1 -> 1 | E110: =IF($B100="Blank",0,OFFSET('CAPEX Annuity calcs'!$B$9,MATCH($B100,'CAPEX Annuity calcs'!$B$9:$B$500,0)+$C110,E$6)) -> 0 | F110: =IF($B100="Blank",0,OFFSET('CAPEX Annuity calcs'!$B$9,MATCH($B100,'CAPEX Annuity calcs'!$B$9:$B$500,0)+$C110,F$6)) -> 0 | I110: CAPEX Installation costs | J110: 0 | K110: 0
B111: =Inputs!$X$68 -> Luminaire UNIT price | C111: =C110+1 -> 2 | E111: =IF($B100="Blank",0,OFFSET('CAPEX Annuity calcs'!$B$9,MATCH($B100,'CAPEX Annuity calcs'!$B$9:$B$500,0)+$C111,E$6)) -> 18.0451906 | F111: =IF($B100="Blank",0,OFFSET('CAPEX Annuity calcs'!$B$9,MATCH($B100,'CAPEX Annuity calcs'!$B$9:$B$500,0)+$C111,F$6)) -> 18.0451906 | I111: Luminaire UNIT price | J111: 4.943887836 | K111: 4.943887836
B112: =Inputs!$Y$68 -> CAPEX Installation costs | C112: 3 | E112: =IF($B100="Blank",0,OFFSET('CAPEX Annuity calcs'!$B$9,MATCH($B100,'CAPEX Annuity calcs'!$B$9:$B$500,0)+$C112,E$6)) -> 15.95868573 | F112: =IF($B100="Blank",0,OFFSET('CAPEX Annuity calcs'!$B$9,MATCH($B100,'CAPEX Annuity calcs'!$B$9:$B$500,0)+$C112,F$6)) -> 15.95868573 | I112: CAPEX Installation costs | J112: 4.372242666 | K112: 4.372242666
E113: =SUM(E101:E112) -> 129.9940066 | F113: =SUM(F101:F112) -> 130.858417 | J113: =ROUND(E113/J$2*100,3) -> 35.615 | K113: =ROUND(F113/K$2*100,3) -> 35.852
A115: =A100+1 -> 8 | B115: =IFERROR(VLOOKUP($A115,Inputs!$B$68:$AK$129,MATCH($B$7,Inputs!$B$68:$AK$68,0),FALSE),"Blank") -> 2x24W Fluorescent | I115: =IFERROR(VLOOKUP($A115,Inputs!$B$68:$AK$129,MATCH($B$7,Inputs!$B$68:$AK$68,0),FALSE),"Blank") -> 2x24W Fluorescent
B116: =Inputs!$R$68 -> Lamp UNIT price Annualised Cost | C116: =Inputs!$P$68 -> Lamp Maintenance cycle | E116: =IF($B115="Blank",0,VLOOKUP($B115,Inputs!$C$68:$AK$129,MATCH($B116,Inputs!$C$68:$AK$68,0),FALSE)) -> 1.472211242 | F116: =IF($B115="Blank",0,VLOOKUP($B115,Inputs!$C$68:$AK$129,MATCH($B116,Inputs!$C$68:$AK$68,0),FALSE)) -> 1.472211242 | I116: =B116 -> Lamp UNIT price Annualised Cost | J116: =IF(E116="NA","",E116/J$2*100) -> 0.4033455457 | K116: =IF(F116="NA","",F116/K$2*100) -> 0.4033455457
B117: =Inputs!$K$68 -> PE Cell UNIT price Annualised Cost | C117: =Inputs!$I$68 -> PE Cell Maintenance Cycle | E117: =IF($B115="Blank",0,VLOOKUP($B115,Inputs!$C$68:$AK$129,MATCH($B117,Inputs!$C$68:$AK$68,0),FALSE)) -> 0.5955547094 | F117: =IF($B115="Blank",0,VLOOKUP($B115,Inputs!$C$68:$AK$129,MATCH($B117,Inputs!$C$68:$AK$68,0),FALSE)) -> 0.5955547094 | I117: PE Cell UNIT price Annualised Cost | J117: 0.1631656738 | K117: 0.1631656738
B118: Corp capex annuity per light | E118: =IF($B115="Blank",0,'Corp Capex Annuity calcs'!F$109) -> 11.34474414 | F118: =IF($B115="Blank",0,'Corp Capex Annuity calcs'!G$109) -> 11.25447609 | I118: Corp capex annuity per light | J118: 3.108149081 | K118: 3.083418106
B119: =Inputs!$T$68 -> Lamp Service costs Annualised | E119: =IF($B115="Blank",0,VLOOKUP($B115,Inputs!$C$68:$AK$129,MATCH($B119,Inputs!$C$68:$AK$68,0),FALSE)) -> 25.3939337 | F119: =IF($B115="Blank",0,VLOOKUP($B115,Inputs!$C$68:$AK$129,MATCH($B119,Inputs!$C$68:$AK$68,0),FALSE)) -> 25.3939337 | I119: Lamp Service costs Annualised | J119: 6.95724211 | K119: 6.95724211
B120: =Inputs!$M$68 -> PE Cell Service costs Annualised | E120: =IF($B115="Blank",0,VLOOKUP($B115,Inputs!$C$68:$AK$129,MATCH($B120,Inputs!$C$68:$AK$68,0),FALSE)) -> 0 | F120: =IF($B115="Blank",0,VLOOKUP($B115,Inputs!$C$68:$AK$129,MATCH($B120,Inputs!$C$68:$AK$68,0),FALSE)) -> 0 | I120: PE Cell Service costs Annualised | J120: 0 | K120: 0
B121: Indirect Opex | E121: =IF($B115="Blank",0,IF($B$8="Private Contract Lighting",'Opex Weighting'!D$113,'Opex Weighting'!D$111)) -> 23.2103802 | F121: =IF($B115="Blank",0,IF($B$8="Private Contract Lighting",'Opex Weighting'!E$113,'Opex Weighting'!E$111)) -> 24.22507388 | I121: Indirect Opex | J121: 6.359008274 | K121: 6.637006543
B122: Indirect Capex | E122: ='Capex Weighting'!D$115 -> 0 | F122: ='Capex Weighting'!E$114 -> 0 | I122: Indirect Capex | J122: 0 | K122: 0
B123: Overhead Costs per light | E123: =IF($B115="Blank",0,IF($B$8="Private Contract Lighting",'Building Block'!C$49,'Building Block'!C$48)) -> 28.55140463 | F123: =IF($B115="Blank",0,IF($B$8="Private Contract Lighting",'Building Block'!D$49,'Building Block'!D$48)) -> 28.49138942 | I123: Overhead Costs per light | J123: 7.82230264 | K123: 7.805860115
B124: =Inputs!$AH$68 -> Bracket UNIT price | C124: 0 | E124: =IF($B115="Blank",0,OFFSET('CAPEX Annuity calcs'!$B$9,MATCH($B115,'CAPEX Annuity calcs'!$B$9:$B$500,0)+$C124,E$6)) -> 4.869424658 | F124: =IF($B115="Blank",0,OFFSET('CAPEX Annuity calcs'!$B$9,MATCH($B115,'CAPEX Annuity calcs'!$B$9:$B$500,0)+$C124,F$6)) -> 4.869424658 | I124: Bracket UNIT price | J124: 1.334088947 | K124: 1.334088947
B125: =Inputs!$Y$68 -> CAPEX Installation costs | C125: =C124+1 -> 1 | E125: =IF($B115="Blank",0,OFFSET('CAPEX Annuity calcs'!$B$9,MATCH($B115,'CAPEX Annuity calcs'!$B$9:$B$500,0)+$C125,E$6)) -> 0 | F125: =IF($B115="Blank",0,OFFSET('CAPEX Annuity calcs'!$B$9,MATCH($B115,'CAPEX Annuity calcs'!$B$9:$B$500,0)+$C125,F$6)) -> 0 | I125: CAPEX Installation costs | J125: 0 | K125: 0
B126: =Inputs!$X$68 -> Luminaire UNIT price | C126: =C125+1 -> 2 | E126: =IF($B115="Blank",0,OFFSET('CAPEX Annuity calcs'!$B$9,MATCH($B115,'CAPEX Annuity calcs'!$B$9:$B$500,0)+$C126,E$6)) -> 18.40429473 | F126: =IF($B115="Blank",0,OFFSET('CAPEX Annuity calcs'!$B$9,MATCH($B115,'CAPEX Annuity calcs'!$B$9:$B$500,0)+$C126,F$6)) -> 18.40429473 | I126: Luminaire UNIT price | J126: 5.042272528 | K126: 5.042272528
B127: =Inputs!$Y$68 -> CAPEX Installation costs | C127: 3 | E127: =IF($B115="Blank",0,OFFSET('CAPEX Annuity calcs'!$B$9,MATCH($B115,'CAPEX Annuity calcs'!$B$9:$B$500,0)+$C127,E$6)) -> 15.95868573 | F127: =IF($B115="Blank",0,OFFSET('CAPEX Annuity calcs'!$B$9,MATCH($B115,'CAPEX Annuity calcs'!$B$9:$B$500,0)+$C127,F$6)) -> 15.95868573 | I127: CAPEX Installation costs | J127: 4.372242666 | K127: 4.372242666
E128: =SUM(E116:E127) -> 129.8006337 | F128: =SUM(F116:F127) -> 130.6650442 | J128: =ROUND(E128/J$2*100,3) -> 35.562 | K128: =ROUND(F128/K$2*100,3) -> 35.799
A130: =A115+1 -> 9 | B130: =IFERROR(VLOOKUP($A130,Inputs!$B$68:$AK$129,MATCH($B$7,Inputs!$B$68:$AK$68,0),FALSE),"Blank") -> T5 Fluorescent 2 x 24W | I130: =IFERROR(VLOOKUP($A130,Inputs!$B$68:$AK$129,MATCH($B$7,Inputs!$B$68:$AK$68,0),FALSE),"Blank") -> T5 Fluorescent 2 x 24W
B131: =Inputs!$R$68 -> Lamp UNIT price Annualised Cost | C131: =Inputs!$P$68 -> Lamp Maintenance cycle | E131: =IF($B130="Blank",0,VLOOKUP($B130,Inputs!$C$68:$AK$129,MATCH($B131,Inputs!$C$68:$AK$68,0),FALSE)) -> 2.024688222 | F131: =IF($B130="Blank",0,VLOOKUP($B130,Inputs!$C$68:$AK$129,MATCH($B131,Inputs!$C$68:$AK$68,0),FALSE)) -> 2.024688222 | I131: =B131 -> Lamp UNIT price Annualised Cost | J131: =IF(E131="NA","",E131/J$2*100) -> 0.554709102 | K131: =IF(F131="NA","",F131/K$2*100) -> 0.554709102
B132: =Inputs!$K$68 -> PE Cell UNIT price Annualised Cost | C132: =Inputs!$I$68 -> PE Cell Maintenance Cycle | E132: =IF($B130="Blank",0,VLOOKUP($B130,Inputs!$C$68:$AK$129,MATCH($B132,Inputs!$C$68:$AK$68,0),FALSE)) -> 0.5955547094 | F132: =IF($B130="Blank",0,VLOOKUP($B130,Inputs!$C$68:$AK$129,MATCH($B132,Inputs!$C$68:$AK$68,0),FALSE)) -> 0.5955547094 | I132: PE Cell UNIT price Annualised Cost | J132: 0.1631656738 | K132: 0.1631656738
B133: Corp capex annuity per light | E133: =IF($B130="Blank",0,'Corp Capex Annuity calcs'!F$109) -> 11.34474414 | F133: =IF($B130="Blank",0,'Corp Capex Annuity calcs'!G$109) -> 11.25447609 | I133: Corp capex annuity per light | J133: 3.108149081 | K133: 3.083418106
B134: =Inputs!$T$68 -> Lamp Service costs Annualised | E134: =IF($B130="Blank",0,VLOOKUP($B130,Inputs!$C$68:$AK$129,MATCH($B134,Inputs!$C$68:$AK$68,0),FALSE)) -> 25.3939337 | F134: =IF($B130="Blank",0,VLOOKUP($B130,Inputs!$C$68:$AK$129,MATCH($B134,Inputs!$C$68:$AK$68,0),FALSE)) -> 25.3939337 | I134: Lamp Service costs Annualised | J134: 6.95724211 | K134: 6.95724211
B135: =Inputs!$M$68 -> PE Cell Service costs Annualised | E135: =IF($B130="Blank",0,VLOOKUP($B130,Inputs!$C$68:$AK$129,MATCH($B135,Inputs!$C$68:$AK$68,0),FALSE)) -> 0 | F135: =IF($B130="Blank",0,VLOOKUP($B130,Inputs!$C$68:$AK$129,MATCH($B135,Inputs!$C$68:$AK$68,0),FALSE)) -> 0 | I135: PE Cell Service costs Annualised | J135: 0 | K135: 0
B136: Indirect Opex | E136: =IF($B130="Blank",0,IF($B$8="Private Contract Lighting",'Opex Weighting'!D$113,'Opex Weighting'!D$111)) -> 23.2103802 | F136: =IF($B130="Blank",0,IF($B$8="Private Contract Lighting",'Opex Weighting'!E$113,'Opex Weighting'!E$111)) -> 24.22507388 | I136: Indirect Opex | J136: 6.359008274 | K136: 6.637006543
B137: Indirect Capex | E137: ='Capex Weighting'!D$115 -> 0 | F137: ='Capex Weighting'!E$114 -> 0 | I137: Indirect Capex | J137: 0 | K137: 0
B138: Overhead Costs per light | E138: =IF($B130="Blank",0,IF($B$8="Private Contract Lighting",'Building Block'!C$49,'Building Block'!C$48)) -> 28.55140463 | F138: =IF($B130="Blank",0,IF($B$8="Private Contract Lighting",'Building Block'!D$49,'Building Block'!D$48)) -> 28.49138942 | I138: Overhead Costs per light | J138: 7.82230264 | K138: 7.805860115
B139: =Inputs!$AH$68 -> Bracket UNIT price | C139: 0 | E139: =IF($B130="Blank",0,OFFSET('CAPEX Annuity calcs'!$B$9,MATCH($B130,'CAPEX Annuity calcs'!$B$9:$B$500,0)+$C139,E$6)) -> 4.869424658 | F139: =IF($B130="Blank",0,OFFSET('CAPEX Annuity calcs'!$B$9,MATCH($B130,'CAPEX Annuity calcs'!$B$9:$B$500,0)+$C139,F$6)) -> 4.869424658 | I139: Bracket UNIT price | J139: 1.334088947 | K139: 1.334088947
B140: =Inputs!$Y$68 -> CAPEX Installation costs | C140: =C139+1 -> 1 | E140: =IF($B130="Blank",0,OFFSET('CAPEX Annuity calcs'!$B$9,MATCH($B130,'CAPEX Annuity calcs'!$B$9:$B$500,0)+$C140,E$6)) -> 0 | F140: =IF($B130="Blank",0,OFFSET('CAPEX Annuity calcs'!$B$9,MATCH($B130,'CAPEX Annuity calcs'!$B$9:$B$500,0)+$C140,F$6)) -> 0 | I140: CAPEX Installation costs | J140: 0 | K140: 0
B141: =Inputs!$X$68 -> Luminaire UNIT price | C141: =C140+1 -> 2 | E141: =IF($B130="Blank",0,OFFSET('CAPEX Annuity calcs'!$B$9,MATCH($B130,'CAPEX Annuity calcs'!$B$9:$B$500,0)+$C141,E$6)) -> 18.0451906 | F141: =IF($B130="Blank",0,OFFSET('CAPEX Annuity calcs'!$B$9,MATCH($B130,'CAPEX Annuity calcs'!$B$9:$B$500,0)+$C141,F$6)) -> 18.0451906 | I141: Luminaire UNIT price | J141: 4.943887836 | K141: 4.943887836
B142: =Inputs!$Y$68 -> CAPEX Installation costs | C142: 3 | E142: =IF($B130="Blank",0,OFFSET('CAPEX Annuity calcs'!$B$9,MATCH($B130,'CAPEX Annuity calcs'!$B$9:$B$500,0)+$C142,E$6)) -> 15.95868573 | F142: =IF($B130="Blank",0,OFFSET('CAPEX Annuity calcs'!$B$9,MATCH($B130,'CAPEX Annuity calcs'!$B$9:$B$500,0)+$C142,F$6)) -> 15.95868573 | I142: CAPEX Installation costs | J142: 4.372242666 | K142: 4.372242666
E143: =SUM(E131:E142) -> 129.9940066 | F143: =SUM(F131:F142) -> 130.858417 | J143: =ROUND(E143/J$2*100,3) -> 35.615 | K143: =ROUND(F143/K$2*100,3) -> 35.852
A145: =A130+1 -> 10 | B145: =IFERROR(VLOOKUP($A145,Inputs!$B$68:$AK$129,MATCH($B$7,Inputs!$B$68:$AK$68,0),FALSE),"Blank") -> 20 Fluorescent 1X20FL | I145: =IFERROR(VLOOKUP($A145,Inputs!$B$68:$AK$129,MATCH($B$7,Inputs!$B$68:$AK$68,0),FALSE),"Blank") -> 20 Fluorescent 1X20FL
B146: =Inputs!$R$68 -> Lamp UNIT price Annualised Cost | C146: =Inputs!$P$68 -> Lamp Maintenance cycle | E146: =IF($B145="Blank",0,VLOOKUP($B145,Inputs!$C$68:$AK$129,MATCH($B146,Inputs!$C$68:$AK$68,0),FALSE)) -> 1.012344111 | F146: =IF($B145="Blank",0,VLOOKUP($B145,Inputs!$C$68:$AK$129,MATCH($B146,Inputs!$C$68:$AK$68,0),FALSE)) -> 1.012344111 | I146: =B146 -> Lamp UNIT price Annualised Cost | J146: =IF(E146="NA","",E146/J$2*100) -> 0.277354551 | K146: =IF(F146="NA","",F146/K$2*100) -> 0.277354551
B147: =Inputs!$K$68 -> PE Cell UNIT price Annualised Cost | C147: =Inputs!$I$68 -> PE Cell Maintenance Cycle | E147: =IF($B145="Blank",0,VLOOKUP($B145,Inputs!$C$68:$AK$129,MATCH($B147,Inputs!$C$68:$AK$68,0),FALSE)) -> 0.5955547094 | F147: =IF($B145="Blank",0,VLOOKUP($B145,Inputs!$C$68:$AK$129,MATCH($B147,Inputs!$C$68:$AK$68,0),FALSE)) -> 0.5955547094 | I147: PE Cell UNIT price Annualised Cost | J147: 0.1631656738 | K147: 0.1631656738
B148: Corp capex annuity per light | E148: =IF($B145="Blank",0,'Corp Capex Annuity calcs'!F$109) -> 11.34474414 | F148: =IF($B145="Blank",0,'Corp Capex Annuity calcs'!G$109) -> 11.25447609 | I148: Corp capex annuity per light | J148: 3.108149081 | K148: 3.083418106
B149: =Inputs!$T$68 -> Lamp Service costs Annualised | E149: =IF($B145="Blank",0,VLOOKUP($B145,Inputs!$C$68:$AK$129,MATCH($B149,Inputs!$C$68:$AK$68,0),FALSE)) -> 25.3939337 | F149: =IF($B145="Blank",0,VLOOKUP($B145,Inputs!$C$68:$AK$129,MATCH($B149,Inputs!$C$68:$AK$68,0),FALSE)) -> 25.3939337 | I149: Lamp Service costs Annualised | J149: 6.95724211 | K149: 6.95724211
B150: =Inputs!$M$68 -> PE Cell Service costs Annualised | E150: =IF($B145="Blank",0,VLOOKUP($B145,Inputs!$C$68:$AK$129,MATCH($B150,Inputs!$C$68:$AK$68,0),FALSE)) -> 0 | F150: =IF($B145="Blank",0,VLOOKUP($B145,Inputs!$C$68:$AK$129,MATCH($B150,Inputs!$C$68:$AK$68,0),FALSE)) -> 0 | I150: PE Cell Service costs Annualised | J150: 0 | K150: 0
B151: Indirect Opex | E151: =IF($B145="Blank",0,IF($B$8="Private Contract Lighting",'Opex Weighting'!D$113,'Opex Weighting'!D$111)) -> 23.2103802 | F151: =IF($B145="Blank",0,IF($B$8="Private Contract Lighting",'Opex Weighting'!E$113,'Opex Weighting'!E$111)) -> 24.22507388 | I151: Indirect Opex | J151: 6.359008274 | K151: 6.637006543
B152: Indirect Capex | E152: ='Capex Weighting'!D$115 -> 0 | F152: ='Capex Weighting'!E$114 -> 0 | I152: Indirect Capex | J152: 0 | K152: 0
B153: Overhead Costs per light | E153: =IF($B145="Blank",0,IF($B$8="Private Contract Lighting",'Building Block'!C$49,'Building Block'!C$48)) -> 28.55140463 | F153: =IF($B145="Blank",0,IF($B$8="Private Contract Lighting",'Building Block'!D$49,'Building Block'!D$48)) -> 28.49138942 | I153: Overhead Costs per light | J153: 7.82230264 | K153: 7.805860115
B154: =Inputs!$AH$68 -> Bracket UNIT price | C154: 0 | E154: =IF($B145="Blank",0,OFFSET('CAPEX Annuity calcs'!$B$9,MATCH($B145,'CAPEX Annuity calcs'!$B$9:$B$500,0)+$C154,E$6)) -> 4.869424658 | F154: =IF($B145="Blank",0,OFFSET('CAPEX Annuity calcs'!$B$9,MATCH($B145,'CAPEX Annuity calcs'!$B$9:$B$500,0)+$C154,F$6)) -> 4.869424658 | I154: Bracket UNIT price | J154: 1.334088947 | K154: 1.334088947
B155: =Inputs!$Y$68 -> CAPEX Installation costs | C155: =C154+1 -> 1 | E155: =IF($B145="Blank",0,OFFSET('CAPEX Annuity calcs'!$B$9,MATCH($B145,'CAPEX Annuity calcs'!$B$9:$B$500,0)+$C155,E$6)) -> 0 | F155: =IF($B145="Blank",0,OFFSET('CAPEX Annuity calcs'!$B$9,MATCH($B145,'CAPEX Annuity calcs'!$B$9:$B$500,0)+$C155,F$6)) -> 0 | I155: CAPEX Installation costs | J155: 0 | K155: 0
B156: =Inputs!$X$68 -> Luminaire UNIT price | C156: =C155+1 -> 2 | E156: =IF($B145="Blank",0,OFFSET('CAPEX Annuity calcs'!$B$9,MATCH($B145,'CAPEX Annuity calcs'!$B$9:$B$500,0)+$C156,E$6)) -> 18.0451906 | F156: =IF($B145="Blank",0,OFFSET('CAPEX Annuity calcs'!$B$9,MATCH($B145,'CAPEX Annuity calcs'!$B$9:$B$500,0)+$C156,F$6)) -> 18.0451906 | I156: Luminaire UNIT price | J156: 4.943887836 | K156: 4.943887836
B157: =Inputs!$Y$68 -> CAPEX Installation costs | C157: 3 | E157: =IF($B145="Blank",0,OFFSET('CAPEX Annuity calcs'!$B$9,MATCH($B145,'CAPEX Annuity calcs'!$B$9:$B$500,0)+$C157,E$6)) -> 15.95868573 | F157: =IF($B145="Blank",0,OFFSET('CAPEX Annuity calcs'!$B$9,MATCH($B145,'CAPEX Annuity calcs'!$B$9:$B$500,0)+$C157,F$6)) -> 15.95868573 | I157: CAPEX Installation costs | J157: 4.372242666 | K157: 4.372242666
E158: =SUM(E146:E157) -> 128.9816625 | F158: =SUM(F146:F157) -> 129.8460729 | J158: =ROUND(E158/J$2*100,3) -> 35.337 | K158: =ROUND(F158/K$2*100,3) -> 35.574
A160: =A145+1 -> 11 | B160: =IFERROR(VLOOKUP($A160,Inputs!$B$68:$AK$129,MATCH($B$7,Inputs!$B$68:$AK$68,0),FALSE),"Blank") -> 2x40W Fluorescent | I160: =IFERROR(VLOOKUP($A160,Inputs!$B$68:$AK$129,MATCH($B$7,Inputs!$B$68:$AK$68,0),FALSE),"Blank") -> 2x40W Fluorescent
B161: =Inputs!$R$68 -> Lamp UNIT price Annualised Cost | C161: =Inputs!$P$68 -> Lamp Maintenance cycle | E161: =IF($B160="Blank",0,VLOOKUP($B160,Inputs!$C$68:$AK$129,MATCH($B161,Inputs!$C$68:$AK$68,0),FALSE)) -> 2.156222492 | F161: =IF($B160="Blank",0,VLOOKUP($B160,Inputs!$C$68:$AK$129,MATCH($B161,Inputs!$C$68:$AK$68,0),FALSE)) -> 2.156222492 | I161: =B161 -> Lamp UNIT price Annualised Cost | J161: =IF(E161="NA","",E161/J$2*100) -> 0.5907458882 | K161: =IF(F161="NA","",F161/K$2*100) -> 0.5907458882
B162: =Inputs!$K$68 -> PE Cell UNIT price Annualised Cost | C162: =Inputs!$I$68 -> PE Cell Maintenance Cycle | E162: =IF($B160="Blank",0,VLOOKUP($B160,Inputs!$C$68:$AK$129,MATCH($B162,Inputs!$C$68:$AK$68,0),FALSE)) -> 0.5955547094 | F162: =IF($B160="Blank",0,VLOOKUP($B160,Inputs!$C$68:$AK$129,MATCH($B162,Inputs!$C$68:$AK$68,0),FALSE)) -> 0.5955547094 | I162: PE Cell UNIT price Annualised Cost | J162: 0.1631656738 | K162: 0.1631656738
B163: Corp capex annuity per light | E163: =IF($B160="Blank",0,'Corp Capex Annuity calcs'!F$109) -> 11.34474414 | F163: =IF($B160="Blank",0,'Corp Capex Annuity calcs'!G$109) -> 11.25447609 | I163: Corp capex annuity per light | J163: 3.108149081 | K163: 3.083418106
B164: =Inputs!$T$68 -> Lamp Service costs Annualised | E164: =IF($B160="Blank",0,VLOOKUP($B160,Inputs!$C$68:$AK$129,MATCH($B164,Inputs!$C$68:$AK$68,0),FALSE)) -> 25.3939337 | F164: =IF($B160="Blank",0,VLOOKUP($B160,Inputs!$C$68:$AK$129,MATCH($B164,Inputs!$C$68:$AK$68,0),FALSE)) -> 25.3939337 | I164: Lamp Service costs Annualised | J164: 6.95724211 | K164: 6.95724211
B165: =Inputs!$M$68 -> PE Cell Service costs Annualised | E165: =IF($B160="Blank",0,VLOOKUP($B160,Inputs!$C$68:$AK$129,MATCH($B165,Inputs!$C$68:$AK$68,0),FALSE)) -> 0 | F165: =IF($B160="Blank",0,VLOOKUP($B160,Inputs!$C$68:$AK$129,MATCH($B165,Inputs!$C$68:$AK$68,0),FALSE)) -> 0 | I165: PE Cell Service costs Annualised | J165: 0 | K165: 0
B166: Indirect Opex | E166: =IF($B160="Blank",0,IF($B$8="Private Contract Lighting",'Opex Weighting'!D$113,'Opex Weighting'!D$111)) -> 23.2103802 | F166: =IF($B160="Blank",0,IF($B$8="Private Contract Lighting",'Opex Weighting'!E$113,'Opex Weighting'!E$111)) -> 24.22507388 | I166: Indirect Opex | J166: 6.359008274 | K166: 6.637006543
B167: Indirect Capex | E167: ='Capex Weighting'!D$115 -> 0 | F167: ='Capex Weighting'!E$114 -> 0 | I167: Indirect Capex | J167: 0 | K167: 0
B168: Overhead Costs per light | E168: =IF($B160="Blank",0,IF($B$8="Private Contract Lighting",'Building Block'!C$49,'Building Block'!C$48)) -> 28.55140463 | F168: =IF($B160="Blank",0,IF($B$8="Private Contract Lighting",'Building Block'!D$49,'Building Block'!D$48)) -> 28.49138942 | I168: Overhead Costs per light | J168: 7.82230264 | K168: 7.805860115
B169: =Inputs!$AH$68 -> Bracket UNIT price | C169: 0 | E169: =IF($B160="Blank",0,OFFSET('CAPEX Annuity calcs'!$B$9,MATCH($B160,'CAPEX Annuity calcs'!$B$9:$B$500,0)+$C169,E$6)) -> 4.869424658 | F169: =IF($B160="Blank",0,OFFSET('CAPEX Annuity calcs'!$B$9,MATCH($B160,'CAPEX Annuity calcs'!$B$9:$B$500,0)+$C169,F$6)) -> 4.869424658 | I169: Bracket UNIT price | J169: 1.334088947 | K169: 1.334088947
B170: =Inputs!$Y$68 -> CAPEX Installation costs | C170: =C169+1 -> 1 | E170: =IF($B160="Blank",0,OFFSET('CAPEX Annuity calcs'!$B$9,MATCH($B160,'CAPEX Annuity calcs'!$B$9:$B$500,0)+$C170,E$6)) -> 0 | F170: =IF($B160="Blank",0,OFFSET('CAPEX Annuity calcs'!$B$9,MATCH($B160,'CAPEX Annuity calcs'!$B$9:$B$500,0)+$C170,F$6)) -> 0 | I170: CAPEX Installation costs | J170: 0 | K170: 0
B171: =Inputs!$X$68 -> Luminaire UNIT price | C171: =C170+1 -> 2 | E171: =IF($B160="Blank",0,OFFSET('CAPEX Annuity calcs'!$B$9,MATCH($B160,'CAPEX Annuity calcs'!$B$9:$B$500,0)+$C171,E$6)) -> 14.1392042 | F171: =IF($B160="Blank",0,OFFSET('CAPEX Annuity calcs'!$B$9,MATCH($B160,'CAPEX Annuity calcs'!$B$9:$B$500,0)+$C171,F$6)) -> 14.1392042 | I171: Luminaire UNIT price | J171: 3.873754575 | K171: 3.873754575
B172: =Inputs!$Y$68 -> CAPEX Installation costs | C172: 3 | E172: =IF($B160="Blank",0,OFFSET('CAPEX Annuity calcs'!$B$9,MATCH($B160,'CAPEX Annuity calcs'!$B$9:$B$500,0)+$C172,E$6)) -> 15.95868573 | F172: =IF($B160="Blank",0,OFFSET('CAPEX Annuity calcs'!$B$9,MATCH($B160,'CAPEX Annuity calcs'!$B$9:$B$500,0)+$C172,F$6)) -> 15.95868573 | I172: CAPEX Installation costs | J172: 4.372242666 | K172: 4.372242666
E173: =SUM(E161:E172) -> 126.2195545 | F173: =SUM(F161:F172) -> 127.0839649 | J173: =ROUND(E173/J$2*100,3) -> 34.581 | K173: =ROUND(F173/K$2*100,3) -> 34.818
A175: =A160+1 -> 12 | B175: =IFERROR(VLOOKUP($A175,Inputs!$B$68:$AK$129,MATCH($B$7,Inputs!$B$68:$AK$68,0),FALSE),"Blank") -> 3x40W Fluorescent | I175: =IFERROR(VLOOKUP($A175,Inputs!$B$68:$AK$129,MATCH($B$7,Inputs!$B$68:$AK$68,0),FALSE),"Blank") -> 3x40W Fluorescent
B176: =Inputs!$R$68 -> Lamp UNIT price Annualised Cost | C176: =Inputs!$P$68 -> Lamp Maintenance cycle | E176: =IF($B175="Blank",0,VLOOKUP($B175,Inputs!$C$68:$AK$129,MATCH($B176,Inputs!$C$68:$AK$68,0),FALSE)) -> 3.234333738 | F176: =IF($B175="Blank",0,VLOOKUP($B175,Inputs!$C$68:$AK$129,MATCH($B176,Inputs!$C$68:$AK$68,0),FALSE)) -> 3.234333738 | I176: =B176 -> Lamp UNIT price Annualised Cost | J176: =IF(E176="NA","",E176/J$2*100) -> 0.8861188323 | K176: =IF(F176="NA","",F176/K$2*100) -> 0.8861188323
B177: =Inputs!$K$68 -> PE Cell UNIT price Annualised Cost | C177: =Inputs!$I$68 -> PE Cell Maintenance Cycle | E177: =IF($B175="Blank",0,VLOOKUP($B175,Inputs!$C$68:$AK$129,MATCH($B177,Inputs!$C$68:$AK$68,0),FALSE)) -> 1.734578327 | F177: =IF($B175="Blank",0,VLOOKUP($B175,Inputs!$C$68:$AK$129,MATCH($B177,Inputs!$C$68:$AK$68,0),FALSE)) -> 1.734578327 | I177: PE Cell UNIT price Annualised Cost | J177: 0.4752269388 | K177: 0.4752269388
B178: Corp capex annuity per light | E178: =IF($B175="Blank",0,'Corp Capex Annuity calcs'!F$109) -> 11.34474414 | F178: =IF($B175="Blank",0,'Corp Capex Annuity calcs'!G$109) -> 11.25447609 | I178: Corp capex annuity per light | J178: 3.108149081 | K178: 3.083418106
B179: =Inputs!$T$68 -> Lamp Service costs Annualised | E179: =IF($B175="Blank",0,VLOOKUP($B175,Inputs!$C$68:$AK$129,MATCH($B179,Inputs!$C$68:$AK$68,0),FALSE)) -> 36.75437773 | F179: =IF($B175="Blank",0,VLOOKUP($B175,Inputs!$C$68:$AK$129,MATCH($B179,Inputs!$C$68:$AK$68,0),FALSE)) -> 36.75437773 | I179: Lamp Service costs Annualised | J179: 10.06969253 | K179: 10.06969253
B180: =Inputs!$M$68 -> PE Cell Service costs Annualised | E180: =IF($B175="Blank",0,VLOOKUP($B175,Inputs!$C$68:$AK$129,MATCH($B180,Inputs!$C$68:$AK$68,0),FALSE)) -> 0 | F180: =IF($B175="Blank",0,VLOOKUP($B175,Inputs!$C$68:$AK$129,MATCH($B180,Inputs!$C$68:$AK$68,0),FALSE)) -> 0 | I180: PE Cell Service costs Annualised | J180: 0 | K180: 0
B181: Indirect Opex | E181: =IF($B175="Blank",0,IF($B$8="Private Contract Lighting",'Opex Weighting'!D$113,'Opex Weighting'!D$111)) -> 23.2103802 | F181: =IF($B175="Blank",0,IF($B$8="Private Contract Lighting",'Opex Weighting'!E$113,'Opex Weighting'!E$111)) -> 24.22507388 | I181: Indirect Opex | J181: 6.359008274 | K181: 6.637006543
B182: Indirect Capex | E182: ='Capex Weighting'!D$115 -> 0 | F182: ='Capex Weighting'!E$114 -> 0 | I182: Indirect Capex | J182: 0 | K182: 0
B183: Overhead Costs per light | E183: =IF($B175="Blank",0,IF($B$8="Private Contract Lighting",'Building Block'!C$49,'Building Block'!C$48)) -> 28.55140463 | F183: =IF($B175="Blank",0,IF($B$8="Private Contract Lighting",'Building Block'!D$49,'Building Block'!D$48)) -> 28.49138942 | I183: Overhead Costs per light | J183: 7.82230264 | K183: 7.805860115
B184: =Inputs!$AH$68 -> Bracket UNIT price | C184: 0 | E184: =IF($B175="Blank",0,OFFSET('CAPEX Annuity calcs'!$B$9,MATCH($B175,'CAPEX Annuity calcs'!$B$9:$B$500,0)+$C184,E$6)) -> 4.869424658 | F184: =IF($B175="Blank",0,OFFSET('CAPEX Annuity calcs'!$B$9,MATCH($B175,'CAPEX Annuity calcs'!$B$9:$B$500,0)+$C184,F$6)) -> 4.869424658 | I184: Bracket UNIT price | J184: 1.334088947 | K184: 1.334088947
B185: =Inputs!$Y$68 -> CAPEX Installation costs | C185: =C184+1 -> 1 | E185: =IF($B175="Blank",0,OFFSET('CAPEX Annuity calcs'!$B$9,MATCH($B175,'CAPEX Annuity calcs'!$B$9:$B$500,0)+$C185,E$6)) -> 0 | F185: =IF($B175="Blank",0,OFFSET('CAPEX Annuity calcs'!$B$9,MATCH($B175,'CAPEX Annuity calcs'!$B$9:$B$500,0)+$C185,F$6)) -> 0 | I185: CAPEX Installation costs | J185: 0 | K185: 0
B186: =Inputs!$X$68 -> Luminaire UNIT price | C186: =C185+1 -> 2 | E186: =IF($B175="Blank",0,OFFSET('CAPEX Annuity calcs'!$B$9,MATCH($B175,'CAPEX Annuity calcs'!$B$9:$B$500,0)+$C186,E$6)) -> 14.1392042 | F186: =IF($B175="Blank",0,OFFSET('CAPEX Annuity calcs'!$B$9,MATCH($B175,'CAPEX Annuity calcs'!$B$9:$B$500,0)+$C186,F$6)) -> 14.1392042 | I186: Luminaire UNIT price | J186: 3.873754575 | K186: 3.873754575
B187: =Inputs!$Y$68 -> CAPEX Installation costs | C187: 3 | E187: =IF($B175="Blank",0,OFFSET('CAPEX Annuity calcs'!$B$9,MATCH($B175,'CAPEX Annuity calcs'!$B$9:$B$500,0)+$C187,E$6)) -> 34.48254608 | F187: =IF($B175="Blank",0,OFFSET('CAPEX Annuity calcs'!$B$9,MATCH($B175,'CAPEX Annuity calcs'!$B$9:$B$500,0)+$C187,F$6)) -> 34.48254608 | I187: CAPEX Installation costs | J187: 9.447272899 | K187: 9.447272899
E188: =SUM(E176:E187) -> 158.3209937 | F188: =SUM(F176:F187) -> 159.1854041 | J188: =ROUND(E188/J$2*100,3) -> 43.376 | K188: =ROUND(F188/K$2*100,3) -> 43.612
A190: =A175+1 -> 13 | B190: =IFERROR(VLOOKUP($A190,Inputs!$B$68:$AK$129,MATCH($B$7,Inputs!$B$68:$AK$68,0),FALSE),"Blank") -> 4x20 Fluorescent | I190: =IFERROR(VLOOKUP($A190,Inputs!$B$68:$AK$129,MATCH($B$7,Inputs!$B$68:$AK$68,0),FALSE),"Blank") -> 4x20 Fluorescent
B191: =Inputs!$R$68 -> Lamp UNIT price Annualised Cost | C191: =Inputs!$P$68 -> Lamp Maintenance cycle | E191: =IF($B190="Blank",0,VLOOKUP($B190,Inputs!$C$68:$AK$129,MATCH($B191,Inputs!$C$68:$AK$68,0),FALSE)) -> 4.049376445 | F191: =IF($B190="Blank",0,VLOOKUP($B190,Inputs!$C$68:$AK$129,MATCH($B191,Inputs!$C$68:$AK$68,0),FALSE)) -> 4.049376445 | I191: =B191 -> Lamp UNIT price Annualised Cost | J191: =IF(E191="NA","",E191/J$2*100) -> 1.109418204 | K191: =IF(F191="NA","",F191/K$2*100) -> 1.109418204
B192: =Inputs!$K$68 -> PE Cell UNIT price Annualised Cost | C192: =Inputs!$I$68 -> PE Cell Maintenance Cycle | E192: =IF($B190="Blank",0,VLOOKUP($B190,Inputs!$C$68:$AK$129,MATCH($B192,Inputs!$C$68:$AK$68,0),FALSE)) -> 0.5955547094 | F192: =IF($B190="Blank",0,VLOOKUP($B190,Inputs!$C$68:$AK$129,MATCH($B192,Inputs!$C$68:$AK$68,0),FALSE)) -> 0.5955547094 | I192: PE Cell UNIT price Annualised Cost | J192: 0.1631656738 | K192: 0.1631656738
B193: Corp capex annuity per light | E193: =IF($B190="Blank",0,'Corp Capex Annuity calcs'!F$109) -> 11.34474414 | F193: =IF($B190="Blank",0,'Corp Capex Annuity calcs'!G$109) -> 11.25447609 | I193: Corp capex annuity per light | J193: 3.108149081 | K193: 3.083418106
B194: =Inputs!$T$68 -> Lamp Service costs Annualised | E194: =IF($B190="Blank",0,VLOOKUP($B190,Inputs!$C$68:$AK$129,MATCH($B194,Inputs!$C$68:$AK$68,0),FALSE)) -> 25.3939337 | F194: =IF($B190="Blank",0,VLOOKUP($B190,Inputs!$C$68:$AK$129,MATCH($B194,Inputs!$C$68:$AK$68,0),FALSE)) -> 25.3939337 | I194: Lamp Service costs Annualised | J194: 6.95724211 | K194: 6.95724211
B195: =Inputs!$M$68 -> PE Cell Service costs Annualised | E195: =IF($B190="Blank",0,VLOOKUP($B190,Inputs!$C$68:$AK$129,MATCH($B195,Inputs!$C$68:$AK$68,0),FALSE)) -> 0 | F195: =IF($B190="Blank",0,VLOOKUP($B190,Inputs!$C$68:$AK$129,MATCH($B195,Inputs!$C$68:$AK$68,0),FALSE)) -> 0 | I195: PE Cell Service costs Annualised | J195: 0 | K195: 0
B196: Indirect Opex | E196: =IF($B190="Blank",0,IF($B$8="Private Contract Lighting",'Opex Weighting'!D$113,'Opex Weighting'!D$111)) -> 23.2103802 | F196: =IF($B190="Blank",0,IF($B$8="Private Contract Lighting",'Opex Weighting'!E$113,'Opex Weighting'!E$111)) -> 24.22507388 | I196: Indirect Opex | J196: 6.359008274 | K196: 6.637006543
B197: Indirect Capex | E197: ='Capex Weighting'!D$115 -> 0 | F197: ='Capex Weighting'!E$114 -> 0 | I197: Indirect Capex | J197: 0 | K197: 0
B198: Overhead Costs per light | E198: =IF($B190="Blank",0,IF($B$8="Private Contract Lighting",'Building Block'!C$49,'Building Block'!C$48)) -> 28.55140463 | F198: =IF($B190="Blank",0,IF($B$8="Private Contract Lighting",'Building Block'!D$49,'Building Block'!D$48)) -> 28.49138942 | I198: Overhead Costs per light | J198: 7.82230264 | K198: 7.805860115
B199: =Inputs!$AH$68 -> Bracket UNIT price | C199: 0 | E199: =IF($B190="Blank",0,OFFSET('CAPEX Annuity calcs'!$B$9,MATCH($B190,'CAPEX Annuity calcs'!$B$9:$B$500,0)+$C199,E$6)) -> 4.869424658 | F199: =IF($B190="Blank",0,OFFSET('CAPEX Annuity calcs'!$B$9,MATCH($B190,'CAPEX Annuity calcs'!$B$9:$B$500,0)+$C199,F$6)) -> 4.869424658 | I199: Bracket UNIT price | J199: 1.334088947 | K199: 1.334088947
B200: =Inputs!$Y$68 -> CAPEX Installation costs | C200: =C199+1 -> 1 | E200: =IF($B190="Blank",0,OFFSET('CAPEX Annuity calcs'!$B$9,MATCH($B190,'CAPEX Annuity calcs'!$B$9:$B$500,0)+$C200,E$6)) -> 0 | F200: =IF($B190="Blank",0,OFFSET('CAPEX Annuity calcs'!$B$9,MATCH($B190,'CAPEX Annuity calcs'!$B$9:$B$500,0)+$C200,F$6)) -> 0 | I200: CAPEX Installation costs | J200: 0 | K200: 0
B201: =Inputs!$X$68 -> Luminaire UNIT price | C201: =C200+1 -> 2 | E201: =IF($B190="Blank",0,OFFSET('CAPEX Annuity calcs'!$B$9,MATCH($B190,'CAPEX Annuity calcs'!$B$9:$B$500,0)+$C201,E$6)) -> 18.0451906 | F201: =IF($B190="Blank",0,OFFSET('CAPEX Annuity calcs'!$B$9,MATCH($B190,'CAPEX Annuity calcs'!$B$9:$B$500,0)+$C201,F$6)) -> 18.0451906 | I201: Luminaire UNIT price | J201: 4.943887836 | K201: 4.943887836
B202: =Inputs!$Y$68 -> CAPEX Installation costs | C202: 3 | E202: =IF($B190="Blank",0,OFFSET('CAPEX Annuity calcs'!$B$9,MATCH($B190,'CAPEX Annuity calcs'!$B$9:$B$500,0)+$C202,E$6)) -> 15.95868573 | F202: =IF($B190="Blank",0,OFFSET('CAPEX Annuity calcs'!$B$9,MATCH($B190,'CAPEX Annuity calcs'!$B$9:$B$500,0)+$C202,F$6)) -> 15.95868573 | I202: CAPEX Installation costs | J202: 4.372242666 | K202: 4.372242666
E203: =SUM(E191:E202) -> 132.0186948 | F203: =SUM(F191:F202) -> 132.8831052 | J203: =ROUND(E203/J$2*100,3) -> 36.17 | K203: =ROUND(F203/K$2*100,3) -> 36.406
A205: =A190+1 -> 14 | B205: =IFERROR(VLOOKUP($A205,Inputs!$B$68:$AK$129,MATCH($B$7,Inputs!$B$68:$AK$68,0),FALSE),"Blank") -> 4x40W Fluorescent | I205: =IFERROR(VLOOKUP($A205,Inputs!$B$68:$AK$129,MATCH($B$7,Inputs!$B$68:$AK$68,0),FALSE),"Blank") -> 4x40W Fluorescent
B206: =Inputs!$R$68 -> Lamp UNIT price Annualised Cost | C206: =Inputs!$P$68 -> Lamp Maintenance cycle | E206: =IF($B205="Blank",0,VLOOKUP($B205,Inputs!$C$68:$AK$129,MATCH($B206,Inputs!$C$68:$AK$68,0),FALSE)) -> 4.312444984 | F206: =IF($B205="Blank",0,VLOOKUP($B205,Inputs!$C$68:$AK$129,MATCH($B206,Inputs!$C$68:$AK$68,0),FALSE)) -> 4.312444984 | I206: =B206 -> Lamp UNIT price Annualised Cost | J206: =IF(E206="NA","",E206/J$2*100) -> 1.181491776 | K206: =IF(F206="NA","",F206/K$2*100) -> 1.181491776
B207: =Inputs!$K$68 -> PE Cell UNIT price Annualised Cost | C207: =Inputs!$I$68 -> PE Cell Maintenance Cycle | E207: =IF($B205="Blank",0,VLOOKUP($B205,Inputs!$C$68:$AK$129,MATCH($B207,Inputs!$C$68:$AK$68,0),FALSE)) -> 1.734578327 | F207: =IF($B205="Blank",0,VLOOKUP($B205,Inputs!$C$68:$AK$129,MATCH($B207,Inputs!$C$68:$AK$68,0),FALSE)) -> 1.734578327 | I207: PE Cell UNIT price Annualised Cost | J207: 0.4752269388 | K207: 0.4752269388
B208: Corp capex annuity per light | E208: =IF($B205="Blank",0,'Corp Capex Annuity calcs'!F$109) -> 11.34474414 | F208: =IF($B205="Blank",0,'Corp Capex Annuity calcs'!G$109) -> 11.25447609 | I208: Corp capex annuity per light | J208: 3.108149081 | K208: 3.083418106
B209: =Inputs!$T$68 -> Lamp Service costs Annualised | E209: =IF($B205="Blank",0,VLOOKUP($B205,Inputs!$C$68:$AK$129,MATCH($B209,Inputs!$C$68:$AK$68,0),FALSE)) -> 36.75437773 | F209: =IF($B205="Blank",0,VLOOKUP($B205,Inputs!$C$68:$AK$129,MATCH($B209,Inputs!$C$68:$AK$68,0),FALSE)) -> 36.75437773 | I209: Lamp Service costs Annualised | J209: 10.06969253 | K209: 10.06969253
B210: =Inputs!$M$68 -> PE Cell Service costs Annualised | E210: =IF($B205="Blank",0,VLOOKUP($B205,Inputs!$C$68:$AK$129,MATCH($B210,Inputs!$C$68:$AK$68,0),FALSE)) -> 0 | F210: =IF($B205="Blank",0,VLOOKUP($B205,Inputs!$C$68:$AK$129,MATCH($B210,Inputs!$C$68:$AK$68,0),FALSE)) -> 0 | I210: PE Cell Service costs Annualised | J210: 0 | K210: 0
B211: Indirect Opex | E211: =IF($B205="Blank",0,IF($B$8="Private Contract Lighting",'Opex Weighting'!D$113,'Opex Weighting'!D$111)) -> 23.2103802 | F211: =IF($B205="Blank",0,IF($B$8="Private Contract Lighting",'Opex Weighting'!E$113,'Opex Weighting'!E$111)) -> 24.22507388 | I211: Indirect Opex | J211: 6.359008274 | K211: 6.637006543
B212: Indirect Capex | E212: ='Capex Weighting'!D$115 -> 0 | F212: ='Capex Weighting'!E$114 -> 0 | I212: Indirect Capex | J212: 0 | K212: 0
B213: Overhead Costs per light | E213: =IF($B205="Blank",0,IF($B$8="Private Contract Lighting",'Building Block'!C$49,'Building Block'!C$48)) -> 28.55140463 | F213: =IF($B205="Blank",0,IF($B$8="Private Contract Lighting",'Building Block'!D$49,'Building Block'!D$48)) -> 28.49138942 | I213: Overhead Costs per light | J213: 7.82230264 | K213: 7.805860115
B214: =Inputs!$AH$68 -> Bracket UNIT price | C214: 0 | E214: =IF($B205="Blank",0,OFFSET('CAPEX Annuity calcs'!$B$9,MATCH($B205,'CAPEX Annuity calcs'!$B$9:$B$500,0)+$C214,E$6)) -> 4.869424658 | F214: =IF($B205="Blank",0,OFFSET('CAPEX Annuity calcs'!$B$9,MATCH($B205,'CAPEX Annuity calcs'!$B$9:$B$500,0)+$C214,F$6)) -> 4.869424658 | I214: Bracket UNIT price | J214: 1.334088947 | K214: 1.334088947
B215: =Inputs!$Y$68 -> CAPEX Installation costs | C215: =C214+1 -> 1 | E215: =IF($B205="Blank",0,OFFSET('CAPEX Annuity calcs'!$B$9,MATCH($B205,'CAPEX Annuity calcs'!$B$9:$B$500,0)+$C215,E$6)) -> 0 | F215: =IF($B205="Blank",0,OFFSET('CAPEX Annuity calcs'!$B$9,MATCH($B205,'CAPEX Annuity calcs'!$B$9:$B$500,0)+$C215,F$6)) -> 0 | I215: CAPEX Installation costs | J215: 0 | K215: 0
... 507 more rows

Sheet CAPEX Annuity calcs
B5: Public Lighting Capital Cost | E5: Base Costs $2016/17 | N5: Public Lighting Capital Cost | O5: Annuity calculation
B7: Light Description | C7: Major/Minor size | D7: Useful Life | E7: 2017-18 | F7: 2018-19 | G7: 2019-20 | H7: 2020-21 | I7: 2021-22 | J7: 2022-23 | K7: 2023-24 | N7: Light Description | O7: 2017-18 | P7: 2018-19 | Q7: 2019-20 | R7: 2020-21 | S7: 2021-22 | T7: 2022-23 | U7: 2023-24
A9: 1 | B9: 32W Compact Fluorescent | C9: RLMIN | N9: 32W Compact Fluorescent
B10: Bracket UNIT price | D10: 40 | E10: =SUMIF(Inputs!$C$69:$C$124,B9,Inputs!$AH$69:$AH$124) -> 72.54943407 | F10: =E10 -> 72.54943407 | N10: =B10 -> Bracket UNIT price | O10: =-PMT(Inputs!$D$4,$D10,E10) -> 3.445686244 | P10: =-PMT(Inputs!$D$4,$D10,F10) -> 3.445686244
B11: CAPEX Installation costs | C11: Bracket (40yrs) | D11: 40 | F11: 0 | N11: =B11 -> CAPEX Installation costs | O11: =-PMT(Inputs!$D$4,$D11,E11) -> 0 | P11: =-PMT(Inputs!$D$4,$D11,F11) -> 0
B12: Luminaire UNIT price | D12: 20 | E12: =SUMIF(Inputs!$C$69:$C$124,B9,Inputs!$X$69:$X$124) -> 193.5353965 | F12: 193.5353965 | N12: =B12 -> Luminaire UNIT price | O12: =-PMT(Inputs!$D$4,$D12,E12) -> 13.7303825 | P12: =-PMT(Inputs!$D$4,$D12,F12) -> 13.7303825
B13: CAPEX Installation costs | C13: Luminaire (20yrs) | D13: 20 | E13: =SUMIF(Inputs!$C$69:$C$124,B9,Inputs!$Y$69:$Y$124) -> 224.9442484 | F13: 224.9442484 | N13: =B13 -> CAPEX Installation costs | O13: =-PMT(Inputs!$D$4,$D13,E13) -> 15.95868573 | P13: =-PMT(Inputs!$D$4,$D13,F13) -> 15.95868573
A16: =A9+1 -> 2 | B16: 42W Compact Fluorescent | C16: RLMIN | N16: 42W Compact Fluorescent
B17: Bracket UNIT price | D17: 40 | E17: =SUMIF(Inputs!$C$69:$C$124,B16,Inputs!$AH$69:$AH$124) -> 74.25555028 | F17: =E17 -> 74.25555028 | N17: =B17 -> Bracket UNIT price | O17: =-PMT(Inputs!$D$4,$D17,E17) -> 3.526717078 | P17: =-PMT(Inputs!$D$4,$D17,F17) -> 3.526717078
B18: CAPEX Installation costs | C18: Bracket (40yrs) | D18: 40 | F18: 0 | N18: =B18 -> CAPEX Installation costs | O18: =-PMT(Inputs!$D$4,$D18,E18) -> 0 | P18: =-PMT(Inputs!$D$4,$D18,F18) -> 0
B19: Luminaire UNIT price | D19: 20 | E19: =SUMIF(Inputs!$C$69:$C$124,B16,Inputs!$X$69:$X$124) -> 193.5353965 | F19: 193.5353965 | N19: =B19 -> Luminaire UNIT price | O19: =-PMT(Inputs!$D$4,$D19,E19) -> 13.7303825 | P19: =-PMT(Inputs!$D$4,$D19,F19) -> 13.7303825
B20: CAPEX Installation costs | C20: Luminaire (20yrs) | D20: 20 | E20: =SUMIF(Inputs!$C$69:$C$124,B16,Inputs!$Y$69:$Y$124) -> 224.9442484 | F20: 224.9442484 | N20: =B20 -> CAPEX Installation costs | O20: =-PMT(Inputs!$D$4,$D20,E20) -> 15.95868573 | P20: =-PMT(Inputs!$D$4,$D20,F20) -> 15.95868573
A23: =A16+1 -> 3 | B23: 42W Compact Fluorescent - Bottom Pole Entry | C23: RLMIN | N23: 42W Compact Fluorescent - Bottom Pole Entry
B24: Bracket UNIT price | D24: 40 | E24: =SUMIF(Inputs!$C$69:$C$124,B23,Inputs!$AH$69:$AH$124) -> 74.25555028 | F24: =E24 -> 74.25555028 | N24: =B24 -> Bracket UNIT price | O24: =-PMT(Inputs!$D$4,$D24,E24) -> 3.526717078 | P24: =-PMT(Inputs!$D$4,$D24,F24) -> 3.526717078
B25: CAPEX Installation costs | C25: Bracket (40yrs) | D25: 40 | F25: 0 | N25: =B25 -> CAPEX Installation costs | O25: =-PMT(Inputs!$D$4,$D25,E25) -> 0 | P25: =-PMT(Inputs!$D$4,$D25,F25) -> 0
B26: Luminaire UNIT price | D26: 20 | E26: =SUMIF(Inputs!$C$69:$C$124,B23,Inputs!$X$69:$X$124) -> 193.5353965 | F26: 193.5353965 | N26: =B26 -> Luminaire UNIT price | O26: =-PMT(Inputs!$D$4,$D26,E26) -> 13.7303825 | P26: =-PMT(Inputs!$D$4,$D26,F26) -> 13.7303825
B27: CAPEX Installation costs | C27: Luminaire (20yrs) | D27: 20 | E27: =SUMIF(Inputs!$C$69:$C$124,B23,Inputs!$Y$69:$Y$124) -> 224.9442484 | F27: 224.9442484 | N27: =B27 -> CAPEX Installation costs | O27: =-PMT(Inputs!$D$4,$D27,E27) -> 15.95868573 | P27: =-PMT(Inputs!$D$4,$D27,F27) -> 15.95868573
A30: =A23+1 -> 4 | B30: 2x24W Compact Fluorescent | C30: RLMIN | N30: 2x24W Compact Fluorescent
B31: Bracket UNIT price | D31: 40 | E31: =SUMIF(Inputs!$C$69:$C$124,B30,Inputs!$AH$69:$AH$124) -> 74.24900716 | F31: =E31 -> 74.24900716 | N31: =B31 -> Bracket UNIT price | O31: =-PMT(Inputs!$D$4,$D31,E31) -> 3.526406317 | P31: =-PMT(Inputs!$D$4,$D31,F31) -> 3.526406317
B32: CAPEX Installation costs | C32: Bracket (40yrs) | D32: 40 | F32: 0 | N32: =B32 -> CAPEX Installation costs | O32: =-PMT(Inputs!$D$4,$D32,E32) -> 0 | P32: =-PMT(Inputs!$D$4,$D32,F32) -> 0
B33: Luminaire UNIT price | D33: 20 | E33: =SUMIF(Inputs!$C$69:$C$124,B30,Inputs!$X$69:$X$124) -> 193.5353965 | F33: 193.5353965 | N33: =B33 -> Luminaire UNIT price | O33: =-PMT(Inputs!$D$4,$D33,E33) -> 13.7303825 | P33: =-PMT(Inputs!$D$4,$D33,F33) -> 13.7303825
B34: CAPEX Installation costs | C34: Luminaire (20yrs) | D34: 20 | E34: =SUMIF(Inputs!$C$69:$C$124,B30,Inputs!$Y$69:$Y$124) -> 224.9442484 | F34: 224.9442484 | N34: =B34 -> CAPEX Installation costs | O34: =-PMT(Inputs!$D$4,$D34,E34) -> 15.95868573 | P34: =-PMT(Inputs!$D$4,$D34,F34) -> 15.95868573
A37: =A30+1 -> 5 | B37: 1x20W Fluorescent | C37: RLMIN | N37: 1x20W Fluorescent
B38: Bracket UNIT price | D38: 40 | E38: =SUMIF(Inputs!$C$69:$C$124,B37,Inputs!$AH$69:$AH$124) -> 102.5264572 | F38: =E38 -> 102.5264572 | N38: =B38 -> Bracket UNIT price | O38: =-PMT(Inputs!$D$4,$D38,E38) -> 4.869424658 | P38: =-PMT(Inputs!$D$4,$D38,F38) -> 4.869424658
B39: CAPEX Installation costs | C39: Bracket (40yrs) | D39: 40 | F39: 0 | N39: =B39 -> CAPEX Installation costs | O39: =-PMT(Inputs!$D$4,$D39,E39) -> 0 | P39: =-PMT(Inputs!$D$4,$D39,F39) -> 0
B40: Luminaire UNIT price | D40: 20 | E40: =SUMIF(Inputs!$C$69:$C$124,B37,Inputs!$X$69:$X$124) -> 254.354394 | F40: 254.354394 | N40: =B40 -> Luminaire UNIT price | O40: =-PMT(Inputs!$D$4,$D40,E40) -> 18.0451906 | P40: =-PMT(Inputs!$D$4,$D40,F40) -> 18.0451906
B41: CAPEX Installation costs | C41: Luminaire (20yrs) | D41: 20 | E41: =SUMIF(Inputs!$C$69:$C$124,B37,Inputs!$Y$69:$Y$124) -> 224.9442484 | F41: 224.9442484 | N41: =B41 -> CAPEX Installation costs | O41: =-PMT(Inputs!$D$4,$D41,E41) -> 15.95868573 | P41: =-PMT(Inputs!$D$4,$D41,F41) -> 15.95868573
A44: =A37+1 -> 6 | B44: 1x40W Fluorescent | C44: RLMIN | N44: 1x40W Fluorescent
B45: Bracket UNIT price | D45: 40 | E45: =SUMIF(Inputs!$C$69:$C$124,B44,Inputs!$AH$69:$AH$124) -> 102.5264572 | F45: =E45 -> 102.5264572 | N45: =B45 -> Bracket UNIT price | O45: =-PMT(Inputs!$D$4,$D45,E45) -> 4.869424658 | P45: =-PMT(Inputs!$D$4,$D45,F45) -> 4.869424658
B46: CAPEX Installation costs | C46: Bracket (40yrs) | D46: 40 | F46: 0 | N46: =B46 -> CAPEX Installation costs | O46: =-PMT(Inputs!$D$4,$D46,E46) -> 0 | P46: =-PMT(Inputs!$D$4,$D46,F46) -> 0
B47: Luminaire UNIT price | D47: 20 | E47: =SUMIF(Inputs!$C$69:$C$124,B44,Inputs!$X$69:$X$124) -> 199.2979068 | F47: 199.2979068 | N47: =B47 -> Luminaire UNIT price | O47: =-PMT(Inputs!$D$4,$D47,E47) -> 14.1392042 | P47: =-PMT(Inputs!$D$4,$D47,F47) -> 14.1392042
B48: CAPEX Installation costs | C48: Luminaire (20yrs) | D48: 20 | E48: =SUMIF(Inputs!$C$69:$C$124,B44,Inputs!$Y$69:$Y$124) -> 224.9442484 | F48: 224.9442484 | N48: =B48 -> CAPEX Installation costs | O48: =-PMT(Inputs!$D$4,$D48,E48) -> 15.95868573 | P48: =-PMT(Inputs!$D$4,$D48,F48) -> 15.95868573
A51: =A44+1 -> 7 | B51: 2x20W Fluorescent | C51: RLMIN | N51: 2x20W Fluorescent
B52: Bracket UNIT price | D52: 40 | E52: =SUMIF(Inputs!$C$69:$C$124,B51,Inputs!$AH$69:$AH$124) -> 102.5264572 | F52: =E52 -> 102.5264572 | N52: =B52 -> Bracket UNIT price | O52: =-PMT(Inputs!$D$4,$D52,E52) -> 4.869424658 | P52: =-PMT(Inputs!$D$4,$D52,F52) -> 4.869424658
B53: CAPEX Installation costs | C53: Bracket (40yrs) | D53: 40 | F53: 0 | N53: =B53 -> CAPEX Installation costs | O53: =-PMT(Inputs!$D$4,$D53,E53) -> 0 | P53: =-PMT(Inputs!$D$4,$D53,F53) -> 0
B54: Luminaire UNIT price | D54: 20 | E54: =SUMIF(Inputs!$C$69:$C$124,B51,Inputs!$X$69:$X$124) -> 254.354394 | F54: 254.354394 | N54: =B54 -> Luminaire UNIT price | O54: =-PMT(Inputs!$D$4,$D54,E54) -> 18.0451906 | P54: =-PMT(Inputs!$D$4,$D54,F54) -> 18.0451906
B55: CAPEX Installation costs | C55: Luminaire (20yrs) | D55: 20 | E55: =SUMIF(Inputs!$C$69:$C$124,B51,Inputs!$Y$69:$Y$124) -> 224.9442484 | F55: 224.9442484 | N55: =B55 -> CAPEX Installation costs | O55: =-PMT(Inputs!$D$4,$D55,E55) -> 15.95868573 | P55: =-PMT(Inputs!$D$4,$D55,F55) -> 15.95868573
A58: =A51+1 -> 8 | B58: 2x24W Fluorescent | C58: RLMIN | N58: 2x24W Fluorescent
B59: Bracket UNIT price | D59: 40 | E59: =SUMIF(Inputs!$C$69:$C$124,B58,Inputs!$AH$69:$AH$124) -> 102.5264572 | F59: =E59 -> 102.5264572 | N59: =B59 -> Bracket UNIT price | O59: =-PMT(Inputs!$D$4,$D59,E59) -> 4.869424658 | P59: =-PMT(Inputs!$D$4,$D59,F59) -> 4.869424658
B60: CAPEX Installation costs | C60: Bracket (40yrs) | D60: 40 | F60: 0 | N60: =B60 -> CAPEX Installation costs | O60: =-PMT(Inputs!$D$4,$D60,E60) -> 0 | P60: =-PMT(Inputs!$D$4,$D60,F60) -> 0
B61: Luminaire UNIT price | D61: 20 | E61: =SUMIF(Inputs!$C$69:$C$124,B58,Inputs!$X$69:$X$124) -> 259.4161145 | F61: 259.4161145 | N61: =B61 -> Luminaire UNIT price | O61: =-PMT(Inputs!$D$4,$D61,E61) -> 18.40429473 | P61: =-PMT(Inputs!$D$4,$D61,F61) -> 18.40429473
B62: CAPEX Installation costs | C62: Luminaire (20yrs) | D62: 20 | E62: =SUMIF(Inputs!$C$69:$C$124,B58,Inputs!$Y$69:$Y$124) -> 224.9442484 | F62: 224.9442484 | N62: =B62 -> CAPEX Installation costs | O62: =-PMT(Inputs!$D$4,$D62,E62) -> 15.95868573 | P62: =-PMT(Inputs!$D$4,$D62,F62) -> 15.95868573
A65: =A58+1 -> 9 | B65: T5 Fluorescent 2 x 24W | C65: RLMIN | N65: T5 Fluorescent 2 x 24W
B66: Bracket UNIT price | D66: 40 | E66: =SUMIF(Inputs!$C$69:$C$124,B65,Inputs!$AH$69:$AH$124) -> 102.5264572 | F66: =E66 -> 102.5264572 | N66: =B66 -> Bracket UNIT price | O66: =-PMT(Inputs!$D$4,$D66,E66) -> 4.869424658 | P66: =-PMT(Inputs!$D$4,$D66,F66) -> 4.869424658
B67: CAPEX Installation costs | C67: Bracket (40yrs) | D67: 40 | F67: 0 | N67: =B67 -> CAPEX Installation costs | O67: =-PMT(Inputs!$D$4,$D67,E67) -> 0 | P67: =-PMT(Inputs!$D$4,$D67,F67) -> 0
B68: Luminaire UNIT price | D68: 20 | E68: =SUMIF(Inputs!$C$69:$C$124,B65,Inputs!$X$69:$X$124) -> 254.354394 | F68: 254.354394 | N68: =B68 -> Luminaire UNIT price | O68: =-PMT(Inputs!$D$4,$D68,E68) -> 18.0451906 | P68: =-PMT(Inputs!$D$4,$D68,F68) -> 18.0451906
B69: CAPEX Installation costs | C69: Luminaire (20yrs) | D69: 20 | E69: =SUMIF(Inputs!$C$69:$C$124,B65,Inputs!$Y$69:$Y$124) -> 224.9442484 | F69: 224.9442484 | N69: =B69 -> CAPEX Installation costs | O69: =-PMT(Inputs!$D$4,$D69,E69) -> 15.95868573 | P69: =-PMT(Inputs!$D$4,$D69,F69) -> 15.95868573
A72: =A65+1 -> 10 | B72: 20 Fluorescent 1X20FL | C72: RLMIN | N72: 20 Fluorescent 1X20FL
B73: Bracket UNIT price | D73: 40 | E73: =SUMIF(Inputs!$C$69:$C$124,B72,Inputs!$AH$69:$AH$124) -> 102.5264572 | F73: =E73 -> 102.5264572 | N73: =B73 -> Bracket UNIT price | O73: =-PMT(Inputs!$D$4,$D73,E73) -> 4.869424658 | P73: =-PMT(Inputs!$D$4,$D73,F73) -> 4.869424658
B74: CAPEX Installation costs | C74: Bracket (40yrs) | D74: 40 | F74: 0 | N74: =B74 -> CAPEX Installation costs | O74: =-PMT(Inputs!$D$4,$D74,E74) -> 0 | P74: =-PMT(Inputs!$D$4,$D74,F74) -> 0
B75: Luminaire UNIT price | D75: 20 | E75: =SUMIF(Inputs!$C$69:$C$124,B72,Inputs!$X$69:$X$124) -> 254.354394 | F75: 254.354394 | N75: =B75 -> Luminaire UNIT price | O75: =-PMT(Inputs!$D$4,$D75,E75) -> 18.0451906 | P75: =-PMT(Inputs!$D$4,$D75,F75) -> 18.0451906
B76: CAPEX Installation costs | C76: Luminaire (20yrs) | D76: 20 | E76: =SUMIF(Inputs!$C$69:$C$124,B72,Inputs!$Y$69:$Y$124) -> 224.9442484 | F76: 224.9442484 | N76: =B76 -> CAPEX Installation costs | O76: =-PMT(Inputs!$D$4,$D76,E76) -> 15.95868573 | P76: =-PMT(Inputs!$D$4,$D76,F76) -> 15.95868573
A79: =A72+1 -> 11 | B79: 2x40W Fluorescent | C79: RLMIN | N79: 2x40W Fluorescent
B80: Bracket UNIT price | D80: 40 | E80: =SUMIF(Inputs!$C$69:$C$124,B79,Inputs!$AH$69:$AH$124) -> 102.5264572 | F80: =E80 -> 102.5264572 | N80: =B80 -> Bracket UNIT price | O80: =-PMT(Inputs!$D$4,$D80,E80) -> 4.869424658 | P80: =-PMT(Inputs!$D$4,$D80,F80) -> 4.869424658
B81: CAPEX Installation costs | C81: Bracket (40yrs) | D81: 40 | F81: 0 | N81: =B81 -> CAPEX Installation costs | O81: =-PMT(Inputs!$D$4,$D81,E81) -> 0 | P81: =-PMT(Inputs!$D$4,$D81,F81) -> 0
B82: Luminaire UNIT price | D82: 20 | E82: =SUMIF(Inputs!$C$69:$C$124,B79,Inputs!$X$69:$X$124) -> 199.2979068 | F82: 199.2979068 | N82: =B82 -> Luminaire UNIT price | O82: =-PMT(Inputs!$D$4,$D82,E82) -> 14.1392042 | P82: =-PMT(Inputs!$D$4,$D82,F82) -> 14.1392042
B83: CAPEX Installation costs | C83: Luminaire (20yrs) | D83: 20 | E83: =SUMIF(Inputs!$C$69:$C$124,B79,Inputs!$Y$69:$Y$124) -> 224.9442484 | F83: 224.9442484 | N83: =B83 -> CAPEX Installation costs | O83: =-PMT(Inputs!$D$4,$D83,E83) -> 15.95868573 | P83: =-PMT(Inputs!$D$4,$D83,F83) -> 15.95868573
A86: =A79+1 -> 12 | B86: 3x40W Fluorescent | C86: RLMAJ | N86: 3x40W Fluorescent
B87: Bracket UNIT price | D87: 40 | E87: =SUMIF(Inputs!$C$69:$C$124,B86,Inputs!$AH$69:$AH$124) -> 102.5264572 | F87: =E87 -> 102.5264572 | N87: =B87 -> Bracket UNIT price | O87: =-PMT(Inputs!$D$4,$D87,E87) -> 4.869424658 | P87: =-PMT(Inputs!$D$4,$D87,F87) -> 4.869424658
B88: CAPEX Installation costs | C88: Bracket (40yrs) | D88: 40 | F88: 0 | N88: =B88 -> CAPEX Installation costs | O88: =-PMT(Inputs!$D$4,$D88,E88) -> 0 | P88: =-PMT(Inputs!$D$4,$D88,F88) -> 0
B89: Luminaire UNIT price | D89: 20 | E89: =SUMIF(Inputs!$C$69:$C$124,B86,Inputs!$X$69:$X$124) -> 199.2979068 | F89: 199.2979068 | N89: =B89 -> Luminaire UNIT price | O89: =-PMT(Inputs!$D$4,$D89,E89) -> 14.1392042 | P89: =-PMT(Inputs!$D$4,$D89,F89) -> 14.1392042
B90: CAPEX Installation costs | C90: Luminaire (20yrs) | D90: 20 | E90: =SUMIF(Inputs!$C$69:$C$124,B86,Inputs!$Y$69:$Y$124) -> 486.0456896 | F90: 486.0456896 | N90: =B90 -> CAPEX Installation costs | O90: =-PMT(Inputs!$D$4,$D90,E90) -> 34.48254608 | P90: =-PMT(Inputs!$D$4,$D90,F90) -> 34.48254608
A93: =A86+1 -> 13 | B93: 4x20 Fluorescent | C93: RLMIN | N93: 4x20 Fluorescent
B94: Bracket UNIT price | D94: 40 | E94: =SUMIF(Inputs!$C$69:$C$124,B93,Inputs!$AH$69:$AH$124) -> 102.5264572 | F94: =E94 -> 102.5264572 | N94: =B94 -> Bracket UNIT price | O94: =-PMT(Inputs!$D$4,$D94,E94) -> 4.869424658 | P94: =-PMT(Inputs!$D$4,$D94,F94) -> 4.869424658
B95: CAPEX Installation costs | C95: Bracket (40yrs) | D95: 40 | F95: 0 | N95: =B95 -> CAPEX Installation costs | O95: =-PMT(Inputs!$D$4,$D95,E95) -> 0 | P95: =-PMT(Inputs!$D$4,$D95,F95) -> 0
B96: Luminaire UNIT price | D96: 20 | E96: =SUMIF(Inputs!$C$69:$C$124,B93,Inputs!$X$69:$X$124) -> 254.354394 | F96: 254.354394 | N96: =B96 -> Luminaire UNIT price | O96: =-PMT(Inputs!$D$4,$D96,E96) -> 18.0451906 | P96: =-PMT(Inputs!$D$4,$D96,F96) -> 18.0451906
B97: CAPEX Installation costs | C97: Luminaire (20yrs) | D97: 20 | E97: =SUMIF(Inputs!$C$69:$C$124,B93,Inputs!$Y$69:$Y$124) -> 224.9442484 | F97: 224.9442484 | N97: =B97 -> CAPEX Installation costs | O97: =-PMT(Inputs!$D$4,$D97,E97) -> 15.95868573 | P97: =-PMT(Inputs!$D$4,$D97,F97) -> 15.95868573
A100: =A93+1 -> 14 | B100: 4x40W Fluorescent | C100: RLMAJ | N100: 4x40W Fluorescent
B101: Bracket UNIT price | D101: 40 | E101: =SUMIF(Inputs!$C$69:$C$124,B100,Inputs!$AH$69:$AH$124) -> 102.5264572 | F101: =E101 -> 102.5264572 | N101: =B101 -> Bracket UNIT price | O101: =-PMT(Inputs!$D$4,$D101,E101) -> 4.869424658 | P101: =-PMT(Inputs!$D$4,$D101,F101) -> 4.869424658
B102: CAPEX Installation costs | C102: Bracket (40yrs) | D102: 40 | F102: 0 | N102: =B102 -> CAPEX Installation costs | O102: =-PMT(Inputs!$D$4,$D102,E102) -> 0 | P102: =-PMT(Inputs!$D$4,$D102,F102) -> 0
B103: Luminaire UNIT price | D103: 20 | E103: =SUMIF(Inputs!$C$69:$C$124,B100,Inputs!$X$69:$X$124) -> 254.354394 | F103: 254.354394 | N103: =B103 -> Luminaire UNIT price | O103: =-PMT(Inputs!$D$4,$D103,E103) -> 18.0451906 | P103: =-PMT(Inputs!$D$4,$D103,F103) -> 18.0451906
B104: CAPEX Installation costs | C104: Luminaire (20yrs) | D104: 20 | E104: =SUMIF(Inputs!$C$69:$C$124,B100,Inputs!$Y$69:$Y$124) -> 486.0456896 | F104: 486.0456896 | N104: =B104 -> CAPEX Installation costs | O104: =-PMT(Inputs!$D$4,$D104,E104) -> 34.48254608 | P104: =-PMT(Inputs!$D$4,$D104,F104) -> 34.48254608
A107: =A100+1 -> 15 | B107: 100W Sodium Vapour | C107: RLMAJ | N107: 100W Sodium Vapour
B108: Bracket UNIT price | D108: 40 | E108: =SUMIF(Inputs!$C$69:$C$124,B107,Inputs!$AH$69:$AH$124) -> 93.01362477 | F108: =E108 -> 93.01362477 | N108: =B108 -> Bracket UNIT price | O108: =-PMT(Inputs!$D$4,$D108,E108) -> 4.417619124 | P108: =-PMT(Inputs!$D$4,$D108,F108) -> 4.417619124
B109: CAPEX Installation costs | C109: Bracket (40yrs) | D109: 40 | F109: 0 | N109: =B109 -> CAPEX Installation costs | O109: =-PMT(Inputs!$D$4,$D109,E109) -> 0 | P109: =-PMT(Inputs!$D$4,$D109,F109) -> 0
B110: Luminaire UNIT price | D110: 20 | E110: =SUMIF(Inputs!$C$69:$C$124,B107,Inputs!$X$69:$X$124) -> 158.7510234 | F110: 158.7510234 | N110: =B110 -> Luminaire UNIT price | O110: =-PMT(Inputs!$D$4,$D110,E110) -> 11.26260266 | P110: =-PMT(Inputs!$D$4,$D110,F110) -> 11.26260266
B111: CAPEX Installation costs | C111: Luminaire (20yrs) | D111: 20 | E111: =SUMIF(Inputs!$C$69:$C$124,B107,Inputs!$Y$69:$Y$124) -> 486.0456896 | F111: 486.0456896 | N111: =B111 -> CAPEX Installation costs | O111: =-PMT(Inputs!$D$4,$D111,E111) -> 34.48254608 | P111: =-PMT(Inputs!$D$4,$D111,F111) -> 34.48254608
A114: =A107+1 -> 16 | B114: 150W Sodium Vapour | C114: RLMAJ | N114: 150W Sodium Vapour
B115: Bracket UNIT price | D115: 40 | E115: =SUMIF(Inputs!$C$69:$C$124,B114,Inputs!$AH$69:$AH$124) -> 160.1121861 | F115: =E115 -> 160.1121861 | N115: =B115 -> Bracket UNIT price | O115: =-PMT(Inputs!$D$4,$D115,E115) -> 7.604419858 | P115: =-PMT(Inputs!$D$4,$D115,F115) -> 7.604419858
B116: CAPEX Installation costs | C116: Bracket (40yrs) | D116: 40 | F116: 0 | N116: =B116 -> CAPEX Installation costs | O116: =-PMT(Inputs!$D$4,$D116,E116) -> 0 | P116: =-PMT(Inputs!$D$4,$D116,F116) -> 0
